Workbook

Sheet Menu
L2: Step by Step
G4: Include Long-term Financial Statements | L4: 1. Copy all of the companies in the database to a folder that is easy to access
L5: 2. Create a selection of companies from the list or from the database
O10: Find files
O11: Copy existing file without paranthesis to old
O12: Remove paranthesis from new
G22: Folder with financials
G23: =PathName -> C:\Financial Statements\
G24: PathName | H24: C:\Financial Statements\

Sheet Python List
H1: Index Count
B2: Ticker Count | C2: =COUNTA(C7:C344) -> 28 | H2: =COUNTA(H7:H344) -> 26
K4: Selection
E5: _Stock_Price | F5: _General_Data | G5: _Income_5_yr
C7: ='Offshore List'!B3 -> ORSTED.CO | D7: ='Offshore List'!C3 -> ORSTED A/S | E7: =C7&$E$5 -> ORSTED.CO_Stock_Price | F7: =C7&$F$5 -> ORSTED.CO_General_Data | G7: =C7&$G$5 -> ORSTED.CO_Income_5_yr | H7: ^GSPC | I7: S&P 500 | K7: =H7 -> ^GSPC
C8: ='Offshore List'!B4 -> RWE.DE | D8: ='Offshore List'!C4 -> RWE | E8: =C8&$E$5 -> RWE.DE_Stock_Price | F8: =C8&$F$5 -> RWE.DE_General_Data | G8: =C8&$G$5 -> RWE.DE_Income_5_yr | H8: ^GDAXI | I8: DAX | K8: =H10 -> ^SP500TR
C9: ='Offshore List'!B5 -> NEE | D9: ='Offshore List'!C5 -> Nextera | E9: NEE_Stock_Price | F9: NEE_General_Data | G9: NEE_Income_5_yr | H9: ^FCHI | I9: CAC 40
C10: ='Offshore List'!B6 -> IBE.MC | D10: ='Offshore List'!C6 -> Ibederola | E10: IBE.MC_Stock_Price | F10: IBE.MC_General_Data | G10: IBE.MC_Income_5_yr | H10: ^SP500TR | I10: S&P with Dividends
C11: ='Offshore List'!B7 -> ENGI.PA | D11: ='Offshore List'!C7 -> ENGIE | E11: ENGI.PA_Stock_Price | F11: ENGI.PA_General_Data | G11: ENGI.PA_Income_5_yr | H11: ^IBEX | I11: IBEX 35 | K11: Number | L11: 16
C12: WPS | D12: WPS | E12: WPS_Stock_Price | F12: WPS_General_Data | G12: WPS_Income_5_yr | H12: ^OMX | I12: Sweeden | K12: Ticker | L12: =INDEX('Python List'!C7:C34,'Python List'!L11) -> NG.L
C13: ='Offshore List'!B9 -> EDP.LS | D13: ='Offshore List'!C9 -> EDP | E13: EDP.LS_Stock_Price | F13: EDP.LS_General_Data | G13: EDP.LS_Income_5_yr | H13: ^OSEAX | I13: Oslo | K13: Name | L13: =INDEX('Python List'!D7:D34,'Python List'!L11) -> National Grid plc
C14: ='Offshore List'!B10 -> SHEL | D14: ='Offshore List'!C10 -> Shell | E14: SHEL_Stock_Price | F14: SHEL_General_Data | G14: SHEL_Income_5_yr | H14: ^SSMI | I14: Swiss
C15: ='Offshore List'!B11 -> TTE | D15: ='Offshore List'!C11 -> Total Energies | E15: TTE_Stock_Price | F15: TTE_General_Data | G15: TTE_Income_5_yr | H15: ^BFX | I15: Brussels
C16: ='Offshore List'!B12 -> XOM | D16: ='Offshore List'!C12 -> Exxon Mobil | E16: XOM_Stock_Price | F16: XOM_General_Data | G16: XOM_Income_5_yr | H16: ^DJI | I16: 30 Industrials
C17: ='Offshore List'!B13 -> BP | D17: ='Offshore List'!C13 -> BP | E17: BP_Stock_Price | F17: BP_General_Data | G17: BP_Income_5_yr | H17: ^OEX | I17: Chi Options
C18: ='Offshore List'!B14 -> CVX | D18: ='Offshore List'!C14 -> Chevron | E18: CVX_Stock_Price | F18: CVX_General_Data | G18: CVX_Income_5_yr | H18: ^NDX | I18: Nasdaq 100
C19: ='Offshore List'!B15 -> 5347.KL | D19: ='Offshore List'!C15 -> Tenaga Malaysia | E19: 5347.KL_Stock_Price | F19: 5347.KL_General_Data | G19: 5347.KL_Income_5_yr | H19: ^N225 | I19: Nikkei 225
C20: ='Offshore List'!B16 -> CYZB.F | D20: ='Offshore List'!C16 -> China Yangtze Power Co | E20: CYZB.F_Stock_Price | F20: CYZB.F_General_Data | G20: CYZB.F_Income_5_yr | H20: ^HSI | I20: Hang Seng
C21: ='Offshore List'!B17 -> 015760.KS | D21: ='Offshore List'!C17 -> Korea Electric Power | E21: 015760.KS_Stock_Price | F21: 015760.KS_General_Data | G21: 015760.KS_Income_5_yr | H21: ^AORD | I21: Austrailian
C22: ='Offshore List'!B18 -> NG.L | D22: ='Offshore List'!C18 -> National Grid plc | E22: NG.L_Stock_Price | F22: NG.L_General_Data | G22: NG.L_Income_5_yr | H22: ^BSESN | I22: India
C23: ='Offshore List'!B19 -> ED | D23: ='Offshore List'!C19 -> Consolidated Edison | E23: ED_Stock_Price | F23: ED_General_Data | G23: ED_Income_5_yr | H23: ^JKSE | I23: Indonesia
C24: ='Offshore List'!B20 -> WEC | D24: ='Offshore List'!C20 -> Wisconsin Energy Group | E24: WEC_Stock_Price | F24: WEC_General_Data | G24: WEC_Income_5_yr | H24: ^KLSE | I24: Malaysia
C25: ='Offshore List'!B21 -> EDPR.LS | D25: ='Offshore List'!C21 -> EDP Renovaveis S/A | E25: EDPR.LS_Stock_Price | F25: EDPR.LS_General_Data | G25: EDPR.LS_Income_5_yr | H25: ^NZ50 | I25: New Zealand
C26: ='Offshore List'!B22 -> 1038.HK | D26: ='Offshore List'!C22 -> CK Infrastructure | E26: 1038.HK_Stock_Price | F26: 1038.HK_General_Data | G26: 1038.HK_Income_5_yr | H26: ^NSEI | I26: S&P CNX NIFTY
C27: ='Offshore List'!B23 -> ETR | D27: ='Offshore List'!C23 -> Entergy Corporation | E27: ETR_Stock_Price | F27: ETR_General_Data | G27: ETR_Income_5_yr | H27: ^KS11 | I27: Seoul Composite
C28: ='Offshore List'!B24 -> ENEL.MI | D28: ='Offshore List'!C24 -> ENEL | E28: ENEL.MI_Stock_Price | F28: ENEL.MI_General_Data | G28: ENEL.MI_Income_5_yr | H28: ^TWII | I28: Taiwan Weighted
C29: ='Offshore List'!B25 -> DUK | D29: ='Offshore List'!C25 -> Duke Energy | E29: DUK_Stock_Price | F29: DUK_General_Data | G29: DUK_Income_5_yr | H29: 000001.SS | I29: CMA
C30: ='Offshore List'!B26 -> AEP | D30: ='Offshore List'!C26 -> American Electric Power | E30: AEP_Stock_Price | F30: AEP_General_Data | G30: AEP_Income_5_yr | H30: ^FTSE | I30: FTSE 100
C31: ='Offshore List'!B27 -> EXC | D31: ='Offshore List'!C27 -> Exelon Corporation | E31: EXC_Stock_Price | F31: EXC_General_Data | G31: EXC_Income_5_yr | H31: ^STI | I31: Straits Times
C32: ='Offshore List'!B28 -> MAEOY | D32: ='Offshore List'!C28 -> MERALCO | E32: MAEOY_Stock_Price | F32: MAEOY_General_Data | G32: MAEOY_Income_5_yr | H32: ^NSEI | I32: Nifty Fifty
C33: ='Offshore List'!B29 -> NTPC.NS | D33: ='Offshore List'!C29 -> NTPC | E33: NTPC.NS_Stock_Price | F33: NTPC.NS_General_Data | G33: NTPC.NS_Income_5_yr
C34: ='Offshore List'!B30 -> ENA.MU | D34: ='Offshore List'!C30 -> Endesa NA | E34: ENA.MU_Stock_Price | F34: ENA.MU_General_Data | G34: ENA.MU_Income_5_yr
D85: active workbook | E85: Integrated Financial Analysis.xlsm
D86: workbook path | E86: C:\Financial Analysis\Integrated Financial Analysis.xlsm
D87: workbook path name | E87: C:\Financial Analysis
D88: active sheet name | E88: Menu
D89: python path | E89: C:\Financial Analysis
D90: data workbook | E90: C:\Financial Analysis\Finance_Output.xlsx
D91: data workbook name | E91: Finance_Output.xlsx
D92: python script | E92: Integrated_Finance.py

Sheet Selected List
A1: =RIGHT(CELL("filename", A1), LEN(CELL("filename", A1)) - SEARCH("]", CELL("filename", A1))) -> Selected List
D2: Ticker Number | E2: 1 | H2: Total Ticker | I2: =COUNTA(D12:D89) -> 32
D4: Start Ticker | E4: 1
D5: End Ticker | E5: 30
D7: =INDEX(selected_list,url_code) -> ORSTED.CO | E7: =INDEX(selected_name,url_code) -> ORSTED A/S
B9: Selected List
D10: Yahoo Ticker | E10: Company Name | F10: Row in Master
D12: ='Python List'!C7 -> ORSTED.CO | E12: ='Python List'!D7 -> ORSTED A/S | F12: =MATCH(D12,'Master File List'!I:I,0) -> 1097 | H12: URL for Stock Price
D13: ='Python List'!C8 -> RWE.DE | E13: ='Python List'!D8 -> RWE | F13: =MATCH(D13,'Master File List'!I:I,0) -> 1125 | I13: Today | J13: Date in Seconds
D14: ='Python List'!C9 -> NEE | E14: ='Python List'!D9 -> Nextera | F14: =MATCH(D14,'Master File List'!I:I,0) -> 1056 | I14: =TODAY() -> 2026-06-08 | J14: =(I14-DATE(1970,1,1))*86400 -> 1780876800 | L14: =_xlfn.FORMULATEXT(J14) -> =(I14-DATE(1970,1,1))*86400
D15: ='Python List'!C10 -> IBE.MC | E15: ='Python List'!D10 -> Ibederola | F15: =MATCH(D15,'Master File List'!I:I,0) -> 959 | H15: Part 1 | I15: https://query1.finance.yahoo.com/v7/finance/download/
D16: ='Python List'!C11 -> ENGI.PA | E16: ='Python List'!D11 -> ENGIE | F16: =MATCH(D16,'Master File List'!I:I,0) -> 835 | H16: Part 2 | I16: =ticker_code -> ORSTED.CO
D17: 5176.KL | E17: ='Python List'!D12 -> WPS | F17: =MATCH(D17,'Master File List'!I:I,0) -> 341 | H17: Part 2 | I17: ?period1=-631152000&period2=
D18: ='Python List'!C13 -> EDP.LS | E18: ='Python List'!D13 -> EDP | F18: =MATCH(D18,'Master File List'!I:I,0) -> 811 | H18: Part 3 | I18: =J14 -> 1780876800
D19: ='Python List'!C14 -> SHEL | E19: ='Python List'!D14 -> Shell | F19: =MATCH(D19,'Master File List'!I:I,0) -> 1150 | H19: Part4 | I19: &interval=1wk&events=history&crumb=
D20: ='Python List'!C15 -> TTE | E20: ='Python List'!D15 -> Total Energies | F20: =MATCH(D20,'Master File List'!I:I,0) -> 1190 | I20: Crumb String | J20: lang=
D21: ='Python List'!C16 -> XOM | E21: ='Python List'!D16 -> Exxon Mobil | F21: =MATCH(D21,'Master File List'!I:I,0) -> 1243
D22: ='Python List'!C17 -> BP | E22: ='Python List'!D17 -> BP | F22: =MATCH(D22,'Master File List'!I:I,0) -> 727 | H22: yahoo url | I22: =Part_1&I16&Part_2&Part_3&Part4&Crumb_String -> https://query1.finance.yahoo.com/v7/finance/download/ORSTED.CO?period1=-631152000&period2=1780876800&interval=1wk&events=history&crumb=lang=
D23: ='Python List'!C18 -> CVX | E23: ='Python List'!D18 -> Chevron | F23: =MATCH(D23,'Master File List'!I:I,0) -> 763
D24: ='Python List'!C19 -> 5347.KL | E24: ='Python List'!D19 -> Tenaga Malaysia | F24: =MATCH(D24,'Master File List'!I:I,0) -> 413 | I24: Cookie String
D25: ='Python List'!C20 -> CYZB.F | E25: ='Python List'!D20 -> China Yangtze Power Co | F25: =MATCH(D25,'Master File List'!I:I,0) -> 769
D26: ='Python List'!C21 -> 015760.KS | E26: ='Python List'!D21 -> Korea Electric Power | F26: =MATCH(D26,'Master File List'!I:I,0) -> 21 | I26: Response Wait | J26: 1
D27: ='Python List'!C22 -> NG.L | E27: ='Python List'!D22 -> National Grid plc | F27: =MATCH(D27,'Master File List'!I:I,0) -> 1065
D28: ='Python List'!C23 -> ED | E28: ='Python List'!D23 -> Consolidated Edison | F28: =MATCH(D28,'Master File List'!I:I,0) -> 820
D29: ='Python List'!C24 -> WEC | E29: ='Python List'!D24 -> Wisconsin Energy Group | F29: =MATCH(D29,'Master File List'!I:I,0) -> 1226 | H29: Part A | I29: https://finance.yahoo.com/quote/
D30: ='Python List'!C25 -> EDPR.LS | E30: ='Python List'!D25 -> EDP Renovaveis S/A | F30: =MATCH(D30,'Master File List'!I:I,0) -> 814 | H30: Part B | I30: /key-statistics/
D31: ='Python List'!C26 -> 1038.HK | E31: ='Python List'!D26 -> CK Infrastructure | F31: =MATCH(D31,'Master File List'!I:I,0) -> 87 | H31: Part C | I31: =ticker_code -> ORSTED.CO
D32: ='Python List'!C27 -> ETR | E32: ='Python List'!D27 -> Entergy Corporation | F32: =MATCH(D32,'Master File List'!I:I,0) -> 868
D33: ='Python List'!C28 -> ENEL.MI | E33: ='Python List'!D28 -> ENEL | F33: =MATCH(D33,'Master File List'!I:I,0) -> 832
D34: ='Python List'!C29 -> DUK | E34: ='Python List'!D29 -> Duke Energy | F34: =MATCH(D34,'Master File List'!I:I,0) -> 802
D35: ='Python List'!C30 -> AEP | E35: ='Python List'!D30 -> American Electric Power | F35: =MATCH(D35,'Master File List'!I:I,0) -> 602 | H35: Statistics URL | I35: =Part_A&Part_C&Part_B -> https://finance.yahoo.com/quote/ORSTED.CO/key-statistics/ | L35: https://finance.yahoo.com/quote//key-statistics?p=EXC
D36: ='Python List'!C31 -> EXC | E36: ='Python List'!D31 -> Exelon Corporation | F36: =MATCH(D36,'Master File List'!I:I,0) -> 877 | H36: Part D | I36: https://finance.yahoo.com/quote/ | L36: https://finance.yahoo.com/quote/EXC/key-statistics/
D37: ='Python List'!C32 -> MAEOY | E37: ='Python List'!D32 -> MERALCO | F37: =MATCH(D37,'Master File List'!I:I,0) -> 1020 | H37: Part E | I37: /analysis?p=
D38: ='Python List'!C33 -> NTPC.NS | E38: ='Python List'!D33 -> NTPC | F38: =MATCH(D38,'Master File List'!I:I,0) -> 1080 | H38: Part F | I38: =Part_C -> ORSTED.CO
D39: ='Python List'!C34 -> ENA.MU | E39: ='Python List'!D34 -> Endesa NA | F39: =MATCH(D39,'Master File List'!I:I,0) -> 829 | H39: PART G | I39: +Analyst+Estimates
D40: ='Python List'!C35 -> 0 | E40: ='Python List'!D35 -> 0 | F40: =MATCH(D40,'Master File List'!I:I,0) -> 
D41: ='Python List'!C36 -> 0 | E41: ='Python List'!D36 -> 0 | F41: =MATCH(D41,'Master File List'!I:I,0) ->  | H41: Growth URL | I41: =Part_D&Part_E&Part_F -> https://finance.yahoo.com/quote//analysis?p=ORSTED.CO
H44: Example Stats | I44: http://finance.yahoo.com/q/ks?s=UAL+Key+Statistics
D45: =#REF! ->  | E45: S&P 500 Index | H45: Example Growth | I45: http://finance.yahoo.com/q/ae?s=EXC+Analyst+Estimates
D46: =#REF! ->  | E46: S&P 500 with Dividends
H53: StockPathName | I53: C:\Stock Prices\
H56: Comment | I56: FALSE
H65: selected list | I65: selected name

Sheet Case Study List (hidden)
D4: 2082.SR | E4: ACWA Power
D5: EXC | E5: Exelon
D6: XOM | E6: Exxon Mobil
D7: WEC | E7: WEC Energy
D8: SHEL | E8: Shell Oil
D9: MSFT | E9: Microsoft
D10: FORTUM.HE | E10: Fortum
D11: ENEL.MI | E11: ENEL
D12: CWEN | E12: Cleanway
D13: ALE | E13: Allete, Inc.
D14: CSIQ | E14: Canadian Solar
D15: FSLR | E15: First Solar
D16: ADANIGREEN.NS | E16: Adani Green Energy Limited
D17: ORA | E17: Ormat Energy
D18: ED | E18: Consolidated Edison
D19: WEC | E19: WEC Energy
D20: 5110.SR | E20: Saudi Electric
D21: 5347.KL | E21: Tenaga National
D22: SHEL | E22: Shell Oil
D23: XOM | E23: Exxon Mobil
D24: TTE.PA | E24: Total Energy
D25: BP.L | E25: BP Oil
D26: SSL.JO | E26: Sasoil
D27: 2222.SR | E27: Saudi Aramco
D28: GET.PA | E28: Euro Tunnel
D29: TSLA | E29: Tesla
D30: 7010.SR | E30: Saudi Telecom
D31: GE | E31: General Electric
D32: MSFT | E32: Microsoft
D33: AAPL | E33: Apple Corporation
A46: |

Sheet Price to Book and Returns
C4: ='Python List'!$L$12 -> NG.L
C6: ='Python List'!$L$13 -> National Grid plc
C8: Date of First Stock Price | F8: ='Stock Price Graph'!G11 -> 1995-12-01
C9: Date of Last Stock Price | F9: ='Stock Price Graph'!G12 -> 2026-06-01
C11: previousClose | F11: =VALUE(_xlfn.XLOOKUP('Price to Book and Returns '!C11,INDIRECT($AI$15),INDIRECT($AI$16),FALSE,0)) -> 1217.5
C12: beta | F12: =VALUE(_xlfn.XLOOKUP('Price to Book and Returns '!C12,INDIRECT($AI$15),INDIRECT($AI$16),FALSE,0)) -> 0.604
C14: epsForward | F14: =VALUE(_xlfn.XLOOKUP('Price to Book and Returns '!C14,INDIRECT($AI$15),INDIRECT($AI$16),0,0)) -> 0.967
C15: epsCurrentYear | F15: =IFERROR(VALUE(_xlfn.XLOOKUP('Price to Book and Returns '!C15,INDIRECT($AI$15),INDIRECT($AI$16),FALSE,0)),FALSE) -> 0.88725 | AF15: =C4 -> NG.L | AG15: _General!B:B | AI15: =AF15&AG15 -> NG.L_General!B:B
AF16: =C4 -> NG.L | AG16: _General!C:C | AI16: =AF16&AG16 -> NG.L_General!C:C
C17: trailingPE | F17: =IFERROR(VALUE(_xlfn.XLOOKUP('Price to Book and Returns '!C17,INDIRECT($AI$15),INDIRECT($AI$16),FALSE,0)),FALSE) -> 18.219696
C18: forwardPE | F18: =IFERROR(VALUE(_xlfn.XLOOKUP('Price to Book and Returns '!C18,INDIRECT($AI$15),INDIRECT($AI$16),FALSE,0)),FALSE) -> 12.435368
C20: date of first financial | F20: =Financials!E97 -> 2023-03-31
C21: date of last financial | F21: =Financials!E98 -> 2026-03-31 | AF21: Max
AF22: 1.5
C23: enterpriseValue | F23: =IFERROR(VALUE(_xlfn.XLOOKUP('Price to Book and Returns '!C23,INDIRECT($AI$15),INDIRECT($AI$16),FALSE,0)),FALSE) -> 105486483456 | AF23: Min
C24: marketCap | F24: =IFERROR(VALUE(_xlfn.XLOOKUP('Price to Book and Returns '!C24,INDIRECT($AI$15),INDIRECT($AI$16),FALSE,0)),FALSE) -> 59832922112 | AF24: -1
C26: returnOnEquity | F26: =IFERROR(VALUE(_xlfn.XLOOKUP('Price to Book and Returns '!C26,INDIRECT($AI$15),INDIRECT($AI$16),FALSE,0)),FALSE) -> 0.08406
C27: returnOnEquity | F27: =VALUE(_xlfn.XLOOKUP('Price to Book and Returns '!C27,INDIRECT($AI$15),INDIRECT($AI$16),FALSE,0)) -> 0.08406
C29: bookValue | F29: =VALUE(_xlfn.XLOOKUP('Price to Book and Returns '!C29,INDIRECT($AI$15),INDIRECT($AI$16),0,0)) -> 7.902
C30: lastDividendValue | F30: =IFERROR(VALUE(_xlfn.XLOOKUP('Price to Book and Returns '!C30,INDIRECT($AI$15),INDIRECT($AI$16),FALSE,0)),FALSE) -> 0.3214
C31: payoutRatio | F31: =VALUE(_xlfn.XLOOKUP('Price to Book and Returns '!C31,INDIRECT($AI$15),INDIRECT($AI$16),FALSE,0)) -> 0.72110003
C32: reinvestment | F32: =F14*(1-F31) -> 0.269696271
C33: futureBookValue | F33: =F29+F32 -> 8.171696271
C34: averageBookValue | F34: =AVERAGE(F33,F29) -> 8.036848135
C35: forward ROE | F35: =F14/F34 -> 0.1203208004

Sheet ROIC and ROE
C4: ='Python List'!$L$12 -> NG.L
C6: ='Python List'!$L$13 -> National Grid plc
C8: Date of First Stock Price | F8: ='Stock Price Graph'!G11 -> 1995-12-01
C9: Date of Last Stock Price | F9: ='Stock Price Graph'!G12 -> 2026-06-01
C11: previousClose | F11: =VALUE(_xlfn.XLOOKUP('ROIC and ROE'!C11,INDIRECT($AI$15),INDIRECT($AI$16),FALSE,0)) -> 1217.5
C12: beta | F12: =VALUE(_xlfn.XLOOKUP('ROIC and ROE'!C12,INDIRECT($AI$15),INDIRECT($AI$16),FALSE,0)) -> 0.604
C14: epsForward | F14: =VALUE(_xlfn.XLOOKUP('ROIC and ROE'!C14,INDIRECT($AI$15),INDIRECT($AI$16),0,0)) -> 0.967
C15: epsCurrentYear | F15: =IFERROR(VALUE(_xlfn.XLOOKUP('ROIC and ROE'!C15,INDIRECT($AI$15),INDIRECT($AI$16),FALSE,0)),FALSE) -> 0.88725 | AF15: =C4 -> NG.L | AG15: _General!B:B | AI15: =AF15&AG15 -> NG.L_General!B:B
AF16: =C4 -> NG.L | AG16: _General!C:C | AI16: =AF16&AG16 -> NG.L_General!C:C
C17: trailingPE | F17: =IFERROR(VALUE(_xlfn.XLOOKUP('ROIC and ROE'!C17,INDIRECT($AI$15),INDIRECT($AI$16),FALSE,0)),FALSE) -> 18.219696
C18: forwardPE | F18: =IFERROR(VALUE(_xlfn.XLOOKUP('ROIC and ROE'!C18,INDIRECT($AI$15),INDIRECT($AI$16),FALSE,0)),FALSE) -> 12.435368
C20: date of first financial | F20: =Financials!E97 -> 2023-03-31
C21: date of last financial | F21: =Financials!E98 -> 2026-03-31 | AF21: Max
AF22: 1.5
C23: enterpriseValue | F23: =IFERROR(VALUE(_xlfn.XLOOKUP('ROIC and ROE'!C23,INDIRECT($AI$15),INDIRECT($AI$16),FALSE,0)),FALSE) -> 105486483456 | AF23: Min
C24: marketCap | F24: =IFERROR(VALUE(_xlfn.XLOOKUP('ROIC and ROE'!C24,INDIRECT($AI$15),INDIRECT($AI$16),FALSE,0)),FALSE) -> 59832922112 | AF24: -1
C26: returnOnEquity | F26: =IFERROR(VALUE(_xlfn.XLOOKUP('ROIC and ROE'!C26,INDIRECT($AI$15),INDIRECT($AI$16),FALSE,0)),FALSE) -> 0.08406
C27: returnOnEquity | F27: =VALUE(_xlfn.XLOOKUP('ROIC and ROE'!C27,INDIRECT($AI$15),INDIRECT($AI$16),FALSE,0)) -> 0.08406
C29: bookValue | F29: =VALUE(_xlfn.XLOOKUP('ROIC and ROE'!C29,INDIRECT($AI$15),INDIRECT($AI$16),0,0)) -> 7.902
C30: lastDividendValue | F30: =IFERROR(VALUE(_xlfn.XLOOKUP('ROIC and ROE'!C30,INDIRECT($AI$15),INDIRECT($AI$16),FALSE,0)),FALSE) -> 0.3214
C31: payoutRatio | F31: =VALUE(_xlfn.XLOOKUP('ROIC and ROE'!C31,INDIRECT($AI$15),INDIRECT($AI$16),FALSE,0)) -> 0.72110003
C32: reinvestment | F32: =F14*(1-F31) -> 0.269696271
C33: futureBookValue | F33: =F29+F32 -> 8.171696271
C34: averageBookValue | F34: =AVERAGE(F33,F29) -> 8.036848135
C35: forward ROE | F35: =F14/F34 -> 0.1203208004

Sheet EV to EBITDA and Cap Exp
C3: ='Python List'!$L$12 -> NG.L
C5: ='Python List'!L13 -> National Grid plc
C9: Stock Price From | E9: ='Dropdown Forms'!$J$8 -> 1985-01-01
C10: Earnings Since | E10: ='Dropdown Forms'!$D$26 -> 2023-04-01
C12: enterpriseValue | E12: =IFERROR(VALUE(_xlfn.XLOOKUP(C12,INDIRECT($AF$14),INDIRECT($AF$15),FALSE,0)),FALSE) -> 105486483456
C13: marketCap | E13: =IFERROR(VALUE(_xlfn.XLOOKUP(C13,INDIRECT($AF$14),INDIRECT($AF$15),FALSE,0)),FALSE) -> 59832922112
AF14: ='Price to Book and Returns '!AI15 -> NG.L_General!B:B
AF15: ='Price to Book and Returns '!AI16 -> NG.L_General!C:C

Sheet PE Returns and Growth
B6: ='Python List'!L13 -> National Grid plc
B8: ='Python List'!L12 -> NG.L
B10: Stock Price From | E10: ='Dropdown Forms'!$J$8 -> 1985-01-01
B11: Earnings Since | E11: ='Dropdown Forms'!$D$26 -> 2023-04-01
B13: previousClose | E13: =VALUE(_xlfn.XLOOKUP(B13,INDIRECT($AC$13),INDIRECT($AC$14),0,0)) -> 1217.5 | Z13: =B8 -> NG.L | AA13: _General!B:B | AC13: =Z13&AA13 -> NG.L_General!B:B
Z14: =B8 -> NG.L | AA14: _General!C:C | AC14: =Z14&AA14 -> NG.L_General!C:C
B15: epsForward | E15: =VALUE(_xlfn.XLOOKUP(B15,INDIRECT($AC$13),INDIRECT($AC$14),0,0)) -> 0.967
B16: epsCurrentYear | E16: =VALUE(_xlfn.XLOOKUP(B16,INDIRECT($AC$13),INDIRECT($AC$14),0,0)) -> 0.88725
B18: priceEpsCurrentYear | E18: =VALUE(_xlfn.XLOOKUP(B18,INDIRECT($AC$13),INDIRECT($AC$14),0,0)) -> 1355.3114
B20: trailingPE | E20: =VALUE(_xlfn.XLOOKUP(B20,INDIRECT($AC$13),INDIRECT($AC$14),0,0)) -> 18.219696
B21: forwardPE | E21: =VALUE(_xlfn.XLOOKUP(B21,INDIRECT($AC$13),INDIRECT($AC$14),0,0)) -> 12.435368

Sheet Debt Analysis
B7: ='Python List'!L13 -> National Grid plc
B9: ='Python List'!L12 -> NG.L
C13: totalDebt
C15: debtToEquity

Sheet Stock Price and Growth
K3: Price to Book

Sheet Flexible Graph

Sheet Graphs Working
B1: Parameters
E2: =F2&'Python List'!F5 -> NG.L_General_Data | F2: ='Python List'!L12 -> NG.L
E3: =F2&'Python List'!G5 -> NG.L_Income_5_yr
E4: =F2&"_Annual_Financials" -> NG.L_Annual_Financials
E5: Start Year (Dropdown) | F5: =I302 -> 1991 | G5: =I303 -> 1991-12-31
E6: End Year | F6: =I308 -> 2026 | G6: =I309 -> 2026-12-31
B9: Earnings Per Share and Net Operating Income
C10: Go to the EPS line and the Net Operating Income below, and then find the data in the Financial Statement Page
E12: Date from Dropdown | F12: =F5 -> 1991 | G12: =F6 -> 2026
E13: Date from Financials | F13: =Financials!$E$97 -> 2023-03-31 | G13: =Financials!$E$98 -> 2026-03-31
E14: Year from Above Date | F14: =YEAR(F13) -> 2023 | G14: =YEAR(G13) -> 2026
E15: Date with Max/Min | F15: =MAX(F14,F12) -> 2023 | G15: =MIN(G12,G14) -> 2026
F17: =F37 -> 1985 | G17: 1986 | H17: 1987 | I17: 1988 | J17: 1989 | K17: 1990 | L17: 1991 | M17: 1992 | N17: 1993 | O17: 1994 | P17: 1995 | Q17: 1996 | R17: 1997 | S17: 1998 | T17: 1999 | U17: 2000 | V17: 2001 | W17: 2002 | X17: 2003 | Y17: 2004 | Z17: 2005 | AA17: 2006 | AB17: 2007 | AC17: 2008 | AD17: 2009 | AE17: 2010 | AF17: 2011 | AG17: 2012 | AH17: 2013 | AI17: 2014 | AJ17: 2015 | AK17: 2016 | AL17: 2017 | AM17: 2018 | AN17: 2019 | AO17: 2020 | AP17: 2021 | AQ17: 2022 | AR17: 2023 | AS17: 2024 | AT17: 2025 | AU17: 2026 | AV17: 2027 | AW17: 2028 | AX17: 2029 | AY17: 2030
F18: =AND(F37>=$F$15,F37<=$G$15) -> FALSE | G18: =AND(G37>=$F$15,G37<=$G$15) -> FALSE | H18: FALSE | I18: FALSE | J18: FALSE | K18: FALSE | L18: FALSE | M18: FALSE | N18: FALSE | O18: FALSE | P18: FALSE | Q18: FALSE | R18: FALSE | S18: FALSE | T18: FALSE | U18: FALSE | V18: FALSE | W18: FALSE | X18: FALSE | Y18: FALSE | Z18: FALSE | AA18: FALSE | AB18: FALSE | AC18: FALSE | AD18: FALSE | AE18: FALSE | AF18: FALSE | AG18: FALSE | AH18: FALSE | AI18: FALSE | AJ18: FALSE | AK18: FALSE | AL18: FALSE | AM18: FALSE | AN18: FALSE | AO18: FALSE | AP18: FALSE | AQ18: FALSE | AR18: TRUE | AS18: TRUE | AT18: TRUE | AU18: TRUE | AV18: FALSE | AW18: FALSE | AX18: FALSE | AY18: FALSE
F19: =IF(F18,F38,NA()) ->  | AR19: 2023-12-31 | AS19: 2024-12-31 | AT19: 2025-12-31 | AU19: 2026-12-31
E20: =Financials!D109 -> EPS (Diluted) - Applied | F20: =IF(F18,Financials!J109,NA()) ->  | G20: =IF(G18,Financials!K109,NA()) ->  | H20: =IF(H18,Financials!L109,NA()) ->  | I20: =IF(I18,Financials!M109,NA()) ->  | J20: =IF(J18,Financials!N109,NA()) ->  | K20: =IF(K18,Financials!O109,NA()) ->  | L20: =IF(L18,Financials!P109,NA()) ->  | M20: =IF(M18,Financials!Q109,NA()) ->  | N20: =IF(N18,Financials!R109,NA()) ->  | O20: =IF(O18,Financials!S109,NA()) ->  | P20: =IF(P18,Financials!T109,NA()) ->  | Q20: =IF(Q18,Financials!U109,NA()) ->  | R20: =IF(R18,Financials!V109,NA()) ->  | S20: =IF(S18,Financials!W109,NA()) ->  | T20: =IF(T18,Financials!X109,NA()) ->  | U20: =IF(U18,Financials!Y109,NA()) ->  | V20: =IF(V18,Financials!Z109,NA()) ->  | W20: =IF(W18,Financials!AA109,NA()) ->  | X20: =IF(X18,Financials!AB109,NA()) ->  | Y20: =IF(Y18,Financials!AC109,NA()) ->  | Z20: =IF(Z18,Financials!AD109,NA()) ->  | AA20: =IF(AA18,Financials!AE109,NA()) ->  | AB20: =IF(AB18,Financials!AF109,NA()) ->  | AC20: =IF(AC18,Financials!AG109,NA()) ->  | AD20: =IF(AD18,Financials!AH109,NA()) ->  | AE20: =IF(AE18,Financials!AI109,NA()) ->  | AF20: =IF(AF18,Financials!AJ109,NA()) ->  | AG20: =IF(AG18,Financials!AK109,NA()) ->  | AH20: =IF(AH18,Financials!AL109,NA()) ->  | AI20: =IF(AI18,Financials!AM109,NA()) ->  | AJ20: =IF(AJ18,Financials!AN109,NA()) ->  | AK20: =IF(AK18,Financials!AO109,NA()) ->  | AL20: =IF(AL18,Financials!AP109,NA()) ->  | AM20: =IF(AM18,Financials!AQ109,NA()) ->  | AN20: =IF(AN18,Financials!AR109,NA()) ->  | AO20: =IF(AO18,Financials!AS109,NA()) ->  | AP20: =IF(AP18,Financials!AT109,NA()) ->  | AQ20: =IF(AQ18,Financials!AU109,NA()) ->  | AR20: =IF(AR18,Financials!AV109,NA()) -> 1.949441 | AS20: =IF(AS18,Financials!AW109,NA()) -> 0.571 | AT20: =IF(AT18,Financials!AX109,NA()) -> 0.614 | AU20: =IF(AU18,Financials!AY109,NA()) -> 0.655 | AV20: =IF(AV18,Financials!AZ109,NA()) ->  | AW20: =IF(AW18,Financials!BA109,NA()) ->  | AX20: =IF(AX18,Financials!BB109,NA()) ->  | AY20: =IF(AY18,Financials!BC109,NA()) -> 
E21: ='Dropdown Forms'!C27 -> Net Operating Income After Tax | F21: =IF(F18,Financials!J209,NA()) ->  | G21: =IF(G18,Financials!K209,NA()) ->  | H21: =IF(H18,Financials!L209,NA()) ->  | I21: =IF(I18,Financials!M209,NA()) ->  | J21: =IF(J18,Financials!N209,NA()) ->  | K21: =IF(K18,Financials!O209,NA()) ->  | L21: =IF(L18,Financials!P209,NA()) ->  | M21: =IF(M18,Financials!Q209,NA()) ->  | N21: =IF(N18,Financials!R209,NA()) ->  | O21: =IF(O18,Financials!S209,NA()) ->  | P21: =IF(P18,Financials!T209,NA()) ->  | Q21: =IF(Q18,Financials!U209,NA()) ->  | R21: =IF(R18,Financials!V209,NA()) ->  | S21: =IF(S18,Financials!W209,NA()) ->  | T21: =IF(T18,Financials!X209,NA()) ->  | U21: =IF(U18,Financials!Y209,NA()) ->  | V21: =IF(V18,Financials!Z209,NA()) ->  | W21: =IF(W18,Financials!AA209,NA()) ->  | X21: =IF(X18,Financials!AB209,NA()) ->  | Y21: =IF(Y18,Financials!AC209,NA()) ->  | Z21: =IF(Z18,Financials!AD209,NA()) ->  | AA21: =IF(AA18,Financials!AE209,NA()) ->  | AB21: =IF(AB18,Financials!AF209,NA()) ->  | AC21: =IF(AC18,Financials!AG209,NA()) ->  | AD21: =IF(AD18,Financials!AH209,NA()) ->  | AE21: =IF(AE18,Financials!AI209,NA()) ->  | AF21: =IF(AF18,Financials!AJ209,NA()) ->  | AG21: =IF(AG18,Financials!AK209,NA()) ->  | AH21: =IF(AH18,Financials!AL209,NA()) ->  | AI21: =IF(AI18,Financials!AM209,NA()) ->  | AJ21: =IF(AJ18,Financials!AN209,NA()) ->  | AK21: =IF(AK18,Financials!AO209,NA()) ->  | AL21: =IF(AL18,Financials!AP209,NA()) ->  | AM21: =IF(AM18,Financials!AQ209,NA()) ->  | AN21: =IF(AN18,Financials!AR209,NA()) ->  | AO21: =IF(AO18,Financials!AS209,NA()) ->  | AP21: =IF(AP18,Financials!AT209,NA()) ->  | AQ21: =IF(AQ18,Financials!AU209,NA()) ->  | AR21: =IF(AR18,Financials!AV209,NA()) -> 3690738298 | AS21: =IF(AS18,Financials!AW209,NA()) -> 3392182000 | AT21: =IF(AT18,Financials!AX209,NA()) -> 4221795396 | AU21: =IF(AU18,Financials!AY209,NA()) -> 4412401540 | AV21: =IF(AV18,Financials!AZ209,NA()) ->  | AW21: =IF(AW18,Financials!BA209,NA()) ->  | AX21: =IF(AX18,Financials!BB209,NA()) ->  | AY21: =IF(AY18,Financials!BC209,NA()) -> 
E23: EPS Percent Change | G23: =IF(F20,G20/F20-1) ->  | AS23: -0.7070955212 | AT23: 0.07530647986 | AU23: 0.0667752443
E24: NOPAT Percent Change | G24: =IF(F21,G21/F21-1) ->  | AS24: -0.08089338064 | AT24: 0.2445662986 | AU24: 0.04514812446
E25: EPS Growth | F25: 1 | G25: =F25*(1+G23*G18) -> 
E26: NOPAT Growth | F26: 1 | G26: =F26*(1+G24*G18) -> 
E28: EPS Annual Growth | F28: =MAX(H25:AY25) ->  | G28: =G12-F12 -> 35 | H28: =IFERROR(F28^(1/G28)-1,FALSE) -> FALSE
E29: NOPAT Annual Growth | F29: =MAX(H26:AY26) ->  | G29: =G28 -> 35 | H29: =IFERROR(F29^(1/G29)-1,FALSE) -> FALSE
E31: EPS Volatility (Std dev % Channge) | F31: =_xlfn.STDEV.S(G23:AY23) -> 
E32: NOPAT Volatility (Std dev % change) | F32: =_xlfn.STDEV.S(G24:AY24) -> 
H34: Earnings Per Share and Operating Income | K34: EPS Annual Growth | L34: =H28 -> FALSE | M34: Operating Income Growth | N34: =H29 -> FALSE | O34: EPS Volatility | P34: =F31 ->  | Q34: Operating Income Volatility | R34: =F32 -> 
B35: Return on Equity Graph
F37: 1985 | G37: =F37+1 -> 1986 | H37: =G37+1 -> 1987 | I37: 1988 | J37: 1989 | K37: 1990 | L37: 1991 | M37: 1992 | N37: 1993 | O37: 1994 | P37: 1995 | Q37: 1996 | R37: 1997 | S37: 1998 | T37: 1999 | U37: 2000 | V37: 2001 | W37: 2002 | X37: 2003 | Y37: 2004 | Z37: 2005 | AA37: 2006 | AB37: 2007 | AC37: 2008 | AD37: 2009 | AE37: 2010 | AF37: 2011 | AG37: 2012 | AH37: 2013 | AI37: 2014 | AJ37: 2015 | AK37: 2016 | AL37: 2017 | AM37: 2018 | AN37: 2019 | AO37: 2020 | AP37: 2021 | AQ37: 2022 | AR37: 2023 | AS37: 2024 | AT37: 2025 | AU37: 2026 | AV37: 2027 | AW37: 2028 | AX37: 2029 | AY37: 2030
G38: =DATE(G37,12,31) -> 1986-12-31 | H38: 1987-12-31 | I38: 1988-12-31 | J38: 1989-12-31 | K38: 1990-12-31 | L38: 1991-12-31 | M38: 1992-12-31 | N38: 1993-12-31 | O38: 1994-12-31 | P38: 1995-12-31 | Q38: 1996-12-31 | R38: 1997-12-31 | S38: 1998-12-31 | T38: 1999-12-31 | U38: 2000-12-31 | V38: 2001-12-31 | W38: 2002-12-31 | X38: 2003-12-31 | Y38: 2004-12-31 | Z38: 2005-12-31 | AA38: 2006-12-31 | AB38: 2007-12-31 | AC38: 2008-12-31 | AD38: 2009-12-31 | AE38: 2010-12-31 | AF38: 2011-12-31 | AG38: 2012-12-31 | AH38: 2013-12-31 | AI38: 2014-12-31 | AJ38: 2015-12-31 | AK38: 2016-12-31 | AL38: 2017-12-31 | AM38: 2018-12-31 | AN38: 2019-12-31 | AO38: 2020-12-31 | AP38: 2021-12-31 | AQ38: 2022-12-31 | AR38: 2023-12-31 | AS38: 2024-12-31 | AT38: =DATE(AT37,12,31) -> 2025-12-31 | AU38: 2026-12-31 | AV38: =DATE(AV37,12,31) -> 2027-12-31 | AW38: 2028-12-31 | AX38: 2029-12-31 | AY38: 2030-12-31
F39: =AND(F37>=$F$15,F37<=$G$15) -> FALSE | G39: =AND(G37>=$F$15,G37<=$G$15) -> FALSE | H39: FALSE | I39: FALSE | J39: FALSE | K39: FALSE | L39: FALSE | M39: FALSE | N39: FALSE | O39: FALSE | P39: FALSE | Q39: FALSE | R39: FALSE | S39: FALSE | T39: FALSE | U39: FALSE | V39: FALSE | W39: FALSE | X39: FALSE | Y39: FALSE | Z39: FALSE | AA39: FALSE | AB39: FALSE | AC39: FALSE | AD39: FALSE | AE39: FALSE | AF39: FALSE | AG39: FALSE | AH39: FALSE | AI39: FALSE | AJ39: FALSE | AK39: FALSE | AL39: FALSE | AM39: FALSE | AN39: FALSE | AO39: FALSE | AP39: FALSE | AQ39: FALSE | AR39: TRUE | AS39: TRUE | AT39: TRUE | AU39: TRUE | AV39: FALSE | AW39: FALSE | AX39: FALSE | AY39: FALSE
F40: =IF(F39,DATE(F37,12,31),NA()) ->  | G40: =IF(G39,DATE(G37,12,31),NA()) ->  | AR40: 2023-12-31 | AS40: 2024-12-31 | AT40: =IF(AT39,DATE(AT37,12,31),NA()) -> 2025-12-31 | AU40: 2026-12-31 | AV40: =IF(AV39,DATE(AV37,12,31),NA()) -> 
E41: ='Dropdown Forms'!H16 -> Return on Shareholders Equity - Continuing | F41: =IF(F39,Financials!J367,NA()) ->  | G41: =IF(G39,Financials!K367,NA()) ->  | H41: =IF(H39,Financials!L367,NA()) ->  | I41: =IF(I39,Financials!M367,NA()) ->  | J41: =IF(J39,Financials!N367,NA()) ->  | K41: =IF(K39,Financials!O367,NA()) ->  | L41: =IF(L39,Financials!P367,NA()) ->  | M41: =IF(M39,Financials!Q367,NA()) ->  | N41: =IF(N39,Financials!R367,NA()) ->  | O41: =IF(O39,Financials!S367,NA()) ->  | P41: =IF(P39,Financials!T367,NA()) ->  | Q41: =IF(Q39,Financials!U367,NA()) ->  | R41: =IF(R39,Financials!V367,NA()) ->  | S41: =IF(S39,Financials!W367,NA()) ->  | T41: =IF(T39,Financials!X367,NA()) ->  | U41: =IF(U39,Financials!Y367,NA()) ->  | V41: =IF(V39,Financials!Z367,NA()) ->  | W41: =IF(W39,Financials!AA367,NA()) ->  | X41: =IF(X39,Financials!AB367,NA()) ->  | Y41: =IF(Y39,Financials!AC367,NA()) ->  | Z41: =IF(Z39,Financials!AD367,NA()) ->  | AA41: =IF(AA39,Financials!AE367,NA()) ->  | AB41: =IF(AB39,Financials!AF367,NA()) ->  | AC41: =IF(AC39,Financials!AG367,NA()) ->  | AD41: =IF(AD39,Financials!AH367,NA()) ->  | AE41: =IF(AE39,Financials!AI367,NA()) ->  | AF41: =IF(AF39,Financials!AJ367,NA()) ->  | AG41: =IF(AG39,Financials!AK367,NA()) ->  | AH41: =IF(AH39,Financials!AL367,NA()) ->  | AI41: =IF(AI39,Financials!AM367,NA()) ->  | AJ41: =IF(AJ39,Financials!AN367,NA()) ->  | AK41: =IF(AK39,Financials!AO367,NA()) ->  | AL41: =IF(AL39,Financials!AP367,NA()) ->  | AM41: =IF(AM39,Financials!AQ367,NA()) ->  | AN41: =IF(AN39,Financials!AR367,NA()) ->  | AO41: =IF(AO39,Financials!AS367,NA()) ->  | AP41: =IF(AP39,Financials!AT367,NA()) ->  | AQ41: =IF(AQ39,Financials!AU367,NA()) ->  | AR41: =IF(AR39,Financials!AV367,NA()) -> 0.263965062 | AS41: =IF(AS39,Financials!AW367,NA()) -> 0.07709788738 | AT41: =IF(AT39,Financials!AX367,NA()) -> 0.08576917393 | AU41: =IF(AU39,Financials!AY367,NA()) -> 0.08407045213 | AV41: =IF(AV39,Financials!AZ367,NA()) ->  | AW41: =IF(AW39,Financials!BA367,NA()) ->  | AX41: =IF(AX39,Financials!BB367,NA()) ->  | AY41: =IF(AY39,Financials!BC367,NA()) -> 
E42: ='Dropdown Forms'!H17 -> Return on Average Equity | F42: =IF(F39,Financials!J372,NA()) ->  | G42: =IF(G39,Financials!K372,NA()) ->  | H42: =IF(H39,Financials!L372,NA()) ->  | I42: =IF(I39,Financials!M372,NA()) ->  | J42: =IF(J39,Financials!N372,NA()) ->  | K42: =IF(K39,Financials!O372,NA()) ->  | L42: =IF(L39,Financials!P372,NA()) ->  | M42: =IF(M39,Financials!Q372,NA()) ->  | N42: =IF(N39,Financials!R372,NA()) ->  | O42: =IF(O39,Financials!S372,NA()) ->  | P42: =IF(P39,Financials!T372,NA()) ->  | Q42: =IF(Q39,Financials!U372,NA()) ->  | R42: =IF(R39,Financials!V372,NA()) ->  | S42: =IF(S39,Financials!W372,NA()) ->  | T42: =IF(T39,Financials!X372,NA()) ->  | U42: =IF(U39,Financials!Y372,NA()) ->  | V42: =IF(V39,Financials!Z372,NA()) ->  | W42: =IF(W39,Financials!AA372,NA()) ->  | X42: =IF(X39,Financials!AB372,NA()) ->  | Y42: =IF(Y39,Financials!AC372,NA()) ->  | Z42: =IF(Z39,Financials!AD372,NA()) ->  | AA42: =IF(AA39,Financials!AE372,NA()) ->  | AB42: =IF(AB39,Financials!AF372,NA()) ->  | AC42: =IF(AC39,Financials!AG372,NA()) ->  | AD42: =IF(AD39,Financials!AH372,NA()) ->  | AE42: =IF(AE39,Financials!AI372,NA()) ->  | AF42: =IF(AF39,Financials!AJ372,NA()) ->  | AG42: =IF(AG39,Financials!AK372,NA()) ->  | AH42: =IF(AH39,Financials!AL372,NA()) ->  | AI42: =IF(AI39,Financials!AM372,NA()) ->  | AJ42: =IF(AJ39,Financials!AN372,NA()) ->  | AK42: =IF(AK39,Financials!AO372,NA()) ->  | AL42: =IF(AL39,Financials!AP372,NA()) ->  | AM42: =IF(AM39,Financials!AQ372,NA()) ->  | AN42: =IF(AN39,Financials!AR372,NA()) ->  | AO42: =IF(AO39,Financials!AS372,NA()) ->  | AP42: =IF(AP39,Financials!AT372,NA()) ->  | AQ42: =IF(AQ39,Financials!AU372,NA()) ->  | AR42: =IF(AR39,Financials!AV372,NA()) -> 0.09188164398 | AS42: =IF(AS39,Financials!AW372,NA()) -> 0.0746401818 | AT42: =IF(AT39,Financials!AX372,NA()) -> 0.08361164475 | AU42: =IF(AU39,Financials!AY372,NA()) -> 0.08412233146 | AV42: =IF(AV39,Financials!AZ372,NA()) ->  | AW42: =IF(AW39,Financials!BA372,NA()) ->  | AX42: =IF(AX39,Financials!BB372,NA()) ->  | AY42: =IF(AY39,Financials!BC372,NA()) -> 
H45: Earnings Per Share | K45: =K34 -> EPS Annual Growth | L45: =L34 -> FALSE | O45: =O34 -> EPS Volatility | P45: =P34 -> 
F72: =Financials!$E$97 -> 2023-03-31 | G72: =Financials!$E$98 -> 2026-03-31
F73: =F12 -> 1991 | G73: =G12 -> 2026
B74: Return on Equity | F74: =YEAR(F72) -> 2023 | G74: =YEAR(G72) -> 2026
D75: Graph Start, End | F75: =MAX(F74,F73) -> 2023 | G75: =MIN(G74,G73) -> 2026
F77: =F37 -> 1985 | G77: 1986 | H77: 1987 | I77: 1988 | J77: 1989 | K77: 1990 | L77: 1991 | M77: 1992 | N77: 1993 | O77: 1994 | P77: 1995 | Q77: 1996 | R77: 1997 | S77: 1998 | T77: 1999 | U77: 2000 | V77: 2001 | W77: 2002 | X77: 2003 | Y77: 2004 | Z77: 2005 | AA77: 2006 | AB77: 2007 | AC77: 2008 | AD77: 2009 | AE77: 2010 | AF77: 2011 | AG77: 2012 | AH77: 2013 | AI77: 2014 | AJ77: 2015 | AK77: 2016 | AL77: 2017 | AM77: 2018 | AN77: 2019 | AO77: 2020 | AP77: 2021 | AQ77: 2022 | AR77: 2023 | AS77: 2024 | AT77: 2025 | AU77: 2026
F78: =AND(F77>=$F$75,F77<=$G$75) -> FALSE | G78: =AND(G77>=$F$75,G77<=$G$75) -> FALSE | H78: FALSE | I78: FALSE | J78: FALSE | K78: FALSE | L78: FALSE | M78: FALSE | N78: FALSE | O78: FALSE | P78: FALSE | Q78: FALSE | R78: FALSE | S78: FALSE | T78: FALSE | U78: FALSE | V78: FALSE | W78: FALSE | X78: FALSE | Y78: FALSE | Z78: FALSE | AA78: FALSE | AB78: FALSE | AC78: FALSE | AD78: FALSE | AE78: FALSE | AF78: FALSE | AG78: FALSE | AH78: FALSE | AI78: FALSE | AJ78: FALSE | AK78: FALSE | AL78: FALSE | AM78: FALSE | AN78: FALSE | AO78: FALSE | AP78: FALSE | AQ78: FALSE | AR78: TRUE | AS78: TRUE | AT78: =AND(AT77>=$F$75,AT77<=$G$75) -> TRUE | AU78: TRUE
F79: =IF(F78,F38,NA()) ->  | AR79: 2023-12-31 | AS79: 2024-12-31 | AT79: 2025-12-31 | AU79: 2026-12-31
E80: ='Dropdown Forms'!C20 -> Return on Shareholders Equity - Continuing | F80: =IF(F78,Financials!J372,NA()) ->  | G80: =IF(G78,Financials!K372,NA()) ->  | H80: =IF(H78,Financials!L372,NA()) ->  | I80: =IF(I78,Financials!M372,NA()) ->  | J80: =IF(J78,Financials!N372,NA()) ->  | K80: =IF(K78,Financials!O372,NA()) ->  | L80: =IF(L78,Financials!P372,NA()) ->  | M80: =IF(M78,Financials!Q372,NA()) ->  | N80: =IF(N78,Financials!R372,NA()) ->  | O80: =IF(O78,Financials!S372,NA()) ->  | P80: =IF(P78,Financials!T372,NA()) ->  | Q80: =IF(Q78,Financials!U372,NA()) ->  | R80: =IF(R78,Financials!V372,NA()) ->  | S80: =IF(S78,Financials!W372,NA()) ->  | T80: =IF(T78,Financials!X372,NA()) ->  | U80: =IF(U78,Financials!Y372,NA()) ->  | V80: =IF(V78,Financials!Z372,NA()) ->  | W80: =IF(W78,Financials!AA372,NA()) ->  | X80: =IF(X78,Financials!AB372,NA()) ->  | Y80: =IF(Y78,Financials!AC372,NA()) ->  | Z80: =IF(Z78,Financials!AD372,NA()) ->  | AA80: =IF(AA78,Financials!AE372,NA()) ->  | AB80: =IF(AB78,Financials!AF372,NA()) ->  | AC80: =IF(AC78,Financials!AG372,NA()) ->  | AD80: =IF(AD78,Financials!AH372,NA()) ->  | AE80: =IF(AE78,Financials!AI372,NA()) ->  | AF80: =IF(AF78,Financials!AJ372,NA()) ->  | AG80: =IF(AG78,Financials!AK372,NA()) ->  | AH80: =IF(AH78,Financials!AL372,NA()) ->  | AI80: =IF(AI78,Financials!AM372,NA()) ->  | AJ80: =IF(AJ78,Financials!AN372,NA()) ->  | AK80: =IF(AK78,Financials!AO372,NA()) ->  | AL80: =IF(AL78,Financials!AP372,NA()) ->  | AM80: =IF(AM78,Financials!AQ372,NA()) ->  | AN80: =IF(AN78,Financials!AR372,NA()) ->  | AO80: =IF(AO78,Financials!AS372,NA()) ->  | AP80: =IF(AP78,Financials!AT372,NA()) ->  | AQ80: =IF(AQ78,Financials!AU372,NA()) ->  | AR80: =IF(AR78,Financials!AV372,NA()) -> 0.09188164398 | AS80: =IF(AS78,Financials!AW372,NA()) -> 0.0746401818 | AT80: =IF(AT78,Financials!AX372,NA()) -> 0.08361164475 | AU80: =IF(AU78,Financials!AY372,NA()) -> 0.08412233146
F81: =F79 ->  | G81: =G79 ->  | AR81: 2023-12-31 | AS81: 2024-12-31 | AT81: 2025-12-31 | AU81: 2026-12-31
E82: ='Dropdown Forms'!C16 -> Return on Average Equity | F82: =IF(F78,Financials!J372,NA()) ->  | G82: =IF(G78,Financials!K372,NA()) ->  | H82: =IF(H78,Financials!L372,NA()) ->  | I82: =IF(I78,Financials!M372,NA()) ->  | J82: =IF(J78,Financials!N372,NA()) ->  | K82: =IF(K78,Financials!O372,NA()) ->  | L82: =IF(L78,Financials!P372,NA()) ->  | M82: =IF(M78,Financials!Q372,NA()) ->  | N82: =IF(N78,Financials!R372,NA()) ->  | O82: =IF(O78,Financials!S372,NA()) ->  | P82: =IF(P78,Financials!T372,NA()) ->  | Q82: =IF(Q78,Financials!U372,NA()) ->  | R82: =IF(R78,Financials!V372,NA()) ->  | S82: =IF(S78,Financials!W372,NA()) ->  | T82: =IF(T78,Financials!X372,NA()) ->  | U82: =IF(U78,Financials!Y372,NA()) ->  | V82: =IF(V78,Financials!Z372,NA()) ->  | W82: =IF(W78,Financials!AA372,NA()) ->  | X82: =IF(X78,Financials!AB372,NA()) ->  | Y82: =IF(Y78,Financials!AC372,NA()) ->  | Z82: =IF(Z78,Financials!AD372,NA()) ->  | AA82: =IF(AA78,Financials!AE372,NA()) ->  | AB82: =IF(AB78,Financials!AF372,NA()) ->  | AC82: =IF(AC78,Financials!AG372,NA()) ->  | AD82: =IF(AD78,Financials!AH372,NA()) ->  | AE82: =IF(AE78,Financials!AI372,NA()) ->  | AF82: =IF(AF78,Financials!AJ372,NA()) ->  | AG82: =IF(AG78,Financials!AK372,NA()) ->  | AH82: =IF(AH78,Financials!AL372,NA()) ->  | AI82: =IF(AI78,Financials!AM372,NA()) ->  | AJ82: =IF(AJ78,Financials!AN372,NA()) ->  | AK82: =IF(AK78,Financials!AO372,NA()) ->  | AL82: =IF(AL78,Financials!AP372,NA()) ->  | AM82: =IF(AM78,Financials!AQ372,NA()) ->  | AN82: =IF(AN78,Financials!AR372,NA()) ->  | AO82: =IF(AO78,Financials!AS372,NA()) ->  | AP82: =IF(AP78,Financials!AT372,NA()) ->  | AQ82: =IF(AQ78,Financials!AU372,NA()) ->  | AR82: =IF(AR78,Financials!AV372,NA()) -> 0.09188164398 | AS82: =IF(AS78,Financials!AW372,NA()) -> 0.0746401818 | AT82: =IF(AT78,Financials!AX372,NA()) -> 0.08361164475 | AU82: =IF(AU78,Financials!AY372,NA()) -> 0.08412233146
B86: Price to Book Ratio
F87: =F75 -> 2023 | G87: =G75 -> 2026
F89: =F77 -> 1985 | G89: 1986 | H89: 1987 | I89: 1988 | J89: 1989 | K89: 1990 | L89: 1991 | M89: 1992 | N89: 1993 | O89: 1994 | P89: 1995 | Q89: 1996 | R89: 1997 | S89: 1998 | T89: 1999 | U89: 2000 | V89: 2001 | W89: 2002 | X89: 2003 | Y89: 2004 | Z89: 2005 | AA89: 2006 | AB89: 2007 | AC89: 2008 | AD89: 2009 | AE89: 2010 | AF89: 2011 | AG89: 2012 | AH89: 2013 | AI89: 2014 | AJ89: 2015 | AK89: 2016 | AL89: 2017 | AM89: 2018 | AN89: 2019 | AO89: 2020 | AP89: 2021 | AQ89: 2022 | AR89: 2023 | AS89: 2024 | AT89: 2025 | AU89: 2026
E90: Flag | F90: =AND(F89>=$F$87,F89<=$G$87) -> FALSE | G90: =AND(G89>=$F$87,G89<=$G$87) -> FALSE | H90: FALSE | I90: FALSE | J90: FALSE | K90: FALSE | L90: FALSE | M90: FALSE | N90: FALSE | O90: FALSE | P90: FALSE | Q90: FALSE | R90: FALSE | S90: FALSE | T90: FALSE | U90: FALSE | V90: FALSE | W90: FALSE | X90: FALSE | Y90: FALSE | Z90: FALSE | AA90: FALSE | AB90: FALSE | AC90: FALSE | AD90: FALSE | AE90: FALSE | AF90: FALSE | AG90: FALSE | AH90: FALSE | AI90: FALSE | AJ90: FALSE | AK90: FALSE | AL90: FALSE | AM90: FALSE | AN90: FALSE | AO90: FALSE | AP90: FALSE | AQ90: FALSE | AR90: TRUE | AS90: TRUE | AT90: TRUE | AU90: TRUE
F91: =IF(F90,F38,NA()) ->  | G91: =IF(G90,G38,NA()) ->  | AR91: 2023-12-31 | AS91: 2024-12-31 | AT91: 2025-12-31 | AU91: 2026-12-31
E92: Price to Book Ratio | F92: =IF(F90,Financials!J313,"") ->  | G92: =IF(G90,Financials!K313,"") ->  | H92: =IF(H90,Financials!L313,"") ->  | I92: =IF(I90,Financials!M313,"") ->  | J92: =IF(J90,Financials!N313,"") ->  | K92: =IF(K90,Financials!O313,"") ->  | L92: =IF(L90,Financials!P313,"") ->  | M92: =IF(M90,Financials!Q313,"") ->  | N92: =IF(N90,Financials!R313,"") ->  | O92: =IF(O90,Financials!S313,"") ->  | P92: =IF(P90,Financials!T313,"") ->  | Q92: =IF(Q90,Financials!U313,"") ->  | R92: =IF(R90,Financials!V313,"") ->  | S92: =IF(S90,Financials!W313,"") ->  | T92: =IF(T90,Financials!X313,"") ->  | U92: =IF(U90,Financials!Y313,"") ->  | V92: =IF(V90,Financials!Z313,"") ->  | W92: =IF(W90,Financials!AA313,"") ->  | X92: =IF(X90,Financials!AB313,"") ->  | Y92: =IF(Y90,Financials!AC313,"") ->  | Z92: =IF(Z90,Financials!AD313,"") ->  | AA92: =IF(AA90,Financials!AE313,"") ->  | AB92: =IF(AB90,Financials!AF313,"") ->  | AC92: =IF(AC90,Financials!AG313,"") ->  | AD92: =IF(AD90,Financials!AH313,"") ->  | AE92: =IF(AE90,Financials!AI313,"") ->  | AF92: =IF(AF90,Financials!AJ313,"") ->  | AG92: =IF(AG90,Financials!AK313,"") ->  | AH92: =IF(AH90,Financials!AL313,"") ->  | AI92: =IF(AI90,Financials!AM313,"") ->  | AJ92: =IF(AJ90,Financials!AN313,"") ->  | AK92: =IF(AK90,Financials!AO313,"") ->  | AL92: =IF(AL90,Financials!AP313,"") ->  | AM92: =IF(AM90,Financials!AQ313,"") ->  | AN92: =IF(AN90,Financials!AR313,"") ->  | AO92: =IF(AO90,Financials!AS313,"") ->  | AP92: =IF(AP90,Financials!AT313,"") ->  | AQ92: =IF(AQ90,Financials!AU313,"") ->  | AR92: =IF(AR90,Financials!AV313,"") -> 147.7816555 | AS92: =IF(AS90,Financials!AW313,"") -> 142.4450397 | AT92: =IF(AT90,Financials!AX313,"") -> 125.6968098 | AU92: =IF(AU90,Financials!AY313,"") -> 159.7737093
B114: Price to Earnings Ratio
E115: Years of Graph | F115: =F75 -> 2023 | G115: =G15 -> 2026
F118: =F89 -> 1985 | G118: =G89 -> 1986 | H118: 1987 | I118: 1988 | J118: 1989 | K118: 1990 | L118: 1991 | M118: 1992 | N118: 1993 | O118: 1994 | P118: 1995 | Q118: 1996 | R118: 1997 | S118: 1998 | T118: 1999 | U118: 2000 | V118: 2001 | W118: 2002 | X118: 2003 | Y118: 2004 | Z118: 2005 | AA118: 2006 | AB118: 2007 | AC118: 2008 | AD118: 2009 | AE118: 2010 | AF118: 2011 | AG118: 2012 | AH118: 2013 | AI118: 2014 | AJ118: 2015 | AK118: 2016 | AL118: 2017 | AM118: 2018 | AN118: 2019 | AO118: 2020 | AP118: 2021 | AQ118: 2022 | AR118: 2023 | AS118: 2024 | AT118: =AT89 -> 2025 | AU118: 2026
F119: =AND(F118>=$F$115,F118<=$G$115) -> FALSE | G119: =AND(G118>=$F$115,G118<=$G$115) -> FALSE | H119: FALSE | I119: FALSE | J119: FALSE | K119: FALSE | L119: FALSE | M119: FALSE | N119: FALSE | O119: FALSE | P119: FALSE | Q119: FALSE | R119: FALSE | S119: FALSE | T119: FALSE | U119: FALSE | V119: FALSE | W119: FALSE | X119: FALSE | Y119: FALSE | Z119: FALSE | AA119: FALSE | AB119: FALSE | AC119: FALSE | AD119: FALSE | AE119: FALSE | AF119: FALSE | AG119: FALSE | AH119: FALSE | AI119: FALSE | AJ119: FALSE | AK119: FALSE | AL119: FALSE | AM119: FALSE | AN119: FALSE | AO119: FALSE | AP119: FALSE | AQ119: FALSE | AR119: TRUE | AS119: TRUE | AT119: TRUE | AU119: TRUE
F120: =F91 ->  | G120: =G91 ->  | AR120: 2023-12-31 | AS120: 2024-12-31 | AT120: =AT91 -> 2025-12-31 | AU120: 2026-12-31
E121: Trailing P/E Ratio | F121: =IF(F119,Financials!J316,NA()) ->  | G121: =IF(G119,Financials!K316,NA()) ->  | H121: =IF(H119,Financials!L316,NA()) ->  | I121: =IF(I119,Financials!M316,NA()) ->  | J121: =IF(J119,Financials!N316,NA()) ->  | K121: =IF(K119,Financials!O316,NA()) ->  | L121: =IF(L119,Financials!P316,NA()) ->  | M121: =IF(M119,Financials!Q316,NA()) ->  | N121: =IF(N119,Financials!R316,NA()) ->  | O121: =IF(O119,Financials!S316,NA()) ->  | P121: =IF(P119,Financials!T316,NA()) ->  | Q121: =IF(Q119,Financials!U316,NA()) ->  | R121: =IF(R119,Financials!V316,NA()) ->  | S121: =IF(S119,Financials!W316,NA()) ->  | T121: =IF(T119,Financials!X316,NA()) ->  | U121: =IF(U119,Financials!Y316,NA()) ->  | V121: =IF(V119,Financials!Z316,NA()) ->  | W121: =IF(W119,Financials!AA316,NA()) ->  | X121: =IF(X119,Financials!AB316,NA()) ->  | Y121: =IF(Y119,Financials!AC316,NA()) ->  | Z121: =IF(Z119,Financials!AD316,NA()) ->  | AA121: =IF(AA119,Financials!AE316,NA()) ->  | AB121: =IF(AB119,Financials!AF316,NA()) ->  | AC121: =IF(AC119,Financials!AG316,NA()) ->  | AD121: =IF(AD119,Financials!AH316,NA()) ->  | AE121: =IF(AE119,Financials!AI316,NA()) ->  | AF121: =IF(AF119,Financials!AJ316,NA()) ->  | AG121: =IF(AG119,Financials!AK316,NA()) ->  | AH121: =IF(AH119,Financials!AL316,NA()) ->  | AI121: =IF(AI119,Financials!AM316,NA()) ->  | AJ121: =IF(AJ119,Financials!AN316,NA()) ->  | AK121: =IF(AK119,Financials!AO316,NA()) ->  | AL121: =IF(AL119,Financials!AP316,NA()) ->  | AM121: =IF(AM119,Financials!AQ316,NA()) ->  | AN121: =IF(AN119,Financials!AR316,NA()) ->  | AO121: =IF(AO119,Financials!AS316,NA()) ->  | AP121: =IF(AP119,Financials!AT316,NA()) ->  | AQ121: =IF(AQ119,Financials!AU316,NA()) ->  | AR121: =IF(AR119,Financials!AV316,NA()) -> 559.8295137 | AS121: =IF(AS119,Financials!AW316,NA()) -> 1857.142857 | AT121: =IF(AT119,Financials!AX316,NA()) -> 1638.798701 | AU121: =IF(AU119,Financials!AY316,NA()) -> 1938.167939
F123: =AND(F118>=$F$115,F118<=$G$115-1) -> FALSE | G123: =AND(G118>=$F$115,G118<=$G$115-1) -> FALSE | H123: FALSE | I123: FALSE | J123: FALSE | K123: FALSE | L123: FALSE | M123: FALSE | N123: FALSE | O123: FALSE | P123: FALSE | Q123: FALSE | R123: FALSE | S123: FALSE | T123: FALSE | U123: FALSE | V123: FALSE | W123: FALSE | X123: FALSE | Y123: FALSE | Z123: FALSE | AA123: FALSE | AB123: FALSE | AC123: FALSE | AD123: FALSE | AE123: FALSE | AF123: FALSE | AG123: FALSE | AH123: FALSE | AI123: FALSE | AJ123: FALSE | AK123: FALSE | AL123: FALSE | AM123: FALSE | AN123: FALSE | AO123: FALSE | AP123: FALSE | AQ123: FALSE | AR123: TRUE | AS123: TRUE | AT123: TRUE | AU123: FALSE
F124: =IF(F123,F38,NA()) ->  | G124: =IF(G123,G38,NA()) ->  | AR124: 2023-12-31 | AS124: 2024-12-31 | AT124: 2025-12-31
E125: Forward P/E Ratio | F125: =IF(F123,Financials!J317,NA()) ->  | G125: =IF(G123,Financials!K317,NA()) ->  | H125: =IF(H123,Financials!L317,NA()) ->  | I125: =IF(I123,Financials!M317,NA()) ->  | J125: =IF(J123,Financials!N317,NA()) ->  | K125: =IF(K123,Financials!O317,NA()) ->  | L125: =IF(L123,Financials!P317,NA()) ->  | M125: =IF(M123,Financials!Q317,NA()) ->  | N125: =IF(N123,Financials!R317,NA()) ->  | O125: =IF(O123,Financials!S317,NA()) ->  | P125: =IF(P123,Financials!T317,NA()) ->  | Q125: =IF(Q123,Financials!U317,NA()) ->  | R125: =IF(R123,Financials!V317,NA()) ->  | S125: =IF(S123,Financials!W317,NA()) ->  | T125: =IF(T123,Financials!X317,NA()) ->  | U125: =IF(U123,Financials!Y317,NA()) ->  | V125: =IF(V123,Financials!Z317,NA()) ->  | W125: =IF(W123,Financials!AA317,NA()) ->  | X125: =IF(X123,Financials!AB317,NA()) ->  | Y125: =IF(Y123,Financials!AC317,NA()) ->  | Z125: =IF(Z123,Financials!AD317,NA()) ->  | AA125: =IF(AA123,Financials!AE317,NA()) ->  | AB125: =IF(AB123,Financials!AF317,NA()) ->  | AC125: =IF(AC123,Financials!AG317,NA()) ->  | AD125: =IF(AD123,Financials!AH317,NA()) ->  | AE125: =IF(AE123,Financials!AI317,NA()) ->  | AF125: =IF(AF123,Financials!AJ317,NA()) ->  | AG125: =IF(AG123,Financials!AK317,NA()) ->  | AH125: =IF(AH123,Financials!AL317,NA()) ->  | AI125: =IF(AI123,Financials!AM317,NA()) ->  | AJ125: =IF(AJ123,Financials!AN317,NA()) ->  | AK125: =IF(AK123,Financials!AO317,NA()) ->  | AL125: =IF(AL123,Financials!AP317,NA()) ->  | AM125: =IF(AM123,Financials!AQ317,NA()) ->  | AN125: =IF(AN123,Financials!AR317,NA()) ->  | AO125: =IF(AO123,Financials!AS317,NA()) ->  | AP125: =IF(AP123,Financials!AT317,NA()) ->  | AQ125: =IF(AQ123,Financials!AU317,NA()) ->  | AR125: =IF(AR123,Financials!AV317,NA()) -> 1910.278746 | AS125: =IF(AS123,Financials!AW317,NA()) -> 1730.519481 | AT125: =IF(AT123,Financials!AX317,NA()) -> 1541.221374 | AU125: =IF(AU123,Financials!AY317,NA()) -> 
F127: =F120 ->  | G127: =G120 ->  | AR127: 2023-12-31 | AS127: 2024-12-31 | AT127: =AT120 -> 2025-12-31 | AU127: 2026-12-31
E128: Earnings per Share | F128: =IF(F119,F20,NA()) ->  | G128: =IF(G119,G20,NA()) ->  | AR128: 1.949441 | AS128: 0.571 | AT128: 0.614 | AU128: 0.655
E129: Closing Price | F129: =IF(F119,Financials!J309) -> FALSE | G129: =IF(G119,Financials!K309) -> FALSE | H129: =IF(H119,Financials!L309) -> FALSE | I129: =IF(I119,Financials!M309) -> FALSE | J129: =IF(J119,Financials!N309) -> FALSE | K129: =IF(K119,Financials!O309) -> FALSE | L129: =IF(L119,Financials!P309) -> FALSE | M129: =IF(M119,Financials!Q309) -> FALSE | N129: =IF(N119,Financials!R309) -> FALSE | O129: =IF(O119,Financials!S309) -> FALSE | P129: =IF(P119,Financials!T309) -> FALSE | Q129: =IF(Q119,Financials!U309) -> FALSE | R129: =IF(R119,Financials!V309) -> FALSE | S129: =IF(S119,Financials!W309) -> FALSE | T129: =IF(T119,Financials!X309) -> FALSE | U129: =IF(U119,Financials!Y309) -> FALSE | V129: =IF(V119,Financials!Z309) -> FALSE | W129: =IF(W119,Financials!AA309) -> FALSE | X129: =IF(X119,Financials!AB309) -> FALSE | Y129: =IF(Y119,Financials!AC309) -> FALSE | Z129: =IF(Z119,Financials!AD309) -> FALSE | AA129: =IF(AA119,Financials!AE309) -> FALSE | AB129: =IF(AB119,Financials!AF309) -> FALSE | AC129: =IF(AC119,Financials!AG309) -> FALSE | AD129: =IF(AD119,Financials!AH309) -> FALSE | AE129: =IF(AE119,Financials!AI309) -> FALSE | AF129: =IF(AF119,Financials!AJ309) -> FALSE | AG129: =IF(AG119,Financials!AK309) -> FALSE | AH129: =IF(AH119,Financials!AL309) -> FALSE | AI129: =IF(AI119,Financials!AM309) -> FALSE | AJ129: =IF(AJ119,Financials!AN309) -> FALSE | AK129: =IF(AK119,Financials!AO309) -> FALSE | AL129: =IF(AL119,Financials!AP309) -> FALSE | AM129: =IF(AM119,Financials!AQ309) -> FALSE | AN129: =IF(AN119,Financials!AR309) -> FALSE | AO129: =IF(AO119,Financials!AS309) -> FALSE | AP129: =IF(AP119,Financials!AT309) -> FALSE | AQ129: =IF(AQ119,Financials!AU309) -> FALSE | AR129: =IF(AR119,Financials!AV309) -> 1096.5 | AS129: =IF(AS119,Financials!AW309) -> 1066 | AT129: =IF(AT119,Financials!AX309) -> 1009.5 | AU129: =IF(AU119,Financials!AY309) -> 1269.5
E131: =E128& " and "&E129 -> Earnings per Share and Closing Price
B134: Return on Invested Capital
F135: =F38 -> 00:00:00 | G135: 1986-12-31 | H135: 1987-12-31 | I135: 1988-12-31 | J135: 1989-12-31 | K135: 1990-12-31 | L135: 1991-12-31 | M135: 1992-12-31 | N135: 1993-12-31 | O135: 1994-12-31 | P135: 1995-12-31 | Q135: 1996-12-31 | R135: 1997-12-31 | S135: 1998-12-31 | T135: 1999-12-31 | U135: 2000-12-31 | V135: 2001-12-31 | W135: 2002-12-31 | X135: 2003-12-31 | Y135: 2004-12-31 | Z135: 2005-12-31 | AA135: 2006-12-31 | AB135: 2007-12-31 | AC135: 2008-12-31 | AD135: 2009-12-31 | AE135: 2010-12-31 | AF135: 2011-12-31 | AG135: 2012-12-31 | AH135: 2013-12-31 | AI135: 2014-12-31 | AJ135: 2015-12-31 | AK135: 2016-12-31 | AL135: 2017-12-31 | AM135: 2018-12-31 | AN135: 2019-12-31 | AO135: 2020-12-31 | AP135: 2021-12-31 | AQ135: 2022-12-31 | AR135: 2023-12-31 | AS135: 2024-12-31 | AT135: 2025-12-31 | AU135: 2026-12-31
F136: =F78 -> FALSE | G136: FALSE | H136: FALSE | I136: FALSE | J136: FALSE | K136: FALSE | L136: FALSE | M136: FALSE | N136: FALSE | O136: FALSE | P136: FALSE | Q136: FALSE | R136: FALSE | S136: FALSE | T136: FALSE | U136: FALSE | V136: FALSE | W136: FALSE | X136: FALSE | Y136: FALSE | Z136: FALSE | AA136: FALSE | AB136: FALSE | AC136: FALSE | AD136: FALSE | AE136: FALSE | AF136: FALSE | AG136: FALSE | AH136: FALSE | AI136: FALSE | AJ136: FALSE | AK136: FALSE | AL136: FALSE | AM136: FALSE | AN136: FALSE | AO136: FALSE | AP136: FALSE | AQ136: FALSE | AR136: TRUE | AS136: TRUE | AT136: TRUE | AU136: TRUE
F137: =F120 ->  | G137: =G120 ->  | AR137: 2023-12-31 | AS137: 2024-12-31 | AT137: 2025-12-31 | AU137: 2026-12-31
E138: Return on Invested Capital | F138: =IF(F136,Financials!J363,NA()) ->  | G138: =IF(G136,Financials!K363,NA()) ->  | H138: =IF(H136,Financials!L363,NA()) ->  | I138: =IF(I136,Financials!M363,NA()) ->  | J138: =IF(J136,Financials!N363,NA()) ->  | K138: =IF(K136,Financials!O363,NA()) ->  | L138: =IF(L136,Financials!P363,NA()) ->  | M138: =IF(M136,Financials!Q363,NA()) ->  | N138: =IF(N136,Financials!R363,NA()) ->  | O138: =IF(O136,Financials!S363,NA()) ->  | P138: =IF(P136,Financials!T363,NA()) ->  | Q138: =IF(Q136,Financials!U363,NA()) ->  | R138: =IF(R136,Financials!V363,NA()) ->  | S138: =IF(S136,Financials!W363,NA()) ->  | T138: =IF(T136,Financials!X363,NA()) ->  | U138: =IF(U136,Financials!Y363,NA()) ->  | V138: =IF(V136,Financials!Z363,NA()) ->  | W138: =IF(W136,Financials!AA363,NA()) ->  | X138: =IF(X136,Financials!AB363,NA()) ->  | Y138: =IF(Y136,Financials!AC363,NA()) ->  | Z138: =IF(Z136,Financials!AD363,NA()) ->  | AA138: =IF(AA136,Financials!AE363,NA()) ->  | AB138: =IF(AB136,Financials!AF363,NA()) ->  | AC138: =IF(AC136,Financials!AG363,NA()) ->  | AD138: =IF(AD136,Financials!AH363,NA()) ->  | AE138: =IF(AE136,Financials!AI363,NA()) ->  | AF138: =IF(AF136,Financials!AJ363,NA()) ->  | AG138: =IF(AG136,Financials!AK363,NA()) ->  | AH138: =IF(AH136,Financials!AL363,NA()) ->  | AI138: =IF(AI136,Financials!AM363,NA()) ->  | AJ138: =IF(AJ136,Financials!AN363,NA()) ->  | AK138: =IF(AK136,Financials!AO363,NA()) ->  | AL138: =IF(AL136,Financials!AP363,NA()) ->  | AM138: =IF(AM136,Financials!AQ363,NA()) ->  | AN138: =IF(AN136,Financials!AR363,NA()) ->  | AO138: =IF(AO136,Financials!AS363,NA()) ->  | AP138: =IF(AP136,Financials!AT363,NA()) ->  | AQ138: =IF(AQ136,Financials!AU363,NA()) ->  | AR138: =IF(AR136,Financials!AV363,NA()) -> 0.04194330892 | AS138: =IF(AS136,Financials!AW363,NA()) -> 0.03408297493 | AT138: =IF(AT136,Financials!AX363,NA()) -> 0.04082811685 | AU138: =IF(AU136,Financials!AY363,NA()) -> 0.04133169929
F141: =F137 ->  | G141: =G137 ->  | AR141: 2023-12-31 | AS141: 2024-12-31 | AT141: =AT137 -> 2025-12-31 | AU141: 2026-12-31
E142: Return on Invested Capital ROIC
B145: Capital Expenditure to Depreciation
F146: =F135 -> 00:00:00 | G146: 1986-12-31 | H146: 1987-12-31 | I146: 1988-12-31 | J146: 1989-12-31 | K146: 1990-12-31 | L146: 1991-12-31 | M146: 1992-12-31 | N146: 1993-12-31 | O146: 1994-12-31 | P146: 1995-12-31 | Q146: 1996-12-31 | R146: 1997-12-31 | S146: 1998-12-31 | T146: 1999-12-31 | U146: 2000-12-31 | V146: 2001-12-31 | W146: 2002-12-31 | X146: 2003-12-31 | Y146: 2004-12-31 | Z146: 2005-12-31 | AA146: 2006-12-31 | AB146: 2007-12-31 | AC146: 2008-12-31 | AD146: 2009-12-31 | AE146: 2010-12-31 | AF146: 2011-12-31 | AG146: 2012-12-31 | AH146: 2013-12-31 | AI146: 2014-12-31 | AJ146: 2015-12-31 | AK146: 2016-12-31 | AL146: 2017-12-31 | AM146: 2018-12-31 | AN146: 2019-12-31 | AO146: 2020-12-31 | AP146: 2021-12-31 | AQ146: 2022-12-31 | AR146: 2023-12-31 | AS146: 2024-12-31 | AT146: 2025-12-31 | AU146: 2026-12-31
F147: =F136 -> FALSE | G147: FALSE | H147: FALSE | I147: FALSE | J147: FALSE | K147: FALSE | L147: FALSE | M147: FALSE | N147: FALSE | O147: FALSE | P147: FALSE | Q147: FALSE | R147: FALSE | S147: FALSE | T147: FALSE | U147: FALSE | V147: FALSE | W147: FALSE | X147: FALSE | Y147: FALSE | Z147: FALSE | AA147: FALSE | AB147: FALSE | AC147: FALSE | AD147: FALSE | AE147: FALSE | AF147: FALSE | AG147: FALSE | AH147: FALSE | AI147: FALSE | AJ147: FALSE | AK147: FALSE | AL147: FALSE | AM147: FALSE | AN147: FALSE | AO147: FALSE | AP147: FALSE | AQ147: FALSE | AR147: TRUE | AS147: TRUE | AT147: TRUE | AU147: TRUE
F148: =F137 ->  | AR148: 2023-12-31 | AS148: 2024-12-31 | AT148: 2025-12-31 | AU148: 2026-12-31
E149: Capital Expenditure to Depreciation | F149: =IF(F147,Financials!J414,NA()) ->  | G149: =IF(G147,Financials!K414,NA()) ->  | H149: =IF(H147,Financials!L414,NA()) ->  | I149: =IF(I147,Financials!M414,NA()) ->  | J149: =IF(J147,Financials!N414,NA()) ->  | K149: =IF(K147,Financials!O414,NA()) ->  | L149: =IF(L147,Financials!P414,NA()) ->  | M149: =IF(M147,Financials!Q414,NA()) ->  | N149: =IF(N147,Financials!R414,NA()) ->  | O149: =IF(O147,Financials!S414,NA()) ->  | P149: =IF(P147,Financials!T414,NA()) ->  | Q149: =IF(Q147,Financials!U414,NA()) ->  | R149: =IF(R147,Financials!V414,NA()) ->  | S149: =IF(S147,Financials!W414,NA()) ->  | T149: =IF(T147,Financials!X414,NA()) ->  | U149: =IF(U147,Financials!Y414,NA()) ->  | V149: =IF(V147,Financials!Z414,NA()) ->  | W149: =IF(W147,Financials!AA414,NA()) ->  | X149: =IF(X147,Financials!AB414,NA()) ->  | Y149: =IF(Y147,Financials!AC414,NA()) ->  | Z149: =IF(Z147,Financials!AD414,NA()) ->  | AA149: =IF(AA147,Financials!AE414,NA()) ->  | AB149: =IF(AB147,Financials!AF414,NA()) ->  | AC149: =IF(AC147,Financials!AG414,NA()) ->  | AD149: =IF(AD147,Financials!AH414,NA()) ->  | AE149: =IF(AE147,Financials!AI414,NA()) ->  | AF149: =IF(AF147,Financials!AJ414,NA()) ->  | AG149: =IF(AG147,Financials!AK414,NA()) ->  | AH149: =IF(AH147,Financials!AL414,NA()) ->  | AI149: =IF(AI147,Financials!AM414,NA()) ->  | AJ149: =IF(AJ147,Financials!AN414,NA()) ->  | AK149: =IF(AK147,Financials!AO414,NA()) ->  | AL149: =IF(AL147,Financials!AP414,NA()) ->  | AM149: =IF(AM147,Financials!AQ414,NA()) ->  | AN149: =IF(AN147,Financials!AR414,NA()) ->  | AO149: =IF(AO147,Financials!AS414,NA()) ->  | AP149: =IF(AP147,Financials!AT414,NA()) ->  | AQ149: =IF(AQ147,Financials!AU414,NA()) ->  | AR149: =IF(AR147,Financials!AV414,NA()) -> 3.473790323 | AS149: =IF(AS147,Financials!AW414,NA()) -> 3.616205725 | AT149: =IF(AT147,Financials!AX414,NA()) -> 3.753933038 | AU149: =IF(AU147,Financials!AY414,NA()) -> 4.706275033
E150: Investing Cash to Depreciation | F150: =IF(F147,Financials!J417,"") ->  | G150: =IF(G147,Financials!K417,"") ->  | H150: =IF(H147,Financials!L417,"") ->  | I150: =IF(I147,Financials!M417,"") ->  | J150: =IF(J147,Financials!N417,"") ->  | K150: =IF(K147,Financials!O417,"") ->  | L150: =IF(L147,Financials!P417,"") ->  | M150: =IF(M147,Financials!Q417,"") ->  | N150: =IF(N147,Financials!R417,"") ->  | O150: =IF(O147,Financials!S417,"") ->  | P150: =IF(P147,Financials!T417,"") ->  | Q150: =IF(Q147,Financials!U417,"") ->  | R150: =IF(R147,Financials!V417,"") ->  | S150: =IF(S147,Financials!W417,"") ->  | T150: =IF(T147,Financials!X417,"") ->  | U150: =IF(U147,Financials!Y417,"") ->  | V150: =IF(V147,Financials!Z417,"") ->  | W150: =IF(W147,Financials!AA417,"") ->  | X150: =IF(X147,Financials!AB417,"") ->  | Y150: =IF(Y147,Financials!AC417,"") ->  | Z150: =IF(Z147,Financials!AD417,"") ->  | AA150: =IF(AA147,Financials!AE417,"") ->  | AB150: =IF(AB147,Financials!AF417,"") ->  | AC150: =IF(AC147,Financials!AG417,"") ->  | AD150: =IF(AD147,Financials!AH417,"") ->  | AE150: =IF(AE147,Financials!AI417,"") ->  | AF150: =IF(AF147,Financials!AJ417,"") ->  | AG150: =IF(AG147,Financials!AK417,"") ->  | AH150: =IF(AH147,Financials!AL417,"") ->  | AI150: =IF(AI147,Financials!AM417,"") ->  | AJ150: =IF(AJ147,Financials!AN417,"") ->  | AK150: =IF(AK147,Financials!AO417,"") ->  | AL150: =IF(AL147,Financials!AP417,"") ->  | AM150: =IF(AM147,Financials!AQ417,"") ->  | AN150: =IF(AN147,Financials!AR417,"") ->  | AO150: =IF(AO147,Financials!AS417,"") ->  | AP150: =IF(AP147,Financials!AT417,"") ->  | AQ150: =IF(AQ147,Financials!AU417,"") ->  | AR150: =IF(AR147,Financials!AV417,"") -> -0.1209677419 | AS150: =IF(AS147,Financials!AW417,"") -> 3.638524988 | AT150: =IF(AT147,Financials!AX417,"") -> 4.264219443 | AU150: =IF(AU147,Financials!AY417,"") -> 1.850022252
F152: =F148 ->  | G152: =G148 ->  | AR152: 2023-12-31 | AS152: 2024-12-31 | AT152: 2025-12-31 | AU152: 2026-12-31
E153: Capital expenditures | F153: =IF(F147,Financials!J403,NA()) ->  | G153: =IF(G147,Financials!K403,NA()) ->  | H153: =IF(H147,Financials!L403,NA()) ->  | I153: =IF(I147,Financials!M403,NA()) ->  | J153: =IF(J147,Financials!N403,NA()) ->  | K153: =IF(K147,Financials!O403,NA()) ->  | L153: =IF(L147,Financials!P403,NA()) ->  | M153: =IF(M147,Financials!Q403,NA()) ->  | N153: =IF(N147,Financials!R403,NA()) ->  | O153: =IF(O147,Financials!S403,NA()) ->  | P153: =IF(P147,Financials!T403,NA()) ->  | Q153: =IF(Q147,Financials!U403,NA()) ->  | R153: =IF(R147,Financials!V403,NA()) ->  | S153: =IF(S147,Financials!W403,NA()) ->  | T153: =IF(T147,Financials!X403,NA()) ->  | U153: =IF(U147,Financials!Y403,NA()) ->  | V153: =IF(V147,Financials!Z403,NA()) ->  | W153: =IF(W147,Financials!AA403,NA()) ->  | X153: =IF(X147,Financials!AB403,NA()) ->  | Y153: =IF(Y147,Financials!AC403,NA()) ->  | Z153: =IF(Z147,Financials!AD403,NA()) ->  | AA153: =IF(AA147,Financials!AE403,NA()) ->  | AB153: =IF(AB147,Financials!AF403,NA()) ->  | AC153: =IF(AC147,Financials!AG403,NA()) ->  | AD153: =IF(AD147,Financials!AH403,NA()) ->  | AE153: =IF(AE147,Financials!AI403,NA()) ->  | AF153: =IF(AF147,Financials!AJ403,NA()) ->  | AG153: =IF(AG147,Financials!AK403,NA()) ->  | AH153: =IF(AH147,Financials!AL403,NA()) ->  | AI153: =IF(AI147,Financials!AM403,NA()) ->  | AJ153: =IF(AJ147,Financials!AN403,NA()) ->  | AK153: =IF(AK147,Financials!AO403,NA()) ->  | AL153: =IF(AL147,Financials!AP403,NA()) ->  | AM153: =IF(AM147,Financials!AQ403,NA()) ->  | AN153: =IF(AN147,Financials!AR403,NA()) ->  | AO153: =IF(AO147,Financials!AS403,NA()) ->  | AP153: =IF(AP147,Financials!AT403,NA()) ->  | AQ153: =IF(AQ147,Financials!AU403,NA()) ->  | AR153: =IF(AR147,Financials!AV403,NA()) -> 6892000000 | AS153: =IF(AS147,Financials!AW403,NA()) -> 7453000000 | AT153: =IF(AT147,Financials!AX403,NA()) -> 9306000000 | AU153: =IF(AU147,Financials!AY403,NA()) -> 10575000000
E154: Purchase of Business | F154: =IF(F147,Financials!J411,NA()) ->  | G154: =IF(G147,Financials!K411,NA()) ->  | H154: =IF(H147,Financials!L411,NA()) ->  | I154: =IF(I147,Financials!M411,NA()) ->  | J154: =IF(J147,Financials!N411,NA()) ->  | K154: =IF(K147,Financials!O411,NA()) ->  | L154: =IF(L147,Financials!P411,NA()) ->  | M154: =IF(M147,Financials!Q411,NA()) ->  | N154: =IF(N147,Financials!R411,NA()) ->  | O154: =IF(O147,Financials!S411,NA()) ->  | P154: =IF(P147,Financials!T411,NA()) ->  | Q154: =IF(Q147,Financials!U411,NA()) ->  | R154: =IF(R147,Financials!V411,NA()) ->  | S154: =IF(S147,Financials!W411,NA()) ->  | T154: =IF(T147,Financials!X411,NA()) ->  | U154: =IF(U147,Financials!Y411,NA()) ->  | V154: =IF(V147,Financials!Z411,NA()) ->  | W154: =IF(W147,Financials!AA411,NA()) ->  | X154: =IF(X147,Financials!AB411,NA()) ->  | Y154: =IF(Y147,Financials!AC411,NA()) ->  | Z154: =IF(Z147,Financials!AD411,NA()) ->  | AA154: =IF(AA147,Financials!AE411,NA()) ->  | AB154: =IF(AB147,Financials!AF411,NA()) ->  | AC154: =IF(AC147,Financials!AG411,NA()) ->  | AD154: =IF(AD147,Financials!AH411,NA()) ->  | AE154: =IF(AE147,Financials!AI411,NA()) ->  | AF154: =IF(AF147,Financials!AJ411,NA()) ->  | AG154: =IF(AG147,Financials!AK411,NA()) ->  | AH154: =IF(AH147,Financials!AL411,NA()) ->  | AI154: =IF(AI147,Financials!AM411,NA()) ->  | AJ154: =IF(AJ147,Financials!AN411,NA()) ->  | AK154: =IF(AK147,Financials!AO411,NA()) ->  | AL154: =IF(AL147,Financials!AP411,NA()) ->  | AM154: =IF(AM147,Financials!AQ411,NA()) ->  | AN154: =IF(AN147,Financials!AR411,NA()) ->  | AO154: =IF(AO147,Financials!AS411,NA()) ->  | AP154: =IF(AP147,Financials!AT411,NA()) ->  | AQ154: =IF(AQ147,Financials!AU411,NA()) ->  | AR154: =IF(AR147,Financials!AV411,NA()) -> -14060000000 | AS154: =IF(AS147,Financials!AW411,NA()) -> -660000000 | AT154: =IF(AT147,Financials!AX411,NA()) -> -867000000 | AU154: =IF(AU147,Financials!AY411,NA()) -> -2715000000
E155: EBITDA | F155: =IF(F147,Financials!J39,NA()) ->  | G155: =IF(G147,Financials!K39,NA()) ->  | H155: =IF(H147,Financials!L39,NA()) ->  | I155: =IF(I147,Financials!M39,NA()) ->  | J155: =IF(J147,Financials!N39,NA()) ->  | K155: =IF(K147,Financials!O39,NA()) ->  | L155: =IF(L147,Financials!P39,NA()) ->  | M155: =IF(M147,Financials!Q39,NA()) ->  | N155: =IF(N147,Financials!R39,NA()) ->  | O155: =IF(O147,Financials!S39,NA()) ->  | P155: =IF(P147,Financials!T39,NA()) ->  | Q155: =IF(Q147,Financials!U39,NA()) ->  | R155: =IF(R147,Financials!V39,NA()) ->  | S155: =IF(S147,Financials!W39,NA()) ->  | T155: =IF(T147,Financials!X39,NA()) ->  | U155: =IF(U147,Financials!Y39,NA()) ->  | V155: =IF(V147,Financials!Z39,NA()) ->  | W155: =IF(W147,Financials!AA39,NA()) ->  | X155: =IF(X147,Financials!AB39,NA()) ->  | Y155: =IF(Y147,Financials!AC39,NA()) ->  | Z155: =IF(Z147,Financials!AD39,NA()) ->  | AA155: =IF(AA147,Financials!AE39,NA()) ->  | AB155: =IF(AB147,Financials!AF39,NA()) ->  | AC155: =IF(AC147,Financials!AG39,NA()) ->  | AD155: =IF(AD147,Financials!AH39,NA()) ->  | AE155: =IF(AE147,Financials!AI39,NA()) ->  | AF155: =IF(AF147,Financials!AJ39,NA()) ->  | AG155: =IF(AG147,Financials!AK39,NA()) ->  | AH155: =IF(AH147,Financials!AL39,NA()) ->  | AI155: =IF(AI147,Financials!AM39,NA()) ->  | AJ155: =IF(AJ147,Financials!AN39,NA()) ->  | AK155: =IF(AK147,Financials!AO39,NA()) ->  | AL155: =IF(AL147,Financials!AP39,NA()) ->  | AM155: =IF(AM147,Financials!AQ39,NA()) ->  | AN155: =IF(AN147,Financials!AR39,NA()) ->  | AO155: =IF(AO147,Financials!AS39,NA()) ->  | AP155: =IF(AP147,Financials!AT39,NA()) ->  | AQ155: =IF(AQ147,Financials!AU39,NA()) ->  | AR155: =IF(AR147,Financials!AV39,NA()) -> 7254000000 | AS155: =IF(AS147,Financials!AW39,NA()) -> 6832000000 | AT155: =IF(AT147,Financials!AX39,NA()) -> 7939000000 | AU155: =IF(AU147,Financials!AY39,NA()) -> 8078000000
B157: Net Plant Depreciation Rate
F158: =F146 -> 00:00:00 | G158: 1986-12-31 | H158: 1987-12-31 | I158: 1988-12-31 | J158: 1989-12-31 | K158: 1990-12-31 | L158: 1991-12-31 | M158: 1992-12-31 | N158: 1993-12-31 | O158: 1994-12-31 | P158: 1995-12-31 | Q158: 1996-12-31 | R158: 1997-12-31 | S158: 1998-12-31 | T158: 1999-12-31 | U158: 2000-12-31 | V158: 2001-12-31 | W158: 2002-12-31 | X158: 2003-12-31 | Y158: 2004-12-31 | Z158: 2005-12-31 | AA158: 2006-12-31 | AB158: 2007-12-31 | AC158: 2008-12-31 | AD158: 2009-12-31 | AE158: 2010-12-31 | AF158: 2011-12-31 | AG158: 2012-12-31 | AH158: 2013-12-31 | AI158: 2014-12-31 | AJ158: 2015-12-31 | AK158: 2016-12-31 | AL158: 2017-12-31 | AM158: 2018-12-31 | AN158: 2019-12-31 | AO158: 2020-12-31 | AP158: 2021-12-31 | AQ158: 2022-12-31 | AR158: 2023-12-31 | AS158: 2024-12-31 | AT158: 2025-12-31 | AU158: 2026-12-31
F159: =F147 -> FALSE | G159: FALSE | H159: FALSE | I159: FALSE | J159: FALSE | K159: FALSE | L159: FALSE | M159: FALSE | N159: FALSE | O159: FALSE | P159: FALSE | Q159: FALSE | R159: FALSE | S159: FALSE | T159: FALSE | U159: FALSE | V159: FALSE | W159: FALSE | X159: FALSE | Y159: FALSE | Z159: FALSE | AA159: FALSE | AB159: FALSE | AC159: FALSE | AD159: FALSE | AE159: FALSE | AF159: FALSE | AG159: FALSE | AH159: FALSE | AI159: FALSE | AJ159: FALSE | AK159: FALSE | AL159: FALSE | AM159: FALSE | AN159: FALSE | AO159: FALSE | AP159: FALSE | AQ159: FALSE | AR159: TRUE | AS159: TRUE | AT159: TRUE | AU159: TRUE
F160: =IF(AND(F159,F162),F38,NA()) ->  | AR160: 2023-12-31 | AS160: 2024-12-31 | AT160: 2025-12-31 | AU160: 2026-12-31
E161: Gross Plant Depreciation Rate | F161: =IF(F159,Financials!J423,NA()) ->  | G161: =IF(G159,Financials!K423,NA()) ->  | H161: =IF(H159,Financials!L423,NA()) ->  | I161: =IF(I159,Financials!M423,NA()) ->  | J161: =IF(J159,Financials!N423,NA()) ->  | K161: =IF(K159,Financials!O423,NA()) ->  | L161: =IF(L159,Financials!P423,NA()) ->  | M161: =IF(M159,Financials!Q423,NA()) ->  | N161: =IF(N159,Financials!R423,NA()) ->  | O161: =IF(O159,Financials!S423,NA()) ->  | P161: =IF(P159,Financials!T423,NA()) ->  | Q161: =IF(Q159,Financials!U423,NA()) ->  | R161: =IF(R159,Financials!V423,NA()) ->  | S161: =IF(S159,Financials!W423,NA()) ->  | T161: =IF(T159,Financials!X423,NA()) ->  | U161: =IF(U159,Financials!Y423,NA()) ->  | V161: =IF(V159,Financials!Z423,NA()) ->  | W161: =IF(W159,Financials!AA423,NA()) ->  | X161: =IF(X159,Financials!AB423,NA()) ->  | Y161: =IF(Y159,Financials!AC423,NA()) ->  | Z161: =IF(Z159,Financials!AD423,NA()) ->  | AA161: =IF(AA159,Financials!AE423,NA()) ->  | AB161: =IF(AB159,Financials!AF423,NA()) ->  | AC161: =IF(AC159,Financials!AG423,NA()) ->  | AD161: =IF(AD159,Financials!AH423,NA()) ->  | AE161: =IF(AE159,Financials!AI423,NA()) ->  | AF161: =IF(AF159,Financials!AJ423,NA()) ->  | AG161: =IF(AG159,Financials!AK423,NA()) ->  | AH161: =IF(AH159,Financials!AL423,NA()) ->  | AI161: =IF(AI159,Financials!AM423,NA()) ->  | AJ161: =IF(AJ159,Financials!AN423,NA()) ->  | AK161: =IF(AK159,Financials!AO423,NA()) ->  | AL161: =IF(AL159,Financials!AP423,NA()) ->  | AM161: =IF(AM159,Financials!AQ423,NA()) ->  | AN161: =IF(AN159,Financials!AR423,NA()) ->  | AO161: =IF(AO159,Financials!AS423,NA()) ->  | AP161: =IF(AP159,Financials!AT423,NA()) ->  | AQ161: =IF(AQ159,Financials!AU423,NA()) ->  | AR161: =IF(AR159,Financials!AV423,NA()) -> 0.02425042475 | AS161: =IF(AS159,Financials!AW423,NA()) -> 0.02365349523 | AT161: =IF(AT159,Financials!AX423,NA()) -> 0.02681246417 | AU161: =IF(AU159,Financials!AY423,NA()) -> 0.02221650963
E162: Net Plant Depreciation Rate | F162: =IF(F159,Financials!J420,NA()) ->  | G162: =IF(G159,Financials!K420,NA()) ->  | H162: =IF(H159,Financials!L420,NA()) ->  | I162: =IF(I159,Financials!M420,NA()) ->  | J162: =IF(J159,Financials!N420,NA()) ->  | K162: =IF(K159,Financials!O420,NA()) ->  | L162: =IF(L159,Financials!P420,NA()) ->  | M162: =IF(M159,Financials!Q420,NA()) ->  | N162: =IF(N159,Financials!R420,NA()) ->  | O162: =IF(O159,Financials!S420,NA()) ->  | P162: =IF(P159,Financials!T420,NA()) ->  | Q162: =IF(Q159,Financials!U420,NA()) ->  | R162: =IF(R159,Financials!V420,NA()) ->  | S162: =IF(S159,Financials!W420,NA()) ->  | T162: =IF(T159,Financials!X420,NA()) ->  | U162: =IF(U159,Financials!Y420,NA()) ->  | V162: =IF(V159,Financials!Z420,NA()) ->  | W162: =IF(W159,Financials!AA420,NA()) ->  | X162: =IF(X159,Financials!AB420,NA()) ->  | Y162: =IF(Y159,Financials!AC420,NA()) ->  | Z162: =IF(Z159,Financials!AD420,NA()) ->  | AA162: =IF(AA159,Financials!AE420,NA()) ->  | AB162: =IF(AB159,Financials!AF420,NA()) ->  | AC162: =IF(AC159,Financials!AG420,NA()) ->  | AD162: =IF(AD159,Financials!AH420,NA()) ->  | AE162: =IF(AE159,Financials!AI420,NA()) ->  | AF162: =IF(AF159,Financials!AJ420,NA()) ->  | AG162: =IF(AG159,Financials!AK420,NA()) ->  | AH162: =IF(AH159,Financials!AL420,NA()) ->  | AI162: =IF(AI159,Financials!AM420,NA()) ->  | AJ162: =IF(AJ159,Financials!AN420,NA()) ->  | AK162: =IF(AK159,Financials!AO420,NA()) ->  | AL162: =IF(AL159,Financials!AP420,NA()) ->  | AM162: =IF(AM159,Financials!AQ420,NA()) ->  | AN162: =IF(AN159,Financials!AR420,NA()) ->  | AO162: =IF(AO159,Financials!AS420,NA()) ->  | AP162: =IF(AP159,Financials!AT420,NA()) ->  | AQ162: =IF(AQ159,Financials!AU420,NA()) ->  | AR162: =IF(AR159,Financials!AV420,NA()) -> 0.03079167507 | AS162: =IF(AS159,Financials!AW420,NA()) -> 0.02990987853 | AT162: =IF(AT159,Financials!AX420,NA()) -> 0.03345885465 | AU162: =IF(AU159,Financials!AY420,NA()) -> 0.02756378803
B165: EV/EBITDA Ratio
F166: =F135 -> 00:00:00 | G166: 1986-12-31 | H166: 1987-12-31 | I166: 1988-12-31 | J166: 1989-12-31 | K166: 1990-12-31 | L166: 1991-12-31 | M166: 1992-12-31 | N166: 1993-12-31 | O166: 1994-12-31 | P166: 1995-12-31 | Q166: 1996-12-31 | R166: 1997-12-31 | S166: 1998-12-31 | T166: 1999-12-31 | U166: 2000-12-31 | V166: 2001-12-31 | W166: 2002-12-31 | X166: 2003-12-31 | Y166: 2004-12-31 | Z166: 2005-12-31 | AA166: 2006-12-31 | AB166: 2007-12-31 | AC166: 2008-12-31 | AD166: 2009-12-31 | AE166: 2010-12-31 | AF166: 2011-12-31 | AG166: 2012-12-31 | AH166: 2013-12-31 | AI166: 2014-12-31 | AJ166: 2015-12-31 | AK166: 2016-12-31 | AL166: 2017-12-31 | AM166: 2018-12-31 | AN166: 2019-12-31 | AO166: 2020-12-31 | AP166: 2021-12-31 | AQ166: 2022-12-31 | AR166: 2023-12-31 | AS166: 2024-12-31 | AT166: 2025-12-31 | AU166: 2026-12-31
F167: =F119 -> FALSE | G167: FALSE | H167: FALSE | I167: FALSE | J167: FALSE | K167: FALSE | L167: FALSE | M167: FALSE | N167: FALSE | O167: FALSE | P167: FALSE | Q167: FALSE | R167: FALSE | S167: FALSE | T167: FALSE | U167: FALSE | V167: FALSE | W167: FALSE | X167: FALSE | Y167: FALSE | Z167: FALSE | AA167: FALSE | AB167: FALSE | AC167: FALSE | AD167: FALSE | AE167: FALSE | AF167: FALSE | AG167: FALSE | AH167: FALSE | AI167: FALSE | AJ167: FALSE | AK167: FALSE | AL167: FALSE | AM167: FALSE | AN167: FALSE | AO167: FALSE | AP167: FALSE | AQ167: FALSE | AR167: TRUE | AS167: TRUE | AT167: TRUE | AU167: TRUE
F168: =IF(F167,F38,NA()) ->  | AR168: 2023-12-31 | AS168: 2024-12-31 | AT168: 2025-12-31 | AU168: 2026-12-31
E169: EV/EBITDA | F169: =IF(F167,Financials!J331,NA()) ->  | G169: =IF(G167,Financials!K331,NA()) ->  | H169: =IF(H167,Financials!L331,NA()) ->  | I169: =IF(I167,Financials!M331,NA()) ->  | J169: =IF(J167,Financials!N331,NA()) ->  | K169: =IF(K167,Financials!O331,NA()) ->  | L169: =IF(L167,Financials!P331,NA()) ->  | M169: =IF(M167,Financials!Q331,NA()) ->  | N169: =IF(N167,Financials!R331,NA()) ->  | O169: =IF(O167,Financials!S331,NA()) ->  | P169: =IF(P167,Financials!T331,NA()) ->  | Q169: =IF(Q167,Financials!U331,NA()) ->  | R169: =IF(R167,Financials!V331,NA()) ->  | S169: =IF(S167,Financials!W331,NA()) ->  | T169: =IF(T167,Financials!X331,NA()) ->  | U169: =IF(U167,Financials!Y331,NA()) ->  | V169: =IF(V167,Financials!Z331,NA()) ->  | W169: =IF(W167,Financials!AA331,NA()) ->  | X169: =IF(X167,Financials!AB331,NA()) ->  | Y169: =IF(Y167,Financials!AC331,NA()) ->  | Z169: =IF(Z167,Financials!AD331,NA()) ->  | AA169: =IF(AA167,Financials!AE331,NA()) ->  | AB169: =IF(AB167,Financials!AF331,NA()) ->  | AC169: =IF(AC167,Financials!AG331,NA()) ->  | AD169: =IF(AD167,Financials!AH331,NA()) ->  | AE169: =IF(AE167,Financials!AI331,NA()) ->  | AF169: =IF(AF167,Financials!AJ331,NA()) ->  | AG169: =IF(AG167,Financials!AK331,NA()) ->  | AH169: =IF(AH167,Financials!AL331,NA()) ->  | AI169: =IF(AI167,Financials!AM331,NA()) ->  | AJ169: =IF(AJ167,Financials!AN331,NA()) ->  | AK169: =IF(AK167,Financials!AO331,NA()) ->  | AL169: =IF(AL167,Financials!AP331,NA()) ->  | AM169: =IF(AM167,Financials!AQ331,NA()) ->  | AN169: =IF(AN167,Financials!AR331,NA()) ->  | AO169: =IF(AO167,Financials!AS331,NA()) ->  | AP169: =IF(AP167,Financials!AT331,NA()) ->  | AQ169: =IF(AQ167,Financials!AU331,NA()) ->  | AR169: =IF(AR167,Financials!AV331,NA()) -> 605.7428371 | AS169: =IF(AS167,Financials!AW331,NA()) -> 626.91774 | AT169: =IF(AT167,Financials!AX331,NA()) -> 603.0515808 | AU169: =IF(AU167,Financials!AY331,NA()) -> 781.9579104
E170: EBITDA | F170: =F155 ->  | G170: =G155 ->  | AR170: 7254000000 | AS170: 6832000000 | AT170: 7939000000 | AU170: 8078000000
B172: Sales and Expenses
F173: =F37 -> 1985 | G173: 1986 | H173: 1987 | I173: 1988 | J173: 1989 | K173: 1990 | L173: 1991 | M173: 1992 | N173: 1993 | O173: 1994 | P173: 1995 | Q173: 1996 | R173: 1997 | S173: 1998 | T173: 1999 | U173: 2000 | V173: 2001 | W173: 2002 | X173: 2003 | Y173: 2004 | Z173: 2005 | AA173: 2006 | AB173: 2007 | AC173: 2008 | AD173: 2009 | AE173: 2010 | AF173: 2011 | AG173: 2012 | AH173: 2013 | AI173: 2014 | AJ173: 2015 | AK173: 2016 | AL173: 2017 | AM173: 2018 | AN173: 2019 | AO173: 2020 | AP173: 2021 | AQ173: 2022 | AR173: 2023 | AS173: 2024 | AT173: 2025 | AU173: 2026
F174: =F18 -> FALSE | G174: FALSE | H174: FALSE | I174: FALSE | J174: FALSE | K174: FALSE | L174: FALSE | M174: FALSE | N174: FALSE | O174: FALSE | P174: FALSE | Q174: FALSE | R174: FALSE | S174: FALSE | T174: FALSE | U174: FALSE | V174: FALSE | W174: FALSE | X174: FALSE | Y174: FALSE | Z174: FALSE | AA174: FALSE | AB174: FALSE | AC174: FALSE | AD174: FALSE | AE174: FALSE | AF174: FALSE | AG174: FALSE | AH174: FALSE | AI174: FALSE | AJ174: FALSE | AK174: FALSE | AL174: FALSE | AM174: FALSE | AN174: FALSE | AO174: FALSE | AP174: FALSE | AQ174: FALSE | AR174: TRUE | AS174: TRUE | AT174: TRUE | AU174: TRUE
F175: =F19 ->  | AR175: 2023-12-31 | AS175: 2024-12-31 | AT175: 2025-12-31 | AU175: 2026-12-31
E176: Sales | F176: =IF(F174,Financials!J28,NA()) ->  | G176: =IF(G174,Financials!K28,NA()) ->  | H176: =IF(H174,Financials!L28,NA()) ->  | I176: =IF(I174,Financials!M28,NA()) ->  | J176: =IF(J174,Financials!N28,NA()) ->  | K176: =IF(K174,Financials!O28,NA()) ->  | L176: =IF(L174,Financials!P28,NA()) ->  | M176: =IF(M174,Financials!Q28,NA()) ->  | N176: =IF(N174,Financials!R28,NA()) ->  | O176: =IF(O174,Financials!S28,NA()) ->  | P176: =IF(P174,Financials!T28,NA()) ->  | Q176: =IF(Q174,Financials!U28,NA()) ->  | R176: =IF(R174,Financials!V28,NA()) ->  | S176: =IF(S174,Financials!W28,NA()) ->  | T176: =IF(T174,Financials!X28,NA()) ->  | U176: =IF(U174,Financials!Y28,NA()) ->  | V176: =IF(V174,Financials!Z28,NA()) ->  | W176: =IF(W174,Financials!AA28,NA()) ->  | X176: =IF(X174,Financials!AB28,NA()) ->  | Y176: =IF(Y174,Financials!AC28,NA()) ->  | Z176: =IF(Z174,Financials!AD28,NA()) ->  | AA176: =IF(AA174,Financials!AE28,NA()) ->  | AB176: =IF(AB174,Financials!AF28,NA()) ->  | AC176: =IF(AC174,Financials!AG28,NA()) ->  | AD176: =IF(AD174,Financials!AH28,NA()) ->  | AE176: =IF(AE174,Financials!AI28,NA()) ->  | AF176: =IF(AF174,Financials!AJ28,NA()) ->  | AG176: =IF(AG174,Financials!AK28,NA()) ->  | AH176: =IF(AH174,Financials!AL28,NA()) ->  | AI176: =IF(AI174,Financials!AM28,NA()) ->  | AJ176: =IF(AJ174,Financials!AN28,NA()) ->  | AK176: =IF(AK174,Financials!AO28,NA()) ->  | AL176: =IF(AL174,Financials!AP28,NA()) ->  | AM176: =IF(AM174,Financials!AQ28,NA()) ->  | AN176: =IF(AN174,Financials!AR28,NA()) ->  | AO176: =IF(AO174,Financials!AS28,NA()) ->  | AP176: =IF(AP174,Financials!AT28,NA()) ->  | AQ176: =IF(AQ174,Financials!AU28,NA()) ->  | AR176: =IF(AR174,Financials!AV28,NA()) -> 21659000000 | AS176: =IF(AS174,Financials!AW28,NA()) -> 19850000000 | AT176: =IF(AT174,Financials!AX28,NA()) -> 18378000000 | AU176: =IF(AU174,Financials!AY28,NA()) -> 17687000000
E177: Cash Expenses | F177: =IF(F174,Financials!J33,NA()) ->  | G177: =IF(G174,Financials!K33,NA()) ->  | H177: =IF(H174,Financials!L33,NA()) ->  | I177: =IF(I174,Financials!M33,NA()) ->  | J177: =IF(J174,Financials!N33,NA()) ->  | K177: =IF(K174,Financials!O33,NA()) ->  | L177: =IF(L174,Financials!P33,NA()) ->  | M177: =IF(M174,Financials!Q33,NA()) ->  | N177: =IF(N174,Financials!R33,NA()) ->  | O177: =IF(O174,Financials!S33,NA()) ->  | P177: =IF(P174,Financials!T33,NA()) ->  | Q177: =IF(Q174,Financials!U33,NA()) ->  | R177: =IF(R174,Financials!V33,NA()) ->  | S177: =IF(S174,Financials!W33,NA()) ->  | T177: =IF(T174,Financials!X33,NA()) ->  | U177: =IF(U174,Financials!Y33,NA()) ->  | V177: =IF(V174,Financials!Z33,NA()) ->  | W177: =IF(W174,Financials!AA33,NA()) ->  | X177: =IF(X174,Financials!AB33,NA()) ->  | Y177: =IF(Y174,Financials!AC33,NA()) ->  | Z177: =IF(Z174,Financials!AD33,NA()) ->  | AA177: =IF(AA174,Financials!AE33,NA()) ->  | AB177: =IF(AB174,Financials!AF33,NA()) ->  | AC177: =IF(AC174,Financials!AG33,NA()) ->  | AD177: =IF(AD174,Financials!AH33,NA()) ->  | AE177: =IF(AE174,Financials!AI33,NA()) ->  | AF177: =IF(AF174,Financials!AJ33,NA()) ->  | AG177: =IF(AG174,Financials!AK33,NA()) ->  | AH177: =IF(AH174,Financials!AL33,NA()) ->  | AI177: =IF(AI174,Financials!AM33,NA()) ->  | AJ177: =IF(AJ174,Financials!AN33,NA()) ->  | AK177: =IF(AK174,Financials!AO33,NA()) ->  | AL177: =IF(AL174,Financials!AP33,NA()) ->  | AM177: =IF(AM174,Financials!AQ33,NA()) ->  | AN177: =IF(AN174,Financials!AR33,NA()) ->  | AO177: =IF(AO174,Financials!AS33,NA()) ->  | AP177: =IF(AP174,Financials!AT33,NA()) ->  | AQ177: =IF(AQ174,Financials!AU33,NA()) ->  | AR177: =IF(AR174,Financials!AV33,NA()) -> 14405000000 | AS177: =IF(AS174,Financials!AW33,NA()) -> 13018000000 | AT177: =IF(AT174,Financials!AX33,NA()) -> 10439000000 | AU177: =IF(AU174,Financials!AY33,NA()) -> 9609000000
B180: Debt Statistics
F181: =F173 -> 1985 | G181: =G173 -> 1986 | H181: 1987 | I181: 1988 | J181: 1989 | K181: 1990 | L181: 1991 | M181: 1992 | N181: 1993 | O181: 1994 | P181: 1995 | Q181: 1996 | R181: 1997 | S181: 1998 | T181: 1999 | U181: 2000 | V181: 2001 | W181: 2002 | X181: 2003 | Y181: 2004 | Z181: 2005 | AA181: 2006 | AB181: 2007 | AC181: 2008 | AD181: 2009 | AE181: 2010 | AF181: 2011 | AG181: 2012 | AH181: 2013 | AI181: 2014 | AJ181: 2015 | AK181: 2016 | AL181: 2017 | AM181: 2018 | AN181: 2019 | AO181: 2020 | AP181: 2021 | AQ181: 2022 | AR181: 2023 | AS181: 2024 | AT181: =AT173 -> 2025 | AU181: 2026
F182: =F174 -> FALSE | G182: =G174 -> FALSE | H182: FALSE | I182: FALSE | J182: FALSE | K182: FALSE | L182: FALSE | M182: FALSE | N182: FALSE | O182: FALSE | P182: FALSE | Q182: FALSE | R182: FALSE | S182: FALSE | T182: FALSE | U182: FALSE | V182: FALSE | W182: FALSE | X182: FALSE | Y182: FALSE | Z182: FALSE | AA182: FALSE | AB182: FALSE | AC182: FALSE | AD182: FALSE | AE182: FALSE | AF182: FALSE | AG182: FALSE | AH182: FALSE | AI182: FALSE | AJ182: FALSE | AK182: FALSE | AL182: FALSE | AM182: FALSE | AN182: FALSE | AO182: FALSE | AP182: FALSE | AQ182: FALSE | AR182: TRUE | AS182: TRUE | AT182: =AT174 -> TRUE | AU182: TRUE
F183: =F175 ->  | G183: =G175 ->  | AR183: 2023-12-31 | AS183: 2024-12-31 | AT183: =AT175 -> 2025-12-31 | AU183: 2026-12-31
E184: Debt to Capital | F184: =IF(F182,Financials!J388,NA()) ->  | G184: =IF(G182,Financials!K388,NA()) ->  | H184: =IF(H182,Financials!L388,NA()) ->  | I184: =IF(I182,Financials!M388,NA()) ->  | J184: =IF(J182,Financials!N388,NA()) ->  | K184: =IF(K182,Financials!O388,NA()) ->  | L184: =IF(L182,Financials!P388,NA()) ->  | M184: =IF(M182,Financials!Q388,NA()) ->  | N184: =IF(N182,Financials!R388,NA()) ->  | O184: =IF(O182,Financials!S388,NA()) ->  | P184: =IF(P182,Financials!T388,NA()) ->  | Q184: =IF(Q182,Financials!U388,NA()) ->  | R184: =IF(R182,Financials!V388,NA()) ->  | S184: =IF(S182,Financials!W388,NA()) ->  | T184: =IF(T182,Financials!X388,NA()) ->  | U184: =IF(U182,Financials!Y388,NA()) ->  | V184: =IF(V182,Financials!Z388,NA()) ->  | W184: =IF(W182,Financials!AA388,NA()) ->  | X184: =IF(X182,Financials!AB388,NA()) ->  | Y184: =IF(Y182,Financials!AC388,NA()) ->  | Z184: =IF(Z182,Financials!AD388,NA()) ->  | AA184: =IF(AA182,Financials!AE388,NA()) ->  | AB184: =IF(AB182,Financials!AF388,NA()) ->  | AC184: =IF(AC182,Financials!AG388,NA()) ->  | AD184: =IF(AD182,Financials!AH388,NA()) ->  | AE184: =IF(AE182,Financials!AI388,NA()) ->  | AF184: =IF(AF182,Financials!AJ388,NA()) ->  | AG184: =IF(AG182,Financials!AK388,NA()) ->  | AH184: =IF(AH182,Financials!AL388,NA()) ->  | AI184: =IF(AI182,Financials!AM388,NA()) ->  | AJ184: =IF(AJ182,Financials!AN388,NA()) ->  | AK184: =IF(AK182,Financials!AO388,NA()) ->  | AL184: =IF(AL182,Financials!AP388,NA()) ->  | AM184: =IF(AM182,Financials!AQ388,NA()) ->  | AN184: =IF(AN182,Financials!AR388,NA()) ->  | AO184: =IF(AO182,Financials!AS388,NA()) ->  | AP184: =IF(AP182,Financials!AT388,NA()) ->  | AQ184: =IF(AQ182,Financials!AU388,NA()) ->  | AR184: =IF(AR182,Financials!AV388,NA()) -> 0.5927085201 | AS184: =IF(AS182,Financials!AW388,NA()) -> 0.6118093555 | AT184: =IF(AT182,Financials!AX388,NA()) -> 0.5570410818 | AU184: =IF(AU182,Financials!AY388,NA()) -> 0.5433216353
F185: =F183 ->  | G185: =G183 ->  | AR185: 2023-12-31 | AS185: 2024-12-31 | AT185: =AT183 -> 2025-12-31 | AU185: 2026-12-31
E186: Debt to EBITDA | F186: =IF(F182,Financials!J390,NA()) ->  | G186: =IF(G182,Financials!K390,NA()) ->  | H186: =IF(H182,Financials!L390,NA()) ->  | I186: =IF(I182,Financials!M390,NA()) ->  | J186: =IF(J182,Financials!N390,NA()) ->  | K186: =IF(K182,Financials!O390,NA()) ->  | L186: =IF(L182,Financials!P390,NA()) ->  | M186: =IF(M182,Financials!Q390,NA()) ->  | N186: =IF(N182,Financials!R390,NA()) ->  | O186: =IF(O182,Financials!S390,NA()) ->  | P186: =IF(P182,Financials!T390,NA()) ->  | Q186: =IF(Q182,Financials!U390,NA()) ->  | R186: =IF(R182,Financials!V390,NA()) ->  | S186: =IF(S182,Financials!W390,NA()) ->  | T186: =IF(T182,Financials!X390,NA()) ->  | U186: =IF(U182,Financials!Y390,NA()) ->  | V186: =IF(V182,Financials!Z390,NA()) ->  | W186: =IF(W182,Financials!AA390,NA()) ->  | X186: =IF(X182,Financials!AB390,NA()) ->  | Y186: =IF(Y182,Financials!AC390,NA()) ->  | Z186: =IF(Z182,Financials!AD390,NA()) ->  | AA186: =IF(AA182,Financials!AE390,NA()) ->  | AB186: =IF(AB182,Financials!AF390,NA()) ->  | AC186: =IF(AC182,Financials!AG390,NA()) ->  | AD186: =IF(AD182,Financials!AH390,NA()) ->  | AE186: =IF(AE182,Financials!AI390,NA()) ->  | AF186: =IF(AF182,Financials!AJ390,NA()) ->  | AG186: =IF(AG182,Financials!AK390,NA()) ->  | AH186: =IF(AH182,Financials!AL390,NA()) ->  | AI186: =IF(AI182,Financials!AM390,NA()) ->  | AJ186: =IF(AJ182,Financials!AN390,NA()) ->  | AK186: =IF(AK182,Financials!AO390,NA()) ->  | AL186: =IF(AL182,Financials!AP390,NA()) ->  | AM186: =IF(AM182,Financials!AQ390,NA()) ->  | AN186: =IF(AN182,Financials!AR390,NA()) ->  | AO186: =IF(AO182,Financials!AS390,NA()) ->  | AP186: =IF(AP182,Financials!AT390,NA()) ->  | AQ186: =IF(AQ182,Financials!AU390,NA()) ->  | AR186: =IF(AR182,Financials!AV390,NA()) -> 5.925696168 | AS186: =IF(AS182,Financials!AW390,NA()) -> 6.889929742 | AT186: =IF(AT182,Financials!AX390,NA()) -> 5.988033757 | AU186: =IF(AU182,Financials!AY390,NA()) -> 5.78794256
F187: =F185 ->  | G187: =G185 ->  | AR187: 2023-12-31 | AS187: 2024-12-31 | AT187: =AT185 -> 2025-12-31 | AU187: 2026-12-31
E188: Operating Income to Interest | F188: =IF(F182,Financials!J392,NA()) ->  | G188: =IF(G182,Financials!K392,NA()) ->  | H188: =IF(H182,Financials!L392,NA()) ->  | I188: =IF(I182,Financials!M392,NA()) ->  | J188: =IF(J182,Financials!N392,NA()) ->  | K188: =IF(K182,Financials!O392,NA()) ->  | L188: =IF(L182,Financials!P392,NA()) ->  | M188: =IF(M182,Financials!Q392,NA()) ->  | N188: =IF(N182,Financials!R392,NA()) ->  | O188: =IF(O182,Financials!S392,NA()) ->  | P188: =IF(P182,Financials!T392,NA()) ->  | Q188: =IF(Q182,Financials!U392,NA()) ->  | R188: =IF(R182,Financials!V392,NA()) ->  | S188: =IF(S182,Financials!W392,NA()) ->  | T188: =IF(T182,Financials!X392,NA()) ->  | U188: =IF(U182,Financials!Y392,NA()) ->  | V188: =IF(V182,Financials!Z392,NA()) ->  | W188: =IF(W182,Financials!AA392,NA()) ->  | X188: =IF(X182,Financials!AB392,NA()) ->  | Y188: =IF(Y182,Financials!AC392,NA()) ->  | Z188: =IF(Z182,Financials!AD392,NA()) ->  | AA188: =IF(AA182,Financials!AE392,NA()) ->  | AB188: =IF(AB182,Financials!AF392,NA()) ->  | AC188: =IF(AC182,Financials!AG392,NA()) ->  | AD188: =IF(AD182,Financials!AH392,NA()) ->  | AE188: =IF(AE182,Financials!AI392,NA()) ->  | AF188: =IF(AF182,Financials!AJ392,NA()) ->  | AG188: =IF(AG182,Financials!AK392,NA()) ->  | AH188: =IF(AH182,Financials!AL392,NA()) ->  | AI188: =IF(AI182,Financials!AM392,NA()) ->  | AJ188: =IF(AJ182,Financials!AN392,NA()) ->  | AK188: =IF(AK182,Financials!AO392,NA()) ->  | AL188: =IF(AL182,Financials!AP392,NA()) ->  | AM188: =IF(AM182,Financials!AQ392,NA()) ->  | AN188: =IF(AN182,Financials!AR392,NA()) ->  | AO188: =IF(AO182,Financials!AS392,NA()) ->  | AP188: =IF(AP182,Financials!AT392,NA()) ->  | AQ188: =IF(AQ182,Financials!AU392,NA()) ->  | AR188: =IF(AR182,Financials!AV392,NA()) -> 3.136904762 | AS188: =IF(AS182,Financials!AW392,NA()) -> 2.769007545 | AT188: =IF(AT182,Financials!AX392,NA()) -> 3.016574586 | AU188: =IF(AU182,Financials!AY392,NA()) -> 3.536082474
F189: =F187 ->  | G189: =G187 ->  | AR189: 2023-12-31 | AS189: 2024-12-31 | AT189: =AT187 -> 2025-12-31 | AU189: 2026-12-31
E190: Average Interest Rate | F190: =IF(F182,Financials!J396,NA()) ->  | G190: =IF(G182,Financials!K396,NA()) ->  | H190: =IF(H182,Financials!L396,NA()) ->  | I190: =IF(I182,Financials!M396,NA()) ->  | J190: =IF(J182,Financials!N396,NA()) ->  | K190: =IF(K182,Financials!O396,NA()) ->  | L190: =IF(L182,Financials!P396,NA()) ->  | M190: =IF(M182,Financials!Q396,NA()) ->  | N190: =IF(N182,Financials!R396,NA()) ->  | O190: =IF(O182,Financials!S396,NA()) ->  | P190: =IF(P182,Financials!T396,NA()) ->  | Q190: =IF(Q182,Financials!U396,NA()) ->  | R190: =IF(R182,Financials!V396,NA()) ->  | S190: =IF(S182,Financials!W396,NA()) ->  | T190: =IF(T182,Financials!X396,NA()) ->  | U190: =IF(U182,Financials!Y396,NA()) ->  | V190: =IF(V182,Financials!Z396,NA()) ->  | W190: =IF(W182,Financials!AA396,NA()) ->  | X190: =IF(X182,Financials!AB396,NA()) ->  | Y190: =IF(Y182,Financials!AC396,NA()) ->  | Z190: =IF(Z182,Financials!AD396,NA()) ->  | AA190: =IF(AA182,Financials!AE396,NA()) ->  | AB190: =IF(AB182,Financials!AF396,NA()) ->  | AC190: =IF(AC182,Financials!AG396,NA()) ->  | AD190: =IF(AD182,Financials!AH396,NA()) ->  | AE190: =IF(AE182,Financials!AI396,NA()) ->  | AF190: =IF(AF182,Financials!AJ396,NA()) ->  | AG190: =IF(AG182,Financials!AK396,NA()) ->  | AH190: =IF(AH182,Financials!AL396,NA()) ->  | AI190: =IF(AI182,Financials!AM396,NA()) ->  | AJ190: =IF(AJ182,Financials!AN396,NA()) ->  | AK190: =IF(AK182,Financials!AO396,NA()) ->  | AL190: =IF(AL182,Financials!AP396,NA()) ->  | AM190: =IF(AM182,Financials!AQ396,NA()) ->  | AN190: =IF(AN182,Financials!AR396,NA()) ->  | AO190: =IF(AO182,Financials!AS396,NA()) ->  | AP190: =IF(AP182,Financials!AT396,NA()) ->  | AQ190: =IF(AQ182,Financials!AU396,NA()) ->  | AR190: =IF(AR182,Financials!AV396,NA()) -> 0.03908340119 | AS190: =IF(AS182,Financials!AW396,NA()) -> 0.03826465461 | AT190: =IF(AT182,Financials!AX396,NA()) -> 0.03826193572 | AU190: =IF(AU182,Financials!AY396,NA()) -> 0.03497571426
C213: Flexible
E214: Row | F214: ='Dropdown Forms'!D29 -> 30
F216: =F159 -> FALSE | G216: FALSE | H216: FALSE | I216: FALSE | J216: FALSE | K216: FALSE | L216: FALSE | M216: FALSE | N216: FALSE | O216: FALSE | P216: FALSE | Q216: FALSE | R216: FALSE | S216: FALSE | T216: FALSE | U216: FALSE | V216: FALSE | W216: FALSE | X216: FALSE | Y216: FALSE | Z216: FALSE | AA216: FALSE | AB216: FALSE | AC216: FALSE | AD216: FALSE | AE216: FALSE | AF216: FALSE | AG216: FALSE | AH216: FALSE | AI216: FALSE | AJ216: FALSE | AK216: FALSE | AL216: FALSE | AM216: FALSE | AN216: FALSE | AO216: FALSE | AP216: FALSE | AQ216: FALSE | AR216: TRUE | AS216: TRUE | AT216: TRUE | AU216: TRUE
F217: =F173 -> 1985 | G217: 1986 | H217: 1987 | I217: 1988 | J217: 1989 | K217: 1990 | L217: 1991 | M217: 1992 | N217: 1993 | O217: 1994 | P217: 1995 | Q217: 1996 | R217: 1997 | S217: 1998 | T217: 1999 | U217: 2000 | V217: 2001 | W217: 2002 | X217: 2003 | Y217: 2004 | Z217: 2005 | AA217: 2006 | AB217: 2007 | AC217: 2008 | AD217: 2009 | AE217: 2010 | AF217: 2011 | AG217: 2012 | AH217: 2013 | AI217: 2014 | AJ217: 2015 | AK217: 2016 | AL217: 2017 | AM217: 2018 | AN217: 2019 | AO217: 2020 | AP217: 2021 | AQ217: 2022 | AR217: 2023 | AS217: 2024 | AT217: =AT173 -> 2025 | AU217: 2026
F218: =F175 ->  | AR218: 2023-12-31 | AS218: 2024-12-31 | AT218: =AT175 -> 2025-12-31 | AU218: 2026-12-31
D219: ='Dropdown Forms'!$C$30 -> Cash Operating Expenses - Long-term Extract | F219: =IF(F216,F220,"") ->  | G219: =IF(G216,G220,"") ->  | AR219: 0 | AS219: 0 | AT219: =IF(AT216,AT220,"") -> 0 | AU219: 0
D220: ='Dropdown Forms'!$C$30 -> Cash Operating Expenses - Long-term Extract | F220: =INDEX(Financials!J:J,'Graphs Working'!$F$214) -> 0 | G220: =INDEX(Financials!K:K,'Graphs Working'!$F$214) -> 0 | H220: =INDEX(Financials!L:L,'Graphs Working'!$F$214) -> 0 | I220: =INDEX(Financials!M:M,'Graphs Working'!$F$214) -> 0 | J220: =INDEX(Financials!N:N,'Graphs Working'!$F$214) -> 0 | K220: =INDEX(Financials!O:O,'Graphs Working'!$F$214) -> 0 | L220: =INDEX(Financials!P:P,'Graphs Working'!$F$214) -> 0 | M220: =INDEX(Financials!Q:Q,'Graphs Working'!$F$214) -> 0 | N220: =INDEX(Financials!R:R,'Graphs Working'!$F$214) -> 0 | O220: =INDEX(Financials!S:S,'Graphs Working'!$F$214) -> 0 | P220: =INDEX(Financials!T:T,'Graphs Working'!$F$214) -> 0 | Q220: =INDEX(Financials!U:U,'Graphs Working'!$F$214) -> 0 | R220: =INDEX(Financials!V:V,'Graphs Working'!$F$214) -> 0 | S220: =INDEX(Financials!W:W,'Graphs Working'!$F$214) -> 0 | T220: =INDEX(Financials!X:X,'Graphs Working'!$F$214) -> 0 | U220: =INDEX(Financials!Y:Y,'Graphs Working'!$F$214) -> 0 | V220: =INDEX(Financials!Z:Z,'Graphs Working'!$F$214) -> 0 | W220: =INDEX(Financials!AA:AA,'Graphs Working'!$F$214) -> 0 | X220: =INDEX(Financials!AB:AB,'Graphs Working'!$F$214) -> 0 | Y220: =INDEX(Financials!AC:AC,'Graphs Working'!$F$214) -> 0 | Z220: =INDEX(Financials!AD:AD,'Graphs Working'!$F$214) -> 0 | AA220: =INDEX(Financials!AE:AE,'Graphs Working'!$F$214) -> 0 | AB220: =INDEX(Financials!AF:AF,'Graphs Working'!$F$214) -> 0 | AC220: =INDEX(Financials!AG:AG,'Graphs Working'!$F$214) -> 0 | AD220: =INDEX(Financials!AH:AH,'Graphs Working'!$F$214) -> 0 | AE220: =INDEX(Financials!AI:AI,'Graphs Working'!$F$214) -> 0 | AF220: =INDEX(Financials!AJ:AJ,'Graphs Working'!$F$214) -> 0 | AG220: =INDEX(Financials!AK:AK,'Graphs Working'!$F$214) -> 0 | AH220: =INDEX(Financials!AL:AL,'Graphs Working'!$F$214) -> 0 | AI220: =INDEX(Financials!AM:AM,'Graphs Working'!$F$214) -> 0 | AJ220: =INDEX(Financials!AN:AN,'Graphs Working'!$F$214) -> 0 | AK220: =INDEX(Financials!AO:AO,'Graphs Working'!$F$214) -> 0 | AL220: =INDEX(Financials!AP:AP,'Graphs Working'!$F$214) -> 0 | AM220: =INDEX(Financials!AQ:AQ,'Graphs Working'!$F$214) -> 0 | AN220: =INDEX(Financials!AR:AR,'Graphs Working'!$F$214) -> 0 | AO220: =INDEX(Financials!AS:AS,'Graphs Working'!$F$214) -> 0 | AP220: =INDEX(Financials!AT:AT,'Graphs Working'!$F$214) -> 0 | AQ220: =INDEX(Financials!AU:AU,'Graphs Working'!$F$214) -> 0 | AR220: =INDEX(Financials!AV:AV,'Graphs Working'!$F$214) -> 0 | AS220: =INDEX(Financials!AW:AW,'Graphs Working'!$F$214) -> 0 | AT220: =INDEX(Financials!AX:AX,'Graphs Working'!$F$214) -> 0 | AU220: =INDEX(Financials!AY:AY,'Graphs Working'!$F$214) -> 0
D221: ='Dropdown Forms'!$C$30 -> Cash Operating Expenses - Long-term Extract | F221: =IF(F216,F220) -> FALSE | G221: =IF(G216,G220) -> FALSE | H221: FALSE | I221: FALSE | J221: FALSE | K221: FALSE | L221: FALSE | M221: FALSE | N221: FALSE | O221: FALSE | P221: FALSE | Q221: FALSE | R221: FALSE | S221: FALSE | T221: FALSE | U221: FALSE | V221: FALSE | W221: FALSE | X221: FALSE | Y221: FALSE | Z221: FALSE | AA221: FALSE | AB221: FALSE | AC221: FALSE | AD221: FALSE | AE221: FALSE | AF221: FALSE | AG221: FALSE | AH221: FALSE | AI221: FALSE | AJ221: FALSE | AK221: FALSE | AL221: FALSE | AM221: FALSE | AN221: FALSE | AO221: FALSE | AP221: FALSE | AQ221: FALSE | AR221: 0 | AS221: 0 | AT221: =IF(AT216,AT220) -> 0 | AU221: 0
D222: Percent Change | G222: =IFERROR(G221/F221-1,FALSE) -> FALSE | H222: =IFERROR(H221/G221-1,FALSE) -> FALSE | I222: FALSE | J222: FALSE | K222: FALSE | L222: FALSE | M222: FALSE | N222: FALSE | O222: FALSE | P222: FALSE | Q222: FALSE | R222: FALSE | S222: FALSE | T222: FALSE | U222: FALSE | V222: FALSE | W222: FALSE | X222: FALSE | Y222: FALSE | Z222: FALSE | AA222: FALSE | AB222: FALSE | AC222: FALSE | AD222: FALSE | AE222: FALSE | AF222: FALSE | AG222: FALSE | AH222: FALSE | AI222: FALSE | AJ222: FALSE | AK222: FALSE | AL222: FALSE | AM222: FALSE | AN222: FALSE | AO222: FALSE | AP222: FALSE | AQ222: FALSE | AR222: FALSE | AS222: FALSE | AT222: =IFERROR(AT221/AS221-1,FALSE) -> FALSE | AU222: =IFERROR(AU221/AT221-1,FALSE) -> FALSE
D223: Index | F223: 1 | G223: =F223*(1+G222*G216) -> 1 | H223: =G223*(1+H222*H216) -> 1 | I223: 1 | J223: 1 | K223: 1 | L223: 1 | M223: 1 | N223: 1 | O223: 1 | P223: 1 | Q223: 1 | R223: 1 | S223: 1 | T223: 1 | U223: 1 | V223: 1 | W223: 1 | X223: 1 | Y223: 1 | Z223: 1 | AA223: 1 | AB223: 1 | AC223: 1 | AD223: 1 | AE223: 1 | AF223: 1 | AG223: 1 | AH223: 1 | AI223: 1 | AJ223: 1 | AK223: 1 | AL223: 1 | AM223: 1 | AN223: 1 | AO223: 1 | AP223: 1 | AQ223: 1 | AR223: 1 | AS223: 1 | AT223: =AS223*(1+AT222*AT216) -> 1 | AU223: =AT223*(1+AU222*AU216) -> 1
D225: Total Years | F225: =COUNTIF(F216:AS216,TRUE) -> 2
D226: Volatility | F226: =IFERROR(_xlfn.STDEV.S(G222:AS222),FALSE) -> FALSE
D227: Growth | F227: =AS223 -> 1
D228: Growth Rate | F228: =F227^(1/F225)-1 -> 0
D230: Title | G230: =D219 -> Cash Operating Expenses - Long-term Extract | H230: Growth Rate | I230: =F228 -> 0 | J230: Volatility | K230: =F226 -> FALSE
E232: Row | F232: =Forms!G14 -> 141
F234: =F217 -> 1985 | G234: =G217 -> 1986 | H234: 1987 | I234: 1988 | J234: 1989 | K234: 1990 | L234: 1991 | M234: 1992 | N234: 1993 | O234: 1994 | P234: 1995 | Q234: 1996 | R234: 1997 | S234: 1998 | T234: 1999 | U234: 2000 | V234: 2001 | W234: 2002 | X234: 2003 | Y234: 2004 | Z234: 2005 | AA234: 2006 | AB234: 2007 | AC234: 2008 | AD234: 2009 | AE234: 2010 | AF234: 2011 | AG234: 2012 | AH234: 2013 | AI234: 2014 | AJ234: 2015 | AK234: 2016 | AL234: 2017 | AM234: 2018 | AN234: 2019 | AO234: 2020 | AP234: 2021 | AQ234: 2022 | AR234: 2023 | AS234: 2024 | AT234: =AT217 -> 2025 | AU234: 2026
F235: =F218 ->  | G235: =G218 ->  | AR235: 2023-12-31 | AS235: 2024-12-31 | AT235: =AT218 -> 2025-12-31 | AU235: 2026-12-31
D236: =Forms!$F$12 -> Minority Interests - Long-term | F236: =IF(F216,F237,"") ->  | G236: =IF(G216,G237,"") ->  | AR236: 0 | AS236: 0 | AT236: =IF(AT216,AT237,"") -> 0 | AU236: 0
D237: =Forms!$F$12 -> Minority Interests - Long-term | F237: =INDEX(Financials!J:J,$F$232) -> 0 | G237: =INDEX(Financials!K:K,$F$232) -> 0 | H237: =INDEX(Financials!L:L,$F$232) -> 0 | I237: =INDEX(Financials!M:M,$F$232) -> 0 | J237: =INDEX(Financials!N:N,$F$232) -> 0 | K237: =INDEX(Financials!O:O,$F$232) -> 0 | L237: =INDEX(Financials!P:P,$F$232) -> 0 | M237: =INDEX(Financials!Q:Q,$F$232) -> 0 | N237: =INDEX(Financials!R:R,$F$232) -> 0 | O237: =INDEX(Financials!S:S,$F$232) -> 0 | P237: =INDEX(Financials!T:T,$F$232) -> 0 | Q237: =INDEX(Financials!U:U,$F$232) -> 0 | R237: =INDEX(Financials!V:V,$F$232) -> 0 | S237: =INDEX(Financials!W:W,$F$232) -> 0 | T237: =INDEX(Financials!X:X,$F$232) -> 0 | U237: =INDEX(Financials!Y:Y,$F$232) -> 0 | V237: =INDEX(Financials!Z:Z,$F$232) -> 0 | W237: =INDEX(Financials!AA:AA,$F$232) -> 0 | X237: =INDEX(Financials!AB:AB,$F$232) -> 0 | Y237: =INDEX(Financials!AC:AC,$F$232) -> 0 | Z237: =INDEX(Financials!AD:AD,$F$232) -> 0 | AA237: =INDEX(Financials!AE:AE,$F$232) -> 0 | AB237: =INDEX(Financials!AF:AF,$F$232) -> 0 | AC237: =INDEX(Financials!AG:AG,$F$232) -> 0 | AD237: =INDEX(Financials!AH:AH,$F$232) -> 0 | AE237: =INDEX(Financials!AI:AI,$F$232) -> 0 | AF237: =INDEX(Financials!AJ:AJ,$F$232) -> 0 | AG237: =INDEX(Financials!AK:AK,$F$232) -> 0 | AH237: =INDEX(Financials!AL:AL,$F$232) -> 0 | AI237: =INDEX(Financials!AM:AM,$F$232) -> 0 | AJ237: =INDEX(Financials!AN:AN,$F$232) -> 0 | AK237: =INDEX(Financials!AO:AO,$F$232) -> 0 | AL237: =INDEX(Financials!AP:AP,$F$232) -> 0 | AM237: =INDEX(Financials!AQ:AQ,$F$232) -> 0 | AN237: =INDEX(Financials!AR:AR,$F$232) -> 0 | AO237: =INDEX(Financials!AS:AS,$F$232) -> 0 | AP237: =INDEX(Financials!AT:AT,$F$232) -> 0 | AQ237: =INDEX(Financials!AU:AU,$F$232) -> 0 | AR237: =INDEX(Financials!AV:AV,$F$232) -> 0 | AS237: =INDEX(Financials!AW:AW,$F$232) -> 0 | AT237: =INDEX(Financials!AX:AX,$F$232) -> 0 | AU237: =INDEX(Financials!AY:AY,$F$232) -> 0
D238: =Forms!$F$12 -> Minority Interests - Long-term | F238: =IF(F216,F237) -> FALSE | G238: =IF(G216,G237) -> FALSE | H238: FALSE | I238: FALSE | J238: FALSE | K238: FALSE | L238: FALSE | M238: FALSE | N238: FALSE | O238: FALSE | P238: FALSE | Q238: FALSE | R238: FALSE | S238: FALSE | T238: FALSE | U238: FALSE | V238: FALSE | W238: FALSE | X238: FALSE | Y238: FALSE | Z238: FALSE | AA238: FALSE | AB238: FALSE | AC238: FALSE | AD238: FALSE | AE238: FALSE | AF238: FALSE | AG238: FALSE | AH238: FALSE | AI238: FALSE | AJ238: FALSE | AK238: FALSE | AL238: FALSE | AM238: FALSE | AN238: FALSE | AO238: FALSE | AP238: FALSE | AQ238: FALSE | AR238: 0 | AS238: 0 | AT238: =IF(AT216,AT237) -> 0 | AU238: 0
D239: Percent Change | G239: =IFERROR(G238/F238-1,FALSE) -> FALSE | H239: =IFERROR(H238/G238-1,FALSE) -> FALSE | I239: FALSE | J239: FALSE | K239: FALSE | L239: FALSE | M239: FALSE | N239: FALSE | O239: FALSE | P239: FALSE | Q239: FALSE | R239: FALSE | S239: FALSE | T239: FALSE | U239: FALSE | V239: FALSE | W239: FALSE | X239: FALSE | Y239: FALSE | Z239: FALSE | AA239: FALSE | AB239: FALSE | AC239: FALSE | AD239: FALSE | AE239: FALSE | AF239: FALSE | AG239: FALSE | AH239: FALSE | AI239: FALSE | AJ239: FALSE | AK239: FALSE | AL239: FALSE | AM239: FALSE | AN239: FALSE | AO239: FALSE | AP239: FALSE | AQ239: FALSE | AR239: FALSE | AS239: FALSE | AT239: =IFERROR(AT238/AS238-1,FALSE) -> FALSE | AU239: =IFERROR(AU238/AT238-1,FALSE) -> FALSE
D240: Index | F240: 1 | G240: =F240*(1+G239*G216) -> 1 | H240: =G240*(1+H239*H216) -> 1 | I240: 1 | J240: 1 | K240: 1 | L240: 1 | M240: 1 | N240: 1 | O240: 1 | P240: 1 | Q240: 1 | R240: 1 | S240: 1 | T240: 1 | U240: 1 | V240: 1 | W240: 1 | X240: 1 | Y240: 1 | Z240: 1 | AA240: 1 | AB240: 1 | AC240: 1 | AD240: 1 | AE240: 1 | AF240: 1 | AG240: 1 | AH240: 1 | AI240: 1 | AJ240: 1 | AK240: 1 | AL240: 1 | AM240: 1 | AN240: 1 | AO240: 1 | AP240: 1 | AQ240: 1 | AR240: 1 | AS240: 1 | AT240: =AS240*(1+AT239*AT216) -> 1 | AU240: =AT240*(1+AU239*AU216) -> 1
D242: Total Years | F242: =F225 -> 2
D243: Volatility | F243: =IFERROR(_xlfn.STDEV.S(G239:AS239),FALSE) -> FALSE
D244: Growth | F244: =AS240 -> 1
D245: Growth Rate | F245: =F244^(1/F242)-1 -> 0
D247: Title | G247: =D236 -> Minority Interests - Long-term | H247: Growth Rate | I247: =F245 -> 0 | J247: Volatility | K247: =F243 -> FALSE
E249: Row | F249: =Forms!G20 -> 214
F251: =F234 -> 1985 | G251: =G234 -> 1986 | H251: 1987 | I251: 1988 | J251: 1989 | K251: 1990 | L251: 1991 | M251: 1992 | N251: 1993 | O251: 1994 | P251: 1995 | Q251: 1996 | R251: 1997 | S251: 1998 | T251: 1999 | U251: 2000 | V251: 2001 | W251: 2002 | X251: 2003 | Y251: 2004 | Z251: 2005 | AA251: 2006 | AB251: 2007 | AC251: 2008 | AD251: 2009 | AE251: 2010 | AF251: 2011 | AG251: 2012 | AH251: 2013 | AI251: 2014 | AJ251: 2015 | AK251: 2016 | AL251: 2017 | AM251: 2018 | AN251: 2019 | AO251: 2020 | AP251: 2021 | AQ251: 2022 | AR251: 2023 | AS251: 2024 | AT251: =AT234 -> 2025 | AU251: 2026
F252: =F235 ->  | G252: =G235 ->  | AR252: 2023-12-31 | AS252: 2024-12-31 | AT252: =AT235 -> 2025-12-31 | AU252: 2026-12-31
D253: =Forms!$F$18 -> EBITDA Margin | F253: =IF(F216,F254) -> FALSE | G253: =IF(G216,G254) -> FALSE | H253: =IF(H216,H254) -> FALSE | I253: FALSE | J253: FALSE | K253: FALSE | L253: FALSE | M253: FALSE | N253: FALSE | O253: FALSE | P253: FALSE | Q253: FALSE | R253: FALSE | S253: FALSE | T253: FALSE | U253: FALSE | V253: FALSE | W253: FALSE | X253: FALSE | Y253: FALSE | Z253: FALSE | AA253: FALSE | AB253: FALSE | AC253: FALSE | AD253: FALSE | AE253: FALSE | AF253: FALSE | AG253: FALSE | AH253: FALSE | AI253: FALSE | AJ253: FALSE | AK253: FALSE | AL253: FALSE | AM253: FALSE | AN253: FALSE | AO253: FALSE | AP253: FALSE | AQ253: FALSE | AR253: 0.3349185096 | AS253: 0.3441813602 | AT253: =IF(AT216,AT254) -> 0.4319838938 | AU253: 0.4567196246
D254: =Forms!$F$18 -> EBITDA Margin | F254: =INDEX(Financials!J:J,$F$249) -> FALSE | G254: =INDEX(Financials!K:K,$F$249) -> FALSE | H254: =INDEX(Financials!L:L,$F$249) -> FALSE | I254: =INDEX(Financials!M:M,$F$249) -> FALSE | J254: =INDEX(Financials!N:N,$F$249) -> FALSE | K254: =INDEX(Financials!O:O,$F$249) -> FALSE | L254: =INDEX(Financials!P:P,$F$249) -> FALSE | M254: =INDEX(Financials!Q:Q,$F$249) -> FALSE | N254: =INDEX(Financials!R:R,$F$249) -> FALSE | O254: =INDEX(Financials!S:S,$F$249) -> FALSE | P254: =INDEX(Financials!T:T,$F$249) -> FALSE | Q254: =INDEX(Financials!U:U,$F$249) -> FALSE | R254: =INDEX(Financials!V:V,$F$249) -> FALSE | S254: =INDEX(Financials!W:W,$F$249) -> FALSE | T254: =INDEX(Financials!X:X,$F$249) -> FALSE | U254: =INDEX(Financials!Y:Y,$F$249) -> FALSE | V254: =INDEX(Financials!Z:Z,$F$249) -> FALSE | W254: =INDEX(Financials!AA:AA,$F$249) -> FALSE | X254: =INDEX(Financials!AB:AB,$F$249) -> FALSE | Y254: =INDEX(Financials!AC:AC,$F$249) -> FALSE | Z254: =INDEX(Financials!AD:AD,$F$249) -> FALSE | AA254: =INDEX(Financials!AE:AE,$F$249) -> FALSE | AB254: =INDEX(Financials!AF:AF,$F$249) -> FALSE | AC254: =INDEX(Financials!AG:AG,$F$249) -> FALSE | AD254: =INDEX(Financials!AH:AH,$F$249) -> FALSE | AE254: =INDEX(Financials!AI:AI,$F$249) -> FALSE | AF254: =INDEX(Financials!AJ:AJ,$F$249) -> FALSE | AG254: =INDEX(Financials!AK:AK,$F$249) -> FALSE | AH254: =INDEX(Financials!AL:AL,$F$249) -> FALSE | AI254: =INDEX(Financials!AM:AM,$F$249) -> FALSE | AJ254: =INDEX(Financials!AN:AN,$F$249) -> FALSE | AK254: =INDEX(Financials!AO:AO,$F$249) -> FALSE | AL254: =INDEX(Financials!AP:AP,$F$249) -> FALSE | AM254: =INDEX(Financials!AQ:AQ,$F$249) -> FALSE | AN254: =INDEX(Financials!AR:AR,$F$249) -> FALSE | AO254: =INDEX(Financials!AS:AS,$F$249) -> FALSE | AP254: =INDEX(Financials!AT:AT,$F$249) -> FALSE | AQ254: =INDEX(Financials!AU:AU,$F$249) -> FALSE | AR254: =INDEX(Financials!AV:AV,$F$249) -> 0.3349185096 | AS254: =INDEX(Financials!AW:AW,$F$249) -> 0.3441813602 | AT254: =INDEX(Financials!AX:AX,$F$249) -> 0.4319838938 | AU254: =INDEX(Financials!AY:AY,$F$249) -> 0.4567196246
D255: =Forms!$F$18 -> EBITDA Margin | F255: =IF(F216,F254) -> FALSE | G255: =IF(G216,G254) -> FALSE | H255: FALSE | I255: FALSE | J255: FALSE | K255: FALSE | L255: FALSE | M255: FALSE | N255: FALSE | O255: FALSE | P255: FALSE | Q255: FALSE | R255: FALSE | S255: FALSE | T255: FALSE | U255: FALSE | V255: FALSE | W255: FALSE | X255: FALSE | Y255: FALSE | Z255: FALSE | AA255: FALSE | AB255: FALSE | AC255: FALSE | AD255: FALSE | AE255: FALSE | AF255: FALSE | AG255: FALSE | AH255: FALSE | AI255: FALSE | AJ255: FALSE | AK255: FALSE | AL255: FALSE | AM255: FALSE | AN255: FALSE | AO255: FALSE | AP255: FALSE | AQ255: FALSE | AR255: 0.3349185096 | AS255: 0.3441813602 | AT255: =IF(AT216,AT254) -> 0.4319838938 | AU255: 0.4567196246
D256: Percent Change | G256: =IFERROR(G255/F255-1,FALSE) -> FALSE | H256: =IFERROR(H255/G255-1,FALSE) -> FALSE | I256: FALSE | J256: FALSE | K256: FALSE | L256: FALSE | M256: FALSE | N256: FALSE | O256: FALSE | P256: FALSE | Q256: FALSE | R256: FALSE | S256: FALSE | T256: FALSE | U256: FALSE | V256: FALSE | W256: FALSE | X256: FALSE | Y256: FALSE | Z256: FALSE | AA256: FALSE | AB256: FALSE | AC256: FALSE | AD256: FALSE | AE256: FALSE | AF256: FALSE | AG256: FALSE | AH256: FALSE | AI256: FALSE | AJ256: FALSE | AK256: FALSE | AL256: FALSE | AM256: FALSE | AN256: FALSE | AO256: FALSE | AP256: FALSE | AQ256: FALSE | AR256: FALSE | AS256: 0.02765702793 | AT256: =IFERROR(AT255/AS255-1,FALSE) -> 0.2551054291 | AU256: =IFERROR(AU255/AT255-1,FALSE) -> 0.05726077095
D257: Index | F257: 1 | G257: =F257*(1+G256*G216) -> 1 | H257: =G257*(1+H256*H216) -> 1 | I257: 1 | J257: 1 | K257: 1 | L257: 1 | M257: 1 | N257: 1 | O257: 1 | P257: 1 | Q257: 1 | R257: 1 | S257: 1 | T257: 1 | U257: 1 | V257: 1 | W257: 1 | X257: 1 | Y257: 1 | Z257: 1 | AA257: 1 | AB257: 1 | AC257: 1 | AD257: 1 | AE257: 1 | AF257: 1 | AG257: 1 | AH257: 1 | AI257: 1 | AJ257: 1 | AK257: 1 | AL257: 1 | AM257: 1 | AN257: 1 | AO257: 1 | AP257: 1 | AQ257: 1 | AR257: 1 | AS257: 1.027657028 | AT257: =AS257*(1+AT256*AT216) -> 1.289817915 | AU257: =AT257*(1+AU256*AU216) -> 1.363673883
D259: Total Years | F259: =F242 -> 2
D260: Volatility | F260: =_xlfn.STDEV.S(G256:AS256) -> 
D261: Growth | F261: =AS257 -> 1.027657028
D262: Growth Rate | F262: =F261^(1/F259)-1 -> 0.01373419984
G264: =D253 -> EBITDA Margin | H264: Growth Rate | I264: =F262 -> 0.01373419984 | J264: Volatility | K264: =F260 -> 
F275: Series 1 | G275: Series 2
E276: Row | F276: ='Dropdown Forms'!J16 -> 372 | G276: ='Dropdown Forms'!$J$17 -> 367
B277: Start | E277: Start Col | F277: ='Stock Price Graph'!K82-1 -> 12
E278: Columns | F278: ='Dropdown Forms'!$O$4-'Stock Price Graph'!$K$83+1 -> 30
F280: =OFFSET(Financials!J21,0,'Graphs Working'!F277,1,F278) -> 1997 | G280: 1998 | H280: 1999 | I280: 2000 | J280: 2001 | K280: 2002 | L280: 2003 | M280: 2004 | N280: 2005 | O280: 2006 | P280: 2007 | Q280: 2008 | R280: 2009 | S280: 2010 | T280: 2011 | U280: 2012 | V280: 2013 | W280: 2014 | X280: 2015 | Y280: 2016 | Z280: 2017 | AA280: 2018 | AB280: 2019 | AC280: 2020 | AD280: 2021 | AE280: 2022 | AF280: 2023 | AG280: 2024 | AH280: 2025 | AI280: 2026
E281: ='Dropdown Forms'!$H$16 -> Return on Shareholders Equity - Continuing | F281: =OFFSET(Financials!$K$1,F276,F277,1,F278) -> 0 | G281: 0 | H281: 0 | I281: 0 | J281: 0 | K281: 0 | L281: 0 | M281: 0 | N281: 0 | O281: 0 | P281: 0 | Q281: 0 | R281: 0 | S281: 0 | T281: 0 | U281: 0 | V281: 0 | W281: 0 | X281: 0 | Y281: 0 | Z281: 0 | AA281: 0 | AB281: 0 | AC281: 0 | AD281: 0 | AE281: 0 | AF281: 0 | AG281: 0 | AH281: 0 | AI281: 0
E282: ='Dropdown Forms'!$H$17 -> Return on Average Equity | F282: =OFFSET(Financials!$K$1,G276,F277,1,F278) -> 0 | G282: 0 | H282: 0 | I282: 0 | J282: 0 | K282: 0 | L282: 0 | M282: 0 | N282: 0 | O282: 0 | P282: 0 | Q282: 0 | R282: 0 | S282: 0 | T282: 0 | U282: 0 | V282: 0 | W282: 0 | X282: 0 | Y282: 0 | Z282: 0 | AA282: 0 | AB282: 0 | AC282: 0 | AD282: 0 | AE282: 0 | AF282: 0 | AG282: 0 | AH282: 0 | AI282: 0
E284: Percent Change | G284: =IF(G281,G281/F281-1) -> FALSE | H284: =IF(H281,H281/G281-1) -> FALSE | I284: FALSE | J284: FALSE | K284: FALSE | L284: FALSE | M284: FALSE | N284: FALSE | O284: FALSE | P284: FALSE | Q284: FALSE | R284: FALSE | S284: FALSE | T284: FALSE | U284: FALSE | V284: FALSE | W284: FALSE | X284: FALSE | Y284: FALSE | Z284: FALSE | AA284: FALSE | AB284: FALSE | AC284: FALSE | AD284: FALSE | AE284: FALSE | AF284: FALSE | AG284: FALSE | AH284: FALSE | AI284: FALSE | AJ284: FALSE | AK284: FALSE | AL284: FALSE | AM284: FALSE | AN284: FALSE | AO284: FALSE | AP284: FALSE | AQ284: FALSE | AR284: FALSE | AS284: FALSE | AT284: =IF(AT281,AT281/AS281-1) -> FALSE | AU284: =IF(AU281,AU281/AT281-1) -> FALSE
E285: Volatility | F285: =_xlfn.STDEV.S(G284:AS284) -> 
E288: Width Incl Title | F288: =F278+1 -> 31
F290: =OFFSET(F280,0,0,1,F278) -> 1997 | G290: 1998 | H290: 1999 | I290: 2000 | J290: 2001 | K290: 2002 | L290: 2003 | M290: 2004 | N290: 2005 | O290: 2006 | P290: 2007 | Q290: 2008 | R290: 2009 | S290: 2010 | T290: 2011 | U290: 2012 | V290: 2013 | W290: 2014 | X290: 2015 | Y290: 2016 | Z290: 2017 | AA290: 2018 | AB290: 2019 | AC290: 2020 | AD290: 2021 | AE290: 2022 | AF290: 2023 | AG290: 2024 | AH290: 2025 | AI290: 2026
E291: =E281:E282 -> Return on Shareholders Equity - Continuing | F291: =OFFSET(F281,0,0,2,F278) -> 0 | G291: 0 | H291: 0 | I291: 0 | J291: 0 | K291: 0 | L291: 0 | M291: 0 | N291: 0 | O291: 0 | P291: 0 | Q291: 0 | R291: 0 | S291: 0 | T291: 0 | U291: 0 | V291: 0 | W291: 0 | X291: 0 | Y291: 0 | Z291: 0 | AA291: 0 | AB291: 0 | AC291: 0 | AD291: 0 | AE291: 0 | AF291: 0 | AG291: 0 | AH291: 0 | AI291: 0
E292: Return on Average Equity | F292: 0 | G292: 0 | H292: 0 | I292: 0 | J292: 0 | K292: 0 | L292: 0 | M292: 0 | N292: 0 | O292: 0 | P292: 0 | Q292: 0 | R292: 0 | S292: 0 | T292: 0 | U292: 0 | V292: 0 | W292: 0 | X292: 0 | Y292: 0 | Z292: 0 | AA292: 0 | AB292: 0 | AC292: 0 | AD292: 0 | AE292: 0 | AF292: 0 | AG292: 0 | AH292: 0 | AI292: 0
B295: Drop-Down Boxes
F298: 1985 | G298: =DATE(F298,12,31) -> 1985-12-31 | H298: Start
F299: 1986 | G299: =DATE(F299,12,31) -> 1986-12-31
F300: 1987 | G300: 1987-12-31
F301: 1988 | G301: 1988-12-31 | H301: Index | I301: 7
F302: 1989 | G302: 1989-12-31 | H302: Year | I302: =INDEX($F$298:$F$339,I301) -> 1991
F303: 1990 | G303: 1990-12-31 | H303: Start Date | I303: =INDEX($G$298:$G$339,I301) -> 1991-12-31
F304: 1991 | G304: 1991-12-31
F305: 1992 | G305: 1992-12-31 | H305: End
F306: 1993 | G306: 1993-12-31
F307: 1994 | G307: 1994-12-31 | H307: Index | I307: 42
F308: 1995 | G308: 1995-12-31 | H308: Year | I308: =INDEX($F$298:$F$339,I307) -> 2026
F309: 1996 | G309: 1996-12-31 | H309: End Date | I309: =INDEX($G$298:$G$339,I307) -> 2026-12-31
F310: 1997 | G310: 1997-12-31
F311: 1998 | G311: 1998-12-31
F312: 1999 | G312: 1999-12-31
F313: 2000 | G313: 2000-12-31
F314: 2001 | G314: 2001-12-31
F315: 2002 | G315: 2002-12-31
F316: 2003 | G316: 2003-12-31
F317: 2004 | G317: 2004-12-31
F318: 2005 | G318: 2005-12-31
F319: 2006 | G319: 2006-12-31
F320: 2007 | G320: 2007-12-31
F321: 2008 | G321: 2008-12-31
F322: 2009 | G322: 2009-12-31
F323: 2010 | G323: 2010-12-31
F324: 2011 | G324: 2011-12-31
F325: 2012 | G325: 2012-12-31
F326: 2013 | G326: 2013-12-31
F327: 2014 | G327: 2014-12-31
F328: 2015 | G328: 2015-12-31
F329: 2016 | G329: 2016-12-31
F330: 2017 | G330: 2017-12-31
F331: 2018 | G331: 2018-12-31
F332: 2019 | G332: 2019-12-31
F333: 2020 | G333: 2020-12-31
... 6 more rows

Sheet Stock Price Graph
G1: Maximum Periods | I1: 500
G2: Start of Stock Price Graph | I2: ='Stock Price Graph'!K84 -> 1997-01-01 | M2: ='Python List'!L12 -> NG.L | N2: _Stock_Price | P2: =M2&N2 -> NG.L_Stock_Price | R2: ='Python List'!K7 -> ^GSPC | S2: =R2&"_Index_Price" -> ^GSPC_Index_Price | U2: ='Python List'!K8&"_Index_Price" -> ^SP500TR_Index_Price
G3: End of Stock Price Graph | I3: ='Dropdown Forms'!J12 -> 2026-01-01
B4: Transferred Data | L4: =_xlfn.SEQUENCE(,I1) -> 1 | M4: 2 | N4: 3 | O4: 4 | P4: 5 | Q4: 6 | R4: 7 | S4: 8 | T4: 9 | U4: 10 | V4: 11 | W4: 12 | X4: 13 | Y4: 14 | Z4: 15 | AA4: 16 | AB4: 17 | AC4: 18 | AD4: 19 | AE4: 20 | AF4: 21 | AG4: 22 | AH4: 23 | AI4: 24 | AJ4: 25 | AK4: 26 | AL4: 27 | AM4: 28 | AN4: 29 | AO4: 30 | AP4: 31 | AQ4: 32 | AR4: 33 | AS4: 34 | AT4: 35 | AU4: 36 | AV4: 37 | AW4: 38 | AX4: 39 | AY4: 40 | AZ4: 41 | BA4: 42 | BB4: 43 | BC4: 44 | BD4: 45 | BE4: 46 | BF4: 47 | BG4: 48 | BH4: 49 | BI4: 50 | BJ4: 51 | BK4: 52 | BL4: 53 | BM4: 54 | BN4: 55 | BO4: 56 | BP4: 57 | BQ4: 58 | BR4: 59 | BS4: 60 | BT4: 61 | BU4: 62 | BV4: 63 | BW4: 64 | BX4: 65 | BY4: 66 | BZ4: 67 | CA4: 68 | CB4: 69 | CC4: 70 | CD4: 71 | CE4: 72 | CF4: 73 | CG4: 74 | CH4: 75 | CI4: 76 | CJ4: 77 | CK4: 78 | CL4: 79 | CM4: 80 | CN4: 81 | CO4: 82 | CP4: 83 | CQ4: 84 | CR4: 85 | CS4: 86 | CT4: 87 | CU4: 88 | CV4: 89 | CW4: 90 | CX4: 91 | CY4: 92 | CZ4: 93 | DA4: 94 | DB4: 95 | DC4: 96 | DD4: 97 | DE4: 98 | DF4: 99 | DG4: 100 | DH4: 101 | DI4: 102 | DJ4: 103 | DK4: 104 | DL4: 105 | DM4: 106 | DN4: 107 | DO4: 108 | DP4: 109 | DQ4: 110 | DR4: 111 | DS4: 112 | DT4: 113 | DU4: 114 | DV4: 115 | DW4: 116 | DX4: 117 | DY4: 118 | DZ4: 119 | EA4: 120 | EB4: 121 | EC4: 122 | ED4: 123 | EE4: 124 | EF4: 125 | EG4: 126 | EH4: 127 | EI4: 128 | EJ4: 129 | EK4: 130 | EL4: 131 | EM4: 132 | EN4: 133 | EO4: 134 | EP4: 135 | EQ4: 136 | ER4: 137 | ES4: 138 | ET4: 139 | EU4: 140 | EV4: 141 | EW4: 142 | EX4: 143 | EY4: 144 | EZ4: 145 | FA4: 146 | FB4: 147 | FC4: 148 | FD4: 149 | FE4: 150 | FF4: 151 | FG4: 152 | FH4: 153 | FI4: 154 | FJ4: 155 | FK4: 156 | FL4: 157 | FM4: 158 | FN4: 159 | FO4: 160 | FP4: 161 | FQ4: 162 | FR4: 163 | FS4: 164 | FT4: 165 | FU4: 166 | FV4: 167 | FW4: 168 | FX4: 169 | FY4: 170 | FZ4: 171 | GA4: 172 | GB4: 173 | GC4: 174 | GD4: 175 | GE4: 176 | GF4: 177 | GG4: 178 | GH4: 179 | GI4: 180 | GJ4: 181 | GK4: 182 | GL4: 183 | GM4: 184 | GN4: 185 | GO4: 186 | GP4: 187 | GQ4: 188 | GR4: 189 | GS4: 190 | GT4: 191 | GU4: 192 | GV4: 193 | GW4: 194 | GX4: 195 | GY4: 196 | GZ4: 197 | HA4: 198 | HB4: 199 | HC4: 200 | HD4: 201 | HE4: 202 | HF4: 203 | HG4: 204 | HH4: 205 | HI4: 206 | HJ4: 207 | HK4: 208 | HL4: 209 | HM4: 210 | HN4: 211 | HO4: 212 | HP4: 213 | HQ4: 214 | HR4: 215 | HS4: 216 | HT4: 217 | HU4: 218 | HV4: 219 | HW4: 220 | HX4: 221 | HY4: 222 | HZ4: 223 | IA4: 224 | IB4: 225 | IC4: 226 | ID4: 227 | IE4: 228 | IF4: 229 | IG4: 230 | IH4: 231 | II4: 232 | IJ4: 233 | IK4: 234 | IL4: 235 | IM4: 236 | IN4: 237 | IO4: 238 | IP4: 239 | IQ4: 240 | IR4: 241 | IS4: 242 | IT4: 243 | IU4: 244 | IV4: 245 | IW4: 246 | IX4: 247 | IY4: 248 | IZ4: 249 | JA4: 250 | JB4: 251 | JC4: 252 | JD4: 253 | JE4: 254 | JF4: 255 | JG4: 256 | JH4: 257 | JI4: 258 | JJ4: 259 | JK4: 260 | JL4: 261 | JM4: 262 | JN4: 263 | JO4: 264 | JP4: 265 | JQ4: 266 | JR4: 267 | JS4: 268 | JT4: 269 | JU4: 270 | JV4: 271 | JW4: 272 | JX4: 273 | JY4: 274 | JZ4: 275 | KA4: 276 | KB4: 277 | KC4: 278 | KD4: 279 | KE4: 280 | KF4: 281 | KG4: 282 | KH4: 283 | KI4: 284 | KJ4: 285 | KK4: 286 | KL4: 287 | KM4: 288 | KN4: 289 | KO4: 290 | KP4: 291 | KQ4: 292 | KR4: 293 | KS4: 294 | KT4: 295 | KU4: 296 | KV4: 297 | KW4: 298 | KX4: 299 | KY4: 300 | KZ4: 301 | LA4: 302 | LB4: 303 | LC4: 304 | LD4: 305 | LE4: 306 | LF4: 307 | LG4: 308 | LH4: 309 | LI4: 310 | LJ4: 311 | LK4: 312 | LL4: 313 | LM4: 314 | LN4: 315 | LO4: 316 | LP4: 317 | LQ4: 318 | LR4: 319 | LS4: 320 | LT4: 321 | LU4: 322 | LV4: 323 | LW4: 324 | LX4: 325 | LY4: 326 | LZ4: 327 | MA4: 328 | MB4: 329 | MC4: 330 | MD4: 331 | ME4: 332 | MF4: 333 | MG4: 334 | MH4: 335 | MI4: 336 | MJ4: 337 | MK4: 338 | ML4: 339 | MM4: 340 | MN4: 341 | MO4: 342 | MP4: 343 | MQ4: 344 | MR4: 345 | MS4: 346 | MT4: 347 | MU4: 348 | MV4: 349 | MW4: 350 | MX4: 351 | MY4: 352 | MZ4: 353 | NA4: 354 | NB4: 355 | NC4: 356 | ND4: 357 | NE4: 358 | NF4: 359 | NG4: 360 | NH4: 361 | NI4: 362 | NJ4: 363 | NK4: 364 | NL4: 365 | NM4: 366 | NN4: 367 | NO4: 368 | NP4: 369 | NQ4: 370 | NR4: 371 | NS4: 372 | NT4: 373 | NU4: 374 | NV4: 375 | NW4: 376 | NX4: 377 | NY4: 378 | NZ4: 379 | OA4: 380 | OB4: 381 | OC4: 382 | OD4: 383 | OE4: 384 | OF4: 385 | OG4: 386 | OH4: 387 | OI4: 388 | OJ4: 389 | OK4: 390 | OL4: 391 | OM4: 392 | ON4: 393 | OO4: 394 | OP4: 395 | OQ4: 396 | OR4: 397 | OS4: 398 | OT4: 399 | OU4: 400 | OV4: 401 | OW4: 402 | OX4: 403 | OY4: 404 | OZ4: 405 | PA4: 406 | PB4: 407 | PC4: 408 | PD4: 409 | PE4: 410 | PF4: 411 | PG4: 412 | PH4: 413 | PI4: 414 | PJ4: 415 | PK4: 416 | PL4: 417 | PM4: 418 | PN4: 419 | PO4: 420 | PP4: 421 | PQ4: 422 | PR4: 423 | PS4: 424 | PT4: 425 | PU4: 426 | PV4: 427 | PW4: 428 | PX4: 429 | PY4: 430 | PZ4: 431 | QA4: 432 | QB4: 433 | QC4: 434 | QD4: 435 | QE4: 436 | QF4: 437 | QG4: 438 | QH4: 439 | QI4: 440 | QJ4: 441 | QK4: 442 | QL4: 443 | QM4: 444 | QN4: 445 | QO4: 446 | QP4: 447 | QQ4: 448 | QR4: 449 | QS4: 450 | QT4: 451 | QU4: 452 | QV4: 453 | QW4: 454 | QX4: 455 | QY4: 456 | QZ4: 457 | RA4: 458 | RB4: 459 | RC4: 460 | RD4: 461 | RE4: 462 | RF4: 463 | RG4: 464 | RH4: 465 | RI4: 466 | RJ4: 467 | RK4: 468 | RL4: 469 | RM4: 470 | RN4: 471 | RO4: 472 | RP4: 473 | RQ4: 474 | RR4: 475 | RS4: 476 | RT4: 477 | RU4: 478 | RV4: 479 | RW4: 480 | RX4: 481 | RY4: 482 | RZ4: 483 | SA4: 484 | SB4: 485 | SC4: 486 | SD4: 487 | SE4: 488 | SF4: 489 | SG4: 490 | SH4: 491 | SI4: 492 | SJ4: 493 | SK4: 494 | SL4: 495 | SM4: 496 | SN4: 497 | SO4: 498 | SP4: 499 | SQ4: 500
D5: Stock Price Date | L5: 1985-01-01 | M5: =EDATE(L5,1) -> 1985-02-01 | N5: =EDATE(M5,1) -> 1985-03-01 | O5: 1985-04-01 | P5: 1985-05-01 | Q5: 1985-06-01 | R5: 1985-07-01 | S5: 1985-08-01 | T5: 1985-09-01 | U5: 1985-10-01 | V5: 1985-11-01 | W5: 1985-12-01 | X5: 1986-01-01 | Y5: 1986-02-01 | Z5: 1986-03-01 | AA5: 1986-04-01 | AB5: 1986-05-01 | AC5: 1986-06-01 | AD5: 1986-07-01 | AE5: 1986-08-01 | AF5: 1986-09-01 | AG5: 1986-10-01 | AH5: 1986-11-01 | AI5: 1986-12-01 | AJ5: 1987-01-01 | AK5: 1987-02-01 | AL5: 1987-03-01 | AM5: 1987-04-01 | AN5: 1987-05-01 | AO5: 1987-06-01 | AP5: 1987-07-01 | AQ5: 1987-08-01 | AR5: 1987-09-01 | AS5: 1987-10-01 | AT5: 1987-11-01 | AU5: 1987-12-01 | AV5: 1988-01-01 | AW5: 1988-02-01 | AX5: 1988-03-01 | AY5: 1988-04-01 | AZ5: 1988-05-01 | BA5: 1988-06-01 | BB5: 1988-07-01 | BC5: 1988-08-01 | BD5: 1988-09-01 | BE5: 1988-10-01 | BF5: 1988-11-01 | BG5: 1988-12-01 | BH5: 1989-01-01 | BI5: 1989-02-01 | BJ5: 1989-03-01 | BK5: 1989-04-01 | BL5: 1989-05-01 | BM5: 1989-06-01 | BN5: 1989-07-01 | BO5: 1989-08-01 | BP5: 1989-09-01 | BQ5: 1989-10-01 | BR5: 1989-11-01 | BS5: 1989-12-01 | BT5: 1990-01-01 | BU5: 1990-02-01 | BV5: 1990-03-01 | BW5: 1990-04-01 | BX5: 1990-05-01 | BY5: 1990-06-01 | BZ5: =EDATE(BY5,1) -> 1990-07-01 | CA5: 1990-08-01 | CB5: 1990-09-01 | CC5: 1990-10-01 | CD5: 1990-11-01 | CE5: 1990-12-01 | CF5: 1991-01-01 | CG5: 1991-02-01 | CH5: 1991-03-01 | CI5: 1991-04-01 | CJ5: 1991-05-01 | CK5: 1991-06-01 | CL5: 1991-07-01 | CM5: 1991-08-01 | CN5: 1991-09-01 | CO5: 1991-10-01 | CP5: 1991-11-01 | CQ5: 1991-12-01 | CR5: 1992-01-01 | CS5: 1992-02-01 | CT5: 1992-03-01 | CU5: 1992-04-01 | CV5: 1992-05-01 | CW5: 1992-06-01 | CX5: 1992-07-01 | CY5: 1992-08-01 | CZ5: 1992-09-01 | DA5: 1992-10-01 | DB5: 1992-11-01 | DC5: 1992-12-01 | DD5: 1993-01-01 | DE5: 1993-02-01 | DF5: 1993-03-01 | DG5: 1993-04-01 | DH5: 1993-05-01 | DI5: 1993-06-01 | DJ5: 1993-07-01 | DK5: 1993-08-01 | DL5: 1993-09-01 | DM5: 1993-10-01 | DN5: 1993-11-01 | DO5: 1993-12-01 | DP5: 1994-01-01 | DQ5: 1994-02-01 | DR5: 1994-03-01 | DS5: 1994-04-01 | DT5: 1994-05-01 | DU5: 1994-06-01 | DV5: 1994-07-01 | DW5: 1994-08-01 | DX5: 1994-09-01 | DY5: 1994-10-01 | DZ5: 1994-11-01 | EA5: 1994-12-01 | EB5: 1995-01-01 | EC5: 1995-02-01 | ED5: 1995-03-01 | EE5: 1995-04-01 | EF5: 1995-05-01 | EG5: 1995-06-01 | EH5: 1995-07-01 | EI5: 1995-08-01 | EJ5: 1995-09-01 | EK5: 1995-10-01 | EL5: =EDATE(EK5,1) -> 1995-11-01 | EM5: 1995-12-01 | EN5: 1996-01-01 | EO5: 1996-02-01 | EP5: 1996-03-01 | EQ5: 1996-04-01 | ER5: 1996-05-01 | ES5: 1996-06-01 | ET5: 1996-07-01 | EU5: 1996-08-01 | EV5: 1996-09-01 | EW5: 1996-10-01 | EX5: 1996-11-01 | EY5: 1996-12-01 | EZ5: 1997-01-01 | FA5: 1997-02-01 | FB5: 1997-03-01 | FC5: 1997-04-01 | FD5: 1997-05-01 | FE5: 1997-06-01 | FF5: 1997-07-01 | FG5: 1997-08-01 | FH5: 1997-09-01 | FI5: 1997-10-01 | FJ5: 1997-11-01 | FK5: 1997-12-01 | FL5: 1998-01-01 | FM5: 1998-02-01 | FN5: 1998-03-01 | FO5: 1998-04-01 | FP5: 1998-05-01 | FQ5: 1998-06-01 | FR5: 1998-07-01 | FS5: 1998-08-01 | FT5: 1998-09-01 | FU5: 1998-10-01 | FV5: 1998-11-01 | FW5: 1998-12-01 | FX5: 1999-01-01 | FY5: 1999-02-01 | FZ5: 1999-03-01 | GA5: 1999-04-01 | GB5: 1999-05-01 | GC5: 1999-06-01 | GD5: 1999-07-01 | GE5: 1999-08-01 | GF5: 1999-09-01 | GG5: 1999-10-01 | GH5: 1999-11-01 | GI5: 1999-12-01 | GJ5: 2000-01-01 | GK5: 2000-02-01 | GL5: 2000-03-01 | GM5: 2000-04-01 | GN5: 2000-05-01 | GO5: 2000-06-01 | GP5: 2000-07-01 | GQ5: 2000-08-01 | GR5: 2000-09-01 | GS5: 2000-10-01 | GT5: 2000-11-01 | GU5: 2000-12-01 | GV5: 2001-01-01 | GW5: 2001-02-01 | GX5: =EDATE(GW5,1) -> 2001-03-01 | GY5: 2001-04-01 | GZ5: 2001-05-01 | HA5: 2001-06-01 | HB5: 2001-07-01 | HC5: 2001-08-01 | HD5: 2001-09-01 | HE5: 2001-10-01 | HF5: 2001-11-01 | HG5: 2001-12-01 | HH5: 2002-01-01 | HI5: 2002-02-01 | HJ5: 2002-03-01 | HK5: 2002-04-01 | HL5: 2002-05-01 | HM5: 2002-06-01 | HN5: 2002-07-01 | HO5: 2002-08-01 | HP5: 2002-09-01 | HQ5: 2002-10-01 | HR5: 2002-11-01 | HS5: 2002-12-01 | HT5: 2003-01-01 | HU5: 2003-02-01 | HV5: 2003-03-01 | HW5: 2003-04-01 | HX5: 2003-05-01 | HY5: 2003-06-01 | HZ5: 2003-07-01 | IA5: 2003-08-01 | IB5: 2003-09-01 | IC5: 2003-10-01 | ID5: 2003-11-01 | IE5: 2003-12-01 | IF5: 2004-01-01 | IG5: 2004-02-01 | IH5: 2004-03-01 | II5: 2004-04-01 | IJ5: 2004-05-01 | IK5: 2004-06-01 | IL5: 2004-07-01 | IM5: 2004-08-01 | IN5: 2004-09-01 | IO5: 2004-10-01 | IP5: 2004-11-01 | IQ5: 2004-12-01 | IR5: 2005-01-01 | IS5: 2005-02-01 | IT5: 2005-03-01 | IU5: 2005-04-01 | IV5: 2005-05-01 | IW5: 2005-06-01 | IX5: 2005-07-01 | IY5: 2005-08-01 | IZ5: 2005-09-01 | JA5: 2005-10-01 | JB5: 2005-11-01 | JC5: 2005-12-01 | JD5: 2006-01-01 | JE5: 2006-02-01 | JF5: 2006-03-01 | JG5: 2006-04-01 | JH5: 2006-05-01 | JI5: 2006-06-01 | JJ5: =EDATE(JI5,1) -> 2006-07-01 | JK5: 2006-08-01 | JL5: 2006-09-01 | JM5: 2006-10-01 | JN5: 2006-11-01 | JO5: 2006-12-01 | JP5: 2007-01-01 | JQ5: 2007-02-01 | JR5: 2007-03-01 | JS5: 2007-04-01 | JT5: 2007-05-01 | JU5: 2007-06-01 | JV5: 2007-07-01 | JW5: 2007-08-01 | JX5: 2007-09-01 | JY5: 2007-10-01 | JZ5: 2007-11-01 | KA5: 2007-12-01 | KB5: 2008-01-01 | KC5: 2008-02-01 | KD5: 2008-03-01 | KE5: 2008-04-01 | KF5: 2008-05-01 | KG5: 2008-06-01 | KH5: 2008-07-01 | KI5: 2008-08-01 | KJ5: 2008-09-01 | KK5: 2008-10-01 | KL5: 2008-11-01 | KM5: 2008-12-01 | KN5: 2009-01-01 | KO5: 2009-02-01 | KP5: 2009-03-01 | KQ5: 2009-04-01 | KR5: 2009-05-01 | KS5: 2009-06-01 | KT5: 2009-07-01 | KU5: 2009-08-01 | KV5: 2009-09-01 | KW5: 2009-10-01 | KX5: 2009-11-01 | KY5: 2009-12-01 | KZ5: 2010-01-01 | LA5: 2010-02-01 | LB5: 2010-03-01 | LC5: 2010-04-01 | LD5: 2010-05-01 | LE5: 2010-06-01 | LF5: 2010-07-01 | LG5: 2010-08-01 | LH5: 2010-09-01 | LI5: 2010-10-01 | LJ5: 2010-11-01 | LK5: 2010-12-01 | LL5: 2011-01-01 | LM5: 2011-02-01 | LN5: 2011-03-01 | LO5: 2011-04-01 | LP5: 2011-05-01 | LQ5: 2011-06-01 | LR5: 2011-07-01 | LS5: 2011-08-01 | LT5: 2011-09-01 | LU5: 2011-10-01 | LV5: =EDATE(LU5,1) -> 2011-11-01 | LW5: 2011-12-01 | LX5: 2012-01-01 | LY5: 2012-02-01 | LZ5: 2012-03-01 | MA5: 2012-04-01 | MB5: 2012-05-01 | MC5: 2012-06-01 | MD5: 2012-07-01 | ME5: 2012-08-01 | MF5: 2012-09-01 | MG5: 2012-10-01 | MH5: 2012-11-01 | MI5: 2012-12-01 | MJ5: 2013-01-01 | MK5: 2013-02-01 | ML5: 2013-03-01 | MM5: 2013-04-01 | MN5: 2013-05-01 | MO5: 2013-06-01 | MP5: 2013-07-01 | MQ5: 2013-08-01 | MR5: 2013-09-01 | MS5: 2013-10-01 | MT5: 2013-11-01 | MU5: 2013-12-01 | MV5: 2014-01-01 | MW5: 2014-02-01 | MX5: 2014-03-01 | MY5: 2014-04-01 | MZ5: 2014-05-01 | NA5: 2014-06-01 | NB5: 2014-07-01 | NC5: 2014-08-01 | ND5: 2014-09-01 | NE5: 2014-10-01 | NF5: 2014-11-01 | NG5: 2014-12-01 | NH5: 2015-01-01 | NI5: 2015-02-01 | NJ5: 2015-03-01 | NK5: 2015-04-01 | NL5: 2015-05-01 | NM5: 2015-06-01 | NN5: 2015-07-01 | NO5: 2015-08-01 | NP5: 2015-09-01 | NQ5: 2015-10-01 | NR5: 2015-11-01 | NS5: 2015-12-01 | NT5: 2016-01-01 | NU5: 2016-02-01 | NV5: 2016-03-01 | NW5: 2016-04-01 | NX5: 2016-05-01 | NY5: 2016-06-01 | NZ5: 2016-07-01 | OA5: 2016-08-01 | OB5: 2016-09-01 | OC5: 2016-10-01 | OD5: 2016-11-01 | OE5: 2016-12-01 | OF5: 2017-01-01 | OG5: 2017-02-01 | OH5: =EDATE(OG5,1) -> 2017-03-01 | OI5: 2017-04-01 | OJ5: 2017-05-01 | OK5: 2017-06-01 | OL5: 2017-07-01 | OM5: 2017-08-01 | ON5: 2017-09-01 | OO5: 2017-10-01 | OP5: 2017-11-01 | OQ5: 2017-12-01 | OR5: 2018-01-01 | OS5: 2018-02-01 | OT5: 2018-03-01 | OU5: 2018-04-01 | OV5: 2018-05-01 | OW5: 2018-06-01 | OX5: 2018-07-01 | OY5: 2018-08-01 | OZ5: 2018-09-01 | PA5: 2018-10-01 | PB5: 2018-11-01 | PC5: 2018-12-01 | PD5: 2019-01-01 | PE5: 2019-02-01 | PF5: 2019-03-01 | PG5: 2019-04-01 | PH5: 2019-05-01 | PI5: 2019-06-01 | PJ5: 2019-07-01 | PK5: 2019-08-01 | PL5: 2019-09-01 | PM5: 2019-10-01 | PN5: 2019-11-01 | PO5: 2019-12-01 | PP5: 2020-01-01 | PQ5: 2020-02-01 | PR5: 2020-03-01 | PS5: 2020-04-01 | PT5: 2020-05-01 | PU5: 2020-06-01 | PV5: 2020-07-01 | PW5: 2020-08-01 | PX5: 2020-09-01 | PY5: 2020-10-01 | PZ5: 2020-11-01 | QA5: 2020-12-01 | QB5: 2021-01-01 | QC5: 2021-02-01 | QD5: 2021-03-01 | QE5: 2021-04-01 | QF5: 2021-05-01 | QG5: 2021-06-01 | QH5: 2021-07-01 | QI5: 2021-08-01 | QJ5: 2021-09-01 | QK5: 2021-10-01 | QL5: 2021-11-01 | QM5: 2021-12-01 | QN5: 2022-01-01 | QO5: 2022-02-01 | QP5: 2022-03-01 | QQ5: 2022-04-01 | QR5: 2022-05-01 | QS5: 2022-06-01 | QT5: =EDATE(QS5,1) -> 2022-07-01 | QU5: 2022-08-01 | QV5: 2022-09-01 | QW5: 2022-10-01 | QX5: 2022-11-01 | QY5: 2022-12-01 | QZ5: 2023-01-01 | RA5: 2023-02-01 | RB5: 2023-03-01 | RC5: 2023-04-01 | RD5: 2023-05-01 | RE5: 2023-06-01 | RF5: 2023-07-01 | RG5: 2023-08-01 | RH5: 2023-09-01 | RI5: 2023-10-01 | RJ5: 2023-11-01 | RK5: 2023-12-01 | RL5: 2024-01-01 | RM5: 2024-02-01 | RN5: 2024-03-01 | RO5: 2024-04-01 | RP5: 2024-05-01 | RQ5: 2024-06-01 | RR5: 2024-07-01 | RS5: 2024-08-01 | RT5: 2024-09-01 | RU5: 2024-10-01 | RV5: 2024-11-01 | RW5: 2024-12-01 | RX5: 2025-01-01 | RY5: 2025-02-01 | RZ5: 2025-03-01 | SA5: 2025-04-01 | SB5: 2025-05-01 | SC5: 2025-06-01 | SD5: 2025-07-01 | SE5: 2025-08-01 | SF5: 2025-09-01 | SG5: 2025-10-01 | SH5: 2025-11-01 | SI5: 2025-12-01 | SJ5: 2026-01-01 | SK5: 2026-02-01 | SL5: 2026-03-01 | SM5: 2026-04-01 | SN5: 2026-05-01 | SO5: 2026-06-01 | SP5: 2026-07-01 | SQ5: 2026-08-01
D6: Closing Price | L6: =_xlfn.XLOOKUP(L5,INDIRECT($P$2&"!A:A"),INDIRECT($P$2&"!C:C"),FALSE,0) -> FALSE | M6: =_xlfn.XLOOKUP(M5,INDIRECT($P$2&"!A:A"),INDIRECT($P$2&"!C:C"),FALSE,0) -> FALSE | N6: =_xlfn.XLOOKUP(N5,INDIRECT($P$2&"!A:A"),INDIRECT($P$2&"!C:C"),FALSE,0) -> FALSE | O6: =_xlfn.XLOOKUP(O5,INDIRECT($P$2&"!A:A"),INDIRECT($P$2&"!C:C"),FALSE,0) -> FALSE | P6: =_xlfn.XLOOKUP(P5,INDIRECT($P$2&"!A:A"),INDIRECT($P$2&"!C:C"),FALSE,0) -> FALSE | Q6: =_xlfn.XLOOKUP(Q5,INDIRECT($P$2&"!A:A"),INDIRECT($P$2&"!C:C"),FALSE,0) -> FALSE | R6: =_xlfn.XLOOKUP(R5,INDIRECT($P$2&"!A:A"),INDIRECT($P$2&"!C:C"),FALSE,0) -> FALSE | S6: =_xlfn.XLOOKUP(S5,INDIRECT($P$2&"!A:A"),INDIRECT($P$2&"!C:C"),FALSE,0) -> FALSE | T6: =_xlfn.XLOOKUP(T5,INDIRECT($P$2&"!A:A"),INDIRECT($P$2&"!C:C"),FALSE,0) -> FALSE | U6: =_xlfn.XLOOKUP(U5,INDIRECT($P$2&"!A:A"),INDIRECT($P$2&"!C:C"),FALSE,0) -> FALSE | V6: =_xlfn.XLOOKUP(V5,INDIRECT($P$2&"!A:A"),INDIRECT($P$2&"!C:C"),FALSE,0) -> FALSE | W6: =_xlfn.XLOOKUP(W5,INDIRECT($P$2&"!A:A"),INDIRECT($P$2&"!C:C"),FALSE,0) -> FALSE | X6: =_xlfn.XLOOKUP(X5,INDIRECT($P$2&"!A:A"),INDIRECT($P$2&"!C:C"),FALSE,0) -> FALSE | Y6: =_xlfn.XLOOKUP(Y5,INDIRECT($P$2&"!A:A"),INDIRECT($P$2&"!C:C"),FALSE,0) -> FALSE | Z6: =_xlfn.XLOOKUP(Z5,INDIRECT($P$2&"!A:A"),INDIRECT($P$2&"!C:C"),FALSE,0) -> FALSE | AA6: =_xlfn.XLOOKUP(AA5,INDIRECT($P$2&"!A:A"),INDIRECT($P$2&"!C:C"),FALSE,0) -> FALSE | AB6: =_xlfn.XLOOKUP(AB5,INDIRECT($P$2&"!A:A"),INDIRECT($P$2&"!C:C"),FALSE,0) -> FALSE | AC6: =_xlfn.XLOOKUP(AC5,INDIRECT($P$2&"!A:A"),INDIRECT($P$2&"!C:C"),FALSE,0) -> FALSE | AD6: =_xlfn.XLOOKUP(AD5,INDIRECT($P$2&"!A:A"),INDIRECT($P$2&"!C:C"),FALSE,0) -> FALSE | AE6: =_xlfn.XLOOKUP(AE5,INDIRECT($P$2&"!A:A"),INDIRECT($P$2&"!C:C"),FALSE,0) -> FALSE | AF6: =_xlfn.XLOOKUP(AF5,INDIRECT($P$2&"!A:A"),INDIRECT($P$2&"!C:C"),FALSE,0) -> FALSE | AG6: =_xlfn.XLOOKUP(AG5,INDIRECT($P$2&"!A:A"),INDIRECT($P$2&"!C:C"),FALSE,0) -> FALSE | AH6: =_xlfn.XLOOKUP(AH5,INDIRECT($P$2&"!A:A"),INDIRECT($P$2&"!C:C"),FALSE,0) -> FALSE | AI6: =_xlfn.XLOOKUP(AI5,INDIRECT($P$2&"!A:A"),INDIRECT($P$2&"!C:C"),FALSE,0) -> FALSE | AJ6: =_xlfn.XLOOKUP(AJ5,INDIRECT($P$2&"!A:A"),INDIRECT($P$2&"!C:C"),FALSE,0) -> FALSE | AK6: =_xlfn.XLOOKUP(AK5,INDIRECT($P$2&"!A:A"),INDIRECT($P$2&"!C:C"),FALSE,0) -> FALSE | AL6: =_xlfn.XLOOKUP(AL5,INDIRECT($P$2&"!A:A"),INDIRECT($P$2&"!C:C"),FALSE,0) -> FALSE | AM6: =_xlfn.XLOOKUP(AM5,INDIRECT($P$2&"!A:A"),INDIRECT($P$2&"!C:C"),FALSE,0) -> FALSE | AN6: =_xlfn.XLOOKUP(AN5,INDIRECT($P$2&"!A:A"),INDIRECT($P$2&"!C:C"),FALSE,0) -> FALSE | AO6: =_xlfn.XLOOKUP(AO5,INDIRECT($P$2&"!A:A"),INDIRECT($P$2&"!C:C"),FALSE,0) -> FALSE | AP6: =_xlfn.XLOOKUP(AP5,INDIRECT($P$2&"!A:A"),INDIRECT($P$2&"!C:C"),FALSE,0) -> FALSE | AQ6: =_xlfn.XLOOKUP(AQ5,INDIRECT($P$2&"!A:A"),INDIRECT($P$2&"!C:C"),FALSE,0) -> FALSE | AR6: =_xlfn.XLOOKUP(AR5,INDIRECT($P$2&"!A:A"),INDIRECT($P$2&"!C:C"),FALSE,0) -> FALSE | AS6: =_xlfn.XLOOKUP(AS5,INDIRECT($P$2&"!A:A"),INDIRECT($P$2&"!C:C"),FALSE,0) -> FALSE | AT6: =_xlfn.XLOOKUP(AT5,INDIRECT($P$2&"!A:A"),INDIRECT($P$2&"!C:C"),FALSE,0) -> FALSE | AU6: =_xlfn.XLOOKUP(AU5,INDIRECT($P$2&"!A:A"),INDIRECT($P$2&"!C:C"),FALSE,0) -> FALSE | AV6: =_xlfn.XLOOKUP(AV5,INDIRECT($P$2&"!A:A"),INDIRECT($P$2&"!C:C"),FALSE,0) -> FALSE | AW6: =_xlfn.XLOOKUP(AW5,INDIRECT($P$2&"!A:A"),INDIRECT($P$2&"!C:C"),FALSE,0) -> FALSE | AX6: =_xlfn.XLOOKUP(AX5,INDIRECT($P$2&"!A:A"),INDIRECT($P$2&"!C:C"),FALSE,0) -> FALSE | AY6: =_xlfn.XLOOKUP(AY5,INDIRECT($P$2&"!A:A"),INDIRECT($P$2&"!C:C"),FALSE,0) -> FALSE | AZ6: =_xlfn.XLOOKUP(AZ5,INDIRECT($P$2&"!A:A"),INDIRECT($P$2&"!C:C"),FALSE,0) -> FALSE | BA6: =_xlfn.XLOOKUP(BA5,INDIRECT($P$2&"!A:A"),INDIRECT($P$2&"!C:C"),FALSE,0) -> FALSE | BB6: =_xlfn.XLOOKUP(BB5,INDIRECT($P$2&"!A:A"),INDIRECT($P$2&"!C:C"),FALSE,0) -> FALSE | BC6: =_xlfn.XLOOKUP(BC5,INDIRECT($P$2&"!A:A"),INDIRECT($P$2&"!C:C"),FALSE,0) -> FALSE | BD6: =_xlfn.XLOOKUP(BD5,INDIRECT($P$2&"!A:A"),INDIRECT($P$2&"!C:C"),FALSE,0) -> FALSE | BE6: =_xlfn.XLOOKUP(BE5,INDIRECT($P$2&"!A:A"),INDIRECT($P$2&"!C:C"),FALSE,0) -> FALSE | BF6: =_xlfn.XLOOKUP(BF5,INDIRECT($P$2&"!A:A"),INDIRECT($P$2&"!C:C"),FALSE,0) -> FALSE | BG6: =_xlfn.XLOOKUP(BG5,INDIRECT($P$2&"!A:A"),INDIRECT($P$2&"!C:C"),FALSE,0) -> FALSE | BH6: =_xlfn.XLOOKUP(BH5,INDIRECT($P$2&"!A:A"),INDIRECT($P$2&"!C:C"),FALSE,0) -> FALSE | BI6: =_xlfn.XLOOKUP(BI5,INDIRECT($P$2&"!A:A"),INDIRECT($P$2&"!C:C"),FALSE,0) -> FALSE | BJ6: =_xlfn.XLOOKUP(BJ5,INDIRECT($P$2&"!A:A"),INDIRECT($P$2&"!C:C"),FALSE,0) -> FALSE | BK6: =_xlfn.XLOOKUP(BK5,INDIRECT($P$2&"!A:A"),INDIRECT($P$2&"!C:C"),FALSE,0) -> FALSE | BL6: =_xlfn.XLOOKUP(BL5,INDIRECT($P$2&"!A:A"),INDIRECT($P$2&"!C:C"),FALSE,0) -> FALSE | BM6: =_xlfn.XLOOKUP(BM5,INDIRECT($P$2&"!A:A"),INDIRECT($P$2&"!C:C"),FALSE,0) -> FALSE | BN6: =_xlfn.XLOOKUP(BN5,INDIRECT($P$2&"!A:A"),INDIRECT($P$2&"!C:C"),FALSE,0) -> FALSE | BO6: =_xlfn.XLOOKUP(BO5,INDIRECT($P$2&"!A:A"),INDIRECT($P$2&"!C:C"),FALSE,0) -> FALSE | BP6: =_xlfn.XLOOKUP(BP5,INDIRECT($P$2&"!A:A"),INDIRECT($P$2&"!C:C"),FALSE,0) -> FALSE | BQ6: =_xlfn.XLOOKUP(BQ5,INDIRECT($P$2&"!A:A"),INDIRECT($P$2&"!C:C"),FALSE,0) -> FALSE | BR6: =_xlfn.XLOOKUP(BR5,INDIRECT($P$2&"!A:A"),INDIRECT($P$2&"!C:C"),FALSE,0) -> FALSE | BS6: =_xlfn.XLOOKUP(BS5,INDIRECT($P$2&"!A:A"),INDIRECT($P$2&"!C:C"),FALSE,0) -> FALSE | BT6: =_xlfn.XLOOKUP(BT5,INDIRECT($P$2&"!A:A"),INDIRECT($P$2&"!C:C"),FALSE,0) -> FALSE | BU6: =_xlfn.XLOOKUP(BU5,INDIRECT($P$2&"!A:A"),INDIRECT($P$2&"!C:C"),FALSE,0) -> FALSE | BV6: =_xlfn.XLOOKUP(BV5,INDIRECT($P$2&"!A:A"),INDIRECT($P$2&"!C:C"),FALSE,0) -> FALSE | BW6: =_xlfn.XLOOKUP(BW5,INDIRECT($P$2&"!A:A"),INDIRECT($P$2&"!C:C"),FALSE,0) -> FALSE | BX6: =_xlfn.XLOOKUP(BX5,INDIRECT($P$2&"!A:A"),INDIRECT($P$2&"!C:C"),FALSE,0) -> FALSE | BY6: =_xlfn.XLOOKUP(BY5,INDIRECT($P$2&"!A:A"),INDIRECT($P$2&"!C:C"),FALSE,0) -> FALSE | BZ6: =_xlfn.XLOOKUP(BZ5,INDIRECT($P$2&"!A:A"),INDIRECT($P$2&"!C:C"),FALSE,0) -> FALSE | CA6: =_xlfn.XLOOKUP(CA5,INDIRECT($P$2&"!A:A"),INDIRECT($P$2&"!C:C"),FALSE,0) -> FALSE | CB6: =_xlfn.XLOOKUP(CB5,INDIRECT($P$2&"!A:A"),INDIRECT($P$2&"!C:C"),FALSE,0) -> FALSE | CC6: =_xlfn.XLOOKUP(CC5,INDIRECT($P$2&"!A:A"),INDIRECT($P$2&"!C:C"),FALSE,0) -> FALSE | CD6: =_xlfn.XLOOKUP(CD5,INDIRECT($P$2&"!A:A"),INDIRECT($P$2&"!C:C"),FALSE,0) -> FALSE | CE6: =_xlfn.XLOOKUP(CE5,INDIRECT($P$2&"!A:A"),INDIRECT($P$2&"!C:C"),FALSE,0) -> FALSE | CF6: =_xlfn.XLOOKUP(CF5,INDIRECT($P$2&"!A:A"),INDIRECT($P$2&"!C:C"),FALSE,0) -> FALSE | CG6: =_xlfn.XLOOKUP(CG5,INDIRECT($P$2&"!A:A"),INDIRECT($P$2&"!C:C"),FALSE,0) -> FALSE | CH6: =_xlfn.XLOOKUP(CH5,INDIRECT($P$2&"!A:A"),INDIRECT($P$2&"!C:C"),FALSE,0) -> FALSE | CI6: =_xlfn.XLOOKUP(CI5,INDIRECT($P$2&"!A:A"),INDIRECT($P$2&"!C:C"),FALSE,0) -> FALSE | CJ6: =_xlfn.XLOOKUP(CJ5,INDIRECT($P$2&"!A:A"),INDIRECT($P$2&"!C:C"),FALSE,0) -> FALSE | CK6: =_xlfn.XLOOKUP(CK5,INDIRECT($P$2&"!A:A"),INDIRECT($P$2&"!C:C"),FALSE,0) -> FALSE | CL6: =_xlfn.XLOOKUP(CL5,INDIRECT($P$2&"!A:A"),INDIRECT($P$2&"!C:C"),FALSE,0) -> FALSE | CM6: =_xlfn.XLOOKUP(CM5,INDIRECT($P$2&"!A:A"),INDIRECT($P$2&"!C:C"),FALSE,0) -> FALSE | CN6: =_xlfn.XLOOKUP(CN5,INDIRECT($P$2&"!A:A"),INDIRECT($P$2&"!C:C"),FALSE,0) -> FALSE | CO6: =_xlfn.XLOOKUP(CO5,INDIRECT($P$2&"!A:A"),INDIRECT($P$2&"!C:C"),FALSE,0) -> FALSE | CP6: =_xlfn.XLOOKUP(CP5,INDIRECT($P$2&"!A:A"),INDIRECT($P$2&"!C:C"),FALSE,0) -> FALSE | CQ6: =_xlfn.XLOOKUP(CQ5,INDIRECT($P$2&"!A:A"),INDIRECT($P$2&"!C:C"),FALSE,0) -> FALSE | CR6: =_xlfn.XLOOKUP(CR5,INDIRECT($P$2&"!A:A"),INDIRECT($P$2&"!C:C"),FALSE,0) -> FALSE | CS6: =_xlfn.XLOOKUP(CS5,INDIRECT($P$2&"!A:A"),INDIRECT($P$2&"!C:C"),FALSE,0) -> FALSE | CT6: =_xlfn.XLOOKUP(CT5,INDIRECT($P$2&"!A:A"),INDIRECT($P$2&"!C:C"),FALSE,0) -> FALSE | CU6: =_xlfn.XLOOKUP(CU5,INDIRECT($P$2&"!A:A"),INDIRECT($P$2&"!C:C"),FALSE,0) -> FALSE | CV6: =_xlfn.XLOOKUP(CV5,INDIRECT($P$2&"!A:A"),INDIRECT($P$2&"!C:C"),FALSE,0) -> FALSE | CW6: =_xlfn.XLOOKUP(CW5,INDIRECT($P$2&"!A:A"),INDIRECT($P$2&"!C:C"),FALSE,0) -> FALSE | CX6: =_xlfn.XLOOKUP(CX5,INDIRECT($P$2&"!A:A"),INDIRECT($P$2&"!C:C"),FALSE,0) -> FALSE | CY6: =_xlfn.XLOOKUP(CY5,INDIRECT($P$2&"!A:A"),INDIRECT($P$2&"!C:C"),FALSE,0) -> FALSE | CZ6: =_xlfn.XLOOKUP(CZ5,INDIRECT($P$2&"!A:A"),INDIRECT($P$2&"!C:C"),FALSE,0) -> FALSE | DA6: =_xlfn.XLOOKUP(DA5,INDIRECT($P$2&"!A:A"),INDIRECT($P$2&"!C:C"),FALSE,0) -> FALSE | DB6: =_xlfn.XLOOKUP(DB5,INDIRECT($P$2&"!A:A"),INDIRECT($P$2&"!C:C"),FALSE,0) -> FALSE | DC6: =_xlfn.XLOOKUP(DC5,INDIRECT($P$2&"!A:A"),INDIRECT($P$2&"!C:C"),FALSE,0) -> FALSE | DD6: =_xlfn.XLOOKUP(DD5,INDIRECT($P$2&"!A:A"),INDIRECT($P$2&"!C:C"),FALSE,0) -> FALSE | DE6: =_xlfn.XLOOKUP(DE5,INDIRECT($P$2&"!A:A"),INDIRECT($P$2&"!C:C"),FALSE,0) -> FALSE | DF6: =_xlfn.XLOOKUP(DF5,INDIRECT($P$2&"!A:A"),INDIRECT($P$2&"!C:C"),FALSE,0) -> FALSE | DG6: =_xlfn.XLOOKUP(DG5,INDIRECT($P$2&"!A:A"),INDIRECT($P$2&"!C:C"),FALSE,0) -> FALSE | DH6: =_xlfn.XLOOKUP(DH5,INDIRECT($P$2&"!A:A"),INDIRECT($P$2&"!C:C"),FALSE,0) -> FALSE | DI6: =_xlfn.XLOOKUP(DI5,INDIRECT($P$2&"!A:A"),INDIRECT($P$2&"!C:C"),FALSE,0) -> FALSE | DJ6: =_xlfn.XLOOKUP(DJ5,INDIRECT($P$2&"!A:A"),INDIRECT($P$2&"!C:C"),FALSE,0) -> FALSE | DK6: =_xlfn.XLOOKUP(DK5,INDIRECT($P$2&"!A:A"),INDIRECT($P$2&"!C:C"),FALSE,0) -> FALSE | DL6: =_xlfn.XLOOKUP(DL5,INDIRECT($P$2&"!A:A"),INDIRECT($P$2&"!C:C"),FALSE,0) -> FALSE | DM6: =_xlfn.XLOOKUP(DM5,INDIRECT($P$2&"!A:A"),INDIRECT($P$2&"!C:C"),FALSE,0) -> FALSE | DN6: =_xlfn.XLOOKUP(DN5,INDIRECT($P$2&"!A:A"),INDIRECT($P$2&"!C:C"),FALSE,0) -> FALSE | DO6: =_xlfn.XLOOKUP(DO5,INDIRECT($P$2&"!A:A"),INDIRECT($P$2&"!C:C"),FALSE,0) -> FALSE | DP6: =_xlfn.XLOOKUP(DP5,INDIRECT($P$2&"!A:A"),INDIRECT($P$2&"!C:C"),FALSE,0) -> FALSE | DQ6: =_xlfn.XLOOKUP(DQ5,INDIRECT($P$2&"!A:A"),INDIRECT($P$2&"!C:C"),FALSE,0) -> FALSE | DR6: =_xlfn.XLOOKUP(DR5,INDIRECT($P$2&"!A:A"),INDIRECT($P$2&"!C:C"),FALSE,0) -> FALSE | DS6: =_xlfn.XLOOKUP(DS5,INDIRECT($P$2&"!A:A"),INDIRECT($P$2&"!C:C"),FALSE,0) -> FALSE | DT6: =_xlfn.XLOOKUP(DT5,INDIRECT($P$2&"!A:A"),INDIRECT($P$2&"!C:C"),FALSE,0) -> FALSE | DU6: =_xlfn.XLOOKUP(DU5,INDIRECT($P$2&"!A:A"),INDIRECT($P$2&"!C:C"),FALSE,0) -> FALSE | DV6: =_xlfn.XLOOKUP(DV5,INDIRECT($P$2&"!A:A"),INDIRECT($P$2&"!C:C"),FALSE,0) -> FALSE | DW6: =_xlfn.XLOOKUP(DW5,INDIRECT($P$2&"!A:A"),INDIRECT($P$2&"!C:C"),FALSE,0) -> FALSE | DX6: =_xlfn.XLOOKUP(DX5,INDIRECT($P$2&"!A:A"),INDIRECT($P$2&"!C:C"),FALSE,0) -> FALSE | DY6: =_xlfn.XLOOKUP(DY5,INDIRECT($P$2&"!A:A"),INDIRECT($P$2&"!C:C"),FALSE,0) -> FALSE | DZ6: =_xlfn.XLOOKUP(DZ5,INDIRECT($P$2&"!A:A"),INDIRECT($P$2&"!C:C"),FALSE,0) -> FALSE | EA6: =_xlfn.XLOOKUP(EA5,INDIRECT($P$2&"!A:A"),INDIRECT($P$2&"!C:C"),FALSE,0) -> FALSE | EB6: =_xlfn.XLOOKUP(EB5,INDIRECT($P$2&"!A:A"),INDIRECT($P$2&"!C:C"),FALSE,0) -> FALSE | EC6: =_xlfn.XLOOKUP(EC5,INDIRECT($P$2&"!A:A"),INDIRECT($P$2&"!C:C"),FALSE,0) -> FALSE | ED6: =_xlfn.XLOOKUP(ED5,INDIRECT($P$2&"!A:A"),INDIRECT($P$2&"!C:C"),FALSE,0) -> FALSE | EE6: =_xlfn.XLOOKUP(EE5,INDIRECT($P$2&"!A:A"),INDIRECT($P$2&"!C:C"),FALSE,0) -> FALSE | EF6: =_xlfn.XLOOKUP(EF5,INDIRECT($P$2&"!A:A"),INDIRECT($P$2&"!C:C"),FALSE,0) -> FALSE | EG6: =_xlfn.XLOOKUP(EG5,INDIRECT($P$2&"!A:A"),INDIRECT($P$2&"!C:C"),FALSE,0) -> FALSE | EH6: =_xlfn.XLOOKUP(EH5,INDIRECT($P$2&"!A:A"),INDIRECT($P$2&"!C:C"),FALSE,0) -> FALSE | EI6: =_xlfn.XLOOKUP(EI5,INDIRECT($P$2&"!A:A"),INDIRECT($P$2&"!C:C"),FALSE,0) -> FALSE | EJ6: =_xlfn.XLOOKUP(EJ5,INDIRECT($P$2&"!A:A"),INDIRECT($P$2&"!C:C"),FALSE,0) -> FALSE | EK6: =_xlfn.XLOOKUP(EK5,INDIRECT($P$2&"!A:A"),INDIRECT($P$2&"!C:C"),FALSE,0) -> FALSE | EL6: =_xlfn.XLOOKUP(EL5,INDIRECT($P$2&"!A:A"),INDIRECT($P$2&"!C:C"),FALSE,0) -> FALSE | EM6: =_xlfn.XLOOKUP(EM5,INDIRECT($P$2&"!A:A"),INDIRECT($P$2&"!C:C"),FALSE,0) -> 258.6333923 | EN6: =_xlfn.XLOOKUP(EN5,INDIRECT($P$2&"!A:A"),INDIRECT($P$2&"!C:C"),FALSE,0) -> 260.5780029 | EO6: =_xlfn.XLOOKUP(EO5,INDIRECT($P$2&"!A:A"),INDIRECT($P$2&"!C:C"),FALSE,0) -> 253.4477997 | EP6: =_xlfn.XLOOKUP(EP5,INDIRECT($P$2&"!A:A"),INDIRECT($P$2&"!C:C"),FALSE,0) -> 252.4754944 | EQ6: =_xlfn.XLOOKUP(EQ5,INDIRECT($P$2&"!A:A"),INDIRECT($P$2&"!C:C"),FALSE,0) -> 265.7637024 | ER6: =_xlfn.XLOOKUP(ER5,INDIRECT($P$2&"!A:A"),INDIRECT($P$2&"!C:C"),FALSE,0) -> 235.9463043 | ES6: =_xlfn.XLOOKUP(ES5,INDIRECT($P$2&"!A:A"),INDIRECT($P$2&"!C:C"),FALSE,0) -> 221.0375977 | ET6: =_xlfn.XLOOKUP(ET5,INDIRECT($P$2&"!A:A"),INDIRECT($P$2&"!C:C"),FALSE,0) -> 228.1678009 | EU6: =_xlfn.XLOOKUP(EU5,INDIRECT($P$2&"!A:A"),INDIRECT($P$2&"!C:C"),FALSE,0) -> 225.5749969 | EV6: =_xlfn.XLOOKUP(EV5,INDIRECT($P$2&"!A:A"),INDIRECT($P$2&"!C:C"),FALSE,0) -> 221.0375977 | EW6: =_xlfn.XLOOKUP(EW5,INDIRECT($P$2&"!A:A"),INDIRECT($P$2&"!C:C"),FALSE,0) -> 234.6499023 | EX6: =_xlfn.XLOOKUP(EX5,INDIRECT($P$2&"!A:A"),INDIRECT($P$2&"!C:C"),FALSE,0) -> 253.4477997 | EY6: =_xlfn.XLOOKUP(EY5,INDIRECT($P$2&"!A:A"),INDIRECT($P$2&"!C:C"),FALSE,0) -> 253.4477997 | EZ6: =_xlfn.XLOOKUP(EZ5,INDIRECT($P$2&"!A:A"),INDIRECT($P$2&"!C:C"),FALSE,0) -> 270.3010864 | FA6: =_xlfn.XLOOKUP(FA5,INDIRECT($P$2&"!A:A"),INDIRECT($P$2&"!C:C"),FALSE,0) -> 269.0046997 | FB6: =_xlfn.XLOOKUP(FB5,INDIRECT($P$2&"!A:A"),INDIRECT($P$2&"!C:C"),FALSE,0) -> 271.5975037 | FC6: =_xlfn.XLOOKUP(FC5,INDIRECT($P$2&"!A:A"),INDIRECT($P$2&"!C:C"),FALSE,0) -> 289.7471924 | FD6: =_xlfn.XLOOKUP(FD5,INDIRECT($P$2&"!A:A"),INDIRECT($P$2&"!C:C"),FALSE,0) -> 293.6364136 | FE6: =_xlfn.XLOOKUP(FE5,INDIRECT($P$2&"!A:A"),INDIRECT($P$2&"!C:C"),FALSE,0) -> 284.561615 | FF6: =_xlfn.XLOOKUP(FF5,INDIRECT($P$2&"!A:A"),INDIRECT($P$2&"!C:C"),FALSE,0) -> 333.1769104 | FG6: =_xlfn.XLOOKUP(FG5,INDIRECT($P$2&"!A:A"),INDIRECT($P$2&"!C:C"),FALSE,0) -> 344.8446045 | FH6: =_xlfn.XLOOKUP(FH5,INDIRECT($P$2&"!A:A"),INDIRECT($P$2&"!C:C"),FALSE,0) -> 366.8835144 | FI6: =_xlfn.XLOOKUP(FI5,INDIRECT($P$2&"!A:A"),INDIRECT($P$2&"!C:C"),FALSE,0) -> 364.2907104 | FJ6: =_xlfn.XLOOKUP(FJ5,INDIRECT($P$2&"!A:A"),INDIRECT($P$2&"!C:C"),FALSE,0) -> 381.1440125 | FK6: =_xlfn.XLOOKUP(FK5,INDIRECT($P$2&"!A:A"),INDIRECT($P$2&"!C:C"),FALSE,0) -> 374.6619873 | FL6: =_xlfn.XLOOKUP(FL5,INDIRECT($P$2&"!A:A"),INDIRECT($P$2&"!C:C"),FALSE,0) -> 374.6619873 | FM6: =_xlfn.XLOOKUP(FM5,INDIRECT($P$2&"!A:A"),INDIRECT($P$2&"!C:C"),FALSE,0) -> 375.3948059 | FN6: =_xlfn.XLOOKUP(FN5,INDIRECT($P$2&"!A:A"),INDIRECT($P$2&"!C:C"),FALSE,0) -> 387.4677124 | FO6: =_xlfn.XLOOKUP(FO5,INDIRECT($P$2&"!A:A"),INDIRECT($P$2&"!C:C"),FALSE,0) -> 423.6908875 | FP6: =_xlfn.XLOOKUP(FP5,INDIRECT($P$2&"!A:A"),INDIRECT($P$2&"!C:C"),FALSE,0) -> 413.8118896 | FQ6: =_xlfn.XLOOKUP(FQ5,INDIRECT($P$2&"!A:A"),INDIRECT($P$2&"!C:C"),FALSE,0) -> 443.4476929 | FR6: =_xlfn.XLOOKUP(FR5,INDIRECT($P$2&"!A:A"),INDIRECT($P$2&"!C:C"),FALSE,0) -> 467.5957947 | FS6: =_xlfn.XLOOKUP(FS5,INDIRECT($P$2&"!A:A"),INDIRECT($P$2&"!C:C"),FALSE,0) -> 471.9869995 | FT6: =_xlfn.XLOOKUP(FT5,INDIRECT($P$2&"!A:A"),INDIRECT($P$2&"!C:C"),FALSE,0) -> 480.7684021 | FU6: =_xlfn.XLOOKUP(FU5,INDIRECT($P$2&"!A:A"),INDIRECT($P$2&"!C:C"),FALSE,0) -> 448.9364929 | FV6: =_xlfn.XLOOKUP(FV5,INDIRECT($P$2&"!A:A"),INDIRECT($P$2&"!C:C"),FALSE,0) -> 528.7891235 | FW6: =_xlfn.XLOOKUP(FW5,INDIRECT($P$2&"!A:A"),INDIRECT($P$2&"!C:C"),FALSE,0) -> 526.5939941 | FX6: =_xlfn.XLOOKUP(FX5,INDIRECT($P$2&"!A:A"),INDIRECT($P$2&"!C:C"),FALSE,0) -> 542.510498 | FY6: =_xlfn.XLOOKUP(FY5,INDIRECT($P$2&"!A:A"),INDIRECT($P$2&"!C:C"),FALSE,0) -> 495.036499 | FZ6: =_xlfn.XLOOKUP(FZ5,INDIRECT($P$2&"!A:A"),INDIRECT($P$2&"!C:C"),FALSE,0) -> 495.8606873 | GA6: =_xlfn.XLOOKUP(GA5,INDIRECT($P$2&"!A:A"),INDIRECT($P$2&"!C:C"),FALSE,0) -> 472.2614136 | GB6: =_xlfn.XLOOKUP(GB5,INDIRECT($P$2&"!A:A"),INDIRECT($P$2&"!C:C"),FALSE,0) -> 465.4006958 | GC6: =_xlfn.XLOOKUP(GC5,INDIRECT($P$2&"!A:A"),INDIRECT($P$2&"!C:C"),FALSE,0) -> 484.6098022 | GD6: =_xlfn.XLOOKUP(GD5,INDIRECT($P$2&"!A:A"),INDIRECT($P$2&"!C:C"),FALSE,0) -> 455.521698 | GE6: =_xlfn.XLOOKUP(GE5,INDIRECT($P$2&"!A:A"),INDIRECT($P$2&"!C:C"),FALSE,0) -> 455.7961121 | GF6: =_xlfn.XLOOKUP(GF5,INDIRECT($P$2&"!A:A"),INDIRECT($P$2&"!C:C"),FALSE,0) -> 461.2849121 | GG6: =_xlfn.XLOOKUP(GG5,INDIRECT($P$2&"!A:A"),INDIRECT($P$2&"!C:C"),FALSE,0) -> 498.8789062 | GH6: =_xlfn.XLOOKUP(GH5,INDIRECT($P$2&"!A:A"),INDIRECT($P$2&"!C:C"),FALSE,0) -> 528.5158081 | GI6: =_xlfn.XLOOKUP(GI5,INDIRECT($P$2&"!A:A"),INDIRECT($P$2&"!C:C"),FALSE,0) -> 516.9893799 | GJ6: =_xlfn.XLOOKUP(GJ5,INDIRECT($P$2&"!A:A"),INDIRECT($P$2&"!C:C"),FALSE,0) -> 466.4981995 | GK6: =_xlfn.XLOOKUP(GK5,INDIRECT($P$2&"!A:A"),INDIRECT($P$2&"!C:C"),FALSE,0) -> 538.9423828 | GL6: =_xlfn.XLOOKUP(GL5,INDIRECT($P$2&"!A:A"),INDIRECT($P$2&"!C:C"),FALSE,0) -> 628.9495239 | GM6: =_xlfn.XLOOKUP(GM5,INDIRECT($P$2&"!A:A"),INDIRECT($P$2&"!C:C"),FALSE,0) -> 579.007019 | GN6: =_xlfn.XLOOKUP(GN5,INDIRECT($P$2&"!A:A"),INDIRECT($P$2&"!C:C"),FALSE,0) -> 565.2855835 | GO6: =_xlfn.XLOOKUP(GO5,INDIRECT($P$2&"!A:A"),INDIRECT($P$2&"!C:C"),FALSE,0) -> 571.8729858 | GP6: =_xlfn.XLOOKUP(GP5,INDIRECT($P$2&"!A:A"),INDIRECT($P$2&"!C:C"),FALSE,0) -> 601.5087891 | GQ6: =_xlfn.XLOOKUP(GQ5,INDIRECT($P$2&"!A:A"),INDIRECT($P$2&"!C:C"),FALSE,0) -> 619.0715942 | GR6: =_xlfn.XLOOKUP(GR5,INDIRECT($P$2&"!A:A"),INDIRECT($P$2&"!C:C"),FALSE,0) -> 637.1821289 | GS6: =_xlfn.XLOOKUP(GS5,INDIRECT($P$2&"!A:A"),INDIRECT($P$2&"!C:C"),FALSE,0) -> 655.8413696 | GT6: =_xlfn.XLOOKUP(GT5,INDIRECT($P$2&"!A:A"),INDIRECT($P$2&"!C:C"),FALSE,0) -> 680.5393066 | GU6: =_xlfn.XLOOKUP(GU5,INDIRECT($P$2&"!A:A"),INDIRECT($P$2&"!C:C"),FALSE,0) -> 667.9165039 | GV6: =_xlfn.XLOOKUP(GV5,INDIRECT($P$2&"!A:A"),INDIRECT($P$2&"!C:C"),FALSE,0) -> 684.9295044 | GW6: =_xlfn.XLOOKUP(GW5,INDIRECT($P$2&"!A:A"),INDIRECT($P$2&"!C:C"),FALSE,0) -> 643.2197266 | GX6: =_xlfn.XLOOKUP(GX5,INDIRECT($P$2&"!A:A"),INDIRECT($P$2&"!C:C"),FALSE,0) -> 597.1185913 | GY6: =_xlfn.XLOOKUP(GY5,INDIRECT($P$2&"!A:A"),INDIRECT($P$2&"!C:C"),FALSE,0) -> 587.2385864 | GZ6: =_xlfn.XLOOKUP(GZ5,INDIRECT($P$2&"!A:A"),INDIRECT($P$2&"!C:C"),FALSE,0) -> 617.9741211 | HA6: =_xlfn.XLOOKUP(HA5,INDIRECT($P$2&"!A:A"),INDIRECT($P$2&"!C:C"),FALSE,0) -> 575.1655884 | HB6: =_xlfn.XLOOKUP(HB5,INDIRECT($P$2&"!A:A"),INDIRECT($P$2&"!C:C"),FALSE,0) -> 521.3806763 | HC6: =_xlfn.XLOOKUP(HC5,INDIRECT($P$2&"!A:A"),INDIRECT($P$2&"!C:C"),FALSE,0) -> 514.7943726 | HD6: =_xlfn.XLOOKUP(HD5,INDIRECT($P$2&"!A:A"),INDIRECT($P$2&"!C:C"),FALSE,0) -> 471.9869995 | HE6: =_xlfn.XLOOKUP(HE5,INDIRECT($P$2&"!A:A"),INDIRECT($P$2&"!C:C"),FALSE,0) -> 535.6497803 | HF6: =_xlfn.XLOOKUP(HF5,INDIRECT($P$2&"!A:A"),INDIRECT($P$2&"!C:C"),FALSE,0) -> 486.2561035 | HG6: =_xlfn.XLOOKUP(HG5,INDIRECT($P$2&"!A:A"),INDIRECT($P$2&"!C:C"),FALSE,0) -> 469.790802 | HH6: =_xlfn.XLOOKUP(HH5,INDIRECT($P$2&"!A:A"),INDIRECT($P$2&"!C:C"),FALSE,0) -> 492.8414001 | HI6: =_xlfn.XLOOKUP(HI5,INDIRECT($P$2&"!A:A"),INDIRECT($P$2&"!C:C"),FALSE,0) -> 507.3848877 | HJ6: =_xlfn.XLOOKUP(HJ5,INDIRECT($P$2&"!A:A"),INDIRECT($P$2&"!C:C"),FALSE,0) -> 508.48349 | HK6: =_xlfn.XLOOKUP(HK5,INDIRECT($P$2&"!A:A"),INDIRECT($P$2&"!C:C"),FALSE,0) -> 540.039978 | HL6: =_xlfn.XLOOKUP(HL5,INDIRECT($P$2&"!A:A"),INDIRECT($P$2&"!C:C"),FALSE,0) -> 548.8225098 | HM6: =_xlfn.XLOOKUP(HM5,INDIRECT($P$2&"!A:A"),INDIRECT($P$2&"!C:C"),FALSE,0) -> 511.501709 | HN6: =_xlfn.XLOOKUP(HN5,INDIRECT($P$2&"!A:A"),INDIRECT($P$2&"!C:C"),FALSE,0) -> 484.8841858 | HO6: =_xlfn.XLOOKUP(HO5,INDIRECT($P$2&"!A:A"),INDIRECT($P$2&"!C:C"),FALSE,0) -> 495.5852051 | HP6: =_xlfn.XLOOKUP(HP5,INDIRECT($P$2&"!A:A"),INDIRECT($P$2&"!C:C"),FALSE,0) -> 495.5852051 | HQ6: =_xlfn.XLOOKUP(HQ5,INDIRECT($P$2&"!A:A"),INDIRECT($P$2&"!C:C"),FALSE,0) -> 499.4277039 | HR6: =_xlfn.XLOOKUP(HR5,INDIRECT($P$2&"!A:A"),INDIRECT($P$2&"!C:C"),FALSE,0) -> 473.3588867 | HS6: =_xlfn.XLOOKUP(HS5,INDIRECT($P$2&"!A:A"),INDIRECT($P$2&"!C:C"),FALSE,0) -> 501.0740051 | HT6: =_xlfn.XLOOKUP(HT5,INDIRECT($P$2&"!A:A"),INDIRECT($P$2&"!C:C"),FALSE,0) -> 435.7648926 | HU6: =_xlfn.XLOOKUP(HU5,INDIRECT($P$2&"!A:A"),INDIRECT($P$2&"!C:C"),FALSE,0) -> 447.8389893 | HV6: =_xlfn.XLOOKUP(HV5,INDIRECT($P$2&"!A:A"),INDIRECT($P$2&"!C:C"),FALSE,0) -> 425.3371887 | HW6: =_xlfn.XLOOKUP(HW5,INDIRECT($P$2&"!A:A"),INDIRECT($P$2&"!C:C"),FALSE,0) -> 451.1315918 | HX6: =_xlfn.XLOOKUP(HX5,INDIRECT($P$2&"!A:A"),INDIRECT($P$2&"!C:C"),FALSE,0) -> 433.019989 | HY6: =_xlfn.XLOOKUP(HY5,INDIRECT($P$2&"!A:A"),INDIRECT($P$2&"!C:C"),FALSE,0) -> 451.1315918 | HZ6: =_xlfn.XLOOKUP(HZ5,INDIRECT($P$2&"!A:A"),INDIRECT($P$2&"!C:C"),FALSE,0) -> 423.6908875 | IA6: =_xlfn.XLOOKUP(IA5,INDIRECT($P$2&"!A:A"),INDIRECT($P$2&"!C:C"),FALSE,0) -> 425.0628052 | IB6: =_xlfn.XLOOKUP(IB5,INDIRECT($P$2&"!A:A"),INDIRECT($P$2&"!C:C"),FALSE,0) -> 482.1843872 | IC6: =_xlfn.XLOOKUP(IC5,INDIRECT($P$2&"!A:A"),INDIRECT($P$2&"!C:C"),FALSE,0) -> 412.9888 | ID6: =_xlfn.XLOOKUP(ID5,INDIRECT($P$2&"!A:A"),INDIRECT($P$2&"!C:C"),FALSE,0) -> 431.3736877 | IE6: =_xlfn.XLOOKUP(IE5,INDIRECT($P$2&"!A:A"),INDIRECT($P$2&"!C:C"),FALSE,0) -> 439.3319092 | IF6: =_xlfn.XLOOKUP(IF5,INDIRECT($P$2&"!A:A"),INDIRECT($P$2&"!C:C"),FALSE,0) -> 430.2760925 | IG6: =_xlfn.XLOOKUP(IG5,INDIRECT($P$2&"!A:A"),INDIRECT($P$2&"!C:C"),FALSE,0) -> 473.0845947 | IH6: =_xlfn.XLOOKUP(IH5,INDIRECT($P$2&"!A:A"),INDIRECT($P$2&"!C:C"),FALSE,0) -> 471.9869995 | II6: =_xlfn.XLOOKUP(II5,INDIRECT($P$2&"!A:A"),INDIRECT($P$2&"!C:C"),FALSE,0) -> 469.5176086 | IJ6: =_xlfn.XLOOKUP(IJ5,INDIRECT($P$2&"!A:A"),INDIRECT($P$2&"!C:C"),FALSE,0) -> 474.4565125 | IK6: =_xlfn.XLOOKUP(IK5,INDIRECT($P$2&"!A:A"),INDIRECT($P$2&"!C:C"),FALSE,0) -> 467.0469971 | IL6: =_xlfn.XLOOKUP(IL5,INDIRECT($P$2&"!A:A"),INDIRECT($P$2&"!C:C"),FALSE,0) -> 477.749115 | IM6: =_xlfn.XLOOKUP(IM5,INDIRECT($P$2&"!A:A"),INDIRECT($P$2&"!C:C"),FALSE,0) -> 509.0322876 | IN6: =_xlfn.XLOOKUP(IN5,INDIRECT($P$2&"!A:A"),INDIRECT($P$2&"!C:C"),FALSE,0) -> 511.7760925 | IO6: =_xlfn.XLOOKUP(IO5,INDIRECT($P$2&"!A:A"),INDIRECT($P$2&"!C:C"),FALSE,0) -> 519.7332764 | IP6: =_xlfn.XLOOKUP(IP5,INDIRECT($P$2&"!A:A"),INDIRECT($P$2&"!C:C"),FALSE,0) -> 525.496521 | IQ6: =_xlfn.XLOOKUP(IQ5,INDIRECT($P$2&"!A:A"),INDIRECT($P$2&"!C:C"),FALSE,0) -> 544.4301147 | IR6: =_xlfn.XLOOKUP(IR5,INDIRECT($P$2&"!A:A"),INDIRECT($P$2&"!C:C"),FALSE,0) -> 566.6586304 | IS6: =_xlfn.XLOOKUP(IS5,INDIRECT($P$2&"!A:A"),INDIRECT($P$2&"!C:C"),FALSE,0) -> 553.7614136 | IT6: =_xlfn.XLOOKUP(IT5,INDIRECT($P$2&"!A:A"),INDIRECT($P$2&"!C:C"),FALSE,0) -> 538.1204224 | IU6: =_xlfn.XLOOKUP(IU5,INDIRECT($P$2&"!A:A"),INDIRECT($P$2&"!C:C"),FALSE,0) -> 565.0123291 | IV6: =_xlfn.XLOOKUP(IV5,INDIRECT($P$2&"!A:A"),INDIRECT($P$2&"!C:C"),FALSE,0) -> 589.9824219 | IW6: =_xlfn.XLOOKUP(IW5,INDIRECT($P$2&"!A:A"),INDIRECT($P$2&"!C:C"),FALSE,0) -> 593.8259888 | IX6: =_xlfn.XLOOKUP(IX5,INDIRECT($P$2&"!A:A"),INDIRECT($P$2&"!C:C"),FALSE,0) -> 576.2918091 | IY6: =_xlfn.XLOOKUP(IY5,INDIRECT($P$2&"!A:A"),INDIRECT($P$2&"!C:C"),FALSE,0) -> 506.7156982 | IZ6: =_xlfn.XLOOKUP(IZ5,INDIRECT($P$2&"!A:A"),INDIRECT($P$2&"!C:C"),FALSE,0) -> 513.9683228 | JA6: =_xlfn.XLOOKUP(JA5,INDIRECT($P$2&"!A:A"),INDIRECT($P$2&"!C:C"),FALSE,0) -> 499.4631042 | JB6: =_xlfn.XLOOKUP(JB5,INDIRECT($P$2&"!A:A"),INDIRECT($P$2&"!C:C"),FALSE,0) -> 518.3198853 | JC6: =_xlfn.XLOOKUP(JC5,INDIRECT($P$2&"!A:A"),INDIRECT($P$2&"!C:C"),FALSE,0) -> 549.7478027 | JD6: =_xlfn.XLOOKUP(JD5,INDIRECT($P$2&"!A:A"),INDIRECT($P$2&"!C:C"),FALSE,0) -> 556.5169067 | JE6: =_xlfn.XLOOKUP(JE5,INDIRECT($P$2&"!A:A"),INDIRECT($P$2&"!C:C"),FALSE,0) -> 580.2088013 | JF6: =_xlfn.XLOOKUP(JF5,INDIRECT($P$2&"!A:A"),INDIRECT($P$2&"!C:C"),FALSE,0) -> 553.6159058 | JG6: =_xlfn.XLOOKUP(JG5,INDIRECT($P$2&"!A:A"),INDIRECT($P$2&"!C:C"),FALSE,0) -> 556.5169067 | JH6: =_xlfn.XLOOKUP(JH5,INDIRECT($P$2&"!A:A"),INDIRECT($P$2&"!C:C"),FALSE,0) -> 586.4943848 | JI6: =_xlfn.XLOOKUP(JI5,INDIRECT($P$2&"!A:A"),INDIRECT($P$2&"!C:C"),FALSE,0) -> 565.7036133 | JJ6: =_xlfn.XLOOKUP(JJ5,INDIRECT($P$2&"!A:A"),INDIRECT($P$2&"!C:C"),FALSE,0) -> 589.3953857 | JK6: =_xlfn.XLOOKUP(JK5,INDIRECT($P$2&"!A:A"),INDIRECT($P$2&"!C:C"),FALSE,0) -> 616.9553833 | JL6: =_xlfn.XLOOKUP(JL5,INDIRECT($P$2&"!A:A"),INDIRECT($P$2&"!C:C"),FALSE,0) -> 645.4822998 | JM6: =_xlfn.XLOOKUP(JM5,INDIRECT($P$2&"!A:A"),INDIRECT($P$2&"!C:C"),FALSE,0) -> 647.8997803 | JN6: =_xlfn.XLOOKUP(JN5,INDIRECT($P$2&"!A:A"),INDIRECT($P$2&"!C:C"),FALSE,0) -> 664.8225708 | JO6: =_xlfn.XLOOKUP(JO5,INDIRECT($P$2&"!A:A"),INDIRECT($P$2&"!C:C"),FALSE,0) -> 712.6898193 | JP6: =_xlfn.XLOOKUP(JP5,INDIRECT($P$2&"!A:A"),INDIRECT($P$2&"!C:C"),FALSE,0) -> 742.6672974 | JQ6: =_xlfn.XLOOKUP(JQ5,INDIRECT($P$2&"!A:A"),INDIRECT($P$2&"!C:C"),FALSE,0) -> 737.8322144 | JR6: =_xlfn.XLOOKUP(JR5,INDIRECT($P$2&"!A:A"),INDIRECT($P$2&"!C:C"),FALSE,0) -> 771.1942139 | JS6: =_xlfn.XLOOKUP(JS5,INDIRECT($P$2&"!A:A"),INDIRECT($P$2&"!C:C"),FALSE,0) -> 760.5571289 | JT6: =_xlfn.XLOOKUP(JT5,INDIRECT($P$2&"!A:A"),INDIRECT($P$2&"!C:C"),FALSE,0) -> 757.1724854 | JU6: =_xlfn.XLOOKUP(JU5,INDIRECT($P$2&"!A:A"),INDIRECT($P$2&"!C:C"),FALSE,0) -> 713.6567993 | JV6: =_xlfn.XLOOKUP(JV5,INDIRECT($P$2&"!A:A"),INDIRECT($P$2&"!C:C"),FALSE,0) -> 679.3278198 | JW6: =_xlfn.XLOOKUP(JW5,INDIRECT($P$2&"!A:A"),INDIRECT($P$2&"!C:C"),FALSE,0) -> 718.0084229 | JX6: =_xlfn.XLOOKUP(JX5,INDIRECT($P$2&"!A:A"),INDIRECT($P$2&"!C:C"),FALSE,0) -> 758.1395264 | JY6: =_xlfn.XLOOKUP(JY5,INDIRECT($P$2&"!A:A"),INDIRECT($P$2&"!C:C"),FALSE,0) -> 775.0623169 | JZ6: =_xlfn.XLOOKUP(JZ5,INDIRECT($P$2&"!A:A"),INDIRECT($P$2&"!C:C"),FALSE,0) -> 794.4025879 | KA6: =_xlfn.XLOOKUP(KA5,INDIRECT($P$2&"!A:A"),INDIRECT($P$2&"!C:C"),FALSE,0) -> 806.4902954 | KB6: =_xlfn.XLOOKUP(KB5,INDIRECT($P$2&"!A:A"),INDIRECT($P$2&"!C:C"),FALSE,0) -> 748.4694214 | KC6: =_xlfn.XLOOKUP(KC5,INDIRECT($P$2&"!A:A"),INDIRECT($P$2&"!C:C"),FALSE,0) -> 709.3052979 | KD6: =_xlfn.XLOOKUP(KD5,INDIRECT($P$2&"!A:A"),INDIRECT($P$2&"!C:C"),FALSE,0) -> 668.6906738 | KE6: =_xlfn.XLOOKUP(KE5,INDIRECT($P$2&"!A:A"),INDIRECT($P$2&"!C:C"),FALSE,0) -> 677.3937988 | KF6: =_xlfn.XLOOKUP(KF5,INDIRECT($P$2&"!A:A"),INDIRECT($P$2&"!C:C"),FALSE,0) -> 721.3930054 | KG6: =_xlfn.XLOOKUP(KG5,INDIRECT($P$2&"!A:A"),INDIRECT($P$2&"!C:C"),FALSE,0) -> 638.7131958 | KH6: =_xlfn.XLOOKUP(KH5,INDIRECT($P$2&"!A:A"),INDIRECT($P$2&"!C:C"),FALSE,0) -> 645.9658203 | KI6: =_xlfn.XLOOKUP(KI5,INDIRECT($P$2&"!A:A"),INDIRECT($P$2&"!C:C"),FALSE,0) -> 690.9320068 | KJ6: =_xlfn.XLOOKUP(KJ5,INDIRECT($P$2&"!A:A"),INDIRECT($P$2&"!C:C"),FALSE,0) -> 690.4484863 | KK6: =_xlfn.XLOOKUP(KK5,INDIRECT($P$2&"!A:A"),INDIRECT($P$2&"!C:C"),FALSE,0) -> 680.2947998 | KL6: =_xlfn.XLOOKUP(KL5,INDIRECT($P$2&"!A:A"),INDIRECT($P$2&"!C:C"),FALSE,0) -> 654.1854248 | KM6: =_xlfn.XLOOKUP(KM5,INDIRECT($P$2&"!A:A"),INDIRECT($P$2&"!C:C"),FALSE,0) -> 661.4379883 | KN6: =_xlfn.XLOOKUP(KN5,INDIRECT($P$2&"!A:A"),INDIRECT($P$2&"!C:C"),FALSE,0) -> 626.6254883 | KO6: =_xlfn.XLOOKUP(KO5,INDIRECT($P$2&"!A:A"),INDIRECT($P$2&"!C:C"),FALSE,0) -> 605.8347168 | KP6: =_xlfn.XLOOKUP(KP5,INDIRECT($P$2&"!A:A"),INDIRECT($P$2&"!C:C"),FALSE,0) -> 517.8364258 | KQ6: =_xlfn.XLOOKUP(KQ5,INDIRECT($P$2&"!A:A"),INDIRECT($P$2&"!C:C"),FALSE,0) -> 545.8798218 | KR6: =_xlfn.XLOOKUP(KR5,INDIRECT($P$2&"!A:A"),INDIRECT($P$2&"!C:C"),FALSE,0) -> 578.7583008 | KS6: =_xlfn.XLOOKUP(KS5,INDIRECT($P$2&"!A:A"),INDIRECT($P$2&"!C:C"),FALSE,0) -> 529.4404907 | KT6: =_xlfn.XLOOKUP(KT5,INDIRECT($P$2&"!A:A"),INDIRECT($P$2&"!C:C"),FALSE,0) -> 540.0776978 | KU6: =_xlfn.XLOOKUP(KU5,INDIRECT($P$2&"!A:A"),INDIRECT($P$2&"!C:C"),FALSE,0) -> 572.9561768 | KV6: =_xlfn.XLOOKUP(KV5,INDIRECT($P$2&"!A:A"),INDIRECT($P$2&"!C:C"),FALSE,0) -> 584.0769043 | KW6: =_xlfn.XLOOKUP(KW5,INDIRECT($P$2&"!A:A"),INDIRECT($P$2&"!C:C"),FALSE,0) -> 586.4943848 | KX6: =_xlfn.XLOOKUP(KX5,INDIRECT($P$2&"!A:A"),INDIRECT($P$2&"!C:C"),FALSE,0) -> 638.7131958 | KY6: =_xlfn.XLOOKUP(KY5,INDIRECT($P$2&"!A:A"),INDIRECT($P$2&"!C:C"),FALSE,0) -> 656.6030273 | KZ6: =_xlfn.XLOOKUP(KZ5,INDIRECT($P$2&"!A:A"),INDIRECT($P$2&"!C:C"),FALSE,0) -> 610.1862793 | LA6: =_xlfn.XLOOKUP(LA5,INDIRECT($P$2&"!A:A"),INDIRECT($P$2&"!C:C"),FALSE,0) -> 630.4935913 | LB6: =_xlfn.XLOOKUP(LB5,INDIRECT($P$2&"!A:A"),INDIRECT($P$2&"!C:C"),FALSE,0) -> 620.3399048 | LC6: =_xlfn.XLOOKUP(LC5,INDIRECT($P$2&"!A:A"),INDIRECT($P$2&"!C:C"),FALSE,0) -> 608.2521973 | LD6: =_xlfn.XLOOKUP(LD5,INDIRECT($P$2&"!A:A"),INDIRECT($P$2&"!C:C"),FALSE,0) -> 544.6906738 | LE6: =_xlfn.XLOOKUP(LE5,INDIRECT($P$2&"!A:A"),INDIRECT($P$2&"!C:C"),FALSE,0) -> 535.6361084 | LF6: =_xlfn.XLOOKUP(LF5,INDIRECT($P$2&"!A:A"),INDIRECT($P$2&"!C:C"),FALSE,0) -> 555.8178711 | LG6: =_xlfn.XLOOKUP(LG5,INDIRECT($P$2&"!A:A"),INDIRECT($P$2&"!C:C"),FALSE,0) -> 598.9088135 | LH6: =_xlfn.XLOOKUP(LH5,INDIRECT($P$2&"!A:A"),INDIRECT($P$2&"!C:C"),FALSE,0) -> 589.0905762 | LI6: =_xlfn.XLOOKUP(LI5,INDIRECT($P$2&"!A:A"),INDIRECT($P$2&"!C:C"),FALSE,0) -> 643.6361084 | LJ6: =_xlfn.XLOOKUP(LJ5,INDIRECT($P$2&"!A:A"),INDIRECT($P$2&"!C:C"),FALSE,0) -> 619.6361084 | LK6: =_xlfn.XLOOKUP(LK5,INDIRECT($P$2&"!A:A"),INDIRECT($P$2&"!C:C"),FALSE,0) -> 603.272522 | LL6: =_xlfn.XLOOKUP(LL5,INDIRECT($P$2&"!A:A"),INDIRECT($P$2&"!C:C"),FALSE,0) -> 602.7269897 | LM6: =_xlfn.XLOOKUP(LM5,INDIRECT($P$2&"!A:A"),INDIRECT($P$2&"!C:C"),FALSE,0) -> 622.9088135 | LN6: =_xlfn.XLOOKUP(LN5,INDIRECT($P$2&"!A:A"),INDIRECT($P$2&"!C:C"),FALSE,0) -> 647.9996948 | LO6: =_xlfn.XLOOKUP(LO5,INDIRECT($P$2&"!A:A"),INDIRECT($P$2&"!C:C"),FALSE,0) -> 669.8178711 | LP6: =_xlfn.XLOOKUP(LP5,INDIRECT($P$2&"!A:A"),INDIRECT($P$2&"!C:C"),FALSE,0) -> 682.9088135 | LQ6: =_xlfn.XLOOKUP(LQ5,INDIRECT($P$2&"!A:A"),INDIRECT($P$2&"!C:C"),FALSE,0) -> 668.1815186 | LR6: =_xlfn.XLOOKUP(LR5,INDIRECT($P$2&"!A:A"),INDIRECT($P$2&"!C:C"),FALSE,0) -> 651.2723999 | LS6: =_xlfn.XLOOKUP(LS5,INDIRECT($P$2&"!A:A"),INDIRECT($P$2&"!C:C"),FALSE,0) -> 677.4542236 | LT6: =_xlfn.XLOOKUP(LT5,INDIRECT($P$2&"!A:A"),INDIRECT($P$2&"!C:C"),FALSE,0) -> 696.5452271 | LU6: =_xlfn.XLOOKUP(LU5,INDIRECT($P$2&"!A:A"),INDIRECT($P$2&"!C:C"),FALSE,0) -> 673.6361084 | LV6: =_xlfn.XLOOKUP(LV5,INDIRECT($P$2&"!A:A"),INDIRECT($P$2&"!C:C"),FALSE,0) -> 681.2723999 | LW6: =_xlfn.XLOOKUP(LW5,INDIRECT($P$2&"!A:A"),INDIRECT($P$2&"!C:C"),FALSE,0) -> 681.8178711 | LX6: =_xlfn.XLOOKUP(LX5,INDIRECT($P$2&"!A:A"),INDIRECT($P$2&"!C:C"),FALSE,0) -> 689.4542236 | LY6: =_xlfn.XLOOKUP(LY5,INDIRECT($P$2&"!A:A"),INDIRECT($P$2&"!C:C"),FALSE,0) -> 699.8178711 | LZ6: =_xlfn.XLOOKUP(LZ5,INDIRECT($P$2&"!A:A"),INDIRECT($P$2&"!C:C"),FALSE,0) -> 687.8178711 | MA6: =_xlfn.XLOOKUP(MA5,INDIRECT($P$2&"!A:A"),INDIRECT($P$2&"!C:C"),FALSE,0) -> 725.9996948 | MB6: =_xlfn.XLOOKUP(MB5,INDIRECT($P$2&"!A:A"),INDIRECT($P$2&"!C:C"),FALSE,0) -> 709.0905762 | MC6: =_xlfn.XLOOKUP(MC5,INDIRECT($P$2&"!A:A"),INDIRECT($P$2&"!C:C"),FALSE,0) -> 736.9088135 | MD6: =_xlfn.XLOOKUP(MD5,INDIRECT($P$2&"!A:A"),INDIRECT($P$2&"!C:C"),FALSE,0) -> 722.7269897 | ME6: =_xlfn.XLOOKUP(ME5,INDIRECT($P$2&"!A:A"),INDIRECT($P$2&"!C:C"),FALSE,0) -> 745.6359863 | MF6: =_xlfn.XLOOKUP(MF5,INDIRECT($P$2&"!A:A"),INDIRECT($P$2&"!C:C"),FALSE,0) -> 745.0905762 | MG6: =_xlfn.XLOOKUP(MG5,INDIRECT($P$2&"!A:A"),INDIRECT($P$2&"!C:C"),FALSE,0) -> 770.7269287 | MH6: =_xlfn.XLOOKUP(MH5,INDIRECT($P$2&"!A:A"),INDIRECT($P$2&"!C:C"),FALSE,0) -> 769.0905762 | MI6: =_xlfn.XLOOKUP(MI5,INDIRECT($P$2&"!A:A"),INDIRECT($P$2&"!C:C"),FALSE,0) -> 766.9088135 | MJ6: =_xlfn.XLOOKUP(MJ5,INDIRECT($P$2&"!A:A"),INDIRECT($P$2&"!C:C"),FALSE,0) -> 754.3632812 | MK6: =_xlfn.XLOOKUP(MK5,INDIRECT($P$2&"!A:A"),INDIRECT($P$2&"!C:C"),FALSE,0) -> 795.8178101 | ML6: =_xlfn.XLOOKUP(ML5,INDIRECT($P$2&"!A:A"),INDIRECT($P$2&"!C:C"),FALSE,0) -> 834.545105 | MM6: =_xlfn.XLOOKUP(MM5,INDIRECT($P$2&"!A:A"),INDIRECT($P$2&"!C:C"),FALSE,0) -> 893.9995728 | MN6: =_xlfn.XLOOKUP(MN5,INDIRECT($P$2&"!A:A"),INDIRECT($P$2&"!C:C"),FALSE,0) -> 855.8178101 | MO6: =_xlfn.XLOOKUP(MO5,INDIRECT($P$2&"!A:A"),INDIRECT($P$2&"!C:C"),FALSE,0) -> 813.8178101 | MP6: =_xlfn.XLOOKUP(MP5,INDIRECT($P$2&"!A:A"),INDIRECT($P$2&"!C:C"),FALSE,0) -> 857.9995728 | MQ6: =_xlfn.XLOOKUP(MQ5,INDIRECT($P$2&"!A:A"),INDIRECT($P$2&"!C:C"),FALSE,0) -> 809.9996948 | MR6: =_xlfn.XLOOKUP(MR5,INDIRECT($P$2&"!A:A"),INDIRECT($P$2&"!C:C"),FALSE,0) -> 796.9088135 | MS6: =_xlfn.XLOOKUP(MS5,INDIRECT($P$2&"!A:A"),INDIRECT($P$2&"!C:C"),FALSE,0) -> 855.8178101 | MT6: =_xlfn.XLOOKUP(MT5,INDIRECT($P$2&"!A:A"),INDIRECT($P$2&"!C:C"),FALSE,0) -> 845.4542236 | MU6: =_xlfn.XLOOKUP(MU5,INDIRECT($P$2&"!A:A"),INDIRECT($P$2&"!C:C"),FALSE,0) -> 859.6359863 | MV6: =_xlfn.XLOOKUP(MV5,INDIRECT($P$2&"!A:A"),INDIRECT($P$2&"!C:C"),FALSE,0) -> 860.7269287 | MW6: =_xlfn.XLOOKUP(MW5,INDIRECT($P$2&"!A:A"),INDIRECT($P$2&"!C:C"),FALSE,0) -> 910.3632812 | MX6: =_xlfn.XLOOKUP(MX5,INDIRECT($P$2&"!A:A"),INDIRECT($P$2&"!C:C"),FALSE,0) -> 896.7269287 | MY6: =_xlfn.XLOOKUP(MY5,INDIRECT($P$2&"!A:A"),INDIRECT($P$2&"!C:C"),FALSE,0) -> 916.9086914 | MZ6: =_xlfn.XLOOKUP(MZ5,INDIRECT($P$2&"!A:A"),INDIRECT($P$2&"!C:C"),FALSE,0) -> 970.9086914 | NA6: =_xlfn.XLOOKUP(NA5,INDIRECT($P$2&"!A:A"),INDIRECT($P$2&"!C:C"),FALSE,0) -> 916.3632812 | NB6: =_xlfn.XLOOKUP(NB5,INDIRECT($P$2&"!A:A"),INDIRECT($P$2&"!C:C"),FALSE,0) -> 933.2722778 | NC6: =_xlfn.XLOOKUP(NC5,INDIRECT($P$2&"!A:A"),INDIRECT($P$2&"!C:C"),FALSE,0) -> 980.7269287 | ND6: =_xlfn.XLOOKUP(ND5,INDIRECT($P$2&"!A:A"),INDIRECT($P$2&"!C:C"),FALSE,0) -> 968.7269287 | NE6: =_xlfn.XLOOKUP(NE5,INDIRECT($P$2&"!A:A"),INDIRECT($P$2&"!C:C"),FALSE,0) -> 1010.181396 | NF6: =_xlfn.XLOOKUP(NF5,INDIRECT($P$2&"!A:A"),INDIRECT($P$2&"!C:C"),FALSE,0) -> 1014.544983 | NG6: =_xlfn.XLOOKUP(NG5,INDIRECT($P$2&"!A:A"),INDIRECT($P$2&"!C:C"),FALSE,0) -> 1001.563171 | NH6: =_xlfn.XLOOKUP(NH5,INDIRECT($P$2&"!A:A"),INDIRECT($P$2&"!C:C"),FALSE,0) -> 1020.544983 | NI6: =_xlfn.XLOOKUP(NI5,INDIRECT($P$2&"!A:A"),INDIRECT($P$2&"!C:C"),FALSE,0) -> 967.199585 | NJ6: =_xlfn.XLOOKUP(NJ5,INDIRECT($P$2&"!A:A"),INDIRECT($P$2&"!C:C"),FALSE,0) -> 943.3087158 | NK6: =_xlfn.XLOOKUP(NK5,INDIRECT($P$2&"!A:A"),INDIRECT($P$2&"!C:C"),FALSE,0) -> 958.9086914 | NL6: =_xlfn.XLOOKUP(NL5,INDIRECT($P$2&"!A:A"),INDIRECT($P$2&"!C:C"),FALSE,0) -> 1018.908691 | NM6: =_xlfn.XLOOKUP(NM5,INDIRECT($P$2&"!A:A"),INDIRECT($P$2&"!C:C"),FALSE,0) -> 891.4904785 | NN6: =_xlfn.XLOOKUP(NN5,INDIRECT($P$2&"!A:A"),INDIRECT($P$2&"!C:C"),FALSE,0) -> 930.6541748 | NO6: =_xlfn.XLOOKUP(NO5,INDIRECT($P$2&"!A:A"),INDIRECT($P$2&"!C:C"),FALSE,0) -> 938.2905273 | NP6: =_xlfn.XLOOKUP(NP5,INDIRECT($P$2&"!A:A"),INDIRECT($P$2&"!C:C"),FALSE,0) -> 1002.435913 | NQ6: =_xlfn.XLOOKUP(NQ5,INDIRECT($P$2&"!A:A"),INDIRECT($P$2&"!C:C"),FALSE,0) -> 1008.872314 | NR6: =_xlfn.XLOOKUP(NR5,INDIRECT($P$2&"!A:A"),INDIRECT($P$2&"!C:C"),FALSE,0) -> 1009.963196 | NS6: =_xlfn.XLOOKUP(NS5,INDIRECT($P$2&"!A:A"),INDIRECT($P$2&"!C:C"),FALSE,0) -> 1022.726929 | NT6: =_xlfn.XLOOKUP(NT5,INDIRECT($P$2&"!A:A"),INDIRECT($P$2&"!C:C"),FALSE,0) -> 1075.417725 | NU6: =_xlfn.XLOOKUP(NU5,INDIRECT($P$2&"!A:A"),INDIRECT($P$2&"!C:C"),FALSE,0) -> 1051.090454 | NV6: =_xlfn.XLOOKUP(NV5,INDIRECT($P$2&"!A:A"),INDIRECT($P$2&"!C:C"),FALSE,0) -> 1076.944946 | NW6: =_xlfn.XLOOKUP(NW5,INDIRECT($P$2&"!A:A"),INDIRECT($P$2&"!C:C"),FALSE,0) -> 1063.417725 | NX6: =_xlfn.XLOOKUP(NX5,INDIRECT($P$2&"!A:A"),INDIRECT($P$2&"!C:C"),FALSE,0) -> 1098.545044 | NY6: =_xlfn.XLOOKUP(NY5,INDIRECT($P$2&"!A:A"),INDIRECT($P$2&"!C:C"),FALSE,0) -> 1195.635864 | NZ6: =_xlfn.XLOOKUP(NZ5,INDIRECT($P$2&"!A:A"),INDIRECT($P$2&"!C:C"),FALSE,0) -> 1181.454102 | OA6: =_xlfn.XLOOKUP(OA5,INDIRECT($P$2&"!A:A"),INDIRECT($P$2&"!C:C"),FALSE,0) -> 1141.635864 | OB6: =_xlfn.XLOOKUP(OB5,INDIRECT($P$2&"!A:A"),INDIRECT($P$2&"!C:C"),FALSE,0) -> 1191.272217 | OC6: =_xlfn.XLOOKUP(OC5,INDIRECT($P$2&"!A:A"),INDIRECT($P$2&"!C:C"),FALSE,0) -> 1161.817749 | OD6: =_xlfn.XLOOKUP(OD5,INDIRECT($P$2&"!A:A"),INDIRECT($P$2&"!C:C"),FALSE,0) -> 996.2177734 | OE6: =_xlfn.XLOOKUP(OE5,INDIRECT($P$2&"!A:A"),INDIRECT($P$2&"!C:C"),FALSE,0) -> 1038.108643 | OF6: =_xlfn.XLOOKUP(OF5,INDIRECT($P$2&"!A:A"),INDIRECT($P$2&"!C:C"),FALSE,0) -> 1012.035889 | OG6: =_xlfn.XLOOKUP(OG5,INDIRECT($P$2&"!A:A"),INDIRECT($P$2&"!C:C"),FALSE,0) -> 1066.363159 | OH6: =_xlfn.XLOOKUP(OH5,INDIRECT($P$2&"!A:A"),INDIRECT($P$2&"!C:C"),FALSE,0) -> 1105.635864 | OI6: =_xlfn.XLOOKUP(OI5,INDIRECT($P$2&"!A:A"),INDIRECT($P$2&"!C:C"),FALSE,0) -> 1090.908569 | OJ6: =_xlfn.XLOOKUP(OJ5,INDIRECT($P$2&"!A:A"),INDIRECT($P$2&"!C:C"),FALSE,0) -> 1089.5 | OK6: =_xlfn.XLOOKUP(OK5,INDIRECT($P$2&"!A:A"),INDIRECT($P$2&"!C:C"),FALSE,0) -> 951.7999878 | OL6: =_xlfn.XLOOKUP(OL5,INDIRECT($P$2&"!A:A"),INDIRECT($P$2&"!C:C"),FALSE,0) -> 936.7999878 | OM6: =_xlfn.XLOOKUP(OM5,INDIRECT($P$2&"!A:A"),INDIRECT($P$2&"!C:C"),FALSE,0) -> 974.7000122 | ON6: =_xlfn.XLOOKUP(ON5,INDIRECT($P$2&"!A:A"),INDIRECT($P$2&"!C:C"),FALSE,0) -> 924.5999756 | OO6: =_xlfn.XLOOKUP(OO5,INDIRECT($P$2&"!A:A"),INDIRECT($P$2&"!C:C"),FALSE,0) -> 906 | OP6: =_xlfn.XLOOKUP(OP5,INDIRECT($P$2&"!A:A"),INDIRECT($P$2&"!C:C"),FALSE,0) -> 885 | OQ6: =_xlfn.XLOOKUP(OQ5,INDIRECT($P$2&"!A:A"),INDIRECT($P$2&"!C:C"),FALSE,0) -> 875.0999756 | OR6: =_xlfn.XLOOKUP(OR5,INDIRECT($P$2&"!A:A"),INDIRECT($P$2&"!C:C"),FALSE,0) -> 804.7000122 | OS6: =_xlfn.XLOOKUP(OS5,INDIRECT($P$2&"!A:A"),INDIRECT($P$2&"!C:C"),FALSE,0) -> 740.2000122 | OT6: =_xlfn.XLOOKUP(OT5,INDIRECT($P$2&"!A:A"),INDIRECT($P$2&"!C:C"),FALSE,0) -> 802.2000122 | OU6: =_xlfn.XLOOKUP(OU5,INDIRECT($P$2&"!A:A"),INDIRECT($P$2&"!C:C"),FALSE,0) -> 842.7999878 | OV6: =_xlfn.XLOOKUP(OV5,INDIRECT($P$2&"!A:A"),INDIRECT($P$2&"!C:C"),FALSE,0) -> 833.2999878 | OW6: =_xlfn.XLOOKUP(OW5,INDIRECT($P$2&"!A:A"),INDIRECT($P$2&"!C:C"),FALSE,0) -> 838.4000244 | OX6: =_xlfn.XLOOKUP(OX5,INDIRECT($P$2&"!A:A"),INDIRECT($P$2&"!C:C"),FALSE,0) -> 813.2999878 | OY6: =_xlfn.XLOOKUP(OY5,INDIRECT($P$2&"!A:A"),INDIRECT($P$2&"!C:C"),FALSE,0) -> 810 | OZ6: =_xlfn.XLOOKUP(OZ5,INDIRECT($P$2&"!A:A"),INDIRECT($P$2&"!C:C"),FALSE,0) -> 791.4000244 | PA6: =_xlfn.XLOOKUP(PA5,INDIRECT($P$2&"!A:A"),INDIRECT($P$2&"!C:C"),FALSE,0) -> 829.2000122 | PB6: =_xlfn.XLOOKUP(PB5,INDIRECT($P$2&"!A:A"),INDIRECT($P$2&"!C:C"),FALSE,0) -> 832.9000244 | PC6: =_xlfn.XLOOKUP(PC5,INDIRECT($P$2&"!A:A"),INDIRECT($P$2&"!C:C"),FALSE,0) -> 764.2000122 | PD6: =_xlfn.XLOOKUP(PD5,INDIRECT($P$2&"!A:A"),INDIRECT($P$2&"!C:C"),FALSE,0) -> 825.2000122 | PE6: =_xlfn.XLOOKUP(PE5,INDIRECT($P$2&"!A:A"),INDIRECT($P$2&"!C:C"),FALSE,0) -> 847.9000244 | PF6: =_xlfn.XLOOKUP(PF5,INDIRECT($P$2&"!A:A"),INDIRECT($P$2&"!C:C"),FALSE,0) -> 850.7999878 | PG6: =_xlfn.XLOOKUP(PG5,INDIRECT($P$2&"!A:A"),INDIRECT($P$2&"!C:C"),FALSE,0) -> 836.0999756 | PH6: =_xlfn.XLOOKUP(PH5,INDIRECT($P$2&"!A:A"),INDIRECT($P$2&"!C:C"),FALSE,0) -> 792.7999878 | PI6: =_xlfn.XLOOKUP(PI5,INDIRECT($P$2&"!A:A"),INDIRECT($P$2&"!C:C"),FALSE,0) -> 835.7999878 | PJ6: =_xlfn.XLOOKUP(PJ5,INDIRECT($P$2&"!A:A"),INDIRECT($P$2&"!C:C"),FALSE,0) -> 844.2999878 | PK6: =_xlfn.XLOOKUP(PK5,INDIRECT($P$2&"!A:A"),INDIRECT($P$2&"!C:C"),FALSE,0) -> 858.5 | PL6: =_xlfn.XLOOKUP(PL5,INDIRECT($P$2&"!A:A"),INDIRECT($P$2&"!C:C"),FALSE,0) -> 881.9000244 | PM6: =_xlfn.XLOOKUP(PM5,INDIRECT($P$2&"!A:A"),INDIRECT($P$2&"!C:C"),FALSE,0) -> 901.2999878 | PN6: =_xlfn.XLOOKUP(PN5,INDIRECT($P$2&"!A:A"),INDIRECT($P$2&"!C:C"),FALSE,0) -> 889.7000122 | PO6: =_xlfn.XLOOKUP(PO5,INDIRECT($P$2&"!A:A"),INDIRECT($P$2&"!C:C"),FALSE,0) -> 944.2999878 | PP6: =_xlfn.XLOOKUP(PP5,INDIRECT($P$2&"!A:A"),INDIRECT($P$2&"!C:C"),FALSE,0) -> 1005.799988 | PQ6: =_xlfn.XLOOKUP(PQ5,INDIRECT($P$2&"!A:A"),INDIRECT($P$2&"!C:C"),FALSE,0) -> 982.7999878 | PR6: =_xlfn.XLOOKUP(PR5,INDIRECT($P$2&"!A:A"),INDIRECT($P$2&"!C:C"),FALSE,0) -> 946.5999756 | PS6: =_xlfn.XLOOKUP(PS5,INDIRECT($P$2&"!A:A"),INDIRECT($P$2&"!C:C"),FALSE,0) -> 933.7999878 | PT6: =_xlfn.XLOOKUP(PT5,INDIRECT($P$2&"!A:A"),INDIRECT($P$2&"!C:C"),FALSE,0) -> 926 | PU6: =_xlfn.XLOOKUP(PU5,INDIRECT($P$2&"!A:A"),INDIRECT($P$2&"!C:C"),FALSE,0) -> 989.2000122 | PV6: =_xlfn.XLOOKUP(PV5,INDIRECT($P$2&"!A:A"),INDIRECT($P$2&"!C:C"),FALSE,0) -> 900.4000244 | PW6: =_xlfn.XLOOKUP(PW5,INDIRECT($P$2&"!A:A"),INDIRECT($P$2&"!C:C"),FALSE,0) -> 843.2000122 | PX6: =_xlfn.XLOOKUP(PX5,INDIRECT($P$2&"!A:A"),INDIRECT($P$2&"!C:C"),FALSE,0) -> 889.7999878 | PY6: =_xlfn.XLOOKUP(PY5,INDIRECT($P$2&"!A:A"),INDIRECT($P$2&"!C:C"),FALSE,0) -> 919 | PZ6: =_xlfn.XLOOKUP(PZ5,INDIRECT($P$2&"!A:A"),INDIRECT($P$2&"!C:C"),FALSE,0) -> 848.4000244 | QA6: =_xlfn.XLOOKUP(QA5,INDIRECT($P$2&"!A:A"),INDIRECT($P$2&"!C:C"),FALSE,0) -> 865 | QB6: =_xlfn.XLOOKUP(QB5,INDIRECT($P$2&"!A:A"),INDIRECT($P$2&"!C:C"),FALSE,0) -> 850 | QC6: =_xlfn.XLOOKUP(QC5,INDIRECT($P$2&"!A:A"),INDIRECT($P$2&"!C:C"),FALSE,0) -> 806.4000244 | QD6: =_xlfn.XLOOKUP(QD5,INDIRECT($P$2&"!A:A"),INDIRECT($P$2&"!C:C"),FALSE,0) -> 864 | QE6: =_xlfn.XLOOKUP(QE5,INDIRECT($P$2&"!A:A"),INDIRECT($P$2&"!C:C"),FALSE,0) -> 910.5999756 | QF6: =_xlfn.XLOOKUP(QF5,INDIRECT($P$2&"!A:A"),INDIRECT($P$2&"!C:C"),FALSE,0) -> 939.2000122 | QG6: =_xlfn.XLOOKUP(QG5,INDIRECT($P$2&"!A:A"),INDIRECT($P$2&"!C:C"),FALSE,0) -> 920.7999878 | QH6: =_xlfn.XLOOKUP(QH5,INDIRECT($P$2&"!A:A"),INDIRECT($P$2&"!C:C"),FALSE,0) -> 924.0999756 | QI6: =_xlfn.XLOOKUP(QI5,INDIRECT($P$2&"!A:A"),INDIRECT($P$2&"!C:C"),FALSE,0) -> 941.2999878 | QJ6: =_xlfn.XLOOKUP(QJ5,INDIRECT($P$2&"!A:A"),INDIRECT($P$2&"!C:C"),FALSE,0) -> 884.5999756 | QK6: =_xlfn.XLOOKUP(QK5,INDIRECT($P$2&"!A:A"),INDIRECT($P$2&"!C:C"),FALSE,0) -> 935.4000244 | QL6: =_xlfn.XLOOKUP(QL5,INDIRECT($P$2&"!A:A"),INDIRECT($P$2&"!C:C"),FALSE,0) -> 1006.599976 | QM6: =_xlfn.XLOOKUP(QM5,INDIRECT($P$2&"!A:A"),INDIRECT($P$2&"!C:C"),FALSE,0) -> 1059.800049 | QN6: =_xlfn.XLOOKUP(QN5,INDIRECT($P$2&"!A:A"),INDIRECT($P$2&"!C:C"),FALSE,0) -> 1079.599976 | QO6: =_xlfn.XLOOKUP(QO5,INDIRECT($P$2&"!A:A"),INDIRECT($P$2&"!C:C"),FALSE,0) -> 1130.800049 | QP6: =_xlfn.XLOOKUP(QP5,INDIRECT($P$2&"!A:A"),INDIRECT($P$2&"!C:C"),FALSE,0) -> 1172.400024 | QQ6: =_xlfn.XLOOKUP(QQ5,INDIRECT($P$2&"!A:A"),INDIRECT($P$2&"!C:C"),FALSE,0) -> 1194 | QR6: =_xlfn.XLOOKUP(QR5,INDIRECT($P$2&"!A:A"),INDIRECT($P$2&"!C:C"),FALSE,0) -> 1171 | QS6: =_xlfn.XLOOKUP(QS5,INDIRECT($P$2&"!A:A"),INDIRECT($P$2&"!C:C"),FALSE,0) -> 1052 | QT6: =_xlfn.XLOOKUP(QT5,INDIRECT($P$2&"!A:A"),INDIRECT($P$2&"!C:C"),FALSE,0) -> 1131.5 | QU6: =_xlfn.XLOOKUP(QU5,INDIRECT($P$2&"!A:A"),INDIRECT($P$2&"!C:C"),FALSE,0) -> 1078 | QV6: =_xlfn.XLOOKUP(QV5,INDIRECT($P$2&"!A:A"),INDIRECT($P$2&"!C:C"),FALSE,0) -> 931 | QW6: =_xlfn.XLOOKUP(QW5,INDIRECT($P$2&"!A:A"),INDIRECT($P$2&"!C:C"),FALSE,0) -> 948.4000244 | QX6: =_xlfn.XLOOKUP(QX5,INDIRECT($P$2&"!A:A"),INDIRECT($P$2&"!C:C"),FALSE,0) -> 1014.5 | QY6: =_xlfn.XLOOKUP(QY5,INDIRECT($P$2&"!A:A"),INDIRECT($P$2&"!C:C"),FALSE,0) -> 997.4000244 | QZ6: =_xlfn.XLOOKUP(QZ5,INDIRECT($P$2&"!A:A"),INDIRECT($P$2&"!C:C"),FALSE,0) -> 1025 | RA6: =_xlfn.XLOOKUP(RA5,INDIRECT($P$2&"!A:A"),INDIRECT($P$2&"!C:C"),FALSE,0) -> 1048 | RB6: =_xlfn.XLOOKUP(RB5,INDIRECT($P$2&"!A:A"),INDIRECT($P$2&"!C:C"),FALSE,0) -> 1096.5 | RC6: =_xlfn.XLOOKUP(RC5,INDIRECT($P$2&"!A:A"),INDIRECT($P$2&"!C:C"),FALSE,0) -> 1144.5 | RD6: =_xlfn.XLOOKUP(RD5,INDIRECT($P$2&"!A:A"),INDIRECT($P$2&"!C:C"),FALSE,0) -> 1106 | RE6: =_xlfn.XLOOKUP(RE5,INDIRECT($P$2&"!A:A"),INDIRECT($P$2&"!C:C"),FALSE,0) -> 1040.5 | RF6: =_xlfn.XLOOKUP(RF5,INDIRECT($P$2&"!A:A"),INDIRECT($P$2&"!C:C"),FALSE,0) -> 1031.5 | RG6: =_xlfn.XLOOKUP(RG5,INDIRECT($P$2&"!A:A"),INDIRECT($P$2&"!C:C"),FALSE,0) -> 990.2000122 | RH6: =_xlfn.XLOOKUP(RH5,INDIRECT($P$2&"!A:A"),INDIRECT($P$2&"!C:C"),FALSE,0) -> 980 | RI6: =_xlfn.XLOOKUP(RI5,INDIRECT($P$2&"!A:A"),INDIRECT($P$2&"!C:C"),FALSE,0) -> 978.5999756 | RJ6: =_xlfn.XLOOKUP(RJ5,INDIRECT($P$2&"!A:A"),INDIRECT($P$2&"!C:C"),FALSE,0) -> 1027.5 | RK6: =_xlfn.XLOOKUP(RK5,INDIRECT($P$2&"!A:A"),INDIRECT($P$2&"!C:C"),FALSE,0) -> 1058 | RL6: =_xlfn.XLOOKUP(RL5,INDIRECT($P$2&"!A:A"),INDIRECT($P$2&"!C:C"),FALSE,0) -> 1055 | RM6: =_xlfn.XLOOKUP(RM5,INDIRECT($P$2&"!A:A"),INDIRECT($P$2&"!C:C"),FALSE,0) -> 1037.5 | RN6: =_xlfn.XLOOKUP(RN5,INDIRECT($P$2&"!A:A"),INDIRECT($P$2&"!C:C"),FALSE,0) -> 1066 | RO6: =_xlfn.XLOOKUP(RO5,INDIRECT($P$2&"!A:A"),INDIRECT($P$2&"!C:C"),FALSE,0) -> 1048 | RP6: =_xlfn.XLOOKUP(RP5,INDIRECT($P$2&"!A:A"),INDIRECT($P$2&"!C:C"),FALSE,0) -> 882.4000244 | RQ6: =_xlfn.XLOOKUP(RQ5,INDIRECT($P$2&"!A:A"),INDIRECT($P$2&"!C:C"),FALSE,0) -> 882.5999756 | RR6: =_xlfn.XLOOKUP(RR5,INDIRECT($P$2&"!A:A"),INDIRECT($P$2&"!C:C"),FALSE,0) -> 986 | RS6: =_xlfn.XLOOKUP(RS5,INDIRECT($P$2&"!A:A"),INDIRECT($P$2&"!C:C"),FALSE,0) -> 998.5999756 | RT6: =_xlfn.XLOOKUP(RT5,INDIRECT($P$2&"!A:A"),INDIRECT($P$2&"!C:C"),FALSE,0) -> 1030 | RU6: =_xlfn.XLOOKUP(RU5,INDIRECT($P$2&"!A:A"),INDIRECT($P$2&"!C:C"),FALSE,0) -> 976.2000122 | RV6: =_xlfn.XLOOKUP(RV5,INDIRECT($P$2&"!A:A"),INDIRECT($P$2&"!C:C"),FALSE,0) -> 992.5999756 | RW6: =_xlfn.XLOOKUP(RW5,INDIRECT($P$2&"!A:A"),INDIRECT($P$2&"!C:C"),FALSE,0) -> 950 | RX6: =_xlfn.XLOOKUP(RX5,INDIRECT($P$2&"!A:A"),INDIRECT($P$2&"!C:C"),FALSE,0) -> 979.7999878 | RY6: =_xlfn.XLOOKUP(RY5,INDIRECT($P$2&"!A:A"),INDIRECT($P$2&"!C:C"),FALSE,0) -> 975 | RZ6: =_xlfn.XLOOKUP(RZ5,INDIRECT($P$2&"!A:A"),INDIRECT($P$2&"!C:C"),FALSE,0) -> 1009.5 | SA6: =_xlfn.XLOOKUP(SA5,INDIRECT($P$2&"!A:A"),INDIRECT($P$2&"!C:C"),FALSE,0) -> 1083 | SB6: =_xlfn.XLOOKUP(SB5,INDIRECT($P$2&"!A:A"),INDIRECT($P$2&"!C:C"),FALSE,0) -> 1046.5 | SC6: =_xlfn.XLOOKUP(SC5,INDIRECT($P$2&"!A:A"),INDIRECT($P$2&"!C:C"),FALSE,0) -> 1061.5 | SD6: =_xlfn.XLOOKUP(SD5,INDIRECT($P$2&"!A:A"),INDIRECT($P$2&"!C:C"),FALSE,0) -> 1060 | SE6: =_xlfn.XLOOKUP(SE5,INDIRECT($P$2&"!A:A"),INDIRECT($P$2&"!C:C"),FALSE,0) -> 1041 | SF6: =_xlfn.XLOOKUP(SF5,INDIRECT($P$2&"!A:A"),INDIRECT($P$2&"!C:C"),FALSE,0) -> 1067.5 | SG6: =_xlfn.XLOOKUP(SG5,INDIRECT($P$2&"!A:A"),INDIRECT($P$2&"!C:C"),FALSE,0) -> 1140 | SH6: =_xlfn.XLOOKUP(SH5,INDIRECT($P$2&"!A:A"),INDIRECT($P$2&"!C:C"),FALSE,0) -> 1146.5 | SI6: =_xlfn.XLOOKUP(SI5,INDIRECT($P$2&"!A:A"),INDIRECT($P$2&"!C:C"),FALSE,0) -> 1141.5 | SJ6: =_xlfn.XLOOKUP(SJ5,INDIRECT($P$2&"!A:A"),INDIRECT($P$2&"!C:C"),FALSE,0) -> 1234.5 | SK6: =_xlfn.XLOOKUP(SK5,INDIRECT($P$2&"!A:A"),INDIRECT($P$2&"!C:C"),FALSE,0) -> 1391 | SL6: =_xlfn.XLOOKUP(SL5,INDIRECT($P$2&"!A:A"),INDIRECT($P$2&"!C:C"),FALSE,0) -> 1269.5 | SM6: =_xlfn.XLOOKUP(SM5,INDIRECT($P$2&"!A:A"),INDIRECT($P$2&"!C:C"),FALSE,0) -> 1312.199951 | SN6: =_xlfn.XLOOKUP(SN5,INDIRECT($P$2&"!A:A"),INDIRECT($P$2&"!C:C"),FALSE,0) -> 1195.5 | SO6: =_xlfn.XLOOKUP(SO5,INDIRECT($P$2&"!A:A"),INDIRECT($P$2&"!C:C"),FALSE,0) -> 1202.5 | SP6: =_xlfn.XLOOKUP(SP5,INDIRECT($P$2&"!A:A"),INDIRECT($P$2&"!C:C"),FALSE,0) -> FALSE | SQ6: =_xlfn.XLOOKUP(SQ5,INDIRECT($P$2&"!A:A"),INDIRECT($P$2&"!C:C"),FALSE,0) -> FALSE
D7: Adjusted Closing Price | L7: =_xlfn.XLOOKUP(L5,INDIRECT($P$2&"!A:A"),INDIRECT($P$2&"!B:B"),FALSE) -> FALSE | M7: =_xlfn.XLOOKUP(M5,INDIRECT($P$2&"!A:A"),INDIRECT($P$2&"!B:B"),FALSE) -> FALSE | N7: =_xlfn.XLOOKUP(N5,INDIRECT($P$2&"!A:A"),INDIRECT($P$2&"!B:B"),FALSE) -> FALSE | O7: =_xlfn.XLOOKUP(O5,INDIRECT($P$2&"!A:A"),INDIRECT($P$2&"!B:B"),FALSE) -> FALSE | P7: =_xlfn.XLOOKUP(P5,INDIRECT($P$2&"!A:A"),INDIRECT($P$2&"!B:B"),FALSE) -> FALSE | Q7: =_xlfn.XLOOKUP(Q5,INDIRECT($P$2&"!A:A"),INDIRECT($P$2&"!B:B"),FALSE) -> FALSE | R7: =_xlfn.XLOOKUP(R5,INDIRECT($P$2&"!A:A"),INDIRECT($P$2&"!B:B"),FALSE) -> FALSE | S7: =_xlfn.XLOOKUP(S5,INDIRECT($P$2&"!A:A"),INDIRECT($P$2&"!B:B"),FALSE) -> FALSE | T7: =_xlfn.XLOOKUP(T5,INDIRECT($P$2&"!A:A"),INDIRECT($P$2&"!B:B"),FALSE) -> FALSE | U7: =_xlfn.XLOOKUP(U5,INDIRECT($P$2&"!A:A"),INDIRECT($P$2&"!B:B"),FALSE) -> FALSE | V7: =_xlfn.XLOOKUP(V5,INDIRECT($P$2&"!A:A"),INDIRECT($P$2&"!B:B"),FALSE) -> FALSE | W7: =_xlfn.XLOOKUP(W5,INDIRECT($P$2&"!A:A"),INDIRECT($P$2&"!B:B"),FALSE) -> FALSE | X7: =_xlfn.XLOOKUP(X5,INDIRECT($P$2&"!A:A"),INDIRECT($P$2&"!B:B"),FALSE) -> FALSE | Y7: =_xlfn.XLOOKUP(Y5,INDIRECT($P$2&"!A:A"),INDIRECT($P$2&"!B:B"),FALSE) -> FALSE | Z7: =_xlfn.XLOOKUP(Z5,INDIRECT($P$2&"!A:A"),INDIRECT($P$2&"!B:B"),FALSE) -> FALSE | AA7: =_xlfn.XLOOKUP(AA5,INDIRECT($P$2&"!A:A"),INDIRECT($P$2&"!B:B"),FALSE) -> FALSE | AB7: =_xlfn.XLOOKUP(AB5,INDIRECT($P$2&"!A:A"),INDIRECT($P$2&"!B:B"),FALSE) -> FALSE | AC7: =_xlfn.XLOOKUP(AC5,INDIRECT($P$2&"!A:A"),INDIRECT($P$2&"!B:B"),FALSE) -> FALSE | AD7: =_xlfn.XLOOKUP(AD5,INDIRECT($P$2&"!A:A"),INDIRECT($P$2&"!B:B"),FALSE) -> FALSE | AE7: =_xlfn.XLOOKUP(AE5,INDIRECT($P$2&"!A:A"),INDIRECT($P$2&"!B:B"),FALSE) -> FALSE | AF7: =_xlfn.XLOOKUP(AF5,INDIRECT($P$2&"!A:A"),INDIRECT($P$2&"!B:B"),FALSE) -> FALSE | AG7: =_xlfn.XLOOKUP(AG5,INDIRECT($P$2&"!A:A"),INDIRECT($P$2&"!B:B"),FALSE) -> FALSE | AH7: =_xlfn.XLOOKUP(AH5,INDIRECT($P$2&"!A:A"),INDIRECT($P$2&"!B:B"),FALSE) -> FALSE | AI7: =_xlfn.XLOOKUP(AI5,INDIRECT($P$2&"!A:A"),INDIRECT($P$2&"!B:B"),FALSE) -> FALSE | AJ7: =_xlfn.XLOOKUP(AJ5,INDIRECT($P$2&"!A:A"),INDIRECT($P$2&"!B:B"),FALSE) -> FALSE | AK7: =_xlfn.XLOOKUP(AK5,INDIRECT($P$2&"!A:A"),INDIRECT($P$2&"!B:B"),FALSE) -> FALSE | AL7: =_xlfn.XLOOKUP(AL5,INDIRECT($P$2&"!A:A"),INDIRECT($P$2&"!B:B"),FALSE) -> FALSE | AM7: =_xlfn.XLOOKUP(AM5,INDIRECT($P$2&"!A:A"),INDIRECT($P$2&"!B:B"),FALSE) -> FALSE | AN7: =_xlfn.XLOOKUP(AN5,INDIRECT($P$2&"!A:A"),INDIRECT($P$2&"!B:B"),FALSE) -> FALSE | AO7: =_xlfn.XLOOKUP(AO5,INDIRECT($P$2&"!A:A"),INDIRECT($P$2&"!B:B"),FALSE) -> FALSE | AP7: =_xlfn.XLOOKUP(AP5,INDIRECT($P$2&"!A:A"),INDIRECT($P$2&"!B:B"),FALSE) -> FALSE | AQ7: =_xlfn.XLOOKUP(AQ5,INDIRECT($P$2&"!A:A"),INDIRECT($P$2&"!B:B"),FALSE) -> FALSE | AR7: =_xlfn.XLOOKUP(AR5,INDIRECT($P$2&"!A:A"),INDIRECT($P$2&"!B:B"),FALSE) -> FALSE | AS7: =_xlfn.XLOOKUP(AS5,INDIRECT($P$2&"!A:A"),INDIRECT($P$2&"!B:B"),FALSE) -> FALSE | AT7: =_xlfn.XLOOKUP(AT5,INDIRECT($P$2&"!A:A"),INDIRECT($P$2&"!B:B"),FALSE) -> FALSE | AU7: =_xlfn.XLOOKUP(AU5,INDIRECT($P$2&"!A:A"),INDIRECT($P$2&"!B:B"),FALSE) -> FALSE | AV7: =_xlfn.XLOOKUP(AV5,INDIRECT($P$2&"!A:A"),INDIRECT($P$2&"!B:B"),FALSE) -> FALSE | AW7: =_xlfn.XLOOKUP(AW5,INDIRECT($P$2&"!A:A"),INDIRECT($P$2&"!B:B"),FALSE) -> FALSE | AX7: =_xlfn.XLOOKUP(AX5,INDIRECT($P$2&"!A:A"),INDIRECT($P$2&"!B:B"),FALSE) -> FALSE | AY7: =_xlfn.XLOOKUP(AY5,INDIRECT($P$2&"!A:A"),INDIRECT($P$2&"!B:B"),FALSE) -> FALSE | AZ7: =_xlfn.XLOOKUP(AZ5,INDIRECT($P$2&"!A:A"),INDIRECT($P$2&"!B:B"),FALSE) -> FALSE | BA7: =_xlfn.XLOOKUP(BA5,INDIRECT($P$2&"!A:A"),INDIRECT($P$2&"!B:B"),FALSE) -> FALSE | BB7: =_xlfn.XLOOKUP(BB5,INDIRECT($P$2&"!A:A"),INDIRECT($P$2&"!B:B"),FALSE) -> FALSE | BC7: =_xlfn.XLOOKUP(BC5,INDIRECT($P$2&"!A:A"),INDIRECT($P$2&"!B:B"),FALSE) -> FALSE | BD7: =_xlfn.XLOOKUP(BD5,INDIRECT($P$2&"!A:A"),INDIRECT($P$2&"!B:B"),FALSE) -> FALSE | BE7: =_xlfn.XLOOKUP(BE5,INDIRECT($P$2&"!A:A"),INDIRECT($P$2&"!B:B"),FALSE) -> FALSE | BF7: =_xlfn.XLOOKUP(BF5,INDIRECT($P$2&"!A:A"),INDIRECT($P$2&"!B:B"),FALSE) -> FALSE | BG7: =_xlfn.XLOOKUP(BG5,INDIRECT($P$2&"!A:A"),INDIRECT($P$2&"!B:B"),FALSE) -> FALSE | BH7: =_xlfn.XLOOKUP(BH5,INDIRECT($P$2&"!A:A"),INDIRECT($P$2&"!B:B"),FALSE) -> FALSE | BI7: =_xlfn.XLOOKUP(BI5,INDIRECT($P$2&"!A:A"),INDIRECT($P$2&"!B:B"),FALSE) -> FALSE | BJ7: =_xlfn.XLOOKUP(BJ5,INDIRECT($P$2&"!A:A"),INDIRECT($P$2&"!B:B"),FALSE) -> FALSE | BK7: =_xlfn.XLOOKUP(BK5,INDIRECT($P$2&"!A:A"),INDIRECT($P$2&"!B:B"),FALSE) -> FALSE | BL7: =_xlfn.XLOOKUP(BL5,INDIRECT($P$2&"!A:A"),INDIRECT($P$2&"!B:B"),FALSE) -> FALSE | BM7: =_xlfn.XLOOKUP(BM5,INDIRECT($P$2&"!A:A"),INDIRECT($P$2&"!B:B"),FALSE) -> FALSE | BN7: =_xlfn.XLOOKUP(BN5,INDIRECT($P$2&"!A:A"),INDIRECT($P$2&"!B:B"),FALSE) -> FALSE | BO7: =_xlfn.XLOOKUP(BO5,INDIRECT($P$2&"!A:A"),INDIRECT($P$2&"!B:B"),FALSE) -> FALSE | BP7: =_xlfn.XLOOKUP(BP5,INDIRECT($P$2&"!A:A"),INDIRECT($P$2&"!B:B"),FALSE) -> FALSE | BQ7: =_xlfn.XLOOKUP(BQ5,INDIRECT($P$2&"!A:A"),INDIRECT($P$2&"!B:B"),FALSE) -> FALSE | BR7: =_xlfn.XLOOKUP(BR5,INDIRECT($P$2&"!A:A"),INDIRECT($P$2&"!B:B"),FALSE) -> FALSE | BS7: =_xlfn.XLOOKUP(BS5,INDIRECT($P$2&"!A:A"),INDIRECT($P$2&"!B:B"),FALSE) -> FALSE | BT7: =_xlfn.XLOOKUP(BT5,INDIRECT($P$2&"!A:A"),INDIRECT($P$2&"!B:B"),FALSE) -> FALSE | BU7: =_xlfn.XLOOKUP(BU5,INDIRECT($P$2&"!A:A"),INDIRECT($P$2&"!B:B"),FALSE) -> FALSE | BV7: =_xlfn.XLOOKUP(BV5,INDIRECT($P$2&"!A:A"),INDIRECT($P$2&"!B:B"),FALSE) -> FALSE | BW7: =_xlfn.XLOOKUP(BW5,INDIRECT($P$2&"!A:A"),INDIRECT($P$2&"!B:B"),FALSE) -> FALSE | BX7: =_xlfn.XLOOKUP(BX5,INDIRECT($P$2&"!A:A"),INDIRECT($P$2&"!B:B"),FALSE) -> FALSE | BY7: =_xlfn.XLOOKUP(BY5,INDIRECT($P$2&"!A:A"),INDIRECT($P$2&"!B:B"),FALSE) -> FALSE | BZ7: =_xlfn.XLOOKUP(BZ5,INDIRECT($P$2&"!A:A"),INDIRECT($P$2&"!B:B"),FALSE) -> FALSE | CA7: =_xlfn.XLOOKUP(CA5,INDIRECT($P$2&"!A:A"),INDIRECT($P$2&"!B:B"),FALSE) -> FALSE | CB7: =_xlfn.XLOOKUP(CB5,INDIRECT($P$2&"!A:A"),INDIRECT($P$2&"!B:B"),FALSE) -> FALSE | CC7: =_xlfn.XLOOKUP(CC5,INDIRECT($P$2&"!A:A"),INDIRECT($P$2&"!B:B"),FALSE) -> FALSE | CD7: =_xlfn.XLOOKUP(CD5,INDIRECT($P$2&"!A:A"),INDIRECT($P$2&"!B:B"),FALSE) -> FALSE | CE7: =_xlfn.XLOOKUP(CE5,INDIRECT($P$2&"!A:A"),INDIRECT($P$2&"!B:B"),FALSE) -> FALSE | CF7: =_xlfn.XLOOKUP(CF5,INDIRECT($P$2&"!A:A"),INDIRECT($P$2&"!B:B"),FALSE) -> FALSE | CG7: =_xlfn.XLOOKUP(CG5,INDIRECT($P$2&"!A:A"),INDIRECT($P$2&"!B:B"),FALSE) -> FALSE | CH7: =_xlfn.XLOOKUP(CH5,INDIRECT($P$2&"!A:A"),INDIRECT($P$2&"!B:B"),FALSE) -> FALSE | CI7: =_xlfn.XLOOKUP(CI5,INDIRECT($P$2&"!A:A"),INDIRECT($P$2&"!B:B"),FALSE) -> FALSE | CJ7: =_xlfn.XLOOKUP(CJ5,INDIRECT($P$2&"!A:A"),INDIRECT($P$2&"!B:B"),FALSE) -> FALSE | CK7: =_xlfn.XLOOKUP(CK5,INDIRECT($P$2&"!A:A"),INDIRECT($P$2&"!B:B"),FALSE) -> FALSE | CL7: =_xlfn.XLOOKUP(CL5,INDIRECT($P$2&"!A:A"),INDIRECT($P$2&"!B:B"),FALSE) -> FALSE | CM7: =_xlfn.XLOOKUP(CM5,INDIRECT($P$2&"!A:A"),INDIRECT($P$2&"!B:B"),FALSE) -> FALSE | CN7: =_xlfn.XLOOKUP(CN5,INDIRECT($P$2&"!A:A"),INDIRECT($P$2&"!B:B"),FALSE) -> FALSE | CO7: =_xlfn.XLOOKUP(CO5,INDIRECT($P$2&"!A:A"),INDIRECT($P$2&"!B:B"),FALSE) -> FALSE | CP7: =_xlfn.XLOOKUP(CP5,INDIRECT($P$2&"!A:A"),INDIRECT($P$2&"!B:B"),FALSE) -> FALSE | CQ7: =_xlfn.XLOOKUP(CQ5,INDIRECT($P$2&"!A:A"),INDIRECT($P$2&"!B:B"),FALSE) -> FALSE | CR7: =_xlfn.XLOOKUP(CR5,INDIRECT($P$2&"!A:A"),INDIRECT($P$2&"!B:B"),FALSE) -> FALSE | CS7: =_xlfn.XLOOKUP(CS5,INDIRECT($P$2&"!A:A"),INDIRECT($P$2&"!B:B"),FALSE) -> FALSE | CT7: =_xlfn.XLOOKUP(CT5,INDIRECT($P$2&"!A:A"),INDIRECT($P$2&"!B:B"),FALSE) -> FALSE | CU7: =_xlfn.XLOOKUP(CU5,INDIRECT($P$2&"!A:A"),INDIRECT($P$2&"!B:B"),FALSE) -> FALSE | CV7: =_xlfn.XLOOKUP(CV5,INDIRECT($P$2&"!A:A"),INDIRECT($P$2&"!B:B"),FALSE) -> FALSE | CW7: =_xlfn.XLOOKUP(CW5,INDIRECT($P$2&"!A:A"),INDIRECT($P$2&"!B:B"),FALSE) -> FALSE | CX7: =_xlfn.XLOOKUP(CX5,INDIRECT($P$2&"!A:A"),INDIRECT($P$2&"!B:B"),FALSE) -> FALSE | CY7: =_xlfn.XLOOKUP(CY5,INDIRECT($P$2&"!A:A"),INDIRECT($P$2&"!B:B"),FALSE) -> FALSE | CZ7: =_xlfn.XLOOKUP(CZ5,INDIRECT($P$2&"!A:A"),INDIRECT($P$2&"!B:B"),FALSE) -> FALSE | DA7: =_xlfn.XLOOKUP(DA5,INDIRECT($P$2&"!A:A"),INDIRECT($P$2&"!B:B"),FALSE) -> FALSE | DB7: =_xlfn.XLOOKUP(DB5,INDIRECT($P$2&"!A:A"),INDIRECT($P$2&"!B:B"),FALSE) -> FALSE | DC7: =_xlfn.XLOOKUP(DC5,INDIRECT($P$2&"!A:A"),INDIRECT($P$2&"!B:B"),FALSE) -> FALSE | DD7: =_xlfn.XLOOKUP(DD5,INDIRECT($P$2&"!A:A"),INDIRECT($P$2&"!B:B"),FALSE) -> FALSE | DE7: =_xlfn.XLOOKUP(DE5,INDIRECT($P$2&"!A:A"),INDIRECT($P$2&"!B:B"),FALSE) -> FALSE | DF7: =_xlfn.XLOOKUP(DF5,INDIRECT($P$2&"!A:A"),INDIRECT($P$2&"!B:B"),FALSE) -> FALSE | DG7: =_xlfn.XLOOKUP(DG5,INDIRECT($P$2&"!A:A"),INDIRECT($P$2&"!B:B"),FALSE) -> FALSE | DH7: =_xlfn.XLOOKUP(DH5,INDIRECT($P$2&"!A:A"),INDIRECT($P$2&"!B:B"),FALSE) -> FALSE | DI7: =_xlfn.XLOOKUP(DI5,INDIRECT($P$2&"!A:A"),INDIRECT($P$2&"!B:B"),FALSE) -> FALSE | DJ7: =_xlfn.XLOOKUP(DJ5,INDIRECT($P$2&"!A:A"),INDIRECT($P$2&"!B:B"),FALSE) -> FALSE | DK7: =_xlfn.XLOOKUP(DK5,INDIRECT($P$2&"!A:A"),INDIRECT($P$2&"!B:B"),FALSE) -> FALSE | DL7: =_xlfn.XLOOKUP(DL5,INDIRECT($P$2&"!A:A"),INDIRECT($P$2&"!B:B"),FALSE) -> FALSE | DM7: =_xlfn.XLOOKUP(DM5,INDIRECT($P$2&"!A:A"),INDIRECT($P$2&"!B:B"),FALSE) -> FALSE | DN7: =_xlfn.XLOOKUP(DN5,INDIRECT($P$2&"!A:A"),INDIRECT($P$2&"!B:B"),FALSE) -> FALSE | DO7: =_xlfn.XLOOKUP(DO5,INDIRECT($P$2&"!A:A"),INDIRECT($P$2&"!B:B"),FALSE) -> FALSE | DP7: =_xlfn.XLOOKUP(DP5,INDIRECT($P$2&"!A:A"),INDIRECT($P$2&"!B:B"),FALSE) -> FALSE | DQ7: =_xlfn.XLOOKUP(DQ5,INDIRECT($P$2&"!A:A"),INDIRECT($P$2&"!B:B"),FALSE) -> FALSE | DR7: =_xlfn.XLOOKUP(DR5,INDIRECT($P$2&"!A:A"),INDIRECT($P$2&"!B:B"),FALSE) -> FALSE | DS7: =_xlfn.XLOOKUP(DS5,INDIRECT($P$2&"!A:A"),INDIRECT($P$2&"!B:B"),FALSE) -> FALSE | DT7: =_xlfn.XLOOKUP(DT5,INDIRECT($P$2&"!A:A"),INDIRECT($P$2&"!B:B"),FALSE) -> FALSE | DU7: =_xlfn.XLOOKUP(DU5,INDIRECT($P$2&"!A:A"),INDIRECT($P$2&"!B:B"),FALSE) -> FALSE | DV7: =_xlfn.XLOOKUP(DV5,INDIRECT($P$2&"!A:A"),INDIRECT($P$2&"!B:B"),FALSE) -> FALSE | DW7: =_xlfn.XLOOKUP(DW5,INDIRECT($P$2&"!A:A"),INDIRECT($P$2&"!B:B"),FALSE) -> FALSE | DX7: =_xlfn.XLOOKUP(DX5,INDIRECT($P$2&"!A:A"),INDIRECT($P$2&"!B:B"),FALSE) -> FALSE | DY7: =_xlfn.XLOOKUP(DY5,INDIRECT($P$2&"!A:A"),INDIRECT($P$2&"!B:B"),FALSE) -> FALSE | DZ7: =_xlfn.XLOOKUP(DZ5,INDIRECT($P$2&"!A:A"),INDIRECT($P$2&"!B:B"),FALSE) -> FALSE | EA7: =_xlfn.XLOOKUP(EA5,INDIRECT($P$2&"!A:A"),INDIRECT($P$2&"!B:B"),FALSE) -> FALSE | EB7: =_xlfn.XLOOKUP(EB5,INDIRECT($P$2&"!A:A"),INDIRECT($P$2&"!B:B"),FALSE) -> FALSE | EC7: =_xlfn.XLOOKUP(EC5,INDIRECT($P$2&"!A:A"),INDIRECT($P$2&"!B:B"),FALSE) -> FALSE | ED7: =_xlfn.XLOOKUP(ED5,INDIRECT($P$2&"!A:A"),INDIRECT($P$2&"!B:B"),FALSE) -> FALSE | EE7: =_xlfn.XLOOKUP(EE5,INDIRECT($P$2&"!A:A"),INDIRECT($P$2&"!B:B"),FALSE) -> FALSE | EF7: =_xlfn.XLOOKUP(EF5,INDIRECT($P$2&"!A:A"),INDIRECT($P$2&"!B:B"),FALSE) -> FALSE | EG7: =_xlfn.XLOOKUP(EG5,INDIRECT($P$2&"!A:A"),INDIRECT($P$2&"!B:B"),FALSE) -> FALSE | EH7: =_xlfn.XLOOKUP(EH5,INDIRECT($P$2&"!A:A"),INDIRECT($P$2&"!B:B"),FALSE) -> FALSE | EI7: =_xlfn.XLOOKUP(EI5,INDIRECT($P$2&"!A:A"),INDIRECT($P$2&"!B:B"),FALSE) -> FALSE | EJ7: =_xlfn.XLOOKUP(EJ5,INDIRECT($P$2&"!A:A"),INDIRECT($P$2&"!B:B"),FALSE) -> FALSE | EK7: =_xlfn.XLOOKUP(EK5,INDIRECT($P$2&"!A:A"),INDIRECT($P$2&"!B:B"),FALSE) -> FALSE | EL7: =_xlfn.XLOOKUP(EL5,INDIRECT($P$2&"!A:A"),INDIRECT($P$2&"!B:B"),FALSE) -> FALSE | EM7: =_xlfn.XLOOKUP(EM5,INDIRECT($P$2&"!A:A"),INDIRECT($P$2&"!B:B"),FALSE) -> 254.6296539 | EN7: =_xlfn.XLOOKUP(EN5,INDIRECT($P$2&"!A:A"),INDIRECT($P$2&"!B:B"),FALSE) -> 256.54422 | EO7: =_xlfn.XLOOKUP(EO5,INDIRECT($P$2&"!A:A"),INDIRECT($P$2&"!B:B"),FALSE) -> 249.5243378 | EP7: =_xlfn.XLOOKUP(EP5,INDIRECT($P$2&"!A:A"),INDIRECT($P$2&"!B:B"),FALSE) -> 248.5670929 | EQ7: =_xlfn.XLOOKUP(EQ5,INDIRECT($P$2&"!A:A"),INDIRECT($P$2&"!B:B"),FALSE) -> 261.6495667 | ER7: =_xlfn.XLOOKUP(ER5,INDIRECT($P$2&"!A:A"),INDIRECT($P$2&"!B:B"),FALSE) -> 232.2936859 | ES7: =_xlfn.XLOOKUP(ES5,INDIRECT($P$2&"!A:A"),INDIRECT($P$2&"!B:B"),FALSE) -> 217.6158295 | ET7: =_xlfn.XLOOKUP(ET5,INDIRECT($P$2&"!A:A"),INDIRECT($P$2&"!B:B"),FALSE) -> 224.7073212 | EU7: =_xlfn.XLOOKUP(EU5,INDIRECT($P$2&"!A:A"),INDIRECT($P$2&"!B:B"),FALSE) -> 222.1538696 | EV7: =_xlfn.XLOOKUP(EV5,INDIRECT($P$2&"!A:A"),INDIRECT($P$2&"!B:B"),FALSE) -> 217.685318 | EW7: =_xlfn.XLOOKUP(EW5,INDIRECT($P$2&"!A:A"),INDIRECT($P$2&"!B:B"),FALSE) -> 231.0911102 | EX7: =_xlfn.XLOOKUP(EX5,INDIRECT($P$2&"!A:A"),INDIRECT($P$2&"!B:B"),FALSE) -> 249.6039429 | EY7: =_xlfn.XLOOKUP(EY5,INDIRECT($P$2&"!A:A"),INDIRECT($P$2&"!B:B"),FALSE) -> 249.6039429 | EZ7: =_xlfn.XLOOKUP(EZ5,INDIRECT($P$2&"!A:A"),INDIRECT($P$2&"!B:B"),FALSE) -> 266.2572632 | FA7: =_xlfn.XLOOKUP(FA5,INDIRECT($P$2&"!A:A"),INDIRECT($P$2&"!B:B"),FALSE) -> 264.9803772 | FB7: =_xlfn.XLOOKUP(FB5,INDIRECT($P$2&"!A:A"),INDIRECT($P$2&"!B:B"),FALSE) -> 267.5343323 | FC7: =_xlfn.XLOOKUP(FC5,INDIRECT($P$2&"!A:A"),INDIRECT($P$2&"!B:B"),FALSE) -> 285.4125061 | FD7: =_xlfn.XLOOKUP(FD5,INDIRECT($P$2&"!A:A"),INDIRECT($P$2&"!B:B"),FALSE) -> 289.2435913 | FE7: =_xlfn.XLOOKUP(FE5,INDIRECT($P$2&"!A:A"),INDIRECT($P$2&"!B:B"),FALSE) -> 280.3045959 | FF7: =_xlfn.XLOOKUP(FF5,INDIRECT($P$2&"!A:A"),INDIRECT($P$2&"!B:B"),FALSE) -> 328.2825623 | FG7: =_xlfn.XLOOKUP(FG5,INDIRECT($P$2&"!A:A"),INDIRECT($P$2&"!B:B"),FALSE) -> 339.7786865 | FH7: =_xlfn.XLOOKUP(FH5,INDIRECT($P$2&"!A:A"),INDIRECT($P$2&"!B:B"),FALSE) -> 361.4939575 | FI7: =_xlfn.XLOOKUP(FI5,INDIRECT($P$2&"!A:A"),INDIRECT($P$2&"!B:B"),FALSE) -> 358.939209 | FJ7: =_xlfn.XLOOKUP(FJ5,INDIRECT($P$2&"!A:A"),INDIRECT($P$2&"!B:B"),FALSE) -> 375.5449219 | FK7: =_xlfn.XLOOKUP(FK5,INDIRECT($P$2&"!A:A"),INDIRECT($P$2&"!B:B"),FALSE) -> 369.1581726 | FL7: =_xlfn.XLOOKUP(FL5,INDIRECT($P$2&"!A:A"),INDIRECT($P$2&"!B:B"),FALSE) -> 369.2329407 | FM7: =_xlfn.XLOOKUP(FM5,INDIRECT($P$2&"!A:A"),INDIRECT($P$2&"!B:B"),FALSE) -> 370.5223999 | FN7: =_xlfn.XLOOKUP(FN5,INDIRECT($P$2&"!A:A"),INDIRECT($P$2&"!B:B"),FALSE) -> 382.4388733 | FO7: =_xlfn.XLOOKUP(FO5,INDIRECT($P$2&"!A:A"),INDIRECT($P$2&"!B:B"),FALSE) -> 418.1917114 | FP7: =_xlfn.XLOOKUP(FP5,INDIRECT($P$2&"!A:A"),INDIRECT($P$2&"!B:B"),FALSE) -> 408.4409485 | FQ7: =_xlfn.XLOOKUP(FQ5,INDIRECT($P$2&"!A:A"),INDIRECT($P$2&"!B:B"),FALSE) -> 437.6921692 | FR7: =_xlfn.XLOOKUP(FR5,INDIRECT($P$2&"!A:A"),INDIRECT($P$2&"!B:B"),FALSE) -> 461.6164856 | FS7: =_xlfn.XLOOKUP(FS5,INDIRECT($P$2&"!A:A"),INDIRECT($P$2&"!B:B"),FALSE) -> 465.9516602 | FT7: =_xlfn.XLOOKUP(FT5,INDIRECT($P$2&"!A:A"),INDIRECT($P$2&"!B:B"),FALSE) -> 474.6207581 | FU7: =_xlfn.XLOOKUP(FU5,INDIRECT($P$2&"!A:A"),INDIRECT($P$2&"!B:B"),FALSE) -> 443.1958618 | FV7: =_xlfn.XLOOKUP(FV5,INDIRECT($P$2&"!A:A"),INDIRECT($P$2&"!B:B"),FALSE) -> 522.0274658 | FW7: =_xlfn.XLOOKUP(FW5,INDIRECT($P$2&"!A:A"),INDIRECT($P$2&"!B:B"),FALSE) -> 519.9135742 | FX7: =_xlfn.XLOOKUP(FX5,INDIRECT($P$2&"!A:A"),INDIRECT($P$2&"!B:B"),FALSE) -> 535.6282349 | FY7: =_xlfn.XLOOKUP(FY5,INDIRECT($P$2&"!A:A"),INDIRECT($P$2&"!B:B"),FALSE) -> 488.7565613 | FZ7: =_xlfn.XLOOKUP(FZ5,INDIRECT($P$2&"!A:A"),INDIRECT($P$2&"!B:B"),FALSE) -> 489.570282 | GA7: =_xlfn.XLOOKUP(GA5,INDIRECT($P$2&"!A:A"),INDIRECT($P$2&"!B:B"),FALSE) -> 466.2702026 | GB7: =_xlfn.XLOOKUP(GB5,INDIRECT($P$2&"!A:A"),INDIRECT($P$2&"!B:B"),FALSE) -> 459.4966125 | GC7: =_xlfn.XLOOKUP(GC5,INDIRECT($P$2&"!A:A"),INDIRECT($P$2&"!B:B"),FALSE) -> 478.4620667 | GD7: =_xlfn.XLOOKUP(GD5,INDIRECT($P$2&"!A:A"),INDIRECT($P$2&"!B:B"),FALSE) -> 449.8194885 | GE7: =_xlfn.XLOOKUP(GE5,INDIRECT($P$2&"!A:A"),INDIRECT($P$2&"!B:B"),FALSE) -> 450.0905151 | GF7: =_xlfn.XLOOKUP(GF5,INDIRECT($P$2&"!A:A"),INDIRECT($P$2&"!B:B"),FALSE) -> 455.5105896 | GG7: =_xlfn.XLOOKUP(GG5,INDIRECT($P$2&"!A:A"),INDIRECT($P$2&"!B:B"),FALSE) -> 492.6339722 | GH7: =_xlfn.XLOOKUP(GH5,INDIRECT($P$2&"!A:A"),INDIRECT($P$2&"!B:B"),FALSE) -> 521.8995972 | GI7: =_xlfn.XLOOKUP(GI5,INDIRECT($P$2&"!A:A"),INDIRECT($P$2&"!B:B"),FALSE) -> 510.5176086 | GJ7: =_xlfn.XLOOKUP(GJ5,INDIRECT($P$2&"!A:A"),INDIRECT($P$2&"!B:B"),FALSE) -> 460.7047424 | GK7: =_xlfn.XLOOKUP(GK5,INDIRECT($P$2&"!A:A"),INDIRECT($P$2&"!B:B"),FALSE) -> 532.2490845 | GL7: =_xlfn.XLOOKUP(GL5,INDIRECT($P$2&"!A:A"),INDIRECT($P$2&"!B:B"),FALSE) -> 621.1386108 | GM7: =_xlfn.XLOOKUP(GM5,INDIRECT($P$2&"!A:A"),INDIRECT($P$2&"!B:B"),FALSE) -> 571.8164673 | GN7: =_xlfn.XLOOKUP(GN5,INDIRECT($P$2&"!A:A"),INDIRECT($P$2&"!B:B"),FALSE) -> 558.2653809 | GO7: =_xlfn.XLOOKUP(GO5,INDIRECT($P$2&"!A:A"),INDIRECT($P$2&"!B:B"),FALSE) -> 564.8552856 | GP7: =_xlfn.XLOOKUP(GP5,INDIRECT($P$2&"!A:A"),INDIRECT($P$2&"!B:B"),FALSE) -> 594.1273804 | GQ7: =_xlfn.XLOOKUP(GQ5,INDIRECT($P$2&"!A:A"),INDIRECT($P$2&"!B:B"),FALSE) -> 611.4743652 | GR7: =_xlfn.XLOOKUP(GR5,INDIRECT($P$2&"!A:A"),INDIRECT($P$2&"!B:B"),FALSE) -> 629.362854 | GS7: =_xlfn.XLOOKUP(GS5,INDIRECT($P$2&"!A:A"),INDIRECT($P$2&"!B:B"),FALSE) -> 647.7932739 | GT7: =_xlfn.XLOOKUP(GT5,INDIRECT($P$2&"!A:A"),INDIRECT($P$2&"!B:B"),FALSE) -> 672.1881714 | GU7: =_xlfn.XLOOKUP(GU5,INDIRECT($P$2&"!A:A"),INDIRECT($P$2&"!B:B"),FALSE) -> 659.7786255 | GV7: =_xlfn.XLOOKUP(GV5,INDIRECT($P$2&"!A:A"),INDIRECT($P$2&"!B:B"),FALSE) -> 676.5840454 | GW7: =_xlfn.XLOOKUP(GW5,INDIRECT($P$2&"!A:A"),INDIRECT($P$2&"!B:B"),FALSE) -> 635.3825073 | GX7: =_xlfn.XLOOKUP(GX5,INDIRECT($P$2&"!A:A"),INDIRECT($P$2&"!B:B"),FALSE) -> 589.8434448 | GY7: =_xlfn.XLOOKUP(GY5,INDIRECT($P$2&"!A:A"),INDIRECT($P$2&"!B:B"),FALSE) -> 580.0836792 | GZ7: =_xlfn.XLOOKUP(GZ5,INDIRECT($P$2&"!A:A"),INDIRECT($P$2&"!B:B"),FALSE) -> 610.4447021 | HA7: =_xlfn.XLOOKUP(HA5,INDIRECT($P$2&"!A:A"),INDIRECT($P$2&"!B:B"),FALSE) -> 568.2404785 | HB7: =_xlfn.XLOOKUP(HB5,INDIRECT($P$2&"!A:A"),INDIRECT($P$2&"!B:B"),FALSE) -> 515.1030884 | HC7: =_xlfn.XLOOKUP(HC5,INDIRECT($P$2&"!A:A"),INDIRECT($P$2&"!B:B"),FALSE) -> 508.5960388 | HD7: =_xlfn.XLOOKUP(HD5,INDIRECT($P$2&"!A:A"),INDIRECT($P$2&"!B:B"),FALSE) -> 466.3040466 | HE7: =_xlfn.XLOOKUP(HE5,INDIRECT($P$2&"!A:A"),INDIRECT($P$2&"!B:B"),FALSE) -> 529.2003784 | HF7: =_xlfn.XLOOKUP(HF5,INDIRECT($P$2&"!A:A"),INDIRECT($P$2&"!B:B"),FALSE) -> 480.4013062 | HG7: =_xlfn.XLOOKUP(HG5,INDIRECT($P$2&"!A:A"),INDIRECT($P$2&"!B:B"),FALSE) -> 464.1940308 | HH7: =_xlfn.XLOOKUP(HH5,INDIRECT($P$2&"!A:A"),INDIRECT($P$2&"!B:B"),FALSE) -> 486.9700317 | HI7: =_xlfn.XLOOKUP(HI5,INDIRECT($P$2&"!A:A"),INDIRECT($P$2&"!B:B"),FALSE) -> 501.3402405 | HJ7: =_xlfn.XLOOKUP(HJ5,INDIRECT($P$2&"!A:A"),INDIRECT($P$2&"!B:B"),FALSE) -> 502.4256897 | HK7: =_xlfn.XLOOKUP(HK5,INDIRECT($P$2&"!A:A"),INDIRECT($P$2&"!B:B"),FALSE) -> 533.6064453 | HL7: =_xlfn.XLOOKUP(HL5,INDIRECT($P$2&"!A:A"),INDIRECT($P$2&"!B:B"),FALSE) -> 542.2841797 | HM7: =_xlfn.XLOOKUP(HM5,INDIRECT($P$2&"!A:A"),INDIRECT($P$2&"!B:B"),FALSE) -> 505.4079895 | HN7: =_xlfn.XLOOKUP(HN5,INDIRECT($P$2&"!A:A"),INDIRECT($P$2&"!B:B"),FALSE) -> 479.1922607 | HO7: =_xlfn.XLOOKUP(HO5,INDIRECT($P$2&"!A:A"),INDIRECT($P$2&"!B:B"),FALSE) -> 489.7676697 | HP7: =_xlfn.XLOOKUP(HP5,INDIRECT($P$2&"!A:A"),INDIRECT($P$2&"!B:B"),FALSE) -> 489.7676697 | HQ7: =_xlfn.XLOOKUP(HQ5,INDIRECT($P$2&"!A:A"),INDIRECT($P$2&"!B:B"),FALSE) -> 493.565094 | HR7: =_xlfn.XLOOKUP(HR5,INDIRECT($P$2&"!A:A"),INDIRECT($P$2&"!B:B"),FALSE) -> 467.8023071 | HS7: =_xlfn.XLOOKUP(HS5,INDIRECT($P$2&"!A:A"),INDIRECT($P$2&"!B:B"),FALSE) -> 495.1921082 | HT7: =_xlfn.XLOOKUP(HT5,INDIRECT($P$2&"!A:A"),INDIRECT($P$2&"!B:B"),FALSE) -> 430.7137451 | HU7: =_xlfn.XLOOKUP(HU5,INDIRECT($P$2&"!A:A"),INDIRECT($P$2&"!B:B"),FALSE) -> 442.6478271 | HV7: =_xlfn.XLOOKUP(HV5,INDIRECT($P$2&"!A:A"),INDIRECT($P$2&"!B:B"),FALSE) -> 420.4068298 | HW7: =_xlfn.XLOOKUP(HW5,INDIRECT($P$2&"!A:A"),INDIRECT($P$2&"!B:B"),FALSE) -> 445.9023438 | HX7: =_xlfn.XLOOKUP(HX5,INDIRECT($P$2&"!A:A"),INDIRECT($P$2&"!B:B"),FALSE) -> 428.0005798 | HY7: =_xlfn.XLOOKUP(HY5,INDIRECT($P$2&"!A:A"),INDIRECT($P$2&"!B:B"),FALSE) -> 446.0046082 | HZ7: =_xlfn.XLOOKUP(HZ5,INDIRECT($P$2&"!A:A"),INDIRECT($P$2&"!B:B"),FALSE) -> 418.8756409 | IA7: =_xlfn.XLOOKUP(IA5,INDIRECT($P$2&"!A:A"),INDIRECT($P$2&"!B:B"),FALSE) -> 420.2321777 | IB7: =_xlfn.XLOOKUP(IB5,INDIRECT($P$2&"!A:A"),INDIRECT($P$2&"!B:B"),FALSE) -> 476.7044983 | IC7: =_xlfn.XLOOKUP(IC5,INDIRECT($P$2&"!A:A"),INDIRECT($P$2&"!B:B"),FALSE) -> 408.2953796 | ID7: =_xlfn.XLOOKUP(ID5,INDIRECT($P$2&"!A:A"),INDIRECT($P$2&"!B:B"),FALSE) -> 426.4711914 | IE7: =_xlfn.XLOOKUP(IE5,INDIRECT($P$2&"!A:A"),INDIRECT($P$2&"!B:B"),FALSE) -> 434.4170532 | IF7: =_xlfn.XLOOKUP(IF5,INDIRECT($P$2&"!A:A"),INDIRECT($P$2&"!B:B"),FALSE) -> 425.4625244 | IG7: =_xlfn.XLOOKUP(IG5,INDIRECT($P$2&"!A:A"),INDIRECT($P$2&"!B:B"),FALSE) -> 467.7921753 | IH7: =_xlfn.XLOOKUP(IH5,INDIRECT($P$2&"!A:A"),INDIRECT($P$2&"!B:B"),FALSE) -> 466.7069092 | II7: =_xlfn.XLOOKUP(II5,INDIRECT($P$2&"!A:A"),INDIRECT($P$2&"!B:B"),FALSE) -> 464.2649841 | IJ7: =_xlfn.XLOOKUP(IJ5,INDIRECT($P$2&"!A:A"),INDIRECT($P$2&"!B:B"),FALSE) -> 469.1486511 | IK7: =_xlfn.XLOOKUP(IK5,INDIRECT($P$2&"!A:A"),INDIRECT($P$2&"!B:B"),FALSE) -> 461.8220215 | IL7: =_xlfn.XLOOKUP(IL5,INDIRECT($P$2&"!A:A"),INDIRECT($P$2&"!B:B"),FALSE) -> 472.523407 | IM7: =_xlfn.XLOOKUP(IM5,INDIRECT($P$2&"!A:A"),INDIRECT($P$2&"!B:B"),FALSE) -> 503.464386 | IN7: =_xlfn.XLOOKUP(IN5,INDIRECT($P$2&"!A:A"),INDIRECT($P$2&"!B:B"),FALSE) -> 506.1781311 | IO7: =_xlfn.XLOOKUP(IO5,INDIRECT($P$2&"!A:A"),INDIRECT($P$2&"!B:B"),FALSE) -> 514.0482788 | IP7: =_xlfn.XLOOKUP(IP5,INDIRECT($P$2&"!A:A"),INDIRECT($P$2&"!B:B"),FALSE) -> 519.7484741 | IQ7: =_xlfn.XLOOKUP(IQ5,INDIRECT($P$2&"!A:A"),INDIRECT($P$2&"!B:B"),FALSE) -> 538.4750366 | IR7: =_xlfn.XLOOKUP(IR5,INDIRECT($P$2&"!A:A"),INDIRECT($P$2&"!B:B"),FALSE) -> 560.5522461 | IS7: =_xlfn.XLOOKUP(IS5,INDIRECT($P$2&"!A:A"),INDIRECT($P$2&"!B:B"),FALSE) -> 547.7940063 | IT7: =_xlfn.XLOOKUP(IT5,INDIRECT($P$2&"!A:A"),INDIRECT($P$2&"!B:B"),FALSE) -> 532.3217163 | IU7: =_xlfn.XLOOKUP(IU5,INDIRECT($P$2&"!A:A"),INDIRECT($P$2&"!B:B"),FALSE) -> 558.923645 | IV7: =_xlfn.XLOOKUP(IV5,INDIRECT($P$2&"!A:A"),INDIRECT($P$2&"!B:B"),FALSE) -> 583.6248169 | IW7: =_xlfn.XLOOKUP(IW5,INDIRECT($P$2&"!A:A"),INDIRECT($P$2&"!B:B"),FALSE) -> 587.4267578 | IX7: =_xlfn.XLOOKUP(IX5,INDIRECT($P$2&"!A:A"),INDIRECT($P$2&"!B:B"),FALSE) -> 570.2268677 | IY7: =_xlfn.XLOOKUP(IY5,INDIRECT($P$2&"!A:A"),INDIRECT($P$2&"!B:B"),FALSE) -> 501.3829041 | IZ7: =_xlfn.XLOOKUP(IZ5,INDIRECT($P$2&"!A:A"),INDIRECT($P$2&"!B:B"),FALSE) -> 508.5592651 | JA7: =_xlfn.XLOOKUP(JA5,INDIRECT($P$2&"!A:A"),INDIRECT($P$2&"!B:B"),FALSE) -> 494.206604 | JB7: =_xlfn.XLOOKUP(JB5,INDIRECT($P$2&"!A:A"),INDIRECT($P$2&"!B:B"),FALSE) -> 512.8648682 | JC7: =_xlfn.XLOOKUP(JC5,INDIRECT($P$2&"!A:A"),INDIRECT($P$2&"!B:B"),FALSE) -> 544.0548706 | JD7: =_xlfn.XLOOKUP(JD5,INDIRECT($P$2&"!A:A"),INDIRECT($P$2&"!B:B"),FALSE) -> 550.7540894 | JE7: =_xlfn.XLOOKUP(JE5,INDIRECT($P$2&"!A:A"),INDIRECT($P$2&"!B:B"),FALSE) -> 574.2004395 | JF7: =_xlfn.XLOOKUP(JF5,INDIRECT($P$2&"!A:A"),INDIRECT($P$2&"!B:B"),FALSE) -> 547.8828735 | JG7: =_xlfn.XLOOKUP(JG5,INDIRECT($P$2&"!A:A"),INDIRECT($P$2&"!B:B"),FALSE) -> 550.7540894 | JH7: =_xlfn.XLOOKUP(JH5,INDIRECT($P$2&"!A:A"),INDIRECT($P$2&"!B:B"),FALSE) -> 580.4209595 | JI7: =_xlfn.XLOOKUP(JI5,INDIRECT($P$2&"!A:A"),INDIRECT($P$2&"!B:B"),FALSE) -> 559.8453979 | JJ7: =_xlfn.XLOOKUP(JJ5,INDIRECT($P$2&"!A:A"),INDIRECT($P$2&"!B:B"),FALSE) -> 583.430481 | JK7: =_xlfn.XLOOKUP(JK5,INDIRECT($P$2&"!A:A"),INDIRECT($P$2&"!B:B"),FALSE) -> 610.7115479 | JL7: =_xlfn.XLOOKUP(JL5,INDIRECT($P$2&"!A:A"),INDIRECT($P$2&"!B:B"),FALSE) -> 638.9500732 | JM7: =_xlfn.XLOOKUP(JM5,INDIRECT($P$2&"!A:A"),INDIRECT($P$2&"!B:B"),FALSE) -> 641.3429565 | JN7: =_xlfn.XLOOKUP(JN5,INDIRECT($P$2&"!A:A"),INDIRECT($P$2&"!B:B"),FALSE) -> 658.0944824 | JO7: =_xlfn.XLOOKUP(JO5,INDIRECT($P$2&"!A:A"),INDIRECT($P$2&"!B:B"),FALSE) -> 705.5773926 | JP7: =_xlfn.XLOOKUP(JP5,INDIRECT($P$2&"!A:A"),INDIRECT($P$2&"!B:B"),FALSE) -> 735.2559204 | JQ7: =_xlfn.XLOOKUP(JQ5,INDIRECT($P$2&"!A:A"),INDIRECT($P$2&"!B:B"),FALSE) -> 730.4691162 | JR7: =_xlfn.XLOOKUP(JR5,INDIRECT($P$2&"!A:A"),INDIRECT($P$2&"!B:B"),FALSE) -> 763.4981689 | JS7: =_xlfn.XLOOKUP(JS5,INDIRECT($P$2&"!A:A"),INDIRECT($P$2&"!B:B"),FALSE) -> 752.9673462 | JT7: =_xlfn.XLOOKUP(JT5,INDIRECT($P$2&"!A:A"),INDIRECT($P$2&"!B:B"),FALSE) -> 749.6161499 | JU7: =_xlfn.XLOOKUP(JU5,INDIRECT($P$2&"!A:A"),INDIRECT($P$2&"!B:B"),FALSE) -> 706.5349121 | JV7: =_xlfn.XLOOKUP(JV5,INDIRECT($P$2&"!A:A"),INDIRECT($P$2&"!B:B"),FALSE) -> 672.6899414 | JW7: =_xlfn.XLOOKUP(JW5,INDIRECT($P$2&"!A:A"),INDIRECT($P$2&"!B:B"),FALSE) -> 710.9926147 | JX7: =_xlfn.XLOOKUP(JX5,INDIRECT($P$2&"!A:A"),INDIRECT($P$2&"!B:B"),FALSE) -> 750.7315674 | JY7: =_xlfn.XLOOKUP(JY5,INDIRECT($P$2&"!A:A"),INDIRECT($P$2&"!B:B"),FALSE) -> 767.4889526 | JZ7: =_xlfn.XLOOKUP(JZ5,INDIRECT($P$2&"!A:A"),INDIRECT($P$2&"!B:B"),FALSE) -> 786.6403809 | KA7: =_xlfn.XLOOKUP(KA5,INDIRECT($P$2&"!A:A"),INDIRECT($P$2&"!B:B"),FALSE) -> 798.7156372 | KB7: =_xlfn.XLOOKUP(KB5,INDIRECT($P$2&"!A:A"),INDIRECT($P$2&"!B:B"),FALSE) -> 741.2541504 | KC7: =_xlfn.XLOOKUP(KC5,INDIRECT($P$2&"!A:A"),INDIRECT($P$2&"!B:B"),FALSE) -> 702.4676514 | KD7: =_xlfn.XLOOKUP(KD5,INDIRECT($P$2&"!A:A"),INDIRECT($P$2&"!B:B"),FALSE) -> 662.2444458 | KE7: =_xlfn.XLOOKUP(KE5,INDIRECT($P$2&"!A:A"),INDIRECT($P$2&"!B:B"),FALSE) -> 670.8640137 | KF7: =_xlfn.XLOOKUP(KF5,INDIRECT($P$2&"!A:A"),INDIRECT($P$2&"!B:B"),FALSE) -> 714.4387207 | KG7: =_xlfn.XLOOKUP(KG5,INDIRECT($P$2&"!A:A"),INDIRECT($P$2&"!B:B"),FALSE) -> 632.5559082 | KH7: =_xlfn.XLOOKUP(KH5,INDIRECT($P$2&"!A:A"),INDIRECT($P$2&"!B:B"),FALSE) -> 639.9061279 | KI7: =_xlfn.XLOOKUP(KI5,INDIRECT($P$2&"!A:A"),INDIRECT($P$2&"!B:B"),FALSE) -> 684.4505005 | KJ7: =_xlfn.XLOOKUP(KJ5,INDIRECT($P$2&"!A:A"),INDIRECT($P$2&"!B:B"),FALSE) -> 683.9714966 | KK7: =_xlfn.XLOOKUP(KK5,INDIRECT($P$2&"!A:A"),INDIRECT($P$2&"!B:B"),FALSE) -> 673.913208 | KL7: =_xlfn.XLOOKUP(KL5,INDIRECT($P$2&"!A:A"),INDIRECT($P$2&"!B:B"),FALSE) -> 648.048584 | KM7: =_xlfn.XLOOKUP(KM5,INDIRECT($P$2&"!A:A"),INDIRECT($P$2&"!B:B"),FALSE) -> 655.2331543 | KN7: =_xlfn.XLOOKUP(KN5,INDIRECT($P$2&"!A:A"),INDIRECT($P$2&"!B:B"),FALSE) -> 620.8649902 | KO7: =_xlfn.XLOOKUP(KO5,INDIRECT($P$2&"!A:A"),INDIRECT($P$2&"!B:B"),FALSE) -> 600.2652588 | KP7: =_xlfn.XLOOKUP(KP5,INDIRECT($P$2&"!A:A"),INDIRECT($P$2&"!B:B"),FALSE) -> 513.0759277 | KQ7: =_xlfn.XLOOKUP(KQ5,INDIRECT($P$2&"!A:A"),INDIRECT($P$2&"!B:B"),FALSE) -> 540.8615723 | KR7: =_xlfn.XLOOKUP(KR5,INDIRECT($P$2&"!A:A"),INDIRECT($P$2&"!B:B"),FALSE) -> 573.4378052 | KS7: =_xlfn.XLOOKUP(KS5,INDIRECT($P$2&"!A:A"),INDIRECT($P$2&"!B:B"),FALSE) -> 524.5733643 | KT7: =_xlfn.XLOOKUP(KT5,INDIRECT($P$2&"!A:A"),INDIRECT($P$2&"!B:B"),FALSE) -> 535.3015137 | KU7: =_xlfn.XLOOKUP(KU5,INDIRECT($P$2&"!A:A"),INDIRECT($P$2&"!B:B"),FALSE) -> 567.8889771 | KV7: =_xlfn.XLOOKUP(KV5,INDIRECT($P$2&"!A:A"),INDIRECT($P$2&"!B:B"),FALSE) -> 578.9115601 | KW7: =_xlfn.XLOOKUP(KW5,INDIRECT($P$2&"!A:A"),INDIRECT($P$2&"!B:B"),FALSE) -> 581.3074951 | KX7: =_xlfn.XLOOKUP(KX5,INDIRECT($P$2&"!A:A"),INDIRECT($P$2&"!B:B"),FALSE) -> 633.0645752 | KY7: =_xlfn.XLOOKUP(KY5,INDIRECT($P$2&"!A:A"),INDIRECT($P$2&"!B:B"),FALSE) -> 650.7963257 | KZ7: =_xlfn.XLOOKUP(KZ5,INDIRECT($P$2&"!A:A"),INDIRECT($P$2&"!B:B"),FALSE) -> 604.9035645 | LA7: =_xlfn.XLOOKUP(LA5,INDIRECT($P$2&"!A:A"),INDIRECT($P$2&"!B:B"),FALSE) -> 625.0350342 | LB7: =_xlfn.XLOOKUP(LB5,INDIRECT($P$2&"!A:A"),INDIRECT($P$2&"!B:B"),FALSE) -> 614.9694214 | LC7: =_xlfn.XLOOKUP(LC5,INDIRECT($P$2&"!A:A"),INDIRECT($P$2&"!B:B"),FALSE) -> 602.986145 | LD7: =_xlfn.XLOOKUP(LD5,INDIRECT($P$2&"!A:A"),INDIRECT($P$2&"!B:B"),FALSE) -> 539.9751587 | LE7: =_xlfn.XLOOKUP(LE5,INDIRECT($P$2&"!A:A"),INDIRECT($P$2&"!B:B"),FALSE) -> 530.9986572 | LF7: =_xlfn.XLOOKUP(LF5,INDIRECT($P$2&"!A:A"),INDIRECT($P$2&"!B:B"),FALSE) -> 551.2559204 | LG7: =_xlfn.XLOOKUP(LG5,INDIRECT($P$2&"!A:A"),INDIRECT($P$2&"!B:B"),FALSE) -> 593.9932861 | LH7: =_xlfn.XLOOKUP(LH5,INDIRECT($P$2&"!A:A"),INDIRECT($P$2&"!B:B"),FALSE) -> 584.2557373 | LI7: =_xlfn.XLOOKUP(LI5,INDIRECT($P$2&"!A:A"),INDIRECT($P$2&"!B:B"),FALSE) -> 638.3532715 | LJ7: =_xlfn.XLOOKUP(LJ5,INDIRECT($P$2&"!A:A"),INDIRECT($P$2&"!B:B"),FALSE) -> 614.550415 | LK7: =_xlfn.XLOOKUP(LK5,INDIRECT($P$2&"!A:A"),INDIRECT($P$2&"!B:B"),FALSE) -> 598.3210449 | LL7: =_xlfn.XLOOKUP(LL5,INDIRECT($P$2&"!A:A"),INDIRECT($P$2&"!B:B"),FALSE) -> 597.9050293 | LM7: =_xlfn.XLOOKUP(LM5,INDIRECT($P$2&"!A:A"),INDIRECT($P$2&"!B:B"),FALSE) -> 617.9252319 | LN7: =_xlfn.XLOOKUP(LN5,INDIRECT($P$2&"!A:A"),INDIRECT($P$2&"!B:B"),FALSE) -> 642.8156128 | LO7: =_xlfn.XLOOKUP(LO5,INDIRECT($P$2&"!A:A"),INDIRECT($P$2&"!B:B"),FALSE) -> 664.4591675 | LP7: =_xlfn.XLOOKUP(LP5,INDIRECT($P$2&"!A:A"),INDIRECT($P$2&"!B:B"),FALSE) -> 677.4453125 | LQ7: =_xlfn.XLOOKUP(LQ5,INDIRECT($P$2&"!A:A"),INDIRECT($P$2&"!B:B"),FALSE) -> 662.8356934 | LR7: =_xlfn.XLOOKUP(LR5,INDIRECT($P$2&"!A:A"),INDIRECT($P$2&"!B:B"),FALSE) -> 646.28479 | LS7: =_xlfn.XLOOKUP(LS5,INDIRECT($P$2&"!A:A"),INDIRECT($P$2&"!B:B"),FALSE) -> 672.2661743 | LT7: =_xlfn.XLOOKUP(LT5,INDIRECT($P$2&"!A:A"),INDIRECT($P$2&"!B:B"),FALSE) -> 691.2108765 | LU7: =_xlfn.XLOOKUP(LU5,INDIRECT($P$2&"!A:A"),INDIRECT($P$2&"!B:B"),FALSE) -> 668.4771729 | LV7: =_xlfn.XLOOKUP(LV5,INDIRECT($P$2&"!A:A"),INDIRECT($P$2&"!B:B"),FALSE) -> 676.0551147 | LW7: =_xlfn.XLOOKUP(LW5,INDIRECT($P$2&"!A:A"),INDIRECT($P$2&"!B:B"),FALSE) -> 676.7314453 | LX7: =_xlfn.XLOOKUP(LX5,INDIRECT($P$2&"!A:A"),INDIRECT($P$2&"!B:B"),FALSE) -> 684.31073 | LY7: =_xlfn.XLOOKUP(LY5,INDIRECT($P$2&"!A:A"),INDIRECT($P$2&"!B:B"),FALSE) -> 694.5970459 | LZ7: =_xlfn.XLOOKUP(LZ5,INDIRECT($P$2&"!A:A"),INDIRECT($P$2&"!B:B"),FALSE) -> 682.6866455 | MA7: =_xlfn.XLOOKUP(MA5,INDIRECT($P$2&"!A:A"),INDIRECT($P$2&"!B:B"),FALSE) -> 720.5835571 | MB7: =_xlfn.XLOOKUP(MB5,INDIRECT($P$2&"!A:A"),INDIRECT($P$2&"!B:B"),FALSE) -> 703.8005981 | MC7: =_xlfn.XLOOKUP(MC5,INDIRECT($P$2&"!A:A"),INDIRECT($P$2&"!B:B"),FALSE) -> 731.6619263 | MD7: =_xlfn.XLOOKUP(MD5,INDIRECT($P$2&"!A:A"),INDIRECT($P$2&"!B:B"),FALSE) -> 717.5808716 | ME7: =_xlfn.XLOOKUP(ME5,INDIRECT($P$2&"!A:A"),INDIRECT($P$2&"!B:B"),FALSE) -> 740.3269043 | MF7: =_xlfn.XLOOKUP(MF5,INDIRECT($P$2&"!A:A"),INDIRECT($P$2&"!B:B"),FALSE) -> 739.7853394 | MG7: =_xlfn.XLOOKUP(MG5,INDIRECT($P$2&"!A:A"),INDIRECT($P$2&"!B:B"),FALSE) -> 765.2391357 | MH7: =_xlfn.XLOOKUP(MH5,INDIRECT($P$2&"!A:A"),INDIRECT($P$2&"!B:B"),FALSE) -> 763.6143188 | MI7: =_xlfn.XLOOKUP(MI5,INDIRECT($P$2&"!A:A"),INDIRECT($P$2&"!B:B"),FALSE) -> 761.5905151 | MJ7: =_xlfn.XLOOKUP(MJ5,INDIRECT($P$2&"!A:A"),INDIRECT($P$2&"!B:B"),FALSE) -> 749.1322021 | MK7: =_xlfn.XLOOKUP(MK5,INDIRECT($P$2&"!A:A"),INDIRECT($P$2&"!B:B"),FALSE) -> 790.2991943 | ML7: =_xlfn.XLOOKUP(ML5,INDIRECT($P$2&"!A:A"),INDIRECT($P$2&"!B:B"),FALSE) -> 828.7579956 | MM7: =_xlfn.XLOOKUP(MM5,INDIRECT($P$2&"!A:A"),INDIRECT($P$2&"!B:B"),FALSE) -> 887.8000488 | MN7: =_xlfn.XLOOKUP(MN5,INDIRECT($P$2&"!A:A"),INDIRECT($P$2&"!B:B"),FALSE) -> 849.8828735 | MO7: =_xlfn.XLOOKUP(MO5,INDIRECT($P$2&"!A:A"),INDIRECT($P$2&"!B:B"),FALSE) -> 808.1743164 | MP7: =_xlfn.XLOOKUP(MP5,INDIRECT($P$2&"!A:A"),INDIRECT($P$2&"!B:B"),FALSE) -> 852.310791 | MQ7: =_xlfn.XLOOKUP(MQ5,INDIRECT($P$2&"!A:A"),INDIRECT($P$2&"!B:B"),FALSE) -> 804.6293335 | MR7: =_xlfn.XLOOKUP(MR5,INDIRECT($P$2&"!A:A"),INDIRECT($P$2&"!B:B"),FALSE) -> 791.625 | MS7: =_xlfn.XLOOKUP(MS5,INDIRECT($P$2&"!A:A"),INDIRECT($P$2&"!B:B"),FALSE) -> 850.1435547 | MT7: =_xlfn.XLOOKUP(MT5,INDIRECT($P$2&"!A:A"),INDIRECT($P$2&"!B:B"),FALSE) -> 839.8488159 | MU7: =_xlfn.XLOOKUP(MU5,INDIRECT($P$2&"!A:A"),INDIRECT($P$2&"!B:B"),FALSE) -> 853.9365845 | MV7: =_xlfn.XLOOKUP(MV5,INDIRECT($P$2&"!A:A"),INDIRECT($P$2&"!B:B"),FALSE) -> 855.1693115 | MW7: =_xlfn.XLOOKUP(MW5,INDIRECT($P$2&"!A:A"),INDIRECT($P$2&"!B:B"),FALSE) -> 904.4852295 | MX7: =_xlfn.XLOOKUP(MX5,INDIRECT($P$2&"!A:A"),INDIRECT($P$2&"!B:B"),FALSE) -> 890.9368286 | MY7: =_xlfn.XLOOKUP(MY5,INDIRECT($P$2&"!A:A"),INDIRECT($P$2&"!B:B"),FALSE) -> 910.9884033 | MZ7: =_xlfn.XLOOKUP(MZ5,INDIRECT($P$2&"!A:A"),INDIRECT($P$2&"!B:B"),FALSE) -> 964.6396484 | NA7: =_xlfn.XLOOKUP(NA5,INDIRECT($P$2&"!A:A"),INDIRECT($P$2&"!B:B"),FALSE) -> 910.4462891 | NB7: =_xlfn.XLOOKUP(NB5,INDIRECT($P$2&"!A:A"),INDIRECT($P$2&"!B:B"),FALSE) -> 927.5137939 | NC7: =_xlfn.XLOOKUP(NC5,INDIRECT($P$2&"!A:A"),INDIRECT($P$2&"!B:B"),FALSE) -> 974.6755371 | ND7: =_xlfn.XLOOKUP(ND5,INDIRECT($P$2&"!A:A"),INDIRECT($P$2&"!B:B"),FALSE) -> 962.7496338 | NE7: =_xlfn.XLOOKUP(NE5,INDIRECT($P$2&"!A:A"),INDIRECT($P$2&"!B:B"),FALSE) -> 1003.948181 | NF7: =_xlfn.XLOOKUP(NF5,INDIRECT($P$2&"!A:A"),INDIRECT($P$2&"!B:B"),FALSE) -> 1008.284973 | NG7: =_xlfn.XLOOKUP(NG5,INDIRECT($P$2&"!A:A"),INDIRECT($P$2&"!B:B"),FALSE) -> 995.5234985 | NH7: =_xlfn.XLOOKUP(NH5,INDIRECT($P$2&"!A:A"),INDIRECT($P$2&"!B:B"),FALSE) -> 1014.390808 | NI7: =_xlfn.XLOOKUP(NI5,INDIRECT($P$2&"!A:A"),INDIRECT($P$2&"!B:B"),FALSE) -> 961.3670654 | NJ7: =_xlfn.XLOOKUP(NJ5,INDIRECT($P$2&"!A:A"),INDIRECT($P$2&"!B:B"),FALSE) -> 937.6204224 | NK7: =_xlfn.XLOOKUP(NK5,INDIRECT($P$2&"!A:A"),INDIRECT($P$2&"!B:B"),FALSE) -> 953.1262817 | NL7: =_xlfn.XLOOKUP(NL5,INDIRECT($P$2&"!A:A"),INDIRECT($P$2&"!B:B"),FALSE) -> 1012.764465 | NM7: =_xlfn.XLOOKUP(NM5,INDIRECT($P$2&"!A:A"),INDIRECT($P$2&"!B:B"),FALSE) -> 886.114502 | NN7: =_xlfn.XLOOKUP(NN5,INDIRECT($P$2&"!A:A"),INDIRECT($P$2&"!B:B"),FALSE) -> 925.303772 | NO7: =_xlfn.XLOOKUP(NO5,INDIRECT($P$2&"!A:A"),INDIRECT($P$2&"!B:B"),FALSE) -> 932.8960571 | NP7: =_xlfn.XLOOKUP(NP5,INDIRECT($P$2&"!A:A"),INDIRECT($P$2&"!B:B"),FALSE) -> 996.6727905 | NQ7: =_xlfn.XLOOKUP(NQ5,INDIRECT($P$2&"!A:A"),INDIRECT($P$2&"!B:B"),FALSE) -> 1003.072205 | NR7: =_xlfn.XLOOKUP(NR5,INDIRECT($P$2&"!A:A"),INDIRECT($P$2&"!B:B"),FALSE) -> 1004.156738 | NS7: =_xlfn.XLOOKUP(NS5,INDIRECT($P$2&"!A:A"),INDIRECT($P$2&"!B:B"),FALSE) -> 1016.9953 | NT7: =_xlfn.XLOOKUP(NT5,INDIRECT($P$2&"!A:A"),INDIRECT($P$2&"!B:B"),FALSE) -> 1069.390991 | NU7: =_xlfn.XLOOKUP(NU5,INDIRECT($P$2&"!A:A"),INDIRECT($P$2&"!B:B"),FALSE) -> 1045.199829 | NV7: =_xlfn.XLOOKUP(NV5,INDIRECT($P$2&"!A:A"),INDIRECT($P$2&"!B:B"),FALSE) -> 1070.909424 | NW7: =_xlfn.XLOOKUP(NW5,INDIRECT($P$2&"!A:A"),INDIRECT($P$2&"!B:B"),FALSE) -> 1057.458008 | NX7: =_xlfn.XLOOKUP(NX5,INDIRECT($P$2&"!A:A"),INDIRECT($P$2&"!B:B"),FALSE) -> 1092.388672 | NY7: =_xlfn.XLOOKUP(NY5,INDIRECT($P$2&"!A:A"),INDIRECT($P$2&"!B:B"),FALSE) -> 1188.935425 | NZ7: =_xlfn.XLOOKUP(NZ5,INDIRECT($P$2&"!A:A"),INDIRECT($P$2&"!B:B"),FALSE) -> 1175.137695 | OA7: =_xlfn.XLOOKUP(OA5,INDIRECT($P$2&"!A:A"),INDIRECT($P$2&"!B:B"),FALSE) -> 1135.531982 | OB7: =_xlfn.XLOOKUP(OB5,INDIRECT($P$2&"!A:A"),INDIRECT($P$2&"!B:B"),FALSE) -> 1184.902588 | OC7: =_xlfn.XLOOKUP(OC5,INDIRECT($P$2&"!A:A"),INDIRECT($P$2&"!B:B"),FALSE) -> 1155.605713 | OD7: =_xlfn.XLOOKUP(OD5,INDIRECT($P$2&"!A:A"),INDIRECT($P$2&"!B:B"),FALSE) -> 990.8914185 | OE7: =_xlfn.XLOOKUP(OE5,INDIRECT($P$2&"!A:A"),INDIRECT($P$2&"!B:B"),FALSE) -> 1032.712646 | OF7: =_xlfn.XLOOKUP(OF5,INDIRECT($P$2&"!A:A"),INDIRECT($P$2&"!B:B"),FALSE) -> 1006.775513 | OG7: =_xlfn.XLOOKUP(OG5,INDIRECT($P$2&"!A:A"),INDIRECT($P$2&"!B:B"),FALSE) -> 1060.820679 | OH7: =_xlfn.XLOOKUP(OH5,INDIRECT($P$2&"!A:A"),INDIRECT($P$2&"!B:B"),FALSE) -> 1099.88916 | OI7: =_xlfn.XLOOKUP(OI5,INDIRECT($P$2&"!A:A"),INDIRECT($P$2&"!B:B"),FALSE) -> 1085.238647 | OJ7: =_xlfn.XLOOKUP(OJ5,INDIRECT($P$2&"!A:A"),INDIRECT($P$2&"!B:B"),FALSE) -> 1083.837036 | OK7: =_xlfn.XLOOKUP(OK5,INDIRECT($P$2&"!A:A"),INDIRECT($P$2&"!B:B"),FALSE) -> 947.4918213 | OL7: =_xlfn.XLOOKUP(OL5,INDIRECT($P$2&"!A:A"),INDIRECT($P$2&"!B:B"),FALSE) -> 932.7888184 | OM7: =_xlfn.XLOOKUP(OM5,INDIRECT($P$2&"!A:A"),INDIRECT($P$2&"!B:B"),FALSE) -> 970.5264893 | ON7: =_xlfn.XLOOKUP(ON5,INDIRECT($P$2&"!A:A"),INDIRECT($P$2&"!B:B"),FALSE) -> 920.6410522 | OO7: =_xlfn.XLOOKUP(OO5,INDIRECT($P$2&"!A:A"),INDIRECT($P$2&"!B:B"),FALSE) -> 902.1206665 | OP7: =_xlfn.XLOOKUP(OP5,INDIRECT($P$2&"!A:A"),INDIRECT($P$2&"!B:B"),FALSE) -> 881.2105713 | OQ7: =_xlfn.XLOOKUP(OQ5,INDIRECT($P$2&"!A:A"),INDIRECT($P$2&"!B:B"),FALSE) -> 871.4921875 | OR7: =_xlfn.XLOOKUP(OR5,INDIRECT($P$2&"!A:A"),INDIRECT($P$2&"!B:B"),FALSE) -> 801.3823242 | OS7: =_xlfn.XLOOKUP(OS5,INDIRECT($P$2&"!A:A"),INDIRECT($P$2&"!B:B"),FALSE) -> 737.1483765 | OT7: =_xlfn.XLOOKUP(OT5,INDIRECT($P$2&"!A:A"),INDIRECT($P$2&"!B:B"),FALSE) -> 798.8927612 | OU7: =_xlfn.XLOOKUP(OU5,INDIRECT($P$2&"!A:A"),INDIRECT($P$2&"!B:B"),FALSE) -> 839.3253174 | OV7: =_xlfn.XLOOKUP(OV5,INDIRECT($P$2&"!A:A"),INDIRECT($P$2&"!B:B"),FALSE) -> 829.864502 | OW7: =_xlfn.XLOOKUP(OW5,INDIRECT($P$2&"!A:A"),INDIRECT($P$2&"!B:B"),FALSE) -> 835.2106323 | OX7: =_xlfn.XLOOKUP(OX5,INDIRECT($P$2&"!A:A"),INDIRECT($P$2&"!B:B"),FALSE) -> 810.2062988 | OY7: =_xlfn.XLOOKUP(OY5,INDIRECT($P$2&"!A:A"),INDIRECT($P$2&"!B:B"),FALSE) -> 806.9187622 | OZ7: =_xlfn.XLOOKUP(OZ5,INDIRECT($P$2&"!A:A"),INDIRECT($P$2&"!B:B"),FALSE) -> 788.3895264 | PA7: =_xlfn.XLOOKUP(PA5,INDIRECT($P$2&"!A:A"),INDIRECT($P$2&"!B:B"),FALSE) -> 826.0457764 | PB7: =_xlfn.XLOOKUP(PB5,INDIRECT($P$2&"!A:A"),INDIRECT($P$2&"!B:B"),FALSE) -> 829.7316284 | PC7: =_xlfn.XLOOKUP(PC5,INDIRECT($P$2&"!A:A"),INDIRECT($P$2&"!B:B"),FALSE) -> 761.4247437 | PD7: =_xlfn.XLOOKUP(PD5,INDIRECT($P$2&"!A:A"),INDIRECT($P$2&"!B:B"),FALSE) -> 822.2033691 | PE7: =_xlfn.XLOOKUP(PE5,INDIRECT($P$2&"!A:A"),INDIRECT($P$2&"!B:B"),FALSE) -> 844.8209229 | PF7: =_xlfn.XLOOKUP(PF5,INDIRECT($P$2&"!A:A"),INDIRECT($P$2&"!B:B"),FALSE) -> 847.7103271 | PG7: =_xlfn.XLOOKUP(PG5,INDIRECT($P$2&"!A:A"),INDIRECT($P$2&"!B:B"),FALSE) -> 833.0636597 | PH7: =_xlfn.XLOOKUP(PH5,INDIRECT($P$2&"!A:A"),INDIRECT($P$2&"!B:B"),FALSE) -> 789.9209595 | PI7: =_xlfn.XLOOKUP(PI5,INDIRECT($P$2&"!A:A"),INDIRECT($P$2&"!B:B"),FALSE) -> 833.0581665 | PJ7: =_xlfn.XLOOKUP(PJ5,INDIRECT($P$2&"!A:A"),INDIRECT($P$2&"!B:B"),FALSE) -> 841.5303345 | PK7: =_xlfn.XLOOKUP(PK5,INDIRECT($P$2&"!A:A"),INDIRECT($P$2&"!B:B"),FALSE) -> 855.6838379 | PL7: =_xlfn.XLOOKUP(PL5,INDIRECT($P$2&"!A:A"),INDIRECT($P$2&"!B:B"),FALSE) -> 879.0071411 | PM7: =_xlfn.XLOOKUP(PM5,INDIRECT($P$2&"!A:A"),INDIRECT($P$2&"!B:B"),FALSE) -> 898.3433838 | PN7: =_xlfn.XLOOKUP(PN5,INDIRECT($P$2&"!A:A"),INDIRECT($P$2&"!B:B"),FALSE) -> 886.7814331 | PO7: =_xlfn.XLOOKUP(PO5,INDIRECT($P$2&"!A:A"),INDIRECT($P$2&"!B:B"),FALSE) -> 941.3577881 | PP7: =_xlfn.XLOOKUP(PP5,INDIRECT($P$2&"!A:A"),INDIRECT($P$2&"!B:B"),FALSE) -> 1002.666077 | PQ7: =_xlfn.XLOOKUP(PQ5,INDIRECT($P$2&"!A:A"),INDIRECT($P$2&"!B:B"),FALSE) -> 979.7377319 | PR7: =_xlfn.XLOOKUP(PR5,INDIRECT($P$2&"!A:A"),INDIRECT($P$2&"!B:B"),FALSE) -> 943.6505737 | PS7: =_xlfn.XLOOKUP(PS5,INDIRECT($P$2&"!A:A"),INDIRECT($P$2&"!B:B"),FALSE) -> 930.8904419 | PT7: =_xlfn.XLOOKUP(PT5,INDIRECT($P$2&"!A:A"),INDIRECT($P$2&"!B:B"),FALSE) -> 923.1148071 | PU7: =_xlfn.XLOOKUP(PU5,INDIRECT($P$2&"!A:A"),INDIRECT($P$2&"!B:B"),FALSE) -> 986.1178589 | PV7: =_xlfn.XLOOKUP(PV5,INDIRECT($P$2&"!A:A"),INDIRECT($P$2&"!B:B"),FALSE) -> 897.5946655 | PW7: =_xlfn.XLOOKUP(PW5,INDIRECT($P$2&"!A:A"),INDIRECT($P$2&"!B:B"),FALSE) -> 840.8222656 | PX7: =_xlfn.XLOOKUP(PX5,INDIRECT($P$2&"!A:A"),INDIRECT($P$2&"!B:B"),FALSE) -> 887.2908936 | PY7: =_xlfn.XLOOKUP(PY5,INDIRECT($P$2&"!A:A"),INDIRECT($P$2&"!B:B"),FALSE) -> 916.4085693 | PZ7: =_xlfn.XLOOKUP(PZ5,INDIRECT($P$2&"!A:A"),INDIRECT($P$2&"!B:B"),FALSE) -> 846.0076294 | QA7: =_xlfn.XLOOKUP(QA5,INDIRECT($P$2&"!A:A"),INDIRECT($P$2&"!B:B"),FALSE) -> 862.7091064 | QB7: =_xlfn.XLOOKUP(QB5,INDIRECT($P$2&"!A:A"),INDIRECT($P$2&"!B:B"),FALSE) -> 847.7488403 | QC7: =_xlfn.XLOOKUP(QC5,INDIRECT($P$2&"!A:A"),INDIRECT($P$2&"!B:B"),FALSE) -> 804.2644043 | QD7: =_xlfn.XLOOKUP(QD5,INDIRECT($P$2&"!A:A"),INDIRECT($P$2&"!B:B"),FALSE) -> 861.711731 | QE7: =_xlfn.XLOOKUP(QE5,INDIRECT($P$2&"!A:A"),INDIRECT($P$2&"!B:B"),FALSE) -> 908.1882935 | QF7: =_xlfn.XLOOKUP(QF5,INDIRECT($P$2&"!A:A"),INDIRECT($P$2&"!B:B"),FALSE) -> 936.7125854 | QG7: =_xlfn.XLOOKUP(QG5,INDIRECT($P$2&"!A:A"),INDIRECT($P$2&"!B:B"),FALSE) -> 918.3613892 | QH7: =_xlfn.XLOOKUP(QH5,INDIRECT($P$2&"!A:A"),INDIRECT($P$2&"!B:B"),FALSE) -> 921.9361572 | QI7: =_xlfn.XLOOKUP(QI5,INDIRECT($P$2&"!A:A"),INDIRECT($P$2&"!B:B"),FALSE) -> 939.0960693 | QJ7: =_xlfn.XLOOKUP(QJ5,INDIRECT($P$2&"!A:A"),INDIRECT($P$2&"!B:B"),FALSE) -> 882.5286865 | QK7: =_xlfn.XLOOKUP(QK5,INDIRECT($P$2&"!A:A"),INDIRECT($P$2&"!B:B"),FALSE) -> 933.2098389 | QL7: =_xlfn.XLOOKUP(QL5,INDIRECT($P$2&"!A:A"),INDIRECT($P$2&"!B:B"),FALSE) -> 1004.243103 | QM7: =_xlfn.XLOOKUP(QM5,INDIRECT($P$2&"!A:A"),INDIRECT($P$2&"!B:B"),FALSE) -> 1057.318481 | QN7: =_xlfn.XLOOKUP(QN5,INDIRECT($P$2&"!A:A"),INDIRECT($P$2&"!B:B"),FALSE) -> 1077.241577 | QO7: =_xlfn.XLOOKUP(QO5,INDIRECT($P$2&"!A:A"),INDIRECT($P$2&"!B:B"),FALSE) -> 1128.329834 | QP7: =_xlfn.XLOOKUP(QP5,INDIRECT($P$2&"!A:A"),INDIRECT($P$2&"!B:B"),FALSE) -> 1169.838745 | QQ7: =_xlfn.XLOOKUP(QQ5,INDIRECT($P$2&"!A:A"),INDIRECT($P$2&"!B:B"),FALSE) -> 1191.391479 | QR7: =_xlfn.XLOOKUP(QR5,INDIRECT($P$2&"!A:A"),INDIRECT($P$2&"!B:B"),FALSE) -> 1168.441772 | QS7: =_xlfn.XLOOKUP(QS5,INDIRECT($P$2&"!A:A"),INDIRECT($P$2&"!B:B"),FALSE) -> 1049.70166 | QT7: =_xlfn.XLOOKUP(QT5,INDIRECT($P$2&"!A:A"),INDIRECT($P$2&"!B:B"),FALSE) -> 1129.327393 | QU7: =_xlfn.XLOOKUP(QU5,INDIRECT($P$2&"!A:A"),INDIRECT($P$2&"!B:B"),FALSE) -> 1075.929932 | QV7: =_xlfn.XLOOKUP(QV5,INDIRECT($P$2&"!A:A"),INDIRECT($P$2&"!B:B"),FALSE) -> 929.2122192 | QW7: =_xlfn.XLOOKUP(QW5,INDIRECT($P$2&"!A:A"),INDIRECT($P$2&"!B:B"),FALSE) -> 946.5789185 | QX7: =_xlfn.XLOOKUP(QX5,INDIRECT($P$2&"!A:A"),INDIRECT($P$2&"!B:B"),FALSE) -> 1012.551941 | QY7: =_xlfn.XLOOKUP(QY5,INDIRECT($P$2&"!A:A"),INDIRECT($P$2&"!B:B"),FALSE) -> 995.6430664 | QZ7: =_xlfn.XLOOKUP(QZ5,INDIRECT($P$2&"!A:A"),INDIRECT($P$2&"!B:B"),FALSE) -> 1023.194397 | RA7: =_xlfn.XLOOKUP(RA5,INDIRECT($P$2&"!A:A"),INDIRECT($P$2&"!B:B"),FALSE) -> 1046.153809 | RB7: =_xlfn.XLOOKUP(RB5,INDIRECT($P$2&"!A:A"),INDIRECT($P$2&"!B:B"),FALSE) -> 1094.568359 | RC7: =_xlfn.XLOOKUP(RC5,INDIRECT($P$2&"!A:A"),INDIRECT($P$2&"!B:B"),FALSE) -> 1142.483887 | RD7: =_xlfn.XLOOKUP(RD5,INDIRECT($P$2&"!A:A"),INDIRECT($P$2&"!B:B"),FALSE) -> 1104.051636 | RE7: =_xlfn.XLOOKUP(RE5,INDIRECT($P$2&"!A:A"),INDIRECT($P$2&"!B:B"),FALSE) -> 1038.667114 | RF7: =_xlfn.XLOOKUP(RF5,INDIRECT($P$2&"!A:A"),INDIRECT($P$2&"!B:B"),FALSE) -> 1030.004761 | RG7: =_xlfn.XLOOKUP(RG5,INDIRECT($P$2&"!A:A"),INDIRECT($P$2&"!B:B"),FALSE) -> 988.7646484 | RH7: =_xlfn.XLOOKUP(RH5,INDIRECT($P$2&"!A:A"),INDIRECT($P$2&"!B:B"),FALSE) -> 978.5793457 | RI7: =_xlfn.XLOOKUP(RI5,INDIRECT($P$2&"!A:A"),INDIRECT($P$2&"!B:B"),FALSE) -> 977.1813965 | RJ7: =_xlfn.XLOOKUP(RJ5,INDIRECT($P$2&"!A:A"),INDIRECT($P$2&"!B:B"),FALSE) -> 1026.010742 | RK7: =_xlfn.XLOOKUP(RK5,INDIRECT($P$2&"!A:A"),INDIRECT($P$2&"!B:B"),FALSE) -> 1056.648682 | RL7: =_xlfn.XLOOKUP(RL5,INDIRECT($P$2&"!A:A"),INDIRECT($P$2&"!B:B"),FALSE) -> 1053.652466 | RM7: =_xlfn.XLOOKUP(RM5,INDIRECT($P$2&"!A:A"),INDIRECT($P$2&"!B:B"),FALSE) -> 1036.174927 | RN7: =_xlfn.XLOOKUP(RN5,INDIRECT($P$2&"!A:A"),INDIRECT($P$2&"!B:B"),FALSE) -> 1064.638306 | RO7: =_xlfn.XLOOKUP(RO5,INDIRECT($P$2&"!A:A"),INDIRECT($P$2&"!B:B"),FALSE) -> 1046.661377 | RP7: =_xlfn.XLOOKUP(RP5,INDIRECT($P$2&"!A:A"),INDIRECT($P$2&"!B:B"),FALSE) -> 881.2730713 | RQ7: =_xlfn.XLOOKUP(RQ5,INDIRECT($P$2&"!A:A"),INDIRECT($P$2&"!B:B"),FALSE) -> 881.4726562 | RR7: =_xlfn.XLOOKUP(RR5,INDIRECT($P$2&"!A:A"),INDIRECT($P$2&"!B:B"),FALSE) -> 985.1680908 | RS7: =_xlfn.XLOOKUP(RS5,INDIRECT($P$2&"!A:A"),INDIRECT($P$2&"!B:B"),FALSE) -> 997.7575073 | RT7: =_xlfn.XLOOKUP(RT5,INDIRECT($P$2&"!A:A"),INDIRECT($P$2&"!B:B"),FALSE) -> 1029.130981 | RU7: =_xlfn.XLOOKUP(RU5,INDIRECT($P$2&"!A:A"),INDIRECT($P$2&"!B:B"),FALSE) -> 975.3764648 | RV7: =_xlfn.XLOOKUP(RV5,INDIRECT($P$2&"!A:A"),INDIRECT($P$2&"!B:B"),FALSE) -> 991.7625732 | RW7: =_xlfn.XLOOKUP(RW5,INDIRECT($P$2&"!A:A"),INDIRECT($P$2&"!B:B"),FALSE) -> 949.3515625 | RX7: =_xlfn.XLOOKUP(RX5,INDIRECT($P$2&"!A:A"),INDIRECT($P$2&"!B:B"),FALSE) -> 979.1312256 | RY7: =_xlfn.XLOOKUP(RY5,INDIRECT($P$2&"!A:A"),INDIRECT($P$2&"!B:B"),FALSE) -> 974.3344727 | RZ7: =_xlfn.XLOOKUP(RZ5,INDIRECT($P$2&"!A:A"),INDIRECT($P$2&"!B:B"),FALSE) -> 1008.810913 | SA7: =_xlfn.XLOOKUP(SA5,INDIRECT($P$2&"!A:A"),INDIRECT($P$2&"!B:B"),FALSE) -> 1082.260742 | SB7: =_xlfn.XLOOKUP(SB5,INDIRECT($P$2&"!A:A"),INDIRECT($P$2&"!B:B"),FALSE) -> 1045.785645 | SC7: =_xlfn.XLOOKUP(SC5,INDIRECT($P$2&"!A:A"),INDIRECT($P$2&"!B:B"),FALSE) -> 1061.081299 | SD7: =_xlfn.XLOOKUP(SD5,INDIRECT($P$2&"!A:A"),INDIRECT($P$2&"!B:B"),FALSE) -> 1059.581909 | SE7: =_xlfn.XLOOKUP(SE5,INDIRECT($P$2&"!A:A"),INDIRECT($P$2&"!B:B"),FALSE) -> 1040.589355 | SF7: =_xlfn.XLOOKUP(SF5,INDIRECT($P$2&"!A:A"),INDIRECT($P$2&"!B:B"),FALSE) -> 1067.078857 | SG7: =_xlfn.XLOOKUP(SG5,INDIRECT($P$2&"!A:A"),INDIRECT($P$2&"!B:B"),FALSE) -> 1139.550293 | SH7: =_xlfn.XLOOKUP(SH5,INDIRECT($P$2&"!A:A"),INDIRECT($P$2&"!B:B"),FALSE) -> 1146.047729 | SI7: =_xlfn.XLOOKUP(SI5,INDIRECT($P$2&"!A:A"),INDIRECT($P$2&"!B:B"),FALSE) -> 1141.21106 | SJ7: =_xlfn.XLOOKUP(SJ5,INDIRECT($P$2&"!A:A"),INDIRECT($P$2&"!B:B"),FALSE) -> 1234.187622 | SK7: =_xlfn.XLOOKUP(SK5,INDIRECT($P$2&"!A:A"),INDIRECT($P$2&"!B:B"),FALSE) -> 1390.647949 | SL7: =_xlfn.XLOOKUP(SL5,INDIRECT($P$2&"!A:A"),INDIRECT($P$2&"!B:B"),FALSE) -> 1269.178711 | SM7: =_xlfn.XLOOKUP(SM5,INDIRECT($P$2&"!A:A"),INDIRECT($P$2&"!B:B"),FALSE) -> 1311.867798 | SN7: =_xlfn.XLOOKUP(SN5,INDIRECT($P$2&"!A:A"),INDIRECT($P$2&"!B:B"),FALSE) -> 1195.197388 | SO7: =_xlfn.XLOOKUP(SO5,INDIRECT($P$2&"!A:A"),INDIRECT($P$2&"!B:B"),FALSE) -> 1202.5 | SP7: =_xlfn.XLOOKUP(SP5,INDIRECT($P$2&"!A:A"),INDIRECT($P$2&"!B:B"),FALSE) -> FALSE | SQ7: =_xlfn.XLOOKUP(SQ5,INDIRECT($P$2&"!A:A"),INDIRECT($P$2&"!B:B"),FALSE) -> FALSE
D8: S&P 500 Index | L8: =LOOKUP(L5,INDIRECT("'"&$S$2&"'!A:A"),INDIRECT("'"&$S$2&"'!B:B")) -> 179.6300049 | M8: =LOOKUP(M5,INDIRECT("'"&$S$2&"'!A:A"),INDIRECT("'"&$S$2&"'!B:B")) -> 181.1799927 | N8: 180.6600037 | O8: 179.8300018 | P8: 189.5500031 | Q8: 191.8500061 | R8: 190.9199982 | S8: 188.6300049 | T8: 182.0800018 | U8: 189.8200073 | V8: 202.1699982 | W8: 211.2799988 | X8: 211.7799988 | Y8: 226.9199982 | Z8: 238.8999939 | AA8: 235.5200043 | AB8: 247.3500061 | AC8: 250.8399963 | AD8: 236.1199951 | AE8: 252.9299927 | AF8: 231.3200073 | AG8: 243.9799957 | AH8: 249.2200012 | AI8: 242.1699982 | AJ8: 274.0799866 | AK8: 284.2000122 | AL8: 291.7000122 | AM8: 288.3599854 | AN8: 290.1000061 | AO8: 304 | AP8: 318.6600037 | AQ8: 329.7999878 | AR8: 321.8299866 | AS8: 251.7899933 | AT8: 230.3000031 | AU8: 247.0800018 | AV8: 257.0700073 | AW8: 267.8200073 | AX8: 258.8900146 | AY8: 261.3299866 | AZ8: 262.1600037 | BA8: 273.5 | BB8: 272.019989 | BC8: 261.519989 | BD8: 271.9100037 | BE8: 278.9700012 | BF8: 273.7000122 | BG8: 277.7200012 | BH8: 297.4700012 | BI8: 288.8599854 | BJ8: 294.8699951 | BK8: 309.6400146 | BL8: 320.519989 | BM8: 317.980011 | BN8: 346.0799866 | BO8: 351.4500122 | BP8: 349.1499939 | BQ8: 340.3599854 | BR8: 345.9899902 | BS8: 353.3999939 | BT8: 329.0799866 | BU8: 331.8900146 | BV8: 339.9400024 | BW8: 330.7999878 | BX8: 361.230011 | BY8: =LOOKUP(BY5,INDIRECT("'"&$S$2&"'!A:A"),INDIRECT("'"&$S$2&"'!B:B")) -> 358.019989 | BZ8: 356.1499939 | CA8: 322.5599976 | CB8: 306.0499878 | CC8: 304 | CD8: 322.2200012 | CE8: 330.2200012 | CF8: 343.9299927 | CG8: 367.0700073 | CH8: 375.2200012 | CI8: 375.3399963 | CJ8: 389.8299866 | CK8: 371.1600037 | CL8: 387.8099976 | CM8: 395.4299927 | CN8: 387.8599854 | CO8: 392.4500122 | CP8: 375.2200012 | CQ8: 417.0899963 | CR8: 408.7799988 | CS8: 412.7000122 | CT8: 403.6900024 | CU8: 414.9500122 | CV8: 415.3500061 | CW8: 408.1400146 | CX8: 424.2099915 | CY8: 414.0299988 | CZ8: 417.7999878 | DA8: 418.6799927 | DB8: 431.3500061 | DC8: 435.7099915 | DD8: 438.7799988 | DE8: 443.3800049 | DF8: 451.6700134 | DG8: 440.1900024 | DH8: 450.1900024 | DI8: 450.5299988 | DJ8: 448.1300049 | DK8: 463.5599976 | DL8: 458.9299927 | DM8: 467.8299866 | DN8: 461.7900085 | DO8: 466.4500122 | DP8: 481.6099854 | DQ8: 467.1400146 | DR8: 445.769989 | DS8: 450.9100037 | DT8: 456.5 | DU8: 444.269989 | DV8: 458.2600098 | DW8: 475.4899902 | DX8: 462.7099915 | DY8: 472.3500061 | DZ8: 453.6900024 | EA8: 459.269989 | EB8: 470.4200134 | EC8: 487.3900146 | ED8: 500.7099915 | EE8: 514.710022 | EF8: 533.4000244 | EG8: 544.75 | EH8: 562.0599976 | EI8: 561.8800049 | EJ8: 584.4099731 | EK8: =LOOKUP(EK5,INDIRECT("'"&$S$2&"'!A:A"),INDIRECT("'"&$S$2&"'!B:B")) -> 581.5 | EL8: 605.3699951 | EM8: 615.9299927 | EN8: 636.0200195 | EO8: 640.4299927 | EP8: 645.5 | EQ8: 654.1699829 | ER8: 669.1199951 | ES8: 670.6300049 | ET8: 639.9500122 | EU8: 651.9899902 | EV8: 687.3300171 | EW8: 705.2700195 | EX8: 757.0200195 | EY8: 740.7399902 | EZ8: 786.1599731 | FA8: 790.8200073 | FB8: 757.1199951 | FC8: 801.3400269 | FD8: 848.2800293 | FE8: 885.1400146 | FF8: 954.3099976 | FG8: 899.4699707 | FH8: 947.2800293 | FI8: 914.6199951 | FJ8: 955.4000244 | FK8: 970.4299927 | FL8: 980.2800293 | FM8: 1049.339966 | FN8: 1101.75 | FO8: 1111.75 | FP8: 1090.819946 | FQ8: 1133.839966 | FR8: 1120.670044 | FS8: 957.2800293 | FT8: 1017.01001 | FU8: 1098.670044 | FV8: 1163.630005 | FW8: 1229.22998 | FX8: 1279.640015 | FY8: 1238.329956 | FZ8: 1286.369995 | GA8: 1335.180054 | GB8: 1301.839966 | GC8: 1372.709961 | GD8: 1328.719971 | GE8: 1320.410034 | GF8: 1282.709961 | GG8: 1362.930054 | GH8: 1388.910034 | GI8: 1469.25 | GJ8: 1394.459961 | GK8: 1366.420044 | GL8: 1498.579956 | GM8: 1452.430054 | GN8: 1420.599976 | GO8: 1454.599976 | GP8: 1430.829956 | GQ8: 1517.680054 | GR8: 1436.51001 | GS8: 1429.400024 | GT8: 1314.949951 | GU8: 1320.280029 | GV8: 1366.01001 | GW8: =LOOKUP(GW5,INDIRECT("'"&$S$2&"'!A:A"),INDIRECT("'"&$S$2&"'!B:B")) -> 1239.939941 | GX8: 1160.329956 | GY8: 1249.459961 | GZ8: 1255.819946 | HA8: 1224.380005 | HB8: 1211.22998 | HC8: 1133.579956 | HD8: 1040.939941 | HE8: 1059.780029 | HF8: 1139.449951 | HG8: 1148.079956 | HH8: 1130.199951 | HI8: 1106.72998 | HJ8: 1147.390015 | HK8: 1076.920044 | HL8: 1067.140015 | HM8: 989.8200073 | HN8: 911.6199951 | HO8: 916.0700073 | HP8: 815.2800293 | HQ8: 885.7600098 | HR8: 936.3099976 | HS8: 879.8200073 | HT8: 855.7000122 | HU8: 841.1500244 | HV8: 848.1799927 | HW8: 916.9199829 | HX8: 963.5900269 | HY8: 974.5 | HZ8: 990.3099976 | IA8: 1008.01001 | IB8: 995.9699707 | IC8: 1050.709961 | ID8: 1058.199951 | IE8: 1111.920044 | IF8: 1131.130005 | IG8: 1144.939941 | IH8: 1126.209961 | II8: 1107.300049 | IJ8: 1120.680054 | IK8: 1140.839966 | IL8: 1101.719971 | IM8: 1104.23999 | IN8: 1114.579956 | IO8: 1130.199951 | IP8: 1173.819946 | IQ8: 1211.920044 | IR8: 1181.27002 | IS8: 1203.599976 | IT8: 1180.589966 | IU8: 1156.849976 | IV8: 1191.5 | IW8: 1191.329956 | IX8: 1234.180054 | IY8: 1220.329956 | IZ8: 1228.810059 | JA8: 1207.01001 | JB8: 1249.47998 | JC8: 1248.290039 | JD8: 1280.079956 | JE8: 1280.660034 | JF8: 1294.869995 | JG8: 1310.609985 | JH8: 1270.089966 | JI8: =LOOKUP(JI5,INDIRECT("'"&$S$2&"'!A:A"),INDIRECT("'"&$S$2&"'!B:B")) -> 1270.199951 | JJ8: 1276.660034 | JK8: 1303.819946 | JL8: 1335.849976 | JM8: 1377.939941 | JN8: 1400.630005 | JO8: 1418.300049 | JP8: 1438.23999 | JQ8: 1406.819946 | JR8: 1420.859985 | JS8: 1482.369995 | JT8: 1530.619995 | JU8: 1503.349976 | JV8: 1455.27002 | JW8: 1473.98999 | JX8: 1526.75 | JY8: 1549.380005 | JZ8: 1481.140015 | KA8: 1468.359985 | KB8: 1378.550049 | KC8: 1330.630005 | KD8: 1322.699951 | KE8: 1385.589966 | KF8: 1400.380005 | KG8: 1280 | KH8: 1267.380005 | KI8: 1282.829956 | KJ8: 1166.359985 | KK8: 968.75 | KL8: 896.2399902 | KM8: 903.25 | KN8: 825.8800049 | KO8: 735.0900269 | KP8: 797.8699951 | KQ8: 872.8099976 | KR8: 919.1400146 | KS8: 919.3200073 | KT8: 987.4799805 | KU8: 1020.619995 | KV8: 1057.079956 | KW8: 1036.189941 | KX8: 1095.630005 | KY8: 1115.099976 | KZ8: 1073.869995 | LA8: 1104.48999 | LB8: 1169.430054 | LC8: 1186.689941 | LD8: 1089.410034 | LE8: 1030.709961 | LF8: 1101.599976 | LG8: 1049.329956 | LH8: 1141.199951 | LI8: 1183.26001 | LJ8: 1180.550049 | LK8: 1257.640015 | LL8: 1286.119995 | LM8: 1327.219971 | LN8: 1325.829956 | LO8: 1363.609985 | LP8: 1345.199951 | LQ8: 1320.640015 | LR8: 1292.280029 | LS8: 1218.890015 | LT8: 1131.420044 | LU8: =LOOKUP(LU5,INDIRECT("'"&$S$2&"'!A:A"),INDIRECT("'"&$S$2&"'!B:B")) -> 1253.300049 | LV8: 1246.959961 | LW8: 1257.599976 | LX8: 1312.410034 | LY8: 1365.680054 | LZ8: 1408.469971 | MA8: 1397.910034 | MB8: 1310.329956 | MC8: 1362.160034 | MD8: 1379.319946 | ME8: 1406.579956 | MF8: 1440.670044 | MG8: 1412.160034 | MH8: 1416.180054 | MI8: 1426.189941 | MJ8: 1498.109985 | MK8: 1514.680054 | ML8: 1569.189941 | MM8: 1597.569946 | MN8: 1630.73999 | MO8: 1606.280029 | MP8: 1685.72998 | MQ8: 1632.969971 | MR8: 1681.550049 | MS8: 1756.540039 | MT8: 1805.810059 | MU8: 1848.359985 | MV8: 1782.589966 | MW8: 1859.449951 | MX8: 1872.339966 | MY8: 1883.949951 | MZ8: 1923.569946 | NA8: 1960.22998 | NB8: 1930.670044 | NC8: 2003.369995 | ND8: 1972.290039 | NE8: 2018.050049 | NF8: 2067.560059 | NG8: 2058.899902 | NH8: 1994.98999 | NI8: 2104.5 | NJ8: 2067.889893 | NK8: 2085.51001 | NL8: 2107.389893 | NM8: 2063.110107 | NN8: 2103.840088 | NO8: 1972.180054 | NP8: 1920.030029 | NQ8: 2079.360107 | NR8: 2080.409912 | NS8: 2043.939941 | NT8: 1940.23999 | NU8: 1932.22998 | NV8: 2059.73999 | NW8: 2065.300049 | NX8: 2096.949951 | NY8: 2098.860107 | NZ8: 2173.600098 | OA8: 2170.949951 | OB8: 2168.27002 | OC8: 2126.149902 | OD8: 2198.810059 | OE8: 2238.830078 | OF8: 2278.870117 | OG8: =LOOKUP(OG5,INDIRECT("'"&$S$2&"'!A:A"),INDIRECT("'"&$S$2&"'!B:B")) -> 2363.639893 | OH8: 2362.719971 | OI8: 2384.199951 | OJ8: 2411.800049 | OK8: 2423.409912 | OL8: 2470.300049 | OM8: 2471.649902 | ON8: 2519.360107 | OO8: 2575.26001 | OP8: 2647.580078 | OQ8: 2673.610107 | OR8: 2823.810059 | OS8: 2713.830078 | OT8: 2640.870117 | OU8: 2648.050049 | OV8: 2705.27002 | OW8: 2718.370117 | OX8: 2816.290039 | OY8: 2901.52002 | OZ8: 2913.97998 | PA8: 2711.73999 | PB8: 2760.169922 | PC8: 2506.850098 | PD8: 2704.100098 | PE8: 2784.48999 | PF8: 2834.399902 | PG8: 2945.830078 | PH8: 2752.060059 | PI8: 2941.76001 | PJ8: 2980.379883 | PK8: 2926.459961 | PL8: 2976.73999 | PM8: 3037.560059 | PN8: 3140.97998 | PO8: 3230.780029 | PP8: 3225.52002 | PQ8: 2954.219971 | PR8: 2584.590088 | PS8: 2912.429932 | PT8: 3044.310059 | PU8: 3100.290039 | PV8: 3271.120117 | PW8: 3500.310059 | PX8: 3363 | PY8: 3269.959961 | PZ8: 3621.629883 | QA8: 3756.070068 | QB8: 3714.23999 | QC8: 3811.149902 | QD8: 3972.889893 | QE8: 4181.169922 | QF8: 4204.109863 | QG8: 4297.5 | QH8: 4395.259766 | QI8: 4522.680176 | QJ8: 4307.540039 | QK8: 4605.379883 | QL8: 4567 | QM8: 4766.180176 | QN8: 4515.549805 | QO8: 4373.939941 | QP8: 4530.410156 | QQ8: 4131.930176 | QR8: 4132.149902 | QS8: =LOOKUP(QS5,INDIRECT("'"&$S$2&"'!A:A"),INDIRECT("'"&$S$2&"'!B:B")) -> 3785.379883 | QT8: 4130.290039 | QU8: 3955 | QV8: 3585.620117 | QW8: 3871.97998 | QX8: 4080.110107 | QY8: 3839.5 | QZ8: 4076.600098 | RA8: 3970.149902 | RB8: 4109.310059 | RC8: 4169.47998 | RD8: 4179.830078 | RE8: 4450.379883 | RF8: 4588.959961 | RG8: 4507.660156 | RH8: 4288.049805 | RI8: 4193.799805 | RJ8: 4567.799805 | RK8: 4769.830078 | RL8: 4845.649902 | RM8: 5096.27002 | RN8: 5254.350098 | RO8: 5035.689941 | RP8: 5277.509766 | RQ8: 5460.47998 | RR8: 5522.299805 | RS8: 5648.399902 | RT8: 5762.47998 | RU8: 5705.450195 | RV8: 6032.379883 | RW8: 5881.629883 | RX8: 6040.529785 | RY8: 5954.5 | RZ8: 5611.850098 | SA8: 5569.060059 | SB8: 5911.689941 | SC8: 6204.950195 | SD8: 6339.390137 | SE8: 6460.259766 | SF8: 6688.459961 | SG8: 6840.200195 | SH8: 6849.089844 | SI8: 6845.5 | SJ8: 6939.029785 | SK8: 6878.879883 | SL8: 6528.52002 | SM8: 7209.009766 | SN8: 7580.060059 | SO8: 7383.740234 | SP8: 7383.740234 | SQ8: 7383.740234
D9: S&P 500 with Dividend | L9: =LOOKUP(L5,INDIRECT("'"&$U$2&"'!A:A"),INDIRECT("'"&$U$2&"'!B:B")) ->  | M9: =LOOKUP(M5,INDIRECT("'"&$U$2&"'!A:A"),INDIRECT("'"&$U$2&"'!B:B")) ->  | AV9: 257.4700012 | AW9: 269.480011 | AX9: 261.1499939 | AY9: 264.0400085 | AZ9: 266.3200073 | BA9: 278.5400085 | BB9: 277.4899902 | BC9: 268.0700073 | BD9: 279.4899902 | BE9: 287.269989 | BF9: 283.1799927 | BG9: 288.1199951 | BH9: 309.2099915 | BI9: 301.5100098 | BJ9: 308.5400085 | BK9: 324.5599976 | BL9: 337.6900024 | BM9: 335.7799988 | BN9: 366.1000061 | BO9: 373.25 | BP9: 371.7399902 | BQ9: 363.1099854 | BR9: 370.5100098 | BS9: 379.4100037 | BT9: 353.9400024 | BU9: 358.5 | BV9: 368 | BW9: 358.8200073 | BX9: 393.7999878 | BY9: =LOOKUP(BY5,INDIRECT("'"&$U$2&"'!A:A"),INDIRECT("'"&$U$2&"'!B:B")) -> 391.1400146 | BZ9: 389.8900146 | CA9: 354.6499939 | CB9: 337.3900146 | CC9: 335.9500122 | CD9: 357.6700134 | CE9: 367.6300049 | CF9: 383.6400146 | CG9: 411.0799866 | CH9: 421.0299988 | CI9: 422.0299988 | CJ9: 440.2399902 | CK9: 420.0700073 | CL9: 439.6499939 | CM9: 450.0599976 | CN9: 442.5299988 | CO9: 448.480011 | CP9: 430.4100037 | CQ9: 479.6300049 | CR9: 470.7000122 | CS9: 476.7900085 | CT9: 467.519989 | CU9: 481.25 | CV9: 483.6000061 | CW9: 476.4100037 | CX9: 495.8699951 | CY9: 485.7200012 | CZ9: 491.4299927 | DA9: 493.1300049 | DB9: 509.9200134 | DC9: 516.1799927 | DD9: 520.4899902 | DE9: 527.5900269 | DF9: 538.7199707 | DG9: 525.7000122 | DH9: 539.7600098 | DI9: 541.3400269 | DJ9: 539.1599731 | DK9: 559.6199951 | DL9: 555.3300171 | DM9: 566.8200073 | DN9: 561.4099731 | DO9: 568.2000122 | DP9: 587.5200195 | DQ9: 571.5700073 | DR9: 546.6500244 | DS9: 553.6599731 | DT9: 562.75 | DU9: 548.960022 | DV9: 566.9799805 | DW9: 590.2299805 | DX9: 575.7999878 | DY9: 588.7299805 | DZ9: 567.289978 | EA9: 575.710022 | EB9: 590.6400146 | EC9: 613.6500244 | ED9: 631.7600098 | EE9: 650.3599854 | EF9: 676.3599854 | EG9: 692.0700073 | EH9: 715.0200195 | EI9: 716.8200073 | EJ9: 747.0700073 | EK9: =LOOKUP(EK5,INDIRECT("'"&$U$2&"'!A:A"),INDIRECT("'"&$U$2&"'!B:B")) -> 744.4000244 | EL9: 777.0700073 | EM9: 792.039978 | EN9: 819 | EO9: 826.5900269 | EP9: 834.5499878 | EQ9: 846.8499756 | ER9: 868.6900024 | ES9: 872.0100098 | ET9: 833.4799805 | EU9: 851.0599976 | EV9: 898.9699707 | EW9: 923.7600098 | EX9: 993.5800171 | EY9: 973.9000244 | EZ9: 1034.73999 | FA9: 1042.849976 | FB9: 1000 | FC9: 1059.699951 | FD9: 1124.219971 | FE9: 1174.589966 | FF9: 1268.050049 | FG9: 1197.01001 | FH9: 1262.560059 | FI9: 1220.400024 | FJ9: 1276.890015 | FK9: 1298.819946 | FL9: 1313.189941 | FM9: 1407.900024 | FN9: 1480 | FO9: 1494.890015 | FP9: 1469.189941 | FQ9: 1528.869995 | FR9: 1512.589966 | FS9: 1293.900024 | FT9: 1376.790039 | FU9: 1488.780029 | FV9: 1579.02002 | FW9: 1670.01001 | FX9: 1739.839966 | FY9: 1685.77002 | FZ9: 1753.209961 | GA9: 1821.109985 | GB9: 1778.099976 | GC9: 1876.780029 | GD9: 1818.180054 | GE9: 1809.189941 | GF9: 1759.589966 | GG9: 1870.939941 | GH9: 1908.969971 | GI9: 2021.400024 | GJ9: 1919.839966 | GK9: 1883.5 | GL9: 2067.76001 | GM9: 2005.550049 | GN9: 1964.400024 | GO9: 2012.829956 | GP9: 1981.359985 | GQ9: 2104.429932 | GR9: 1993.329956 | GS9: 1984.910034 | GT9: 1828.420044 | GU9: 1837.369995 | GV9: 1902.550049 | GW9: =LOOKUP(GW5,INDIRECT("'"&$U$2&"'!A:A"),INDIRECT("'"&$U$2&"'!B:B")) -> 1729.079956 | GX9: 1619.540039 | GY9: 1745.390015 | GZ9: 1757.089966 | HA9: 1714.319946 | HB9: 1697.449951 | HC9: 1591.180054 | HD9: 1462.689941 | HE9: 1490.579956 | HF9: 1604.920044 | HG9: 1618.97998 | HH9: 1595.349976 | HI9: 1564.589966 | HJ9: 1623.430054 | HK9: 1525 | HL9: 1513.77002 | HM9: 1405.939941 | HN9: 1296.339966 | HO9: 1304.859985 | HP9: 1163.040039 | HQ9: 1265.410034 | HR9: 1339.890015 | HS9: 1261.180054 | HT9: 1228.140015 | HU9: 1209.709961 | HV9: 1221.459961 | HW9: 1322.069946 | HX9: 1391.719971 | HY9: 1409.47998 | HZ9: 1434.329956 | IA9: 1462.300049 | IB9: 1446.77002 | IC9: 1528.619995 | ID9: 1542.069946 | IE9: 1622.939941 | IF9: 1652.72998 | IG9: 1675.699951 | IH9: 1650.420044 | II9: 1624.51001 | IJ9: 1646.800049 | IK9: 1678.829956 | IL9: 1623.26001 | IM9: 1629.829956 | IN9: 1647.47998 | IO9: 1672.650024 | IP9: 1740.329956 | IQ9: 1799.550049 | IR9: 1755.680054 | IS9: 1792.630005 | IT9: 1760.890015 | IU9: 1727.48999 | IV9: 1782.459961 | IW9: 1784.98999 | IX9: 1851.369995 | IY9: 1834.47998 | IZ9: 1849.329956 | JA9: 1818.5 | JB9: 1887.280029 | JC9: 1887.939941 | JD9: 1937.930054 | JE9: 1943.189941 | JF9: 1967.380005 | JG9: 1993.790039 | JH9: 1936.410034 | JI9: =LOOKUP(JI5,INDIRECT("'"&$U$2&"'!A:A"),INDIRECT("'"&$U$2&"'!B:B")) -> 1939.030029 | JJ9: 1951 | JK9: 1997.420044 | JL9: 2048.889893 | JM9: 2115.649902 | JN9: 2155.889893 | JO9: 2186.129883 | JP9: 2219.189941 | JQ9: 2175.780029 | JR9: 2200.120117 | JS9: 2297.580078 | JT9: 2377.75 | JU9: 2338.25 | JV9: 2265.75 | JW9: 2299.709961 | JX9: 2385.719971 | JY9: 2423.669922 | JZ9: 2322.340088 | KA9: 2306.22998 | KB9: 2167.899902 | KC9: 2097.47998 | KD9: 2088.419922 | KE9: 2190.129883 | KF9: 2218.5 | KG9: 2031.469971 | KH9: 2014.390015 | KI9: 2043.530029 | KJ9: 1861.439941 | KK9: 1548.810059 | KL9: 1437.680054 | KM9: 1452.97998 | KN9: 1330.51001 | KO9: 1188.839966 | KP9: 1292.97998 | KQ9: 1416.72998 | KR9: 1495.969971 | KS9: 1498.939941 | KT9: 1612.310059 | KU9: 1670.52002 | KV9: 1732.859985 | KW9: 1700.670044 | KX9: 1802.680054 | KY9: 1837.5 | KZ9: 1771.400024 | LA9: 1826.27002 | LB9: 1936.47998 | LC9: 1967.050049 | LD9: 1809.97998 | LE9: 1715.22998 | LF9: 1835.400024 | LG9: 1752.550049 | LH9: 1908.949951 | LI9: 1981.589966 | LJ9: 1981.839966 | LK9: 2114.290039 | LL9: 2164.399902 | LM9: 2238.550049 | LN9: 2239.439941 | LO9: 2305.76001 | LP9: 2279.659912 | LQ9: 2241.659912 | LR9: 2196.080078 | LS9: 2076.780029 | LT9: 1930.790039 | LU9: =LOOKUP(LU5,INDIRECT("'"&$U$2&"'!A:A"),INDIRECT("'"&$U$2&"'!B:B")) -> 2141.810059 | LV9: 2137.080078 | LW9: 2158.939941 | LX9: 2255.689941 | LY9: 2353.22998 | LZ9: 2430.669922 | MA9: 2415.419922 | MB9: 2270.25 | MC9: 2363.790039 | MD9: 2396.620117 | ME9: 2450.600098 | MF9: 2513.929932 | MG9: 2467.51001 | MH9: 2481.820068 | MI9: 2504.439941 | MJ9: 2634.159912 | MK9: 2669.919922 | ML9: 2770.050049 | MM9: 2823.419922 | MN9: 2889.459961 | MO9: 2850.659912 | MP9: 2995.719971 | MQ9: 2908.959961 | MR9: 3000.179932 | MS9: 3138.090088 | MT9: 3233.719971 | MU9: 3315.590088 | MV9: 3200.949951 | MW9: 3347.379883 | MX9: 3375.51001 | MY9: 3400.459961 | MZ9: 3480.290039 | NA9: 3552.179932 | NB9: 3503.189941 | NC9: 3643.330078 | ND9: 3592.25 | NE9: 3679.98999 | NF9: 3778.959961 | NG9: 3769.439941 | NH9: 3656.280029 | NI9: 3866.419922 | NJ9: 3805.27002 | NK9: 3841.780029 | NL9: 3891.179932 | NM9: 3815.850098 | NN9: 3895.800049 | NO9: 3660.75 | NP9: 3570.169922 | NQ9: 3871.330078 | NR9: 3882.840088 | NS9: 3821.600098 | NT9: 3631.959961 | NU9: 3627.060059 | NV9: 3873.110107 | NW9: 3888.129883 | NX9: 3957.949951 | NY9: 3968.209961 | NZ9: 4114.509766 | OA9: 4120.290039 | OB9: 4121.060059 | OC9: 4045.889893 | OD9: 4195.72998 | OE9: 4278.660156 | OF9: 4359.810059 | OG9: =LOOKUP(OG5,INDIRECT("'"&$U$2&"'!A:A"),INDIRECT("'"&$U$2&"'!B:B")) -> 4532.930176 | OH9: 4538.209961 | OI9: 4584.819824 | OJ9: 4649.339844 | OK9: 4678.359863 | OL9: 4774.560059 | OM9: 4789.180176 | ON9: 4887.970215 | OO9: 5002.029785 | OP9: 5155.439941 | OQ9: 5212.759766 | OR9: 5511.209961 | OS9: 5308.089844 | OT9: 5173.189941 | OU9: 5193.040039 | OV9: 5318.100098 | OW9: 5350.830078 | OX9: 5549.959961 | OY9: 5730.799805 | OZ9: 5763.419922 | PA9: 5369.490234 | PB9: 5478.910156 | PC9: 4984.220215 | PD9: 5383.629883 | PE9: 5556.490234 | PF9: 5664.459961 | PG9: 5893.810059 | PH9: 5519.27002 | PI9: 5908.25 | PJ9: 5993.169922 | PK9: 5898.22998 | PL9: 6008.589844 | PM9: 6138.72998 | PN9: 6361.560059 | PO9: 6553.569824 | PP9: 6551 | PQ9: 6011.72998 | PR9: 5269.200195 | PS9: 5944.680176 | PT9: 6227.810059 | PU9: 6351.669922 | PV9: 6709.810059 | PW9: 7192.109863 | PX9: 6918.830078 | PY9: 6734.839844 | PZ9: 7472.060059 | QA9: 7759.350098 | QB9: 7681.009766 | QC9: 7892.810059 | QD9: 8238.480469 | QE9: 8678.160156 | QF9: 8738.769531 | QG9: 8942.780273 | QH9: 9155.209961 | QI9: 9433.580078 | QJ9: 8994.830078 | QK9: 9625.019531 | QL9: 9558.330078 | QM9: 9986.700195 | QN9: 9469.919922 | QO9: 9186.370117 | QP9: 9527.459961 | QQ9: 8696.650391 | QR9: 8712.599609 | QS9: =LOOKUP(QS5,INDIRECT("'"&$U$2&"'!A:A"),INDIRECT("'"&$U$2&"'!B:B")) -> 7993.430176 | QT9: 8730.459961 | QU9: 8374.419922 | QV9: 7603.140137 | QW9: 8218.700195 | QX9: 8678 | QY9: 8178.02002 | QZ9: 8691.879883 | RA9: 8479.799805 | RB9: 8791.129883 | RC9: 8928.349609 | RD9: 8967.160156 | RE9: 9559.669922 | RF9: 9866.769531 | RG9: 9709.679688 | RH9: 9246.740234 | RI9: 9052.30957 | RJ9: 9879.019531 | RK9: 10327.83008 | RL9: 10501.37988 | RM9: 11062.11035 | RN9: 11418.03027 | RO9: 10951.66016 | RP9: 11494.7002 | RQ9: 11907.15039 | RR9: 12052.08984 | RS9: 12344.42969 | RT9: 12608.07031 | RU9: 12493.74023 | RV9: 13227.12988 | RW9: 12911.82031 | RX9: 13271.37988 | RY9: 13098.21973 | RZ9: 12360.20996 | SA9: 12276.38965 | SB9: 13049.12988 | SC9: 13712.70996 | SD9: 14020.45996 | SE9: 14304.67969 | SF9: 14826.7998 | SG9: 15173.9502 | SH9: 15211.13965 | SI9: 15220.4502 | SJ9: 15441.15039 | SK9: 15323.7998 | SL9: 14560.75 | SM9: 16088.55957 | SN9: 16935.34961 | SO9: 16595.61914 | SP9: 16595.61914 | SQ9: 16595.61914
D11: Start Date for Prices | G11: =_xlfn.XLOOKUP(1,$L$11:$SQ$11,L5:SQ5) -> 1995-12-01 | L11: =AND(NOT(K6),L6)*1 -> 0 | M11: =AND(NOT(L6),M6)*1 -> 0 | N11: 0 | O11: 0 | P11: 0 | Q11: 0 | R11: 0 | S11: 0 | T11: 0 | U11: 0 | V11: 0 | W11: 0 | X11: 0 | Y11: 0 | Z11: 0 | AA11: 0 | AB11: 0 | AC11: 0 | AD11: 0 | AE11: 0 | AF11: 0 | AG11: 0 | AH11: 0 | AI11: 0 | AJ11: 0 | AK11: 0 | AL11: 0 | AM11: 0 | AN11: 0 | AO11: 0 | AP11: 0 | AQ11: 0 | AR11: 0 | AS11: 0 | AT11: 0 | AU11: 0 | AV11: 0 | AW11: 0 | AX11: 0 | AY11: 0 | AZ11: 0 | BA11: 0 | BB11: 0 | BC11: 0 | BD11: 0 | BE11: 0 | BF11: 0 | BG11: 0 | BH11: 0 | BI11: 0 | BJ11: 0 | BK11: 0 | BL11: 0 | BM11: 0 | BN11: 0 | BO11: 0 | BP11: 0 | BQ11: 0 | BR11: 0 | BS11: 0 | BT11: 0 | BU11: 0 | BV11: 0 | BW11: 0 | BX11: 0 | BY11: =AND(NOT(BX6),BY6)*1 -> 0 | BZ11: 0 | CA11: 0 | CB11: 0 | CC11: 0 | CD11: 0 | CE11: 0 | CF11: 0 | CG11: 0 | CH11: 0 | CI11: 0 | CJ11: 0 | CK11: 0 | CL11: 0 | CM11: 0 | CN11: 0 | CO11: 0 | CP11: 0 | CQ11: 0 | CR11: 0 | CS11: 0 | CT11: 0 | CU11: 0 | CV11: 0 | CW11: 0 | CX11: 0 | CY11: 0 | CZ11: 0 | DA11: 0 | DB11: 0 | DC11: 0 | DD11: 0 | DE11: 0 | DF11: 0 | DG11: 0 | DH11: 0 | DI11: 0 | DJ11: 0 | DK11: 0 | DL11: 0 | DM11: 0 | DN11: 0 | DO11: 0 | DP11: 0 | DQ11: 0 | DR11: 0 | DS11: 0 | DT11: 0 | DU11: 0 | DV11: 0 | DW11: 0 | DX11: 0 | DY11: 0 | DZ11: 0 | EA11: 0 | EB11: 0 | EC11: 0 | ED11: 0 | EE11: 0 | EF11: 0 | EG11: 0 | EH11: 0 | EI11: 0 | EJ11: 0 | EK11: =AND(NOT(EJ6),EK6)*1 -> 0 | EL11: 0 | EM11: 1 | EN11: 0 | EO11: 0 | EP11: 0 | EQ11: 0 | ER11: 0 | ES11: 0 | ET11: 0 | EU11: 0 | EV11: 0 | EW11: 0 | EX11: 0 | EY11: 0 | EZ11: 0 | FA11: 0 | FB11: 0 | FC11: 0 | FD11: 0 | FE11: 0 | FF11: 0 | FG11: 0 | FH11: 0 | FI11: 0 | FJ11: 0 | FK11: 0 | FL11: 0 | FM11: 0 | FN11: 0 | FO11: 0 | FP11: 0 | FQ11: 0 | FR11: 0 | FS11: 0 | FT11: 0 | FU11: 0 | FV11: 0 | FW11: 0 | FX11: 0 | FY11: 0 | FZ11: 0 | GA11: 0 | GB11: 0 | GC11: 0 | GD11: 0 | GE11: 0 | GF11: 0 | GG11: 0 | GH11: 0 | GI11: 0 | GJ11: 0 | GK11: 0 | GL11: 0 | GM11: 0 | GN11: 0 | GO11: 0 | GP11: 0 | GQ11: 0 | GR11: 0 | GS11: 0 | GT11: 0 | GU11: 0 | GV11: 0 | GW11: =AND(NOT(GV6),GW6)*1 -> 0 | GX11: 0 | GY11: 0 | GZ11: 0 | HA11: 0 | HB11: 0 | HC11: 0 | HD11: 0 | HE11: 0 | HF11: 0 | HG11: 0 | HH11: 0 | HI11: 0 | HJ11: 0 | HK11: 0 | HL11: 0 | HM11: 0 | HN11: 0 | HO11: 0 | HP11: 0 | HQ11: 0 | HR11: 0 | HS11: 0 | HT11: 0 | HU11: 0 | HV11: 0 | HW11: 0 | HX11: 0 | HY11: 0 | HZ11: 0 | IA11: 0 | IB11: 0 | IC11: 0 | ID11: 0 | IE11: 0 | IF11: 0 | IG11: 0 | IH11: 0 | II11: 0 | IJ11: 0 | IK11: 0 | IL11: 0 | IM11: 0 | IN11: 0 | IO11: 0 | IP11: 0 | IQ11: 0 | IR11: 0 | IS11: 0 | IT11: 0 | IU11: 0 | IV11: 0 | IW11: 0 | IX11: 0 | IY11: 0 | IZ11: 0 | JA11: 0 | JB11: 0 | JC11: 0 | JD11: 0 | JE11: 0 | JF11: 0 | JG11: 0 | JH11: 0 | JI11: =AND(NOT(JH6),JI6)*1 -> 0 | JJ11: 0 | JK11: 0 | JL11: 0 | JM11: 0 | JN11: 0 | JO11: 0 | JP11: 0 | JQ11: 0 | JR11: 0 | JS11: 0 | JT11: 0 | JU11: 0 | JV11: 0 | JW11: 0 | JX11: 0 | JY11: 0 | JZ11: 0 | KA11: 0 | KB11: 0 | KC11: 0 | KD11: 0 | KE11: 0 | KF11: 0 | KG11: 0 | KH11: 0 | KI11: 0 | KJ11: 0 | KK11: 0 | KL11: 0 | KM11: 0 | KN11: 0 | KO11: 0 | KP11: 0 | KQ11: 0 | KR11: 0 | KS11: 0 | KT11: 0 | KU11: 0 | KV11: 0 | KW11: 0 | KX11: 0 | KY11: 0 | KZ11: 0 | LA11: 0 | LB11: 0 | LC11: 0 | LD11: 0 | LE11: 0 | LF11: 0 | LG11: 0 | LH11: 0 | LI11: 0 | LJ11: 0 | LK11: 0 | LL11: 0 | LM11: 0 | LN11: 0 | LO11: 0 | LP11: 0 | LQ11: 0 | LR11: 0 | LS11: 0 | LT11: 0 | LU11: =AND(NOT(LT6),LU6)*1 -> 0 | LV11: 0 | LW11: 0 | LX11: 0 | LY11: 0 | LZ11: 0 | MA11: 0 | MB11: 0 | MC11: 0 | MD11: 0 | ME11: 0 | MF11: 0 | MG11: 0 | MH11: 0 | MI11: 0 | MJ11: 0 | MK11: 0 | ML11: 0 | MM11: 0 | MN11: 0 | MO11: 0 | MP11: 0 | MQ11: 0 | MR11: 0 | MS11: 0 | MT11: 0 | MU11: 0 | MV11: 0 | MW11: 0 | MX11: 0 | MY11: 0 | MZ11: 0 | NA11: 0 | NB11: 0 | NC11: 0 | ND11: 0 | NE11: 0 | NF11: 0 | NG11: 0 | NH11: 0 | NI11: 0 | NJ11: 0 | NK11: 0 | NL11: 0 | NM11: 0 | NN11: 0 | NO11: 0 | NP11: 0 | NQ11: 0 | NR11: 0 | NS11: 0 | NT11: 0 | NU11: 0 | NV11: 0 | NW11: 0 | NX11: 0 | NY11: 0 | NZ11: 0 | OA11: 0 | OB11: 0 | OC11: 0 | OD11: 0 | OE11: 0 | OF11: 0 | OG11: =AND(NOT(OF6),OG6)*1 -> 0 | OH11: 0 | OI11: 0 | OJ11: 0 | OK11: 0 | OL11: 0 | OM11: 0 | ON11: 0 | OO11: 0 | OP11: 0 | OQ11: 0 | OR11: 0 | OS11: 0 | OT11: 0 | OU11: 0 | OV11: 0 | OW11: 0 | OX11: 0 | OY11: 0 | OZ11: 0 | PA11: 0 | PB11: 0 | PC11: 0 | PD11: 0 | PE11: 0 | PF11: 0 | PG11: 0 | PH11: 0 | PI11: 0 | PJ11: 0 | PK11: 0 | PL11: 0 | PM11: 0 | PN11: 0 | PO11: 0 | PP11: 0 | PQ11: 0 | PR11: 0 | PS11: 0 | PT11: 0 | PU11: 0 | PV11: 0 | PW11: 0 | PX11: 0 | PY11: 0 | PZ11: 0 | QA11: 0 | QB11: 0 | QC11: 0 | QD11: 0 | QE11: 0 | QF11: 0 | QG11: 0 | QH11: 0 | QI11: 0 | QJ11: 0 | QK11: 0 | QL11: 0 | QM11: 0 | QN11: 0 | QO11: 0 | QP11: 0 | QQ11: 0 | QR11: 0 | QS11: =AND(NOT(QR6),QS6)*1 -> 0 | QT11: 0 | QU11: 0 | QV11: 0 | QW11: 0 | QX11: 0 | QY11: 0 | QZ11: 0 | RA11: 0 | RB11: 0 | RC11: 0 | RD11: 0 | RE11: 0 | RF11: 0 | RG11: 0 | RH11: 0 | RI11: 0 | RJ11: 0 | RK11: 0 | RL11: 0 | RM11: 0 | RN11: 0 | RO11: 0 | RP11: 0 | RQ11: 0 | RR11: 0 | RS11: 0 | RT11: 0 | RU11: 0 | RV11: 0 | RW11: 0 | RX11: 0 | RY11: 0 | RZ11: 0 | SA11: 0 | SB11: 0 | SC11: 0 | SD11: 0 | SE11: 0 | SF11: 0 | SG11: 0 | SH11: 0 | SI11: 0 | SJ11: 0 | SK11: 0 | SL11: 0 | SM11: 0 | SN11: 0 | SO11: 0 | SP11: 0 | SQ11: 0
D12: End Date for Prices | G12: =_xlfn.XLOOKUP(1,$L$12:$SQ$12,L5:SQ5) -> 2026-06-01 | L12: =AND(NOT(M6),L6)*1 -> 0 | M12: =AND(NOT(N6),M6)*1 -> 0 | N12: =AND(NOT(O6),N6)*1 -> 0 | O12: 0 | P12: 0 | Q12: 0 | R12: 0 | S12: 0 | T12: 0 | U12: 0 | V12: 0 | W12: 0 | X12: 0 | Y12: 0 | Z12: 0 | AA12: 0 | AB12: 0 | AC12: 0 | AD12: 0 | AE12: 0 | AF12: 0 | AG12: 0 | AH12: 0 | AI12: 0 | AJ12: 0 | AK12: 0 | AL12: 0 | AM12: 0 | AN12: 0 | AO12: 0 | AP12: 0 | AQ12: 0 | AR12: 0 | AS12: 0 | AT12: 0 | AU12: 0 | AV12: 0 | AW12: 0 | AX12: 0 | AY12: 0 | AZ12: 0 | BA12: 0 | BB12: 0 | BC12: 0 | BD12: 0 | BE12: 0 | BF12: 0 | BG12: 0 | BH12: 0 | BI12: 0 | BJ12: 0 | BK12: 0 | BL12: 0 | BM12: 0 | BN12: 0 | BO12: 0 | BP12: 0 | BQ12: 0 | BR12: 0 | BS12: 0 | BT12: 0 | BU12: 0 | BV12: 0 | BW12: 0 | BX12: 0 | BY12: 0 | BZ12: =AND(NOT(CA6),BZ6)*1 -> 0 | CA12: 0 | CB12: 0 | CC12: 0 | CD12: 0 | CE12: 0 | CF12: 0 | CG12: 0 | CH12: 0 | CI12: 0 | CJ12: 0 | CK12: 0 | CL12: 0 | CM12: 0 | CN12: 0 | CO12: 0 | CP12: 0 | CQ12: 0 | CR12: 0 | CS12: 0 | CT12: 0 | CU12: 0 | CV12: 0 | CW12: 0 | CX12: 0 | CY12: 0 | CZ12: 0 | DA12: 0 | DB12: 0 | DC12: 0 | DD12: 0 | DE12: 0 | DF12: 0 | DG12: 0 | DH12: 0 | DI12: 0 | DJ12: 0 | DK12: 0 | DL12: 0 | DM12: 0 | DN12: 0 | DO12: 0 | DP12: 0 | DQ12: 0 | DR12: 0 | DS12: 0 | DT12: 0 | DU12: 0 | DV12: 0 | DW12: 0 | DX12: 0 | DY12: 0 | DZ12: 0 | EA12: 0 | EB12: 0 | EC12: 0 | ED12: 0 | EE12: 0 | EF12: 0 | EG12: 0 | EH12: 0 | EI12: 0 | EJ12: 0 | EK12: 0 | EL12: =AND(NOT(EM6),EL6)*1 -> 0 | EM12: 0 | EN12: 0 | EO12: 0 | EP12: 0 | EQ12: 0 | ER12: 0 | ES12: 0 | ET12: 0 | EU12: 0 | EV12: 0 | EW12: 0 | EX12: 0 | EY12: 0 | EZ12: 0 | FA12: 0 | FB12: 0 | FC12: 0 | FD12: 0 | FE12: 0 | FF12: 0 | FG12: 0 | FH12: 0 | FI12: 0 | FJ12: 0 | FK12: 0 | FL12: 0 | FM12: 0 | FN12: 0 | FO12: 0 | FP12: 0 | FQ12: 0 | FR12: 0 | FS12: 0 | FT12: 0 | FU12: 0 | FV12: 0 | FW12: 0 | FX12: 0 | FY12: 0 | FZ12: 0 | GA12: 0 | GB12: 0 | GC12: 0 | GD12: 0 | GE12: 0 | GF12: 0 | GG12: 0 | GH12: 0 | GI12: 0 | GJ12: 0 | GK12: 0 | GL12: 0 | GM12: 0 | GN12: 0 | GO12: 0 | GP12: 0 | GQ12: 0 | GR12: 0 | GS12: 0 | GT12: 0 | GU12: 0 | GV12: 0 | GW12: 0 | GX12: =AND(NOT(GY6),GX6)*1 -> 0 | GY12: 0 | GZ12: 0 | HA12: 0 | HB12: 0 | HC12: 0 | HD12: 0 | HE12: 0 | HF12: 0 | HG12: 0 | HH12: 0 | HI12: 0 | HJ12: 0 | HK12: 0 | HL12: 0 | HM12: 0 | HN12: 0 | HO12: 0 | HP12: 0 | HQ12: 0 | HR12: 0 | HS12: 0 | HT12: 0 | HU12: 0 | HV12: 0 | HW12: 0 | HX12: 0 | HY12: 0 | HZ12: 0 | IA12: 0 | IB12: 0 | IC12: 0 | ID12: 0 | IE12: 0 | IF12: 0 | IG12: 0 | IH12: 0 | II12: 0 | IJ12: 0 | IK12: 0 | IL12: 0 | IM12: 0 | IN12: 0 | IO12: 0 | IP12: 0 | IQ12: 0 | IR12: 0 | IS12: 0 | IT12: 0 | IU12: 0 | IV12: 0 | IW12: 0 | IX12: 0 | IY12: 0 | IZ12: 0 | JA12: 0 | JB12: 0 | JC12: 0 | JD12: 0 | JE12: 0 | JF12: 0 | JG12: 0 | JH12: 0 | JI12: 0 | JJ12: =AND(NOT(JK6),JJ6)*1 -> 0 | JK12: 0 | JL12: 0 | JM12: 0 | JN12: 0 | JO12: 0 | JP12: 0 | JQ12: 0 | JR12: 0 | JS12: 0 | JT12: 0 | JU12: 0 | JV12: 0 | JW12: 0 | JX12: 0 | JY12: 0 | JZ12: 0 | KA12: 0 | KB12: 0 | KC12: 0 | KD12: 0 | KE12: 0 | KF12: 0 | KG12: 0 | KH12: 0 | KI12: 0 | KJ12: 0 | KK12: 0 | KL12: 0 | KM12: 0 | KN12: 0 | KO12: 0 | KP12: 0 | KQ12: 0 | KR12: 0 | KS12: 0 | KT12: 0 | KU12: 0 | KV12: 0 | KW12: 0 | KX12: 0 | KY12: 0 | KZ12: 0 | LA12: 0 | LB12: 0 | LC12: 0 | LD12: 0 | LE12: 0 | LF12: 0 | LG12: 0 | LH12: 0 | LI12: 0 | LJ12: 0 | LK12: 0 | LL12: 0 | LM12: 0 | LN12: 0 | LO12: 0 | LP12: 0 | LQ12: 0 | LR12: 0 | LS12: 0 | LT12: 0 | LU12: 0 | LV12: =AND(NOT(LW6),LV6)*1 -> 0 | LW12: 0 | LX12: 0 | LY12: 0 | LZ12: 0 | MA12: 0 | MB12: 0 | MC12: 0 | MD12: 0 | ME12: 0 | MF12: 0 | MG12: 0 | MH12: 0 | MI12: 0 | MJ12: 0 | MK12: 0 | ML12: 0 | MM12: 0 | MN12: 0 | MO12: 0 | MP12: 0 | MQ12: 0 | MR12: 0 | MS12: 0 | MT12: 0 | MU12: 0 | MV12: 0 | MW12: 0 | MX12: 0 | MY12: 0 | MZ12: 0 | NA12: 0 | NB12: 0 | NC12: 0 | ND12: 0 | NE12: 0 | NF12: 0 | NG12: 0 | NH12: 0 | NI12: 0 | NJ12: 0 | NK12: 0 | NL12: 0 | NM12: 0 | NN12: 0 | NO12: 0 | NP12: 0 | NQ12: 0 | NR12: 0 | NS12: 0 | NT12: 0 | NU12: 0 | NV12: 0 | NW12: 0 | NX12: 0 | NY12: 0 | NZ12: 0 | OA12: 0 | OB12: 0 | OC12: 0 | OD12: 0 | OE12: 0 | OF12: 0 | OG12: 0 | OH12: =AND(NOT(OI6),OH6)*1 -> 0 | OI12: 0 | OJ12: 0 | OK12: 0 | OL12: 0 | OM12: 0 | ON12: 0 | OO12: 0 | OP12: 0 | OQ12: 0 | OR12: 0 | OS12: 0 | OT12: 0 | OU12: 0 | OV12: 0 | OW12: 0 | OX12: 0 | OY12: 0 | OZ12: 0 | PA12: 0 | PB12: 0 | PC12: 0 | PD12: 0 | PE12: 0 | PF12: 0 | PG12: 0 | PH12: 0 | PI12: 0 | PJ12: 0 | PK12: 0 | PL12: 0 | PM12: 0 | PN12: 0 | PO12: 0 | PP12: 0 | PQ12: 0 | PR12: 0 | PS12: 0 | PT12: 0 | PU12: 0 | PV12: 0 | PW12: 0 | PX12: 0 | PY12: 0 | PZ12: 0 | QA12: 0 | QB12: 0 | QC12: 0 | QD12: 0 | QE12: 0 | QF12: 0 | QG12: 0 | QH12: 0 | QI12: 0 | QJ12: 0 | QK12: 0 | QL12: 0 | QM12: 0 | QN12: 0 | QO12: 0 | QP12: 0 | QQ12: 0 | QR12: 0 | QS12: 0 | QT12: =AND(NOT(QU6),QT6)*1 -> 0 | QU12: 0 | QV12: 0 | QW12: 0 | QX12: 0 | QY12: 0 | QZ12: 0 | RA12: 0 | RB12: 0 | RC12: 0 | RD12: 0 | RE12: 0 | RF12: 0 | RG12: 0 | RH12: 0 | RI12: 0 | RJ12: 0 | RK12: 0 | RL12: 0 | RM12: 0 | RN12: 0 | RO12: 0 | RP12: 0 | RQ12: 0 | RR12: 0 | RS12: 0 | RT12: 0 | RU12: 0 | RV12: 0 | RW12: 0 | RX12: 0 | RY12: 0 | RZ12: 0 | SA12: 0 | SB12: 0 | SC12: 0 | SD12: 0 | SE12: 0 | SF12: 0 | SG12: 0 | SH12: 0 | SI12: 0 | SJ12: 0 | SK12: 0 | SL12: 0 | SM12: 0 | SN12: 0 | SO12: 1 | SP12: 0 | SQ12: 0
B14: Prices
D15: Flag | I15: =I2 -> 1997-01-01 | J15: =I3 -> 2026-01-01 | L15: =L5>=$I$15 -> FALSE | M15: =AND(M5>=$I$15,M5<=$J$15) -> FALSE | N15: =AND(N5>=$I$15,N5<=$J$15) -> FALSE | O15: =AND(O5>=$I$15,O5<=$J$15) -> FALSE | P15: FALSE | Q15: FALSE | R15: FALSE | S15: FALSE | T15: FALSE | U15: FALSE | V15: FALSE | W15: FALSE | X15: FALSE | Y15: FALSE | Z15: FALSE | AA15: FALSE | AB15: FALSE | AC15: FALSE | AD15: FALSE | AE15: FALSE | AF15: FALSE | AG15: FALSE | AH15: FALSE | AI15: FALSE | AJ15: FALSE | AK15: FALSE | AL15: FALSE | AM15: FALSE | AN15: FALSE | AO15: FALSE | AP15: FALSE | AQ15: FALSE | AR15: FALSE | AS15: FALSE | AT15: FALSE | AU15: FALSE | AV15: FALSE | AW15: FALSE | AX15: FALSE | AY15: FALSE | AZ15: FALSE | BA15: FALSE | BB15: FALSE | BC15: FALSE | BD15: FALSE | BE15: FALSE | BF15: FALSE | BG15: FALSE | BH15: FALSE | BI15: FALSE | BJ15: FALSE | BK15: FALSE | BL15: FALSE | BM15: FALSE | BN15: FALSE | BO15: FALSE | BP15: FALSE | BQ15: FALSE | BR15: FALSE | BS15: FALSE | BT15: FALSE | BU15: FALSE | BV15: FALSE | BW15: FALSE | BX15: FALSE | BY15: =AND(BY5>=$I$15,BY5<=$J$15) -> FALSE | BZ15: FALSE | CA15: FALSE | CB15: FALSE | CC15: FALSE | CD15: FALSE | CE15: FALSE | CF15: FALSE | CG15: FALSE | CH15: FALSE | CI15: FALSE | CJ15: FALSE | CK15: FALSE | CL15: FALSE | CM15: FALSE | CN15: FALSE | CO15: FALSE | CP15: FALSE | CQ15: FALSE | CR15: FALSE | CS15: FALSE | CT15: FALSE | CU15: FALSE | CV15: FALSE | CW15: FALSE | CX15: FALSE | CY15: FALSE | CZ15: FALSE | DA15: FALSE | DB15: FALSE | DC15: FALSE | DD15: FALSE | DE15: FALSE | DF15: FALSE | DG15: FALSE | DH15: FALSE | DI15: FALSE | DJ15: FALSE | DK15: FALSE | DL15: FALSE | DM15: FALSE | DN15: FALSE | DO15: FALSE | DP15: FALSE | DQ15: FALSE | DR15: FALSE | DS15: FALSE | DT15: FALSE | DU15: FALSE | DV15: FALSE | DW15: FALSE | DX15: FALSE | DY15: FALSE | DZ15: FALSE | EA15: FALSE | EB15: FALSE | EC15: FALSE | ED15: FALSE | EE15: FALSE | EF15: FALSE | EG15: FALSE | EH15: FALSE | EI15: FALSE | EJ15: FALSE | EK15: =AND(EK5>=$I$15,EK5<=$J$15) -> FALSE | EL15: FALSE | EM15: FALSE | EN15: FALSE | EO15: FALSE | EP15: FALSE | EQ15: FALSE | ER15: FALSE | ES15: FALSE | ET15: FALSE | EU15: FALSE | EV15: FALSE | EW15: FALSE | EX15: FALSE | EY15: FALSE | EZ15: TRUE | FA15: TRUE | FB15: TRUE | FC15: TRUE | FD15: TRUE | FE15: TRUE | FF15: TRUE | FG15: TRUE | FH15: TRUE | FI15: TRUE | FJ15: TRUE | FK15: TRUE | FL15: TRUE | FM15: TRUE | FN15: TRUE | FO15: TRUE | FP15: TRUE | FQ15: TRUE | FR15: TRUE | FS15: TRUE | FT15: TRUE | FU15: TRUE | FV15: TRUE | FW15: TRUE | FX15: TRUE | FY15: TRUE | FZ15: TRUE | GA15: TRUE | GB15: TRUE | GC15: TRUE | GD15: TRUE | GE15: TRUE | GF15: TRUE | GG15: TRUE | GH15: TRUE | GI15: TRUE | GJ15: TRUE | GK15: TRUE | GL15: TRUE | GM15: TRUE | GN15: TRUE | GO15: TRUE | GP15: TRUE | GQ15: TRUE | GR15: TRUE | GS15: TRUE | GT15: TRUE | GU15: TRUE | GV15: TRUE | GW15: =AND(GW5>=$I$15,GW5<=$J$15) -> TRUE | GX15: TRUE | GY15: TRUE | GZ15: TRUE | HA15: TRUE | HB15: TRUE | HC15: TRUE | HD15: TRUE | HE15: TRUE | HF15: TRUE | HG15: TRUE | HH15: TRUE | HI15: TRUE | HJ15: TRUE | HK15: TRUE | HL15: TRUE | HM15: TRUE | HN15: TRUE | HO15: TRUE | HP15: TRUE | HQ15: TRUE | HR15: TRUE | HS15: TRUE | HT15: TRUE | HU15: TRUE | HV15: TRUE | HW15: TRUE | HX15: TRUE | HY15: TRUE | HZ15: TRUE | IA15: TRUE | IB15: TRUE | IC15: TRUE | ID15: TRUE | IE15: TRUE | IF15: TRUE | IG15: TRUE | IH15: TRUE | II15: TRUE | IJ15: TRUE | IK15: TRUE | IL15: TRUE | IM15: TRUE | IN15: TRUE | IO15: TRUE | IP15: TRUE | IQ15: TRUE | IR15: TRUE | IS15: TRUE | IT15: TRUE | IU15: TRUE | IV15: TRUE | IW15: TRUE | IX15: TRUE | IY15: TRUE | IZ15: TRUE | JA15: TRUE | JB15: TRUE | JC15: TRUE | JD15: TRUE | JE15: TRUE | JF15: TRUE | JG15: TRUE | JH15: TRUE | JI15: =AND(JI5>=$I$15,JI5<=$J$15) -> TRUE | JJ15: TRUE | JK15: TRUE | JL15: TRUE | JM15: TRUE | JN15: TRUE | JO15: TRUE | JP15: TRUE | JQ15: TRUE | JR15: TRUE | JS15: TRUE | JT15: TRUE | JU15: TRUE | JV15: TRUE | JW15: TRUE | JX15: TRUE | JY15: TRUE | JZ15: TRUE | KA15: TRUE | KB15: TRUE | KC15: TRUE | KD15: TRUE | KE15: TRUE | KF15: TRUE | KG15: TRUE | KH15: TRUE | KI15: TRUE | KJ15: TRUE | KK15: TRUE | KL15: TRUE | KM15: TRUE | KN15: TRUE | KO15: TRUE | KP15: TRUE | KQ15: TRUE | KR15: TRUE | KS15: TRUE | KT15: TRUE | KU15: TRUE | KV15: TRUE | KW15: TRUE | KX15: TRUE | KY15: TRUE | KZ15: TRUE | LA15: TRUE | LB15: TRUE | LC15: TRUE | LD15: TRUE | LE15: TRUE | LF15: TRUE | LG15: TRUE | LH15: TRUE | LI15: TRUE | LJ15: TRUE | LK15: TRUE | LL15: TRUE | LM15: TRUE | LN15: TRUE | LO15: TRUE | LP15: TRUE | LQ15: TRUE | LR15: TRUE | LS15: TRUE | LT15: TRUE | LU15: =AND(LU5>=$I$15,LU5<=$J$15) -> TRUE | LV15: TRUE | LW15: TRUE | LX15: TRUE | LY15: TRUE | LZ15: TRUE | MA15: TRUE | MB15: TRUE | MC15: TRUE | MD15: TRUE | ME15: TRUE | MF15: TRUE | MG15: TRUE | MH15: TRUE | MI15: TRUE | MJ15: TRUE | MK15: TRUE | ML15: TRUE | MM15: TRUE | MN15: TRUE | MO15: TRUE | MP15: TRUE | MQ15: TRUE | MR15: TRUE | MS15: TRUE | MT15: TRUE | MU15: TRUE | MV15: TRUE | MW15: TRUE | MX15: TRUE | MY15: TRUE | MZ15: TRUE | NA15: TRUE | NB15: TRUE | NC15: TRUE | ND15: TRUE | NE15: TRUE | NF15: TRUE | NG15: TRUE | NH15: TRUE | NI15: TRUE | NJ15: TRUE | NK15: TRUE | NL15: TRUE | NM15: TRUE | NN15: TRUE | NO15: TRUE | NP15: TRUE | NQ15: TRUE | NR15: TRUE | NS15: TRUE | NT15: TRUE | NU15: TRUE | NV15: TRUE | NW15: TRUE | NX15: TRUE | NY15: TRUE | NZ15: TRUE | OA15: TRUE | OB15: TRUE | OC15: TRUE | OD15: TRUE | OE15: TRUE | OF15: TRUE | OG15: =AND(OG5>=$I$15,OG5<=$J$15) -> TRUE | OH15: TRUE | OI15: TRUE | OJ15: TRUE | OK15: TRUE | OL15: TRUE | OM15: TRUE | ON15: TRUE | OO15: TRUE | OP15: TRUE | OQ15: TRUE | OR15: TRUE | OS15: TRUE | OT15: TRUE | OU15: TRUE | OV15: TRUE | OW15: TRUE | OX15: TRUE | OY15: TRUE | OZ15: TRUE | PA15: TRUE | PB15: TRUE | PC15: TRUE | PD15: TRUE | PE15: TRUE | PF15: TRUE | PG15: TRUE | PH15: TRUE | PI15: TRUE | PJ15: TRUE | PK15: TRUE | PL15: TRUE | PM15: TRUE | PN15: TRUE | PO15: TRUE | PP15: TRUE | PQ15: TRUE | PR15: TRUE | PS15: TRUE | PT15: TRUE | PU15: TRUE | PV15: TRUE | PW15: TRUE | PX15: TRUE | PY15: TRUE | PZ15: TRUE | QA15: TRUE | QB15: TRUE | QC15: TRUE | QD15: TRUE | QE15: TRUE | QF15: TRUE | QG15: TRUE | QH15: TRUE | QI15: TRUE | QJ15: TRUE | QK15: TRUE | QL15: TRUE | QM15: TRUE | QN15: TRUE | QO15: TRUE | QP15: TRUE | QQ15: TRUE | QR15: TRUE | QS15: =AND(QS5>=$I$15,QS5<=$J$15) -> TRUE | QT15: TRUE | QU15: TRUE | QV15: TRUE | QW15: TRUE | QX15: TRUE | QY15: TRUE | QZ15: TRUE | RA15: TRUE | RB15: TRUE | RC15: TRUE | RD15: TRUE | RE15: TRUE | RF15: TRUE | RG15: TRUE | RH15: TRUE | RI15: TRUE | RJ15: TRUE | RK15: TRUE | RL15: TRUE | RM15: TRUE | RN15: TRUE | RO15: TRUE | RP15: TRUE | RQ15: TRUE | RR15: TRUE | RS15: TRUE | RT15: TRUE | RU15: TRUE | RV15: TRUE | RW15: TRUE | RX15: TRUE | RY15: TRUE | RZ15: TRUE | SA15: TRUE | SB15: TRUE | SC15: TRUE | SD15: TRUE | SE15: TRUE | SF15: TRUE | SG15: TRUE | SH15: TRUE | SI15: TRUE | SJ15: TRUE | SK15: FALSE | SL15: FALSE | SM15: FALSE | SN15: FALSE | SO15: FALSE | SP15: FALSE | SQ15: FALSE
L16: =IF(L15,L5,NA()) ->  | M16: =IF(M15,M5,NA()) ->  | BY16: =IF(BY15,BY5,NA()) ->  | EK16: =IF(EK15,EK5,NA()) ->  | EZ16: 1997-01-01 | FA16: 1997-02-01 | FB16: 1997-03-01 | FC16: 1997-04-01 | FD16: 1997-05-01 | FE16: 1997-06-01 | FF16: 1997-07-01 | FG16: 1997-08-01 | FH16: 1997-09-01 | FI16: 1997-10-01 | FJ16: 1997-11-01 | FK16: 1997-12-01 | FL16: 1998-01-01 | FM16: 1998-02-01 | FN16: 1998-03-01 | FO16: 1998-04-01 | FP16: 1998-05-01 | FQ16: 1998-06-01 | FR16: 1998-07-01 | FS16: 1998-08-01 | FT16: 1998-09-01 | FU16: 1998-10-01 | FV16: 1998-11-01 | FW16: 1998-12-01 | FX16: 1999-01-01 | FY16: 1999-02-01 | FZ16: 1999-03-01 | GA16: 1999-04-01 | GB16: 1999-05-01 | GC16: 1999-06-01 | GD16: 1999-07-01 | GE16: 1999-08-01 | GF16: 1999-09-01 | GG16: 1999-10-01 | GH16: 1999-11-01 | GI16: 1999-12-01 | GJ16: 2000-01-01 | GK16: 2000-02-01 | GL16: 2000-03-01 | GM16: 2000-04-01 | GN16: 2000-05-01 | GO16: 2000-06-01 | GP16: 2000-07-01 | GQ16: 2000-08-01 | GR16: 2000-09-01 | GS16: 2000-10-01 | GT16: 2000-11-01 | GU16: 2000-12-01 | GV16: 2001-01-01 | GW16: =IF(GW15,GW5,NA()) -> 2001-02-01 | GX16: 2001-03-01 | GY16: 2001-04-01 | GZ16: 2001-05-01 | HA16: 2001-06-01 | HB16: 2001-07-01 | HC16: 2001-08-01 | HD16: 2001-09-01 | HE16: 2001-10-01 | HF16: 2001-11-01 | HG16: 2001-12-01 | HH16: 2002-01-01 | HI16: 2002-02-01 | HJ16: 2002-03-01 | HK16: 2002-04-01 | HL16: 2002-05-01 | HM16: 2002-06-01 | HN16: 2002-07-01 | HO16: 2002-08-01 | HP16: 2002-09-01 | HQ16: 2002-10-01 | HR16: 2002-11-01 | HS16: 2002-12-01 | HT16: 2003-01-01 | HU16: 2003-02-01 | HV16: 2003-03-01 | HW16: 2003-04-01 | HX16: 2003-05-01 | HY16: 2003-06-01 | HZ16: 2003-07-01 | IA16: 2003-08-01 | IB16: 2003-09-01 | IC16: 2003-10-01 | ID16: 2003-11-01 | IE16: 2003-12-01 | IF16: 2004-01-01 | IG16: 2004-02-01 | IH16: 2004-03-01 | II16: 2004-04-01 | IJ16: 2004-05-01 | IK16: 2004-06-01 | IL16: 2004-07-01 | IM16: 2004-08-01 | IN16: 2004-09-01 | IO16: 2004-10-01 | IP16: 2004-11-01 | IQ16: 2004-12-01 | IR16: 2005-01-01 | IS16: 2005-02-01 | IT16: 2005-03-01 | IU16: 2005-04-01 | IV16: 2005-05-01 | IW16: 2005-06-01 | IX16: 2005-07-01 | IY16: 2005-08-01 | IZ16: 2005-09-01 | JA16: 2005-10-01 | JB16: 2005-11-01 | JC16: 2005-12-01 | JD16: 2006-01-01 | JE16: 2006-02-01 | JF16: 2006-03-01 | JG16: 2006-04-01 | JH16: 2006-05-01 | JI16: =IF(JI15,JI5,NA()) -> 2006-06-01 | JJ16: 2006-07-01 | JK16: 2006-08-01 | JL16: 2006-09-01 | JM16: 2006-10-01 | JN16: 2006-11-01 | JO16: 2006-12-01 | JP16: 2007-01-01 | JQ16: 2007-02-01 | JR16: 2007-03-01 | JS16: 2007-04-01 | JT16: 2007-05-01 | JU16: 2007-06-01 | JV16: 2007-07-01 | JW16: 2007-08-01 | JX16: 2007-09-01 | JY16: 2007-10-01 | JZ16: 2007-11-01 | KA16: 2007-12-01 | KB16: 2008-01-01 | KC16: 2008-02-01 | KD16: 2008-03-01 | KE16: 2008-04-01 | KF16: 2008-05-01 | KG16: 2008-06-01 | KH16: 2008-07-01 | KI16: 2008-08-01 | KJ16: 2008-09-01 | KK16: 2008-10-01 | KL16: 2008-11-01 | KM16: 2008-12-01 | KN16: 2009-01-01 | KO16: 2009-02-01 | KP16: 2009-03-01 | KQ16: 2009-04-01 | KR16: 2009-05-01 | KS16: 2009-06-01 | KT16: 2009-07-01 | KU16: 2009-08-01 | KV16: 2009-09-01 | KW16: 2009-10-01 | KX16: 2009-11-01 | KY16: 2009-12-01 | KZ16: 2010-01-01 | LA16: 2010-02-01 | LB16: 2010-03-01 | LC16: 2010-04-01 | LD16: 2010-05-01 | LE16: 2010-06-01 | LF16: 2010-07-01 | LG16: 2010-08-01 | LH16: 2010-09-01 | LI16: 2010-10-01 | LJ16: 2010-11-01 | LK16: 2010-12-01 | LL16: 2011-01-01 | LM16: 2011-02-01 | LN16: 2011-03-01 | LO16: 2011-04-01 | LP16: 2011-05-01 | LQ16: 2011-06-01 | LR16: 2011-07-01 | LS16: 2011-08-01 | LT16: 2011-09-01 | LU16: =IF(LU15,LU5,NA()) -> 2011-10-01 | LV16: 2011-11-01 | LW16: 2011-12-01 | LX16: 2012-01-01 | LY16: 2012-02-01 | LZ16: 2012-03-01 | MA16: 2012-04-01 | MB16: 2012-05-01 | MC16: 2012-06-01 | MD16: 2012-07-01 | ME16: 2012-08-01 | MF16: 2012-09-01 | MG16: 2012-10-01 | MH16: 2012-11-01 | MI16: 2012-12-01 | MJ16: 2013-01-01 | MK16: 2013-02-01 | ML16: 2013-03-01 | MM16: 2013-04-01 | MN16: 2013-05-01 | MO16: 2013-06-01 | MP16: 2013-07-01 | MQ16: 2013-08-01 | MR16: 2013-09-01 | MS16: 2013-10-01 | MT16: 2013-11-01 | MU16: 2013-12-01 | MV16: 2014-01-01 | MW16: 2014-02-01 | MX16: 2014-03-01 | MY16: 2014-04-01 | MZ16: 2014-05-01 | NA16: 2014-06-01 | NB16: 2014-07-01 | NC16: 2014-08-01 | ND16: 2014-09-01 | NE16: 2014-10-01 | NF16: 2014-11-01 | NG16: 2014-12-01 | NH16: 2015-01-01 | NI16: 2015-02-01 | NJ16: 2015-03-01 | NK16: 2015-04-01 | NL16: 2015-05-01 | NM16: 2015-06-01 | NN16: 2015-07-01 | NO16: 2015-08-01 | NP16: 2015-09-01 | NQ16: 2015-10-01 | NR16: 2015-11-01 | NS16: 2015-12-01 | NT16: 2016-01-01 | NU16: 2016-02-01 | NV16: 2016-03-01 | NW16: 2016-04-01 | NX16: 2016-05-01 | NY16: 2016-06-01 | NZ16: 2016-07-01 | OA16: 2016-08-01 | OB16: 2016-09-01 | OC16: 2016-10-01 | OD16: 2016-11-01 | OE16: 2016-12-01 | OF16: 2017-01-01 | OG16: =IF(OG15,OG5,NA()) -> 2017-02-01 | OH16: 2017-03-01 | OI16: 2017-04-01 | OJ16: 2017-05-01 | OK16: 2017-06-01 | OL16: 2017-07-01 | OM16: 2017-08-01 | ON16: 2017-09-01 | OO16: 2017-10-01 | OP16: 2017-11-01 | OQ16: 2017-12-01 | OR16: 2018-01-01 | OS16: 2018-02-01 | OT16: 2018-03-01 | OU16: 2018-04-01 | OV16: 2018-05-01 | OW16: 2018-06-01 | OX16: 2018-07-01 | OY16: 2018-08-01 | OZ16: 2018-09-01 | PA16: 2018-10-01 | PB16: 2018-11-01 | PC16: 2018-12-01 | PD16: 2019-01-01 | PE16: 2019-02-01 | PF16: 2019-03-01 | PG16: 2019-04-01 | PH16: 2019-05-01 | PI16: 2019-06-01 | PJ16: 2019-07-01 | PK16: 2019-08-01 | PL16: 2019-09-01 | PM16: 2019-10-01 | PN16: 2019-11-01 | PO16: 2019-12-01 | PP16: 2020-01-01 | PQ16: 2020-02-01 | PR16: 2020-03-01 | PS16: 2020-04-01 | PT16: 2020-05-01 | PU16: 2020-06-01 | PV16: 2020-07-01 | PW16: 2020-08-01 | PX16: 2020-09-01 | PY16: 2020-10-01 | PZ16: 2020-11-01 | QA16: 2020-12-01 | QB16: 2021-01-01 | QC16: 2021-02-01 | QD16: 2021-03-01 | QE16: 2021-04-01 | QF16: 2021-05-01 | QG16: 2021-06-01 | QH16: 2021-07-01 | QI16: 2021-08-01 | QJ16: 2021-09-01 | QK16: 2021-10-01 | QL16: 2021-11-01 | QM16: 2021-12-01 | QN16: 2022-01-01 | QO16: 2022-02-01 | QP16: 2022-03-01 | QQ16: 2022-04-01 | QR16: 2022-05-01 | QS16: =IF(QS15,QS5,NA()) -> 2022-06-01 | QT16: 2022-07-01 | QU16: 2022-08-01 | QV16: 2022-09-01 | QW16: 2022-10-01 | QX16: 2022-11-01 | QY16: 2022-12-01 | QZ16: 2023-01-01 | RA16: 2023-02-01 | RB16: 2023-03-01 | RC16: 2023-04-01 | RD16: 2023-05-01 | RE16: 2023-06-01 | RF16: 2023-07-01 | RG16: 2023-08-01 | RH16: 2023-09-01 | RI16: 2023-10-01 | RJ16: 2023-11-01 | RK16: 2023-12-01 | RL16: 2024-01-01 | RM16: 2024-02-01 | RN16: 2024-03-01 | RO16: 2024-04-01 | RP16: 2024-05-01 | RQ16: 2024-06-01 | RR16: 2024-07-01 | RS16: 2024-08-01 | RT16: 2024-09-01 | RU16: 2024-10-01 | RV16: 2024-11-01 | RW16: 2024-12-01 | RX16: 2025-01-01 | RY16: =IF(RY15,RY5,NA()) -> 2025-02-01 | RZ16: 2025-03-01 | SA16: 2025-04-01 | SB16: 2025-05-01 | SC16: 2025-06-01 | SD16: 2025-07-01 | SE16: 2025-08-01 | SF16: 2025-09-01 | SG16: 2025-10-01 | SH16: 2025-11-01 | SI16: 2025-12-01 | SJ16: 2026-01-01
D17: Closing Price | L17: =IF(L15,L6) -> FALSE | M17: =IF(M15,M6) -> FALSE | N17: FALSE | O17: FALSE | P17: FALSE | Q17: FALSE | R17: FALSE | S17: FALSE | T17: FALSE | U17: FALSE | V17: FALSE | W17: FALSE | X17: FALSE | Y17: FALSE | Z17: FALSE | AA17: FALSE | AB17: FALSE | AC17: FALSE | AD17: FALSE | AE17: FALSE | AF17: FALSE | AG17: FALSE | AH17: FALSE | AI17: FALSE | AJ17: FALSE | AK17: FALSE | AL17: FALSE | AM17: FALSE | AN17: FALSE | AO17: FALSE | AP17: FALSE | AQ17: FALSE | AR17: FALSE | AS17: FALSE | AT17: FALSE | AU17: FALSE | AV17: FALSE | AW17: FALSE | AX17: FALSE | AY17: FALSE | AZ17: FALSE | BA17: FALSE | BB17: FALSE | BC17: FALSE | BD17: FALSE | BE17: FALSE | BF17: FALSE | BG17: FALSE | BH17: FALSE | BI17: FALSE | BJ17: FALSE | BK17: FALSE | BL17: FALSE | BM17: FALSE | BN17: FALSE | BO17: FALSE | BP17: FALSE | BQ17: FALSE | BR17: FALSE | BS17: FALSE | BT17: FALSE | BU17: FALSE | BV17: FALSE | BW17: FALSE | BX17: FALSE | BY17: =IF(BY15,BY6) -> FALSE | BZ17: FALSE | CA17: FALSE | CB17: FALSE | CC17: FALSE | CD17: FALSE | CE17: FALSE | CF17: FALSE | CG17: FALSE | CH17: FALSE | CI17: FALSE | CJ17: FALSE | CK17: FALSE | CL17: FALSE | CM17: FALSE | CN17: FALSE | CO17: FALSE | CP17: FALSE | CQ17: FALSE | CR17: FALSE | CS17: FALSE | CT17: FALSE | CU17: FALSE | CV17: FALSE | CW17: FALSE | CX17: FALSE | CY17: FALSE | CZ17: FALSE | DA17: FALSE | DB17: FALSE | DC17: FALSE | DD17: FALSE | DE17: FALSE | DF17: FALSE | DG17: FALSE | DH17: FALSE | DI17: FALSE | DJ17: FALSE | DK17: FALSE | DL17: FALSE | DM17: FALSE | DN17: FALSE | DO17: FALSE | DP17: FALSE | DQ17: FALSE | DR17: FALSE | DS17: FALSE | DT17: FALSE | DU17: FALSE | DV17: FALSE | DW17: FALSE | DX17: FALSE | DY17: FALSE | DZ17: FALSE | EA17: FALSE | EB17: FALSE | EC17: FALSE | ED17: FALSE | EE17: FALSE | EF17: FALSE | EG17: FALSE | EH17: FALSE | EI17: FALSE | EJ17: FALSE | EK17: =IF(EK15,EK6) -> FALSE | EL17: FALSE | EM17: FALSE | EN17: FALSE | EO17: FALSE | EP17: FALSE | EQ17: FALSE | ER17: FALSE | ES17: FALSE | ET17: FALSE | EU17: FALSE | EV17: FALSE | EW17: FALSE | EX17: FALSE | EY17: FALSE | EZ17: 270.3010864 | FA17: 269.0046997 | FB17: 271.5975037 | FC17: 289.7471924 | FD17: 293.6364136 | FE17: 284.561615 | FF17: 333.1769104 | FG17: 344.8446045 | FH17: 366.8835144 | FI17: 364.2907104 | FJ17: 381.1440125 | FK17: 374.6619873 | FL17: 374.6619873 | FM17: 375.3948059 | FN17: 387.4677124 | FO17: 423.6908875 | FP17: 413.8118896 | FQ17: 443.4476929 | FR17: 467.5957947 | FS17: 471.9869995 | FT17: 480.7684021 | FU17: 448.9364929 | FV17: 528.7891235 | FW17: 526.5939941 | FX17: 542.510498 | FY17: 495.036499 | FZ17: 495.8606873 | GA17: 472.2614136 | GB17: 465.4006958 | GC17: 484.6098022 | GD17: 455.521698 | GE17: 455.7961121 | GF17: 461.2849121 | GG17: 498.8789062 | GH17: 528.5158081 | GI17: 516.9893799 | GJ17: 466.4981995 | GK17: 538.9423828 | GL17: 628.9495239 | GM17: 579.007019 | GN17: 565.2855835 | GO17: 571.8729858 | GP17: 601.5087891 | GQ17: 619.0715942 | GR17: 637.1821289 | GS17: 655.8413696 | GT17: 680.5393066 | GU17: 667.9165039 | GV17: 684.9295044 | GW17: =IF(GW15,GW6) -> 643.2197266 | GX17: 597.1185913 | GY17: 587.2385864 | GZ17: 617.9741211 | HA17: 575.1655884 | HB17: 521.3806763 | HC17: 514.7943726 | HD17: 471.9869995 | HE17: 535.6497803 | HF17: 486.2561035 | HG17: 469.790802 | HH17: 492.8414001 | HI17: 507.3848877 | HJ17: 508.48349 | HK17: 540.039978 | HL17: 548.8225098 | HM17: 511.501709 | HN17: 484.8841858 | HO17: 495.5852051 | HP17: 495.5852051 | HQ17: 499.4277039 | HR17: 473.3588867 | HS17: =IF(HS15,HS6) -> 501.0740051 | HT17: 435.7648926 | HU17: 447.8389893 | HV17: 425.3371887 | HW17: 451.1315918 | HX17: 433.019989 | HY17: 451.1315918 | HZ17: 423.6908875 | IA17: 425.0628052 | IB17: 482.1843872 | IC17: 412.9888 | ID17: 431.3736877 | IE17: 439.3319092 | IF17: 430.2760925 | IG17: 473.0845947 | IH17: 471.9869995 | II17: 469.5176086 | IJ17: 474.4565125 | IK17: 467.0469971 | IL17: 477.749115 | IM17: 509.0322876 | IN17: 511.7760925 | IO17: 519.7332764 | IP17: 525.496521 | IQ17: 544.4301147 | IR17: 566.6586304 | IS17: 553.7614136 | IT17: 538.1204224 | IU17: 565.0123291 | IV17: 589.9824219 | IW17: 593.8259888 | IX17: 576.2918091 | IY17: 506.7156982 | IZ17: 513.9683228 | JA17: 499.4631042 | JB17: 518.3198853 | JC17: 549.7478027 | JD17: 556.5169067 | JE17: 580.2088013 | JF17: 553.6159058 | JG17: 556.5169067 | JH17: 586.4943848 | JI17: =IF(JI15,JI6) -> 565.7036133 | JJ17: 589.3953857 | JK17: 616.9553833 | JL17: 645.4822998 | JM17: 647.8997803 | JN17: 664.8225708 | JO17: 712.6898193 | JP17: 742.6672974 | JQ17: 737.8322144 | JR17: 771.1942139 | JS17: 760.5571289 | JT17: 757.1724854 | JU17: 713.6567993 | JV17: 679.3278198 | JW17: 718.0084229 | JX17: 758.1395264 | JY17: 775.0623169 | JZ17: 794.4025879 | KA17: 806.4902954 | KB17: 748.4694214 | KC17: 709.3052979 | KD17: 668.6906738 | KE17: 677.3937988 | KF17: 721.3930054 | KG17: 638.7131958 | KH17: 645.9658203 | KI17: 690.9320068 | KJ17: 690.4484863 | KK17: 680.2947998 | KL17: 654.1854248 | KM17: 661.4379883 | KN17: 626.6254883 | KO17: 605.8347168 | KP17: 517.8364258 | KQ17: 545.8798218 | KR17: 578.7583008 | KS17: 529.4404907 | KT17: 540.0776978 | KU17: 572.9561768 | KV17: 584.0769043 | KW17: 586.4943848 | KX17: 638.7131958 | KY17: 656.6030273 | KZ17: 610.1862793 | LA17: 630.4935913 | LB17: 620.3399048 | LC17: 608.2521973 | LD17: 544.6906738 | LE17: 535.6361084 | LF17: 555.8178711 | LG17: 598.9088135 | LH17: 589.0905762 | LI17: 643.6361084 | LJ17: 619.6361084 | LK17: 603.272522 | LL17: 602.7269897 | LM17: 622.9088135 | LN17: 647.9996948 | LO17: 669.8178711 | LP17: 682.9088135 | LQ17: 668.1815186 | LR17: 651.2723999 | LS17: 677.4542236 | LT17: 696.5452271 | LU17: =IF(LU15,LU6) -> 673.6361084 | LV17: 681.2723999 | LW17: 681.8178711 | LX17: 689.4542236 | LY17: 699.8178711 | LZ17: 687.8178711 | MA17: 725.9996948 | MB17: 709.0905762 | MC17: 736.9088135 | MD17: 722.7269897 | ME17: 745.6359863 | MF17: 745.0905762 | MG17: 770.7269287 | MH17: 769.0905762 | MI17: 766.9088135 | MJ17: 754.3632812 | MK17: 795.8178101 | ML17: 834.545105 | MM17: 893.9995728 | MN17: 855.8178101 | MO17: 813.8178101 | MP17: 857.9995728 | MQ17: 809.9996948 | MR17: 796.9088135 | MS17: 855.8178101 | MT17: 845.4542236 | MU17: 859.6359863 | MV17: 860.7269287 | MW17: 910.3632812 | MX17: 896.7269287 | MY17: 916.9086914 | MZ17: 970.9086914 | NA17: 916.3632812 | NB17: 933.2722778 | NC17: 980.7269287 | ND17: 968.7269287 | NE17: 1010.181396 | NF17: 1014.544983 | NG17: 1001.563171 | NH17: 1020.544983 | NI17: 967.199585 | NJ17: 943.3087158 | NK17: 958.9086914 | NL17: 1018.908691 | NM17: 891.4904785 | NN17: 930.6541748 | NO17: 938.2905273 | NP17: 1002.435913 | NQ17: 1008.872314 | NR17: 1009.963196 | NS17: 1022.726929 | NT17: 1075.417725 | NU17: 1051.090454 | NV17: 1076.944946 | NW17: 1063.417725 | NX17: 1098.545044 | NY17: 1195.635864 | NZ17: 1181.454102 | OA17: 1141.635864 | OB17: 1191.272217 | OC17: 1161.817749 | OD17: 996.2177734 | OE17: 1038.108643 | OF17: 1012.035889 | OG17: =IF(OG15,OG6) -> 1066.363159 | OH17: 1105.635864 | OI17: 1090.908569 | OJ17: 1089.5 | OK17: 951.7999878 | OL17: 936.7999878 | OM17: 974.7000122 | ON17: 924.5999756 | OO17: 906 | OP17: 885 | OQ17: 875.0999756 | OR17: 804.7000122 | OS17: 740.2000122 | OT17: 802.2000122 | OU17: 842.7999878 | OV17: 833.2999878 | OW17: 838.4000244 | OX17: 813.2999878 | OY17: 810 | OZ17: 791.4000244 | PA17: 829.2000122 | PB17: 832.9000244 | PC17: 764.2000122 | PD17: 825.2000122 | PE17: 847.9000244 | PF17: 850.7999878 | PG17: 836.0999756 | PH17: 792.7999878 | PI17: 835.7999878 | PJ17: 844.2999878 | PK17: 858.5 | PL17: 881.9000244 | PM17: 901.2999878 | PN17: 889.7000122 | PO17: 944.2999878 | PP17: 1005.799988 | PQ17: 982.7999878 | PR17: 946.5999756 | PS17: 933.7999878 | PT17: 926 | PU17: 989.2000122 | PV17: 900.4000244 | PW17: 843.2000122 | PX17: 889.7999878 | PY17: 919 | PZ17: 848.4000244 | QA17: 865 | QB17: 850 | QC17: 806.4000244 | QD17: 864 | QE17: 910.5999756 | QF17: 939.2000122 | QG17: 920.7999878 | QH17: 924.0999756 | QI17: 941.2999878 | QJ17: 884.5999756 | QK17: 935.4000244 | QL17: 1006.599976 | QM17: 1059.800049 | QN17: 1079.599976 | QO17: 1130.800049 | QP17: 1172.400024 | QQ17: 1194 | QR17: 1171 | QS17: =IF(QS15,QS6) -> 1052 | QT17: 1131.5 | QU17: 1078 | QV17: 931 | QW17: 948.4000244 | QX17: 1014.5 | QY17: 997.4000244 | QZ17: 1025 | RA17: 1048 | RB17: 1096.5 | RC17: 1144.5 | RD17: 1106 | RE17: 1040.5 | RF17: 1031.5 | RG17: 990.2000122 | RH17: 980 | RI17: 978.5999756 | RJ17: 1027.5 | RK17: 1058 | RL17: 1055 | RM17: 1037.5 | RN17: 1066 | RO17: 1048 | RP17: 882.4000244 | RQ17: 882.5999756 | RR17: 986 | RS17: 998.5999756 | RT17: 1030 | RU17: 976.2000122 | RV17: 992.5999756 | RW17: 950 | RX17: 979.7999878 | RY17: =IF(RY15,RY6) -> 975 | RZ17: 1009.5 | SA17: 1083 | SB17: 1046.5 | SC17: 1061.5 | SD17: 1060 | SE17: 1041 | SF17: 1067.5 | SG17: 1140 | SH17: 1146.5 | SI17: 1141.5 | SJ17: 1234.5 | SK17: FALSE | SL17: FALSE | SM17: FALSE | SN17: FALSE | SO17: FALSE | SP17: FALSE | SQ17: FALSE
D18: Adjusted Closing Price | L18: =IF(L$15,L7) -> FALSE | M18: =IF(M15,M7) -> FALSE | N18: FALSE | O18: FALSE | P18: FALSE | Q18: FALSE | R18: FALSE | S18: FALSE | T18: FALSE | U18: FALSE | V18: FALSE | W18: FALSE | X18: FALSE | Y18: FALSE | Z18: FALSE | AA18: FALSE | AB18: FALSE | AC18: FALSE | AD18: FALSE | AE18: FALSE | AF18: FALSE | AG18: FALSE | AH18: FALSE | AI18: FALSE | AJ18: FALSE | AK18: FALSE | AL18: FALSE | AM18: FALSE | AN18: FALSE | AO18: FALSE | AP18: FALSE | AQ18: FALSE | AR18: FALSE | AS18: FALSE | AT18: FALSE | AU18: FALSE | AV18: FALSE | AW18: FALSE | AX18: FALSE | AY18: FALSE | AZ18: FALSE | BA18: FALSE | BB18: FALSE | BC18: FALSE | BD18: FALSE | BE18: FALSE | BF18: FALSE | BG18: FALSE | BH18: FALSE | BI18: FALSE | BJ18: FALSE | BK18: FALSE | BL18: FALSE | BM18: FALSE | BN18: FALSE | BO18: FALSE | BP18: FALSE | BQ18: FALSE | BR18: FALSE | BS18: FALSE | BT18: FALSE | BU18: FALSE | BV18: FALSE | BW18: FALSE | BX18: FALSE | BY18: =IF(BY15,BY7) -> FALSE | BZ18: FALSE | CA18: FALSE | CB18: FALSE | CC18: FALSE | CD18: FALSE | CE18: FALSE | CF18: FALSE | CG18: FALSE | CH18: FALSE | CI18: FALSE | CJ18: FALSE | CK18: FALSE | CL18: FALSE | CM18: FALSE | CN18: FALSE | CO18: FALSE | CP18: FALSE | CQ18: FALSE | CR18: FALSE | CS18: FALSE | CT18: FALSE | CU18: FALSE | CV18: FALSE | CW18: FALSE | CX18: FALSE | CY18: FALSE | CZ18: FALSE | DA18: FALSE | DB18: FALSE | DC18: FALSE | DD18: FALSE | DE18: FALSE | DF18: FALSE | DG18: FALSE | DH18: FALSE | DI18: FALSE | DJ18: FALSE | DK18: FALSE | DL18: FALSE | DM18: FALSE | DN18: FALSE | DO18: FALSE | DP18: FALSE | DQ18: FALSE | DR18: FALSE | DS18: FALSE | DT18: FALSE | DU18: FALSE | DV18: FALSE | DW18: FALSE | DX18: FALSE | DY18: FALSE | DZ18: FALSE | EA18: FALSE | EB18: FALSE | EC18: FALSE | ED18: FALSE | EE18: FALSE | EF18: FALSE | EG18: FALSE | EH18: FALSE | EI18: FALSE | EJ18: FALSE | EK18: =IF(EK15,EK7) -> FALSE | EL18: FALSE | EM18: FALSE | EN18: FALSE | EO18: FALSE | EP18: FALSE | EQ18: FALSE | ER18: FALSE | ES18: FALSE | ET18: FALSE | EU18: FALSE | EV18: FALSE | EW18: FALSE | EX18: FALSE | EY18: FALSE | EZ18: 266.2572632 | FA18: 264.9803772 | FB18: 267.5343323 | FC18: 285.4125061 | FD18: 289.2435913 | FE18: 280.3045959 | FF18: 328.2825623 | FG18: 339.7786865 | FH18: 361.4939575 | FI18: 358.939209 | FJ18: 375.5449219 | FK18: 369.1581726 | FL18: 369.2329407 | FM18: 370.5223999 | FN18: 382.4388733 | FO18: 418.1917114 | FP18: 408.4409485 | FQ18: 437.6921692 | FR18: 461.6164856 | FS18: 465.9516602 | FT18: 474.6207581 | FU18: 443.1958618 | FV18: 522.0274658 | FW18: 519.9135742 | FX18: 535.6282349 | FY18: 488.7565613 | FZ18: 489.570282 | GA18: 466.2702026 | GB18: 459.4966125 | GC18: 478.4620667 | GD18: 449.8194885 | GE18: 450.0905151 | GF18: 455.5105896 | GG18: 492.6339722 | GH18: 521.8995972 | GI18: 510.5176086 | GJ18: 460.7047424 | GK18: 532.2490845 | GL18: 621.1386108 | GM18: 571.8164673 | GN18: 558.2653809 | GO18: 564.8552856 | GP18: 594.1273804 | GQ18: 611.4743652 | GR18: 629.362854 | GS18: 647.7932739 | GT18: 672.1881714 | GU18: 659.7786255 | GV18: 676.5840454 | GW18: =IF(GW15,GW7) -> 635.3825073 | GX18: 589.8434448 | GY18: 580.0836792 | GZ18: 610.4447021 | HA18: 568.2404785 | HB18: 515.1030884 | HC18: 508.5960388 | HD18: 466.3040466 | HE18: 529.2003784 | HF18: 480.4013062 | HG18: 464.1940308 | HH18: 486.9700317 | HI18: 501.3402405 | HJ18: 502.4256897 | HK18: 533.6064453 | HL18: 542.2841797 | HM18: 505.4079895 | HN18: 479.1922607 | HO18: 489.7676697 | HP18: 489.7676697 | HQ18: 493.565094 | HR18: 467.8023071 | HS18: 495.1921082 | HT18: 430.7137451 | HU18: 442.6478271 | HV18: 420.4068298 | HW18: 445.9023438 | HX18: 428.0005798 | HY18: 446.0046082 | HZ18: 418.8756409 | IA18: 420.2321777 | IB18: 476.7044983 | IC18: 408.2953796 | ID18: 426.4711914 | IE18: 434.4170532 | IF18: 425.4625244 | IG18: 467.7921753 | IH18: 466.7069092 | II18: 464.2649841 | IJ18: 469.1486511 | IK18: 461.8220215 | IL18: 472.523407 | IM18: 503.464386 | IN18: 506.1781311 | IO18: 514.0482788 | IP18: 519.7484741 | IQ18: 538.4750366 | IR18: 560.5522461 | IS18: 547.7940063 | IT18: 532.3217163 | IU18: 558.923645 | IV18: 583.6248169 | IW18: 587.4267578 | IX18: 570.2268677 | IY18: 501.3829041 | IZ18: 508.5592651 | JA18: 494.206604 | JB18: 512.8648682 | JC18: 544.0548706 | JD18: 550.7540894 | JE18: 574.2004395 | JF18: 547.8828735 | JG18: 550.7540894 | JH18: 580.4209595 | JI18: =IF(JI15,JI7) -> 559.8453979 | JJ18: 583.430481 | JK18: 610.7115479 | JL18: 638.9500732 | JM18: 641.3429565 | JN18: 658.0944824 | JO18: 705.5773926 | JP18: 735.2559204 | JQ18: 730.4691162 | JR18: 763.4981689 | JS18: 752.9673462 | JT18: 749.6161499 | JU18: 706.5349121 | JV18: 672.6899414 | JW18: 710.9926147 | JX18: 750.7315674 | JY18: 767.4889526 | JZ18: 786.6403809 | KA18: 798.7156372 | KB18: 741.2541504 | KC18: 702.4676514 | KD18: 662.2444458 | KE18: 670.8640137 | KF18: 714.4387207 | KG18: 632.5559082 | KH18: 639.9061279 | KI18: 684.4505005 | KJ18: 683.9714966 | KK18: 673.913208 | KL18: 648.048584 | KM18: 655.2331543 | KN18: 620.8649902 | KO18: 600.2652588 | KP18: 513.0759277 | KQ18: 540.8615723 | KR18: 573.4378052 | KS18: 524.5733643 | KT18: 535.3015137 | KU18: 567.8889771 | KV18: 578.9115601 | KW18: 581.3074951 | KX18: 633.0645752 | KY18: 650.7963257 | KZ18: 604.9035645 | LA18: 625.0350342 | LB18: 614.9694214 | LC18: 602.986145 | LD18: 539.9751587 | LE18: 530.9986572 | LF18: 551.2559204 | LG18: 593.9932861 | LH18: 584.2557373 | LI18: 638.3532715 | LJ18: 614.550415 | LK18: 598.3210449 | LL18: 597.9050293 | LM18: 617.9252319 | LN18: 642.8156128 | LO18: 664.4591675 | LP18: 677.4453125 | LQ18: 662.8356934 | LR18: 646.28479 | LS18: 672.2661743 | LT18: 691.2108765 | LU18: =IF(LU15,LU7) -> 668.4771729 | LV18: 676.0551147 | LW18: 676.7314453 | LX18: 684.31073 | LY18: 694.5970459 | LZ18: 682.6866455 | MA18: 720.5835571 | MB18: 703.8005981 | MC18: 731.6619263 | MD18: 717.5808716 | ME18: 740.3269043 | MF18: 739.7853394 | MG18: 765.2391357 | MH18: 763.6143188 | MI18: 761.5905151 | MJ18: 749.1322021 | MK18: 790.2991943 | ML18: 828.7579956 | MM18: 887.8000488 | MN18: 849.8828735 | MO18: 808.1743164 | MP18: 852.310791 | MQ18: 804.6293335 | MR18: 791.625 | MS18: 850.1435547 | MT18: 839.8488159 | MU18: 853.9365845 | MV18: 855.1693115 | MW18: 904.4852295 | MX18: 890.9368286 | MY18: 910.9884033 | MZ18: 964.6396484 | NA18: 910.4462891 | NB18: 927.5137939 | NC18: 974.6755371 | ND18: 962.7496338 | NE18: 1003.948181 | NF18: 1008.284973 | NG18: 995.5234985 | NH18: 1014.390808 | NI18: 961.3670654 | NJ18: 937.6204224 | NK18: 953.1262817 | NL18: 1012.764465 | NM18: 886.114502 | NN18: 925.303772 | NO18: 932.8960571 | NP18: 996.6727905 | NQ18: 1003.072205 | NR18: 1004.156738 | NS18: 1016.9953 | NT18: 1069.390991 | NU18: 1045.199829 | NV18: 1070.909424 | NW18: 1057.458008 | NX18: 1092.388672 | NY18: 1188.935425 | NZ18: 1175.137695 | OA18: 1135.531982 | OB18: 1184.902588 | OC18: 1155.605713 | OD18: 990.8914185 | OE18: 1032.712646 | OF18: 1006.775513 | OG18: =IF(OG15,OG7) -> 1060.820679 | OH18: 1099.88916 | OI18: 1085.238647 | OJ18: 1083.837036 | OK18: 947.4918213 | OL18: 932.7888184 | OM18: 970.5264893 | ON18: 920.6410522 | OO18: 902.1206665 | OP18: 881.2105713 | OQ18: 871.4921875 | OR18: 801.3823242 | OS18: 737.1483765 | OT18: 798.8927612 | OU18: 839.3253174 | OV18: 829.864502 | OW18: 835.2106323 | OX18: 810.2062988 | OY18: 806.9187622 | OZ18: 788.3895264 | PA18: 826.0457764 | PB18: 829.7316284 | PC18: 761.4247437 | PD18: 822.2033691 | PE18: 844.8209229 | PF18: 847.7103271 | PG18: 833.0636597 | PH18: 789.9209595 | PI18: 833.0581665 | PJ18: 841.5303345 | PK18: 855.6838379 | PL18: 879.0071411 | PM18: 898.3433838 | PN18: 886.7814331 | PO18: 941.3577881 | PP18: 1002.666077 | PQ18: 979.7377319 | PR18: 943.6505737 | PS18: 930.8904419 | PT18: 923.1148071 | PU18: 986.1178589 | PV18: 897.5946655 | PW18: 840.8222656 | PX18: 887.2908936 | PY18: 916.4085693 | PZ18: 846.0076294 | QA18: 862.7091064 | QB18: 847.7488403 | QC18: 804.2644043 | QD18: 861.711731 | QE18: 908.1882935 | QF18: 936.7125854 | QG18: 918.3613892 | QH18: 921.9361572 | QI18: 939.0960693 | QJ18: 882.5286865 | QK18: 933.2098389 | QL18: 1004.243103 | QM18: 1057.318481 | QN18: 1077.241577 | QO18: 1128.329834 | QP18: 1169.838745 | QQ18: 1191.391479 | QR18: 1168.441772 | QS18: =IF(QS15,QS7) -> 1049.70166 | QT18: 1129.327393 | QU18: 1075.929932 | QV18: 929.2122192 | QW18: 946.5789185 | QX18: 1012.551941 | QY18: 995.6430664 | QZ18: 1023.194397 | RA18: 1046.153809 | RB18: 1094.568359 | RC18: 1142.483887 | RD18: 1104.051636 | RE18: 1038.667114 | RF18: 1030.004761 | RG18: 988.7646484 | RH18: 978.5793457 | RI18: 977.1813965 | RJ18: 1026.010742 | RK18: 1056.648682 | RL18: 1053.652466 | RM18: 1036.174927 | RN18: 1064.638306 | RO18: 1046.661377 | RP18: 881.2730713 | RQ18: 881.4726562 | RR18: 985.1680908 | RS18: 997.7575073 | RT18: 1029.130981 | RU18: 975.3764648 | RV18: 991.7625732 | RW18: 949.3515625 | RX18: 979.1312256 | RY18: =IF(RY15,RY7) -> 974.3344727 | RZ18: 1008.810913 | SA18: 1082.260742 | SB18: 1045.785645 | SC18: 1061.081299 | SD18: 1059.581909 | SE18: 1040.589355 | SF18: 1067.078857 | SG18: 1139.550293 | SH18: 1146.047729 | SI18: 1141.21106 | SJ18: 1234.187622 | SK18: FALSE | SL18: FALSE | SM18: FALSE | SN18: FALSE | SO18: FALSE | SP18: FALSE | SQ18: FALSE
D19: =D8 -> S&P 500 Index | L19: =IF(L$15,L8) -> FALSE | M19: =IF(M$15,M8) -> FALSE | N19: FALSE | O19: FALSE | P19: FALSE | Q19: FALSE | R19: FALSE | S19: FALSE | T19: FALSE | U19: FALSE | V19: FALSE | W19: FALSE | X19: FALSE | Y19: FALSE | Z19: FALSE | AA19: FALSE | AB19: FALSE | AC19: FALSE | AD19: FALSE | AE19: FALSE | AF19: FALSE | AG19: FALSE | AH19: FALSE | AI19: FALSE | AJ19: FALSE | AK19: FALSE | AL19: FALSE | AM19: FALSE | AN19: FALSE | AO19: FALSE | AP19: FALSE | AQ19: FALSE | AR19: FALSE | AS19: FALSE | AT19: FALSE | AU19: FALSE | AV19: FALSE | AW19: FALSE | AX19: FALSE | AY19: FALSE | AZ19: FALSE | BA19: FALSE | BB19: FALSE | BC19: FALSE | BD19: FALSE | BE19: FALSE | BF19: FALSE | BG19: FALSE | BH19: FALSE | BI19: FALSE | BJ19: FALSE | BK19: FALSE | BL19: FALSE | BM19: FALSE | BN19: FALSE | BO19: FALSE | BP19: FALSE | BQ19: FALSE | BR19: FALSE | BS19: FALSE | BT19: FALSE | BU19: FALSE | BV19: FALSE | BW19: FALSE | BX19: FALSE | BY19: =IF(BY$15,BY8) -> FALSE | BZ19: FALSE | CA19: FALSE | CB19: FALSE | CC19: FALSE | CD19: FALSE | CE19: FALSE | CF19: FALSE | CG19: FALSE | CH19: FALSE | CI19: FALSE | CJ19: FALSE | CK19: FALSE | CL19: FALSE | CM19: FALSE | CN19: FALSE | CO19: FALSE | CP19: FALSE | CQ19: FALSE | CR19: FALSE | CS19: FALSE | CT19: FALSE | CU19: FALSE | CV19: FALSE | CW19: FALSE | CX19: FALSE | CY19: FALSE | CZ19: FALSE | DA19: FALSE | DB19: FALSE | DC19: FALSE | DD19: FALSE | DE19: FALSE | DF19: FALSE | DG19: FALSE | DH19: FALSE | DI19: FALSE | DJ19: FALSE | DK19: FALSE | DL19: FALSE | DM19: FALSE | DN19: FALSE | DO19: FALSE | DP19: FALSE | DQ19: FALSE | DR19: FALSE | DS19: FALSE | DT19: FALSE | DU19: FALSE | DV19: FALSE | DW19: FALSE | DX19: FALSE | DY19: FALSE | DZ19: FALSE | EA19: FALSE | EB19: FALSE | EC19: FALSE | ED19: FALSE | EE19: FALSE | EF19: FALSE | EG19: FALSE | EH19: FALSE | EI19: FALSE | EJ19: FALSE | EK19: =IF(EK$15,EK8) -> FALSE | EL19: FALSE | EM19: FALSE | EN19: FALSE | EO19: FALSE | EP19: FALSE | EQ19: FALSE | ER19: FALSE | ES19: FALSE | ET19: FALSE | EU19: FALSE | EV19: FALSE | EW19: FALSE | EX19: FALSE | EY19: FALSE | EZ19: 786.1599731 | FA19: 790.8200073 | FB19: 757.1199951 | FC19: 801.3400269 | FD19: 848.2800293 | FE19: 885.1400146 | FF19: 954.3099976 | FG19: 899.4699707 | FH19: 947.2800293 | FI19: 914.6199951 | FJ19: 955.4000244 | FK19: 970.4299927 | FL19: 980.2800293 | FM19: 1049.339966 | FN19: 1101.75 | FO19: 1111.75 | FP19: 1090.819946 | FQ19: 1133.839966 | FR19: 1120.670044 | FS19: 957.2800293 | FT19: 1017.01001 | FU19: 1098.670044 | FV19: 1163.630005 | FW19: 1229.22998 | FX19: 1279.640015 | FY19: 1238.329956 | FZ19: 1286.369995 | GA19: 1335.180054 | GB19: 1301.839966 | GC19: 1372.709961 | GD19: 1328.719971 | GE19: 1320.410034 | GF19: 1282.709961 | GG19: 1362.930054 | GH19: 1388.910034 | GI19: 1469.25 | GJ19: 1394.459961 | GK19: 1366.420044 | GL19: 1498.579956 | GM19: 1452.430054 | GN19: 1420.599976 | GO19: 1454.599976 | GP19: 1430.829956 | GQ19: 1517.680054 | GR19: 1436.51001 | GS19: 1429.400024 | GT19: 1314.949951 | GU19: 1320.280029 | GV19: 1366.01001 | GW19: =IF(GW$15,GW8) -> 1239.939941 | GX19: 1160.329956 | GY19: 1249.459961 | GZ19: 1255.819946 | HA19: 1224.380005 | HB19: 1211.22998 | HC19: 1133.579956 | HD19: 1040.939941 | HE19: 1059.780029 | HF19: 1139.449951 | HG19: =IF(HG$15,HG8) -> 1148.079956 | HH19: 1130.199951 | HI19: 1106.72998 | HJ19: 1147.390015 | HK19: 1076.920044 | HL19: 1067.140015 | HM19: 989.8200073 | HN19: 911.6199951 | HO19: 916.0700073 | HP19: 815.2800293 | HQ19: 885.7600098 | HR19: 936.3099976 | HS19: 879.8200073 | HT19: 855.7000122 | HU19: 841.1500244 | HV19: 848.1799927 | HW19: 916.9199829 | HX19: 963.5900269 | HY19: 974.5 | HZ19: 990.3099976 | IA19: 1008.01001 | IB19: 995.9699707 | IC19: 1050.709961 | ID19: 1058.199951 | IE19: 1111.920044 | IF19: 1131.130005 | IG19: 1144.939941 | IH19: 1126.209961 | II19: 1107.300049 | IJ19: 1120.680054 | IK19: 1140.839966 | IL19: 1101.719971 | IM19: 1104.23999 | IN19: 1114.579956 | IO19: 1130.199951 | IP19: 1173.819946 | IQ19: 1211.920044 | IR19: 1181.27002 | IS19: 1203.599976 | IT19: 1180.589966 | IU19: 1156.849976 | IV19: 1191.5 | IW19: 1191.329956 | IX19: 1234.180054 | IY19: 1220.329956 | IZ19: 1228.810059 | JA19: 1207.01001 | JB19: 1249.47998 | JC19: 1248.290039 | JD19: 1280.079956 | JE19: 1280.660034 | JF19: 1294.869995 | JG19: 1310.609985 | JH19: 1270.089966 | JI19: =IF(JI$15,JI8) -> 1270.199951 | JJ19: 1276.660034 | JK19: 1303.819946 | JL19: 1335.849976 | JM19: 1377.939941 | JN19: 1400.630005 | JO19: 1418.300049 | JP19: 1438.23999 | JQ19: 1406.819946 | JR19: 1420.859985 | JS19: 1482.369995 | JT19: 1530.619995 | JU19: 1503.349976 | JV19: 1455.27002 | JW19: 1473.98999 | JX19: 1526.75 | JY19: 1549.380005 | JZ19: 1481.140015 | KA19: 1468.359985 | KB19: 1378.550049 | KC19: 1330.630005 | KD19: 1322.699951 | KE19: 1385.589966 | KF19: 1400.380005 | KG19: 1280 | KH19: 1267.380005 | KI19: 1282.829956 | KJ19: 1166.359985 | KK19: 968.75 | KL19: 896.2399902 | KM19: 903.25 | KN19: 825.8800049 | KO19: 735.0900269 | KP19: 797.8699951 | KQ19: 872.8099976 | KR19: 919.1400146 | KS19: 919.3200073 | KT19: 987.4799805 | KU19: 1020.619995 | KV19: 1057.079956 | KW19: 1036.189941 | KX19: 1095.630005 | KY19: 1115.099976 | KZ19: 1073.869995 | LA19: 1104.48999 | LB19: 1169.430054 | LC19: 1186.689941 | LD19: 1089.410034 | LE19: 1030.709961 | LF19: 1101.599976 | LG19: 1049.329956 | LH19: 1141.199951 | LI19: 1183.26001 | LJ19: 1180.550049 | LK19: 1257.640015 | LL19: 1286.119995 | LM19: 1327.219971 | LN19: 1325.829956 | LO19: 1363.609985 | LP19: 1345.199951 | LQ19: 1320.640015 | LR19: 1292.280029 | LS19: 1218.890015 | LT19: 1131.420044 | LU19: =IF(LU$15,LU8) -> 1253.300049 | LV19: 1246.959961 | LW19: 1257.599976 | LX19: 1312.410034 | LY19: 1365.680054 | LZ19: 1408.469971 | MA19: 1397.910034 | MB19: 1310.329956 | MC19: 1362.160034 | MD19: 1379.319946 | ME19: 1406.579956 | MF19: 1440.670044 | MG19: 1412.160034 | MH19: 1416.180054 | MI19: 1426.189941 | MJ19: 1498.109985 | MK19: 1514.680054 | ML19: 1569.189941 | MM19: 1597.569946 | MN19: 1630.73999 | MO19: 1606.280029 | MP19: 1685.72998 | MQ19: 1632.969971 | MR19: 1681.550049 | MS19: 1756.540039 | MT19: 1805.810059 | MU19: 1848.359985 | MV19: 1782.589966 | MW19: 1859.449951 | MX19: 1872.339966 | MY19: 1883.949951 | MZ19: 1923.569946 | NA19: 1960.22998 | NB19: 1930.670044 | NC19: 2003.369995 | ND19: 1972.290039 | NE19: 2018.050049 | NF19: 2067.560059 | NG19: 2058.899902 | NH19: 1994.98999 | NI19: 2104.5 | NJ19: 2067.889893 | NK19: 2085.51001 | NL19: 2107.389893 | NM19: 2063.110107 | NN19: 2103.840088 | NO19: 1972.180054 | NP19: 1920.030029 | NQ19: 2079.360107 | NR19: 2080.409912 | NS19: 2043.939941 | NT19: 1940.23999 | NU19: 1932.22998 | NV19: 2059.73999 | NW19: 2065.300049 | NX19: 2096.949951 | NY19: 2098.860107 | NZ19: 2173.600098 | OA19: 2170.949951 | OB19: 2168.27002 | OC19: 2126.149902 | OD19: 2198.810059 | OE19: 2238.830078 | OF19: 2278.870117 | OG19: =IF(OG$15,OG8) -> 2363.639893 | OH19: 2362.719971 | OI19: 2384.199951 | OJ19: 2411.800049 | OK19: 2423.409912 | OL19: 2470.300049 | OM19: 2471.649902 | ON19: 2519.360107 | OO19: 2575.26001 | OP19: 2647.580078 | OQ19: 2673.610107 | OR19: 2823.810059 | OS19: 2713.830078 | OT19: 2640.870117 | OU19: 2648.050049 | OV19: 2705.27002 | OW19: 2718.370117 | OX19: 2816.290039 | OY19: 2901.52002 | OZ19: 2913.97998 | PA19: 2711.73999 | PB19: 2760.169922 | PC19: 2506.850098 | PD19: 2704.100098 | PE19: 2784.48999 | PF19: 2834.399902 | PG19: 2945.830078 | PH19: 2752.060059 | PI19: 2941.76001 | PJ19: 2980.379883 | PK19: 2926.459961 | PL19: 2976.73999 | PM19: 3037.560059 | PN19: 3140.97998 | PO19: 3230.780029 | PP19: 3225.52002 | PQ19: 2954.219971 | PR19: 2584.590088 | PS19: 2912.429932 | PT19: 3044.310059 | PU19: 3100.290039 | PV19: 3271.120117 | PW19: 3500.310059 | PX19: 3363 | PY19: 3269.959961 | PZ19: 3621.629883 | QA19: 3756.070068 | QB19: 3714.23999 | QC19: 3811.149902 | QD19: 3972.889893 | QE19: 4181.169922 | QF19: 4204.109863 | QG19: 4297.5 | QH19: 4395.259766 | QI19: 4522.680176 | QJ19: 4307.540039 | QK19: 4605.379883 | QL19: 4567 | QM19: 4766.180176 | QN19: 4515.549805 | QO19: 4373.939941 | QP19: 4530.410156 | QQ19: 4131.930176 | QR19: 4132.149902 | QS19: =IF(QS$15,QS8) -> 3785.379883 | QT19: 4130.290039 | QU19: 3955 | QV19: 3585.620117 | QW19: 3871.97998 | QX19: 4080.110107 | QY19: 3839.5 | QZ19: 4076.600098 | RA19: 3970.149902 | RB19: 4109.310059 | RC19: 4169.47998 | RD19: 4179.830078 | RE19: 4450.379883 | RF19: 4588.959961 | RG19: 4507.660156 | RH19: 4288.049805 | RI19: 4193.799805 | RJ19: 4567.799805 | RK19: 4769.830078 | RL19: 4845.649902 | RM19: 5096.27002 | RN19: 5254.350098 | RO19: 5035.689941 | RP19: 5277.509766 | RQ19: 5460.47998 | RR19: 5522.299805 | RS19: 5648.399902 | RT19: 5762.47998 | RU19: 5705.450195 | RV19: 6032.379883 | RW19: 5881.629883 | RX19: 6040.529785 | RY19: =IF(RY$15,RY8) -> 5954.5 | RZ19: 5611.850098 | SA19: 5569.060059 | SB19: 5911.689941 | SC19: 6204.950195 | SD19: 6339.390137 | SE19: 6460.259766 | SF19: 6688.459961 | SG19: 6840.200195 | SH19: 6849.089844 | SI19: 6845.5 | SJ19: 6939.029785 | SK19: FALSE | SL19: FALSE | SM19: FALSE | SN19: FALSE | SO19: FALSE | SP19: FALSE | SQ19: FALSE
D20: =D9 -> S&P 500 with Dividend | L20: =IF(L$15,L9) -> FALSE | M20: =IF(M$15,M9) -> FALSE | N20: FALSE | O20: FALSE | P20: FALSE | Q20: FALSE | R20: FALSE | S20: FALSE | T20: FALSE | U20: FALSE | V20: FALSE | W20: FALSE | X20: FALSE | Y20: FALSE | Z20: FALSE | AA20: FALSE | AB20: FALSE | AC20: FALSE | AD20: FALSE | AE20: FALSE | AF20: FALSE | AG20: FALSE | AH20: FALSE | AI20: FALSE | AJ20: FALSE | AK20: FALSE | AL20: FALSE | AM20: FALSE | AN20: FALSE | AO20: FALSE | AP20: FALSE | AQ20: FALSE | AR20: FALSE | AS20: FALSE | AT20: FALSE | AU20: FALSE | AV20: FALSE | AW20: FALSE | AX20: FALSE | AY20: FALSE | AZ20: FALSE | BA20: FALSE | BB20: FALSE | BC20: FALSE | BD20: FALSE | BE20: FALSE | BF20: FALSE | BG20: FALSE | BH20: FALSE | BI20: FALSE | BJ20: FALSE | BK20: FALSE | BL20: FALSE | BM20: FALSE | BN20: FALSE | BO20: FALSE | BP20: FALSE | BQ20: FALSE | BR20: FALSE | BS20: FALSE | BT20: FALSE | BU20: FALSE | BV20: FALSE | BW20: FALSE | BX20: FALSE | BY20: =IF(BY$15,BY9) -> FALSE | BZ20: FALSE | CA20: FALSE | CB20: FALSE | CC20: FALSE | CD20: FALSE | CE20: FALSE | CF20: FALSE | CG20: FALSE | CH20: FALSE | CI20: FALSE | CJ20: FALSE | CK20: FALSE | CL20: FALSE | CM20: FALSE | CN20: FALSE | CO20: FALSE | CP20: FALSE | CQ20: FALSE | CR20: FALSE | CS20: FALSE | CT20: FALSE | CU20: FALSE | CV20: FALSE | CW20: FALSE | CX20: FALSE | CY20: FALSE | CZ20: FALSE | DA20: FALSE | DB20: FALSE | DC20: FALSE | DD20: FALSE | DE20: FALSE | DF20: FALSE | DG20: FALSE | DH20: FALSE | DI20: FALSE | DJ20: FALSE | DK20: FALSE | DL20: FALSE | DM20: FALSE | DN20: FALSE | DO20: FALSE | DP20: FALSE | DQ20: FALSE | DR20: FALSE | DS20: FALSE | DT20: FALSE | DU20: FALSE | DV20: FALSE | DW20: FALSE | DX20: FALSE | DY20: FALSE | DZ20: FALSE | EA20: FALSE | EB20: FALSE | EC20: FALSE | ED20: FALSE | EE20: FALSE | EF20: FALSE | EG20: FALSE | EH20: FALSE | EI20: FALSE | EJ20: FALSE | EK20: =IF(EK$15,EK9) -> FALSE | EL20: FALSE | EM20: FALSE | EN20: FALSE | EO20: FALSE | EP20: FALSE | EQ20: FALSE | ER20: FALSE | ES20: FALSE | ET20: FALSE | EU20: FALSE | EV20: FALSE | EW20: FALSE | EX20: FALSE | EY20: FALSE | EZ20: 1034.73999 | FA20: 1042.849976 | FB20: 1000 | FC20: 1059.699951 | FD20: 1124.219971 | FE20: 1174.589966 | FF20: 1268.050049 | FG20: 1197.01001 | FH20: 1262.560059 | FI20: 1220.400024 | FJ20: 1276.890015 | FK20: 1298.819946 | FL20: 1313.189941 | FM20: 1407.900024 | FN20: 1480 | FO20: 1494.890015 | FP20: 1469.189941 | FQ20: 1528.869995 | FR20: 1512.589966 | FS20: 1293.900024 | FT20: 1376.790039 | FU20: 1488.780029 | FV20: 1579.02002 | FW20: 1670.01001 | FX20: 1739.839966 | FY20: 1685.77002 | FZ20: 1753.209961 | GA20: 1821.109985 | GB20: 1778.099976 | GC20: 1876.780029 | GD20: 1818.180054 | GE20: 1809.189941 | GF20: 1759.589966 | GG20: 1870.939941 | GH20: 1908.969971 | GI20: 2021.400024 | GJ20: 1919.839966 | GK20: 1883.5 | GL20: 2067.76001 | GM20: 2005.550049 | GN20: 1964.400024 | GO20: 2012.829956 | GP20: 1981.359985 | GQ20: 2104.429932 | GR20: 1993.329956 | GS20: 1984.910034 | GT20: 1828.420044 | GU20: 1837.369995 | GV20: 1902.550049 | GW20: =IF(GW$15,GW9) -> 1729.079956 | GX20: 1619.540039 | GY20: 1745.390015 | GZ20: 1757.089966 | HA20: 1714.319946 | HB20: 1697.449951 | HC20: 1591.180054 | HD20: 1462.689941 | HE20: 1490.579956 | HF20: 1604.920044 | HG20: =IF(HG$15,HG9) -> 1618.97998 | HH20: 1595.349976 | HI20: 1564.589966 | HJ20: 1623.430054 | HK20: 1525 | HL20: 1513.77002 | HM20: 1405.939941 | HN20: 1296.339966 | HO20: 1304.859985 | HP20: 1163.040039 | HQ20: 1265.410034 | HR20: 1339.890015 | HS20: 1261.180054 | HT20: 1228.140015 | HU20: 1209.709961 | HV20: 1221.459961 | HW20: 1322.069946 | HX20: 1391.719971 | HY20: 1409.47998 | HZ20: 1434.329956 | IA20: 1462.300049 | IB20: 1446.77002 | IC20: 1528.619995 | ID20: 1542.069946 | IE20: 1622.939941 | IF20: 1652.72998 | IG20: 1675.699951 | IH20: 1650.420044 | II20: 1624.51001 | IJ20: 1646.800049 | IK20: 1678.829956 | IL20: 1623.26001 | IM20: 1629.829956 | IN20: 1647.47998 | IO20: 1672.650024 | IP20: 1740.329956 | IQ20: 1799.550049 | IR20: 1755.680054 | IS20: 1792.630005 | IT20: 1760.890015 | IU20: 1727.48999 | IV20: 1782.459961 | IW20: 1784.98999 | IX20: 1851.369995 | IY20: 1834.47998 | IZ20: 1849.329956 | JA20: 1818.5 | JB20: 1887.280029 | JC20: 1887.939941 | JD20: 1937.930054 | JE20: 1943.189941 | JF20: 1967.380005 | JG20: 1993.790039 | JH20: 1936.410034 | JI20: =IF(JI$15,JI9) -> 1939.030029 | JJ20: 1951 | JK20: 1997.420044 | JL20: 2048.889893 | JM20: 2115.649902 | JN20: 2155.889893 | JO20: 2186.129883 | JP20: 2219.189941 | JQ20: 2175.780029 | JR20: 2200.120117 | JS20: 2297.580078 | JT20: 2377.75 | JU20: 2338.25 | JV20: 2265.75 | JW20: 2299.709961 | JX20: 2385.719971 | JY20: 2423.669922 | JZ20: 2322.340088 | KA20: 2306.22998 | KB20: 2167.899902 | KC20: 2097.47998 | KD20: 2088.419922 | KE20: 2190.129883 | KF20: 2218.5 | KG20: 2031.469971 | KH20: 2014.390015 | KI20: 2043.530029 | KJ20: 1861.439941 | KK20: 1548.810059 | KL20: 1437.680054 | KM20: 1452.97998 | KN20: 1330.51001 | KO20: 1188.839966 | KP20: 1292.97998 | KQ20: 1416.72998 | KR20: 1495.969971 | KS20: 1498.939941 | KT20: 1612.310059 | KU20: 1670.52002 | KV20: 1732.859985 | KW20: 1700.670044 | KX20: 1802.680054 | KY20: 1837.5 | KZ20: 1771.400024 | LA20: 1826.27002 | LB20: 1936.47998 | LC20: 1967.050049 | LD20: 1809.97998 | LE20: 1715.22998 | LF20: 1835.400024 | LG20: 1752.550049 | LH20: 1908.949951 | LI20: 1981.589966 | LJ20: 1981.839966 | LK20: 2114.290039 | LL20: 2164.399902 | LM20: 2238.550049 | LN20: 2239.439941 | LO20: 2305.76001 | LP20: 2279.659912 | LQ20: 2241.659912 | LR20: 2196.080078 | LS20: 2076.780029 | LT20: 1930.790039 | LU20: =IF(LU$15,LU9) -> 2141.810059 | LV20: 2137.080078 | LW20: 2158.939941 | LX20: 2255.689941 | LY20: 2353.22998 | LZ20: 2430.669922 | MA20: 2415.419922 | MB20: 2270.25 | MC20: 2363.790039 | MD20: 2396.620117 | ME20: 2450.600098 | MF20: 2513.929932 | MG20: 2467.51001 | MH20: 2481.820068 | MI20: 2504.439941 | MJ20: 2634.159912 | MK20: 2669.919922 | ML20: 2770.050049 | MM20: 2823.419922 | MN20: 2889.459961 | MO20: 2850.659912 | MP20: 2995.719971 | MQ20: 2908.959961 | MR20: 3000.179932 | MS20: 3138.090088 | MT20: 3233.719971 | MU20: 3315.590088 | MV20: 3200.949951 | MW20: 3347.379883 | MX20: 3375.51001 | MY20: 3400.459961 | MZ20: 3480.290039 | NA20: 3552.179932 | NB20: 3503.189941 | NC20: 3643.330078 | ND20: 3592.25 | NE20: 3679.98999 | NF20: 3778.959961 | NG20: 3769.439941 | NH20: 3656.280029 | NI20: 3866.419922 | NJ20: 3805.27002 | NK20: 3841.780029 | NL20: 3891.179932 | NM20: 3815.850098 | NN20: 3895.800049 | NO20: 3660.75 | NP20: 3570.169922 | NQ20: 3871.330078 | NR20: 3882.840088 | NS20: 3821.600098 | NT20: 3631.959961 | NU20: 3627.060059 | NV20: 3873.110107 | NW20: 3888.129883 | NX20: 3957.949951 | NY20: 3968.209961 | NZ20: 4114.509766 | OA20: 4120.290039 | OB20: 4121.060059 | OC20: 4045.889893 | OD20: 4195.72998 | OE20: 4278.660156 | OF20: 4359.810059 | OG20: =IF(OG$15,OG9) -> 4532.930176 | OH20: 4538.209961 | OI20: 4584.819824 | OJ20: 4649.339844 | OK20: 4678.359863 | OL20: 4774.560059 | OM20: 4789.180176 | ON20: 4887.970215 | OO20: 5002.029785 | OP20: 5155.439941 | OQ20: 5212.759766 | OR20: 5511.209961 | OS20: 5308.089844 | OT20: 5173.189941 | OU20: 5193.040039 | OV20: 5318.100098 | OW20: 5350.830078 | OX20: 5549.959961 | OY20: 5730.799805 | OZ20: 5763.419922 | PA20: 5369.490234 | PB20: 5478.910156 | PC20: 4984.220215 | PD20: 5383.629883 | PE20: 5556.490234 | PF20: 5664.459961 | PG20: 5893.810059 | PH20: 5519.27002 | PI20: 5908.25 | PJ20: 5993.169922 | PK20: 5898.22998 | PL20: 6008.589844 | PM20: 6138.72998 | PN20: 6361.560059 | PO20: 6553.569824 | PP20: 6551 | PQ20: 6011.72998 | PR20: 5269.200195 | PS20: 5944.680176 | PT20: 6227.810059 | PU20: 6351.669922 | PV20: 6709.810059 | PW20: 7192.109863 | PX20: 6918.830078 | PY20: 6734.839844 | PZ20: 7472.060059 | QA20: 7759.350098 | QB20: 7681.009766 | QC20: 7892.810059 | QD20: 8238.480469 | QE20: 8678.160156 | QF20: 8738.769531 | QG20: 8942.780273 | QH20: 9155.209961 | QI20: 9433.580078 | QJ20: 8994.830078 | QK20: 9625.019531 | QL20: 9558.330078 | QM20: 9986.700195 | QN20: 9469.919922 | QO20: 9186.370117 | QP20: 9527.459961 | QQ20: 8696.650391 | QR20: 8712.599609 | QS20: =IF(QS$15,QS9) -> 7993.430176 | QT20: 8730.459961 | QU20: 8374.419922 | QV20: 7603.140137 | QW20: 8218.700195 | QX20: 8678 | QY20: 8178.02002 | QZ20: 8691.879883 | RA20: 8479.799805 | RB20: 8791.129883 | RC20: 8928.349609 | RD20: 8967.160156 | RE20: 9559.669922 | RF20: 9866.769531 | RG20: 9709.679688 | RH20: 9246.740234 | RI20: 9052.30957 | RJ20: 9879.019531 | RK20: 10327.83008 | RL20: 10501.37988 | RM20: 11062.11035 | RN20: 11418.03027 | RO20: 10951.66016 | RP20: 11494.7002 | RQ20: 11907.15039 | RR20: 12052.08984 | RS20: 12344.42969 | RT20: 12608.07031 | RU20: 12493.74023 | RV20: 13227.12988 | RW20: 12911.82031 | RX20: 13271.37988 | RY20: =IF(RY$15,RY9) -> 13098.21973 | RZ20: 12360.20996 | SA20: 12276.38965 | SB20: 13049.12988 | SC20: 13712.70996 | SD20: 14020.45996 | SE20: 14304.67969 | SF20: 14826.7998 | SG20: 15173.9502 | SH20: 15211.13965 | SI20: 15220.4502 | SJ20: 15441.15039 | SK20: FALSE | SL20: FALSE | SM20: FALSE | SN20: FALSE | SO20: FALSE | SP20: FALSE | SQ20: FALSE
B22: Percent Change for Volatility and Beta
I23: Volatility | J23: Volatility
I24: Monthly | J24: Annual
